Workbook

Sheet Liste OF
A6: Etablissement | B6: Situation | C6: OF | D6: Désignation | E6: QtéOF | F6: CodeCompo | G6: DésignationCompo | H6: Qtépcs | I6: Colonne1 | J6: Colonne2 | K6: Colonne3
A7: SCCH | B7: 10 | C7: M452080 | D7: 51661-2JN | E7: 1500 | F7: 0961200 | G7: F+GPC JN-2 | H7: 1500 | I7: =MID(F7,1,1) -> 0 | J7: =IF(OR(I7="0",I7="7"),1,0) -> 1 | K7: =SUMPRODUCT((Tableau1[CodeCompo]=Tableau1[[#This Row],[CodeCompo]])*Tableau1[Qtépcs]) -> 1500 | Q7: 0961200 | R7: F+GPC JN-2 | S7: 1500
A8: SCCH | B8: 10 | C8: M452080 | D8: 51661-2JN | E8: 1500 | F8: 0962116 | G8: CUB 4,6X5,45X6,3 | H8: 1500 | I8: =MID(F8,1,1) -> 0 | J8: =IF(OR(I8="0",I8="7"),1,0) -> 1 | K8: =SUMPRODUCT((Tableau1[CodeCompo]=Tableau1[[#This Row],[CodeCompo]])*Tableau1[Qtépcs]) -> 1500 | Q8: 0962116 | R8: CUB 4,6X5,45X6,3 | S8: 1500
A9: SCCH | B9: 10 | C9: M451890 | D9: NA2-6 | E9: 5000 | F9: 0964181 | G9: GD3,33X4,85X10,4R | H9: 5000 | I9: =MID(F9,1,1) -> 0 | J9: =IF(OR(I9="0",I9="7"),1,0) -> 1 | K9: =SUMPRODUCT((Tableau1[CodeCompo]=Tableau1[[#This Row],[CodeCompo]])*Tableau1[Qtépcs]) -> 15000 | Q9: 0964181 | R9: GD3,33X4,85X10,4R | S9: 15000
A10: SCCH | B10: 10 | C10: M451920 | D10: B100NA2-6 | E10: 50 | F10: 0964181 | G10: GD3,33X4,85X10,4R | H10: 5000 | I10: =MID(F10,1,1) -> 0 | J10: =IF(OR(I10="0",I10="7"),1,0) -> 1 | K10: =SUMPRODUCT((Tableau1[CodeCompo]=Tableau1[[#This Row],[CodeCompo]])*Tableau1[Qtépcs]) -> 15000 | Q10: 0964182 | R10: GD3,95X5,5X10,2B | S10: 16000
A11: SCCH | B11: 10 | C11: M451930 | D11: NRGFA2-4 | E11: 5000 | F11: 0964181 | G11: GD3,33X4,85X10,4R | H11: 5000 | I11: =MID(F11,1,1) -> 0 | J11: =IF(OR(I11="0",I11="7"),1,0) -> 1 | K11: =SUMPRODUCT((Tableau1[CodeCompo]=Tableau1[[#This Row],[CodeCompo]])*Tableau1[Qtépcs]) -> 15000 | Q11: 0964183 | R11: GD5,3X7,1X13,5J | S11: 5000
A12: SCCH | B12: 10 | C12: M451940 | D12: NB0-4 | E12: 5000 | F12: 0964182 | G12: GD3,95X5,5X10,2B | H12: 5000 | I12: =MID(F12,1,1) -> 0 | J12: =IF(OR(I12="0",I12="7"),1,0) -> 1 | K12: =SUMPRODUCT((Tableau1[CodeCompo]=Tableau1[[#This Row],[CodeCompo]])*Tableau1[Qtépcs]) -> 16000 | Q12: 0964184 | R12: GD5,4X7,1X13,5J | S12: 13000
A13: SCCH | B13: 10 | C13: M451950 | D13: B100NB0-5 | E13: 50 | F13: 0964182 | G13: GD3,95X5,5X10,2B | H13: 5000 | I13: =MID(F13,1,1) -> 0 | J13: =IF(OR(I13="0",I13="7"),1,0) -> 1 | K13: =SUMPRODUCT((Tableau1[CodeCompo]=Tableau1[[#This Row],[CodeCompo]])*Tableau1[Qtépcs]) -> 16000 | Q13: 0967052 | R13: REDUCTEUR BLEU RB2 | S13: 9000
A14: SCCH | B14: 10 | C14: M451960 | D14: B100NB1-4 | E14: 30 | F14: 0964182 | G14: GD3,95X5,5X10,2B | H14: 3000 | I14: =MID(F14,1,1) -> 0 | J14: =IF(OR(I14="0",I14="7"),1,0) -> 1 | K14: =SUMPRODUCT((Tableau1[CodeCompo]=Tableau1[[#This Row],[CodeCompo]])*Tableau1[Qtépcs]) -> 16000 | Q14: 0967053 | R14: REDUCTEUR VERT RV3 | S14: 5000
A15: SCCH | B15: 10 | C15: M451970 | D15: NRGB0-4 | E15: 3000 | F15: 0964182 | G15: GD3,95X5,5X10,2B | H15: 3000 | I15: =MID(F15,1,1) -> 0 | J15: =IF(OR(I15="0",I15="7"),1,0) -> 1 | K15: =SUMPRODUCT((Tableau1[CodeCompo]=Tableau1[[#This Row],[CodeCompo]])*Tableau1[Qtépcs]) -> 16000 | Q15: 0967060 | R15: REDUCTEUR BLANC 0,93-1 | S15: 5000
A16: SCCH | B16: 10 | C16: M452010 | D16: B100NC2-12 | E16: 40 | F16: 0964183 | G16: GD5,3X7,1X13,5J | H16: 4000 | I16: =MID(F16,1,1) -> 0 | J16: =IF(OR(I16="0",I16="7"),1,0) -> 1 | K16: =SUMPRODUCT((Tableau1[CodeCompo]=Tableau1[[#This Row],[CodeCompo]])*Tableau1[Qtépcs]) -> 5000 | Q16: 0986268 | R16: BTE PLAST 130X47X30 UC45 | S16: 60
A17: SCCH | B17: 10 | C17: M452020 | D17: B100NRGFC1-5 | E17: 10 | F17: 0964183 | G17: GD5,3X7,1X13,5J | H17: 1000 | I17: =MID(F17,1,1) -> 0 | J17: =IF(OR(I17="0",I17="7"),1,0) -> 1 | K17: =SUMPRODUCT((Tableau1[CodeCompo]=Tableau1[[#This Row],[CodeCompo]])*Tableau1[Qtépcs]) -> 5000 | Q17: 7200083 | R17: A2-6 | S17: 10000
A18: SCCH | B18: 10 | C18: M451980 | D18: NC2-6 | E18: 5000 | F18: 0964184 | G18: GD5,4X7,1X13,5J | H18: 5000 | I18: =MID(F18,1,1) -> 0 | J18: =IF(OR(I18="0",I18="7"),1,0) -> 1 | K18: =SUMPRODUCT((Tableau1[CodeCompo]=Tableau1[[#This Row],[CodeCompo]])*Tableau1[Qtépcs]) -> 13000 | Q18: 7200111 | R18: B1-4 | S18: 3000
A19: SCCH | B19: 10 | C19: M451990 | D19: B100NC2-8 | E19: 50 | F19: 0964184 | G19: GD5,4X7,1X13,5J | H19: 5000 | I19: =MID(F19,1,1) -> 0 | J19: =IF(OR(I19="0",I19="7"),1,0) -> 1 | K19: =SUMPRODUCT((Tableau1[CodeCompo]=Tableau1[[#This Row],[CodeCompo]])*Tableau1[Qtépcs]) -> 13000 | Q19: 7200114 | R19: B0-4 | S19: 5000
A20: SCCH | B20: 10 | C20: M452000 | D20: B100NC2-10 | E20: 30 | F20: 0964184 | G20: GD5,4X7,1X13,5J | H20: 3000 | I20: =MID(F20,1,1) -> 0 | J20: =IF(OR(I20="0",I20="7"),1,0) -> 1 | K20: =SUMPRODUCT((Tableau1[CodeCompo]=Tableau1[[#This Row],[CodeCompo]])*Tableau1[Qtépcs]) -> 13000 | Q20: 7200124 | R20: B0-5 | S20: 5000
A21: SCCH | B21: 10 | C21: M452030 | D21: B100-51232 | E21: 40 | F21: 0967052 | G21: REDUCTEUR BLEU RB2 | H21: 4000 | I21: =MID(F21,1,1) -> 0 | J21: =IF(OR(I21="0",I21="7"),1,0) -> 1 | K21: =SUMPRODUCT((Tableau1[CodeCompo]=Tableau1[[#This Row],[CodeCompo]])*Tableau1[Qtépcs]) -> 9000 | Q21: 7200241 | R21: C2-12 | S21: 4000
A22: SCCH | B22: 10 | C22: M452050 | D22: 51132 | E22: 5000 | F22: 0967052 | G22: REDUCTEUR BLEU RB2 | H22: 5000 | I22: =MID(F22,1,1) -> 0 | J22: =IF(OR(I22="0",I22="7"),1,0) -> 1 | K22: =SUMPRODUCT((Tableau1[CodeCompo]=Tableau1[[#This Row],[CodeCompo]])*Tableau1[Qtépcs]) -> 9000 | Q22: 7200251 | R22: C2-6 | S22: 5000
A23: SCCH | B23: 10 | C23: M452060 | D23: 51133 | E23: 5000 | F23: 0967053 | G23: REDUCTEUR VERT RV3 | H23: 5000 | I23: =MID(F23,1,1) -> 0 | J23: =IF(OR(I23="0",I23="7"),1,0) -> 1 | K23: =SUMPRODUCT((Tableau1[CodeCompo]=Tableau1[[#This Row],[CodeCompo]])*Tableau1[Qtépcs]) -> 5000 | Q23: 7200252 | R23: C2-8 | S23: 5000
A24: SCCH | B24: 10 | C24: M452040 | D24: 51083 * | E24: 5000 | F24: 0967060 | G24: REDUCTEUR BLANC 0,93-1 | H24: 5000 | I24: =MID(F24,1,1) -> 0 | J24: =IF(OR(I24="0",I24="7"),1,0) -> 1 | K24: =SUMPRODUCT((Tableau1[CodeCompo]=Tableau1[[#This Row],[CodeCompo]])*Tableau1[Qtépcs]) -> 5000 | Q24: 7200253 | R24: C2-10 | S24: 3000
A25: SCCH | B25: 10 | C25: M451990 | D25: B100NC2-8 | E25: 50 | F25: 0986268 | G25: BTE PLAST 130X47X30 UC45 | H25: 50 | I25: =MID(F25,1,1) -> 0 | J25: =IF(OR(I25="0",I25="7"),1,0) -> 1 | K25: =SUMPRODUCT((Tableau1[CodeCompo]=Tableau1[[#This Row],[CodeCompo]])*Tableau1[Qtépcs]) -> 60 | Q25: 7201081 | R25: RGB0-4 | S25: 3000
A26: SCCH | B26: 10 | C26: M452020 | D26: B100NRGFC1-5 | E26: 10 | F26: 0986268 | G26: BTE PLAST 130X47X30 UC45 | H26: 10 | I26: =MID(F26,1,1) -> 0 | J26: =IF(OR(I26="0",I26="7"),1,0) -> 1 | K26: =SUMPRODUCT((Tableau1[CodeCompo]=Tableau1[[#This Row],[CodeCompo]])*Tableau1[Qtépcs]) -> 60 | Q26: 7202041 | R26: RGFA2-4 | S26: 5000
A27: SCCH | B27: 10 | C27: M451890 | D27: NA2-6 | E27: 5000 | F27: 7200083 | G27: A2-6 | H27: 5000 | I27: =MID(F27,1,1) -> 7 | J27: =IF(OR(I27="0",I27="7"),1,0) -> 1 | K27: =SUMPRODUCT((Tableau1[CodeCompo]=Tableau1[[#This Row],[CodeCompo]])*Tableau1[Qtépcs]) -> 10000 | Q27: 7202181 | R27: RGFC1-5 | S27: 1000
A28: SCCH | B28: 10 | C28: M451920 | D28: B100NA2-6 | E28: 50 | F28: 7200083 | G28: A2-6 | H28: 5000 | I28: =MID(F28,1,1) -> 7 | J28: =IF(OR(I28="0",I28="7"),1,0) -> 1 | K28: =SUMPRODUCT((Tableau1[CodeCompo]=Tableau1[[#This Row],[CodeCompo]])*Tableau1[Qtépcs]) -> 10000 | Q28: 7241062 | R28: QC661 | S28: 1500
A29: SCCH | B29: 10 | C29: M451960 | D29: B100NB1-4 | E29: 30 | F29: 7200111 | G29: B1-4 | H29: 3000 | I29: =MID(F29,1,1) -> 7 | J29: =IF(OR(I29="0",I29="7"),1,0) -> 1 | K29: =SUMPRODUCT((Tableau1[CodeCompo]=Tableau1[[#This Row],[CodeCompo]])*Tableau1[Qtépcs]) -> 3000 | Q29: 7261046 | R29: 51081-2VRAC * | S29: 5000
A30: SCCH | B30: 10 | C30: M451940 | D30: NB0-4 | E30: 5000 | F30: 7200114 | G30: B0-4 | H30: 5000 | I30: =MID(F30,1,1) -> 7 | J30: =IF(OR(I30="0",I30="7"),1,0) -> 1 | K30: =SUMPRODUCT((Tableau1[CodeCompo]=Tableau1[[#This Row],[CodeCompo]])*Tableau1[Qtépcs]) -> 5000 | Q30: 7261301 | R30: 51131-2IM | S30: 10000
A31: SCCH | B31: 10 | C31: M451950 | D31: B100NB0-5 | E31: 50 | F31: 7200124 | G31: B0-5 | H31: 5000 | I31: =MID(F31,1,1) -> 7 | J31: =IF(OR(I31="0",I31="7"),1,0) -> 1 | K31: =SUMPRODUCT((Tableau1[CodeCompo]=Tableau1[[#This Row],[CodeCompo]])*Tableau1[Qtépcs]) -> 5000 | Q31: 7261311 | R31: 51231-2IM | S31: 4000
A32: SCCH | B32: 10 | C32: M452010 | D32: B100NC2-12 | E32: 40 | F32: 7200241 | G32: C2-12 | H32: 4000 | I32: =MID(F32,1,1) -> 7 | J32: =IF(OR(I32="0",I32="7"),1,0) -> 1 | K32: =SUMPRODUCT((Tableau1[CodeCompo]=Tableau1[[#This Row],[CodeCompo]])*Tableau1[Qtépcs]) -> 4000
A33: SCCH | B33: 10 | C33: M451980 | D33: NC2-6 | E33: 5000 | F33: 7200251 | G33: C2-6 | H33: 5000 | I33: =MID(F33,1,1) -> 7 | J33: =IF(OR(I33="0",I33="7"),1,0) -> 1 | K33: =SUMPRODUCT((Tableau1[CodeCompo]=Tableau1[[#This Row],[CodeCompo]])*Tableau1[Qtépcs]) -> 5000
A34: SCCH | B34: 10 | C34: M451990 | D34: B100NC2-8 | E34: 50 | F34: 7200252 | G34: C2-8 | H34: 5000 | I34: =MID(F34,1,1) -> 7 | J34: =IF(OR(I34="0",I34="7"),1,0) -> 1 | K34: =SUMPRODUCT((Tableau1[CodeCompo]=Tableau1[[#This Row],[CodeCompo]])*Tableau1[Qtépcs]) -> 5000
A35: SCCH | B35: 10 | C35: M452000 | D35: B100NC2-10 | E35: 30 | F35: 7200253 | G35: C2-10 | H35: 3000 | I35: =MID(F35,1,1) -> 7 | J35: =IF(OR(I35="0",I35="7"),1,0) -> 1 | K35: =SUMPRODUCT((Tableau1[CodeCompo]=Tableau1[[#This Row],[CodeCompo]])*Tableau1[Qtépcs]) -> 3000
A36: SCCH | B36: 10 | C36: M451970 | D36: NRGB0-4 | E36: 3000 | F36: 7201081 | G36: RGB0-4 | H36: 3000 | I36: =MID(F36,1,1) -> 7 | J36: =IF(OR(I36="0",I36="7"),1,0) -> 1 | K36: =SUMPRODUCT((Tableau1[CodeCompo]=Tableau1[[#This Row],[CodeCompo]])*Tableau1[Qtépcs]) -> 3000
A37: SCCH | B37: 10 | C37: M451930 | D37: NRGFA2-4 | E37: 5000 | F37: 7202041 | G37: RGFA2-4 | H37: 5000 | I37: =MID(F37,1,1) -> 7 | J37: =IF(OR(I37="0",I37="7"),1,0) -> 1 | K37: =SUMPRODUCT((Tableau1[CodeCompo]=Tableau1[[#This Row],[CodeCompo]])*Tableau1[Qtépcs]) -> 5000
A38: SCCH | B38: 10 | C38: M452020 | D38: B100NRGFC1-5 | E38: 10 | F38: 7202181 | G38: RGFC1-5 | H38: 1000 | I38: =MID(F38,1,1) -> 7 | J38: =IF(OR(I38="0",I38="7"),1,0) -> 1 | K38: =SUMPRODUCT((Tableau1[CodeCompo]=Tableau1[[#This Row],[CodeCompo]])*Tableau1[Qtépcs]) -> 1000
A39: SCCH | B39: 10 | C39: M452080 | D39: 51661-2JN | E39: 1500 | F39: 7241062 | G39: QC661 | H39: 1500 | I39: =MID(F39,1,1) -> 7 | J39: =IF(OR(I39="0",I39="7"),1,0) -> 1 | K39: =SUMPRODUCT((Tableau1[CodeCompo]=Tableau1[[#This Row],[CodeCompo]])*Tableau1[Qtépcs]) -> 1500
A40: SCCH | B40: 10 | C40: M452040 | D40: 51083 * | E40: 5000 | F40: 7261046 | G40: 51081-2VRAC * | H40: 5000 | I40: =MID(F40,1,1) -> 7 | J40: =IF(OR(I40="0",I40="7"),1,0) -> 1 | K40: =SUMPRODUCT((Tableau1[CodeCompo]=Tableau1[[#This Row],[CodeCompo]])*Tableau1[Qtépcs]) -> 5000
A41: SCCH | B41: 10 | C41: M452050 | D41: 51132 | E41: 5000 | F41: 7261301 | G41: 51131-2IM | H41: 5000 | I41: =MID(F41,1,1) -> 7 | J41: =IF(OR(I41="0",I41="7"),1,0) -> 1 | K41: =SUMPRODUCT((Tableau1[CodeCompo]=Tableau1[[#This Row],[CodeCompo]])*Tableau1[Qtépcs]) -> 10000
A42: SCCH | B42: 10 | C42: M452060 | D42: 51133 | E42: 5000 | F42: 7261301 | G42: 51131-2IM | H42: 5000 | I42: =MID(F42,1,1) -> 7 | J42: =IF(OR(I42="0",I42="7"),1,0) -> 1 | K42: =SUMPRODUCT((Tableau1[CodeCompo]=Tableau1[[#This Row],[CodeCompo]])*Tableau1[Qtépcs]) -> 10000
A43: SCCH | B43: 10 | C43: M452030 | D43: B100-51232 | E43: 40 | F43: 7261311 | G43: 51231-2IM | H43: 4000 | I43: =MID(F43,1,1) -> 7 | J43: =IF(OR(I43="0",I43="7"),1,0) -> 1 | K43: =SUMPRODUCT((Tableau1[CodeCompo]=Tableau1[[#This Row],[CodeCompo]])*Tableau1[Qtépcs]) -> 4000

Sheet StockEmplt
A2: CodeCompo | B2: Mag | C2: Emplt | D2: Lot | E2: Qté | F2: Désignation
A3: 0142003 | B3: 1 | C3: AM104 | D3: 6AP03284R2 | E3: 122 | F3: TUB CUB1 2,7X5 TRANC
A4: 0142003 | B4: 1 | C4: EAT30 | D4: 7BP0844800 | E4: 552 | F4: TUB CUB1 2,7X5 TRANC
A5: 0142004 | B5: 1 | C5: AH162 | D5: 5CP4750400 | E5: 786 | F5: TUB CUB1 2,4X4 TRANC
A6: 0142004 | B6: 1 | C6: EAT30 | D6: 5CP4750400 | E6: 378 | F6: TUB CUB1 2,4X4 TRANC
A7: 0142005 | B7: 1 | C7: AH131 | D7: 7CP0866100 | E7: 873.8 | F7: TUB CUB1 3,3X5,5 TRANC
A8: 0142005 | B8: 1 | C8: AH193 | D8: 7CP0866100 | E8: 655 | F8: TUB CUB1 3,3X5,5 TRANC
A9: 0142005 | B9: 1 | C9: EAT30 | D9: 7CP0866100 | E9: 513 | F9: TUB CUB1 3,3X5,5 TRANC
A10: 0142005 | B10: 1 | C10: AF013 | D10: 7EP0937300 | E10: 939.6 | F10: TUB CUB1 3,3X5,5 TRANC
A11: 0142005 | B11: 1 | C11: AF041 | D11: 7EP0937300 | E11: 803.8 | F11: TUB CUB1 3,3X5,5 TRANC
A12: 0142005 | B12: 1 | C12: AF103 | D12: 7EP0937300 | E12: 789.2 | F12: TUB CUB1 3,3X5,5 TRANC
A13: 0142005 | B13: 1 | C13: AH041 | D13: 7EP0937300 | E13: 889.2 | F13: TUB CUB1 3,3X5,5 TRANC
A14: 0142005 | B14: 1 | C14: ERQ00 | D14: 7EP0937300 | E14: 9 | F14: TUB CUB1 3,3X5,5 TRANC | G14: x
A15: 0142006 | B15: 1 | C15: AG191 | D15: 5JP0184700 | E15: 825 | F15: TUB CUB1 3,3X5 TRANC
A16: 0142006 | B16: 1 | C16: AM044 | D16: 5JP0184700 | E16: 181 | F16: TUB CUB1 3,3X5 TRANC
A17: 0142007 | B17: 1 | C17: AF042 | D17: 4JPC616600 | E17: 767 | F17: TUB CUB1 3,8X5,5 TRANC
A18: 0142010 | B18: 1 | C18: AG103 | D18: 7CP0866500 | E18: 445 | F18: TUB CUB1 5,3X8 TRANC
A19: 0142011 | B19: 1 | C19: AF012 | D19: 7CP0866400 | E19: 1 | F19: TUB CUB1 6,6X9,5 TRANC
A20: 0142011 | B20: 1 | C20: AG193 | D20: 7CP0866400 | E20: 285 | F20: TUB CUB1 6,6X9,5 TRANC
A21: 0142011 | B21: 1 | C21: AH043 | D21: 7DP0937500 | E21: 652 | F21: TUB CUB1 6,6X9,5 TRANC
A22: 0142013 | B22: 1 | C22: EAT30 | D22: 7EP0948300 | E22: 870 | F22: TUB CUB1 9,2X12,5 TRANC
A23: 0142014 | B23: 1 | C23: AE132 | D23: 25748 | E23: 372 | F23: TUB CUB1 10X12 3M
A24: 0142015 | B24: 1 | C24: AF132 | D24: 7EP0967700 | E24: 659 | F24: TUB CUB1 11X15 TRANC
A25: 0142023 | B25: 1 | C25: AD015 | D25: 7AP0804500 | E25: 35 | F25: TUB CUB1 16,2X21 3M
A26: 0142023 | B26: 1 | C26: AE075 | D26: 7AP0804500 | E26: 477 | F26: TUB CUB1 16,2X21 3M
A27: 0142023 | B27: 1 | C27: AE043 | D27: 7EP0937300 | E27: 403 | F27: TUB CUB1 16,2X21 3M
A28: 0142023 | B28: 1 | C28: AE044 | D28: 7EP0937300 | E28: 414 | F28: TUB CUB1 16,2X21 3M
A29: 0142023 | B29: 1 | C29: AE103 | D29: 7EP0937300 | E29: 414 | F29: TUB CUB1 16,2X21 3M
A30: 0142023 | B30: 1 | C30: AE106 | D30: 7EP0937300 | E30: 418 | F30: TUB CUB1 16,2X21 3M
A31: 0142025 | B31: 1 | C31: AE013 | D31: 7DP0911000 | E31: 278 | F31: TUB CUB1 18X23 3M
A32: 0142025 | B32: 1 | C32: AE044 | D32: 7DP0911000 | E32: 440 | F32: TUB CUB1 18X23 3M
A33: 0142025 | B33: 1 | C33: AE045 | D33: 7DP0911000 | E33: 440 | F33: TUB CUB1 18X23 3M
A34: 0142025 | B34: 1 | C34: AD015 | D34: 7EP0949300 | E34: 410 | F34: TUB CUB1 18X23 3M
A35: 0142025 | B35: 1 | C35: AE012 | D35: 7EP0949300 | E35: 397 | F35: TUB CUB1 18X23 3M
A36: 0142025 | B36: 1 | C36: AE041 | D36: 7EP0949300 | E36: 406 | F36: TUB CUB1 18X23 3M
A37: 0142025 | B37: 1 | C37: AE101 | D37: 7EP0949300 | E37: 407 | F37: TUB CUB1 18X23 3M
A38: 0142026 | B38: 1 | C38: AG071 | D38: 7CP0866100 | E38: 639.4 | F38: TUB CUB1 14,5X18 TRANC
A39: 0142026 | B39: 1 | C39: AH041 | D39: 7CP0866100 | E39: 641.8 | F39: TUB CUB1 14,5X18 TRANC
A40: 0142028 | B40: 1 | C40: AE047 | D40: 7BP0876200 | E40: 396 | F40: TUB CUB1 20,6X26 3M
A41: 0142028 | B41: 1 | C41: AD101 | D41: 7EP0949300 | E41: 427.5 | F41: TUB CUB1 20,6X26 3M
A42: 0142028 | B42: 1 | C42: AD103 | D42: 7EP0949300 | E42: 426 | F42: TUB CUB1 20,6X26 3M
A43: 0142028 | B43: 1 | C43: AD105 | D43: 7EP0949300 | E43: 454 | F43: TUB CUB1 20,6X26 3M
A44: 0142028 | B44: 1 | C44: AE011 | D44: 7EP0967900 | E44: 411.5 | F44: TUB CUB1 20,6X26 3M
A45: 0142028 | B45: 1 | C45: AE012 | D45: 7EP0967900 | E45: 411.5 | F45: TUB CUB1 20,6X26 3M
A46: 0142028 | B46: 1 | C46: AE016 | D46: 7EP0967900 | E46: 411.5 | F46: TUB CUB1 20,6X26 3M
A47: 0142028 | B47: 1 | C47: AE043 | D47: 7EP0967900 | E47: 411.5 | F47: TUB CUB1 20,6X26 3M
A48: 0142029 | B48: 1 | C48: AM044 | D48: 7AP0798200 | E48: 176 | F48: TUB CU-DHP 16,5X19 TRANC
A49: 0142032 | B49: 1 | C49: EAT30 | D49: 7AP0804100 | E49: 371 | F49: TUB CUB1 11,5X15 TRANC
A50: 0142033 | B50: 1 | C50: AD106 | D50: 6FP0560200 | E50: 87 | F50: TUB CUB1 11,7X16 3M
A51: 0142033 | B51: 1 | C51: AE047 | D51: 6FP0560200 | E51: 350 | F51: TUB CUB1 11,7X16 3M
A52: 0142036 | B52: 1 | C52: AB011 | D52: 6LP0724600 | E52: 349 | F52: TUB CUB1 18X22 3M
A53: 0142036 | B53: 1 | C53: AC011 | D53: 6LP0724600 | E53: 470.5 | F53: TUB CUB1 18X22 3M
A54: 0142036 | B54: 1 | C54: AD014 | D54: 6LP0724600 | E54: 470 | F54: TUB CUB1 18X22 3M
A55: 0142037 | B55: 1 | C55: AE046 | D55: 7CP0866200 | E55: 133 | F55: TUB CUB1 19X24,5 3M
A56: 0142041 | B56: 1 | C56: AF071 | D56: 7EP0949400 | E56: 893 | F56: TUB CUB1 9,6X12,5 TRANC
A57: 0142041 | B57: 1 | C57: AG011 | D57: 7EP0949400 | E57: 864 | F57: TUB CUB1 9,6X12,5 TRANC
A58: 0142043 | B58: 1 | C58: AE073 | D58: 5KP0185200 | E58: 302 | F58: TUB CUB1 15X19 3M *
A59: 0142044 | B59: 1 | C59: AG192 | D59: 6DP0456500 | E59: 609 | F59: TUB CU-DHP 15X19 TRANC
A60: 0142047 | B60: 1 | C60: AE103 | D60: 7AP0784700 | E60: 82 | F60: TUB CUB1 23X28 3M
A61: 0142047 | B61: 1 | C61: AE106 | D61: 7AP0784700 | E61: 366 | F61: TUB CUB1 23X28 3M
A62: 0142048 | B62: 1 | C62: AD135 | D62: 6MP0747000 | E62: 175 | F62: TUB CUB1 26X32 3M
A63: 0142048 | B63: 1 | C63: AE016 | D63: 7BP0804600 | E63: 399 | F63: TUB CUB1 26X32 3M
A64: 0142048 | B64: 1 | C64: AE072 | D64: 7BP0804600 | E64: 334 | F64: TUB CUB1 26X32 3M
A65: 0142048 | B65: 1 | C65: AE101 | D65: 7BP0804600 | E65: 326 | F65: TUB CUB1 26X32 3M
A66: 0142050 | B66: 1 | C66: AE105 | D66: 6BP0366400 | E66: 372 | F66: TUB CUB1 29,2X39,5 3M
A67: 0142050 | B67: 1 | C67: AE134 | D67: 6BP0366400 | E67: 358 | F67: TUB CUB1 29,2X39,5 3M
A68: 0142051 | B68: 1 | C68: AF011 | D68: 7BP0847200 | E68: 837 | F68: TUB CUB1 7X9,5 TRANC
A69: 0142053 | B69: 1 | C69: AH133 | D69: 7EP0910800 | E69: 880.6 | F69: TUB CUB1 4,3X6,8 TRANC
A70: 0142054 | B70: 1 | C70: AM104 | D70: 6BP0393300 | E70: 106 | F70: TUB CUB1 5,6X8 TRANC
A71: 0142055 | B71: 1 | C71: AH133 | D71: 4AP3682400 | E71: 444 | F71: TUB CUB1 8,2X11 TRANC
A72: 0142056 | B72: 1 | C72: AM134 | D72: 5FP0089800 | E72: 128 | F72: TUB CUB1 13,5X17 TRANC
A73: 0142061 | B73: 1 | C73: AE131 | D73: 7AP0788700 | E73: 635 | F73: S/E LOP CU-DHP 43X60,4 L196
A74: 0142062 | B74: 1 | C74: AE043 | D74: 7AP0784700 | E74: 146 | F74: TUB CUB1 16,7X21,5 3M
A75: 0142062 | B75: 1 | C75: AE102 | D75: 7AP0784700 | E75: 417 | F75: TUB CUB1 16,7X21,5 3M
A76: 0142063 | B76: 1 | C76: AM134 | D76: 7DP0948700 | E76: 203 | F76: TUB CUB1 14,5X19 TRANC
A77: 0142080 | B77: 1 | C77: AG073 | D77: P663040103 | E77: 581 | F77: TUB CUB1 12X16 TRANC
A78: 0142080 | B78: 1 | C78: AH012 | D78: P663040103 | E78: 841 | F78: TUB CUB1 12X16 TRANC
A79: 0142080 | B79: 1 | C79: AH132 | D79: P663040103 | E79: 808 | F79: TUB CUB1 12X16 TRANC
A80: 0142105 | B80: 1 | C80: AM074 | D80: 6LP0724400 | E80: 168 | F80: TUB SECU 3,5X6,5 TRANC
A81: 0142110 | B81: 1 | C81: AG043 | D81: 7CP0898200 | E81: 403 | F81: TUB SECU 4,5X7 TRANC
A82: 0142115 | B82: 1 | C82: AG072 | D82: 7CP0879400 | E82: 805.6 | F82: TUB SECU 5,5X8,5 TRANC
A83: 0142115 | B83: 1 | C83: AG162 | D83: 7CP0879400 | E83: 393 | F83: TUB SECU 5,5X8,5 TRANC
A84: 0142120 | B84: 1 | C84: AF102 | D84: 7DP0937400 | E84: 891.8 | F84: TUB SECU 7X10 TRANC
A85: 0142120 | B85: 1 | C85: AM164 | D85: 7DP0937400 | E85: 238 | F85: TUB SECU 7X10 TRANC
A86: 0142125 | B86: 1 | C86: AF193 | D86: 6KP0708800 | E86: 312 | F86: TUB SECU 8,5X12 TRANC
A87: 0142125 | B87: 1 | C87: AF071 | D87: 6LP0677500 | E87: 1023 | F87: TUB SECU 8,5X12 TRANC
A88: 0142125 | B88: 1 | C88: AF191 | D88: 6LP0677500 | E88: 1064 | F88: TUB SECU 8,5X12 TRANC
A89: 0142126 | B89: 1 | C89: AD134 | D89: 3LP2636700 | E89: 440 | F89: TUB CUB1 8,5X12,8 3M
A90: 0142127 | B90: 1 | C90: AH042 | D90: 7EP0937300 | E90: 907.2 | F90: TUB SECU 10X14 TRANC
A91: 0142127 | B91: 1 | C91: AH103 | D91: 7EP0937300 | E91: 396 | F91: TUB SECU 10X14 TRANC
A92: 0142127 | B92: 1 | C92: AG013 | D92: 7EP0949300 | E92: 618.6 | F92: TUB SECU 10X14 TRANC
A93: 0142128 | B93: 1 | C93: AD044 | D93: 6BP0350800 | E93: 67 | F93: TUB CU-HCP 10X14,5 3M
A94: 0142128 | B94: 1 | C94: AB018 | D94: 7EP0949300 | E94: 366 | F94: TUB CU-HCP 10X14,5 3M
A95: 0142128 | B95: 1 | C95: AB045 | D95: 7EP0949300 | E95: 367 | F95: TUB CU-HCP 10X14,5 3M
A96: 0142128 | B96: 1 | C96: AD102 | D96: 7EP0949300 | E96: 368 | F96: TUB CU-HCP 10X14,5 3M
A97: 0142129 | B97: 1 | C97: AM074 | D97: 6EP0454800 | E97: 191 | F97: TUB CU-HCP 11X15 TRANC
A98: 0142137 | B98: 1 | C98: AF132 | D98: 6DP0432200 | E98: 422 | F98: TUB CU-HCP 14,5X19 TRANC
A99: 0142140 | B99: 1 | C99: AB045 | D99: 6JP0633200 | E99: 408 | F99: TUB SECU 15X19,5 3M
A100: 0142140 | B100: 1 | C100: AD013 | D100: 6JP0633200 | E100: 414 | F100: TUB SECU 15X19,5 3M
A101: 0142140 | B101: 1 | C101: AD071 | D101: 7CP0866100 | E101: 362 | F101: TUB SECU 15X19,5 3M
A102: 0142140 | B102: 1 | C102: AD072 | D102: 7CP0866100 | E102: 369 | F102: TUB SECU 15X19,5 3M
A103: 0142140 | B103: 1 | C103: AD135 | D103: 7CP0866100 | E103: 369 | F103: TUB SECU 15X19,5 3M
A104: 0142142 | B104: 1 | C104: AB018 | D104: 7CP0866200 | E104: 405 | F104: TUB SECU 16,5X21 3M
A105: 0142142 | B105: 1 | C105: AE104 | D105: 7CP0866200 | E105: 404 | F105: TUB SECU 16,5X21 3M
A106: 0142142 | B106: 1 | C106: AE107 | D106: 7CP0866200 | E106: 50 | F106: TUB SECU 16,5X21 3M
A107: 0142142 | B107: 1 | C107: AD106 | D107: 7EP0987100 | E107: 414 | F107: TUB SECU 16,5X21 3M
A108: 0142142 | B108: 1 | C108: AD135 | D108: 7EP0987100 | E108: 425 | F108: TUB SECU 16,5X21 3M
A109: 0142142 | B109: 1 | C109: AE045 | D109: 7EP0987100 | E109: 418 | F109: TUB SECU 16,5X21 3M
A110: 0142142 | B110: 1 | C110: AE046 | D110: 7EP0987100 | E110: 392 | F110: TUB SECU 16,5X21 3M
A111: 0142143 | B111: 1 | C111: AE105 | D111: 7BP0866300 | E111: 30 | F111: TUB CU-HCP 17X23,5 3M
A112: 0142143 | B112: 1 | C112: AB011 | D112: 7EP0987100 | E112: 526 | F112: TUB CU-HCP 17X23,5 3M
A113: 0142143 | B113: 1 | C113: AE075 | D113: 7EP0987100 | E113: 448.5 | F113: TUB CU-HCP 17X23,5 3M
A114: 0142143 | B114: 1 | C114: AE076 | D114: 7EP0987100 | E114: 448 | F114: TUB CU-HCP 17X23,5 3M
A115: 0142144 | B115: 1 | C115: AC011 | D115: 6DP0432200 | E115: 257 | F115: TUB CU-HCP 16,7X21,5 3M
A116: 0142144 | B116: 1 | C116: AD072 | D116: 6DP0432200 | E116: 320 | F116: TUB CU-HCP 16,7X21,5 3M
A117: 0142145 | B117: 1 | C117: AD076 | D117: 6MP0747000 | E117: 107 | F117: TUB SECU 19X24 3M
A118: 0142145 | B118: 1 | C118: AD136 | D118: 6MP0747000 | E118: 362 | F118: TUB SECU 19X24 3M
A119: 0142146 | B119: 1 | C119: AC041 | D119: 6DP0432200 | E119: 298 | F119: TUB CU-HCP 19X24,5 3M
A120: 0142146 | B120: 1 | C120: AD102 | D120: 6DP0432200 | E120: 401 | F120: TUB CU-HCP 19X24,5 3M
A121: 0142146 | B121: 1 | C121: AE074 | D121: 6DP0432200 | E121: 402 | F121: TUB CU-HCP 19X24,5 3M
A122: 0142147 | B122: 1 | C122: AE013 | D122: 6LP0724800 | E122: 347 | F122: TUB SECU 21X26 3M
A123: 0142147 | B123: 1 | C123: AE101 | D123: 6LP0724800 | E123: 368 | F123: TUB SECU 21X26 3M
A124: 0142148 | B124: 1 | C124: AE107 | D124: 7AP0804500 | E124: 79 | F124: TUB CU-HCP 21,5X29 3M
A125: 0142148 | B125: 1 | C125: AD071 | D125: 7DP0911000 | E125: 360 | F125: TUB CU-HCP 21,5X29 3M
A126: 0142148 | B126: 1 | C126: AD075 | D126: 7DP0911000 | E126: 428 | F126: TUB CU-HCP 21,5X29 3M
A127: 0142148 | B127: 1 | C127: AD104 | D127: 7DP0911000 | E127: 428 | F127: TUB CU-HCP 21,5X29 3M
A128: 0142148 | B128: 1 | C128: AE073 | D128: 7DP0911000 | E128: 413 | F128: TUB CU-HCP 21,5X29 3M
A129: 0142148 | B129: 1 | C129: AD103 | D129: 7EP0949300 | E129: 447.5 | F129: TUB CU-HCP 21,5X29 3M
A130: 0142148 | B130: 1 | C130: AE015 | D130: 7EP0949300 | E130: 448 | F130: TUB CU-HCP 21,5X29 3M
A131: 0142148 | B131: 1 | C131: AE071 | D131: 7EP0949300 | E131: 448 | F131: TUB CU-HCP 21,5X29 3M
A132: 0142148 | B132: 1 | C132: AE072 | D132: 7EP0949300 | E132: 447.5 | F132: TUB CU-HCP 21,5X29 3M
A133: 0142150 | B133: 1 | C133: AE105 | D133: 6LP0724600 | E133: 60 | F133: TUB SECU 23,5X29,5 3M
A134: 0142150 | B134: 1 | C134: AD103 | D134: 7EP0949300 | E134: 404 | F134: TUB SECU 23,5X29,5 3M
A135: 0142150 | B135: 1 | C135: AD104 | D135: 7EP0949300 | E135: 404 | F135: TUB SECU 23,5X29,5 3M
A136: 0142150 | B136: 1 | C136: AE104 | D136: 7EP0949300 | E136: 497.5 | F136: TUB SECU 23,5X29,5 3M
A137: 0142150 | B137: 1 | C137: ERQ00 | D137: 7EP0949300 | E137: -100 | F137: TUB SECU 23,5X29,5 3M
A138: 0142155 | B138: 1 | C138: AD134 | D138: 3AP2704700 | E138: 495 | F138: TUB SECU 27X34 3M
A139: 0142205 | B139: 1 | C139: AG193 | D139: 4MPC697900 | E139: 292 | F139: TUB CUB1 3,6X5,2 TRANC
A140: 0142210 | B140: 1 | C140: EAT30 | D140: 7AP0804300 | E140: 46 | F140: TUB CUB1 4,6X6,8 TRANC
A141: 0142215 | B141: 1 | C141: AF012 | D141: 7EP0948800 | E141: 600 | F141: TUB CUB1 5,8X8 TRANC
A142: 0142220 | B142: 1 | C142: AF073 | D142: 7EP0987600 | E142: 579 | F142: TUB CUB1 8,9X11,8 TRANC
A143: 0142225 | B143: 1 | C143: AH101 | D143: 7DP0911000 | E143: 953.4 | F143: TUB CUB1 10X13 TRANC
A144: 0142225 | B144: 1 | C144: AM194 | D144: 7DP0911000 | E144: 314 | F144: TUB CUB1 10X13 TRANC
A145: 0142230 | B145: 1 | C145: AM164 | D145: 7DP0948900 | E145: 151 | F145: TUB CUB1 11,3X14,6 TRANC
A146: 0142235 | B146: 1 | C146: AG042 | D146: 7DP0911000 | E146: 588 | F146: TUB CUB1 13,5X17,5 TRANC
A147: 0142235 | B147: 1 | C147: EAT30 | D147: 7DP0911000 | E147: 10 | F147: TUB CUB1 13,5X17,5 TRANC
A148: 0142240 | B148: 1 | C148: AC108 | D148: 7BP0866300 | E148: 411 | F148: TUB CUB1 15,2X19,7 3M
A149: 0142240 | B149: 1 | C149: AE042 | D149: 7BP0866300 | E149: 411 | F149: TUB CUB1 15,2X19,7 3M
A150: 0142245 | B150: 1 | C150: AD076 | D150: 7AP0826900 | E150: 36 | F150: TUB CUB1 21X27,3 3M
A151: 0142245 | B151: 1 | C151: AE071 | D151: 7AP0826900 | E151: 318.5 | F151: TUB CUB1 21X27,3 3M
A152: 0142251 | B152: 1 | C152: AD105 | D152: 6JP0643600 | E152: 112 | F152: TUB CUB1 23,7X30,7 3M
A153: 0142251 | B153: 1 | C153: AD017 | D153: 7BP0866300 | E153: 354 | F153: TUB CUB1 23,7X30,7 3M
A154: 0142251 | B154: 1 | C154: AE011 | D154: 7BP0866300 | E154: 354 | F154: TUB CUB1 23,7X30,7 3M
A155: 0142251 | B155: 1 | C155: AE075 | D155: 7BP0866300 | E155: 354 | F155: TUB CUB1 23,7X30,7 3M
A156: 0142252 | B156: 1 | C156: AD073 | D156: 3BP2702300 | E156: 167 | F156: TUB CUB1 27X35 3M
A157: 0142304 | B157: 1 | C157: AD076 | D157: 2JP2661800 | E157: 29 | F157: TUB CUB1 10,1X16,5 3M **
A158: 0142319 | B158: 1 | C158: AD107 | D158: 5JP0155400 | E158: 118 | F158: TUB CUOF 6,4X14,3 3M
A159: 0142319 | B159: 1 | C159: AE071 | D159: 5JP0155400 | E159: 426 | F159: TUB CUOF 6,4X14,3 3M
A160: 0142321 | B160: 1 | C160: AD071 | D160: 5JP0171000 | E160: 252 | F160: TUB CUOF 9X14,8 3M
A161: 0142321 | B161: 1 | C161: AE041 | D161: 5JP0171000 | E161: 422 | F161: TUB CUOF 9X14,8 3M
A162: 0142322 | B162: 1 | C162: AE106 | D162: 4EP4559000 | E162: 10 | F162: TUB CUOF 10,1X16,5 3M
A163: 0142323 | B163: 1 | C163: AD072 | D163: 5FP0042200 | E163: 260 | F163: TUB CUOF 11,3X16,5 3M
A164: 0142325 | B164: 1 | C164: AE047 | D164: 5JP0171000 | E164: 80 | F164: TUB CUOF 14,1X21,2 3M
A165: 0142325 | B165: 1 | C165: AE072 | D165: 5JP0171000 | E165: 420 | F165: TUB CUOF 14,1X21,2 3M
A166: 0142328 | B166: 1 | C166: AE042 | D166: 4BP3717100 | E166: 282 | F166: TUB CUOF 18X26,2 3M
A167: 0142330 | B167: 1 | C167: AC018 | D167: 5FP0042200 | E167: 347 | F167: TUB CUOF 21,3X31,1 3M
A168: 0142330 | B168: 1 | C168: AD074 | D168: 5FP0042200 | E168: 358 | F168: TUB CUOF 21,3X31,1 3M
A169: 0142330 | B169: 1 | C169: AD101 | D169: 5FP0042200 | E169: 54 | F169: TUB CUOF 21,3X31,1 3M
A170: 0142330 | B170: 1 | C170: AE015 | D170: 5FP0042200 | E170: 435 | F170: TUB CUOF 21,3X31,1 3M
A171: 0145000 | B171: 1 | C171: AJ043 | D171: 7BP0812600 | E171: 471 | F171: BDE CUB1 83X0,3 TN REC
A172: 0145001 | B172: 1 | C172: AI163 | D172: 6LP0717100 | E172: 233 | F172: BDE CUB2 26X0,8 H13
A173: 0145001 | B173: 1 | C173: AK075 | D173: 7DP0909400 | E173: 637 | F173: BDE CUB2 26X0,8 H13
A174: 0145001 | B174: 1 | C174: AK076 | D174: 7DP0909400 | E174: 506 | F174: BDE CUB2 26X0,8 H13
A175: 0145003 | B175: 1 | C175: AJ015 | D175: ZCP1528400 | E175: 89 | F175: BDE CUB2 32,5X0,8 H13
A176: 0145005 | B176: 1 | C176: AL165 | D176: 4JP4646700 | E176: 90 | F176: BDE CUB2 26X1 H13
A177: 0145010 | B177: 1 | C177: AJ103 | D177: 7AP0823600 | E177: 612 | F177: BDE CUB2 57X1 H13
A178: 0145010 | B178: 1 | C178: EAT29 | D178: 7AP0823600 | E178: 58 | F178: BDE CUB2 57X1 H13
A179: 0145011 | B179: 1 | C179: AL135 | D179: 4KP4671400 | E179: 98 | F179: BDE CUB2 26X0,9 H13
A180: 0145013 | B180: 1 | C180: AJ073 | D180: 5AP4732200 | E180: 260 | F180: BDE CUDLP 26X1,2 R240 FR
A181: 0145014 | B181: 1 | C181: AI134 | D181: 7CP0867500 | E181: 591 | F181: BDE CUB2 36X0,8 H13
A182: 0145014 | B182: 1 | C182: AJ012 | D182: 7EP0968200 | E182: 577 | F182: BDE CUB2 36X0,8 H13
A183: 0145014 | B183: 1 | C183: AK132 | D183: 7EP0968200 | E183: 592 | F183: BDE CUB2 36X0,8 H13
A184: 0145014 | B184: 1 | C184: AK164 | D184: 7EP0968200 | E184: 1164 | F184: BDE CUB2 36X0,8 H13
A185: 0145015 | B185: 1 | C185: AI013 | D185: 7BP0823700 | E185: 263 | F185: BDE CUB2 39X0,8 H13
A186: 0145016 | B186: 1 | C186: AJ046 | D186: 7EP0968200 | E186: 778 | F186: BDE CUB2 48X0,8 H13
A187: 0145016 | B187: 1 | C187: AL134 | D187: 7EP0968200 | E187: 774 | F187: BDE CUB2 48X0,8 H13
A188: 0145018 | B188: 1 | C188: AK075 | D188: 7DP0909400 | E188: 867 | F188: BDE CUB2 40X1 H13
A189: 0145020 | B189: 1 | C189: EAT29 | D189: 7BP0812600 | E189: 437 | F189: BDE CUB2 40X0,3 ETAT 0
A190: 0145022 | B190: 1 | C190: EAT29 | D190: 7DP0909400 | E190: 797 | F190: BDE CUB2 46X1 TNH12
A191: 0145025 | B191: 1 | C191: AI074 | D191: 6AP0278300 | E191: 106 | F191: BDE CUB1 39X1 H12
A192: 0145025 | B192: 1 | C192: AI042 | D192: 7DP0909500 | E192: 365 | F192: BDE CUB1 39X1 H12
A193: 0145026 | B193: 1 | C193: AJ043 | D193: 6AP0278300 | E193: 495 | F193: BDE CU-DHP 51X1 R240
A194: 0145027 | B194: 1 | C194: AI165 | D194: 5AP4724000 | E194: 106 | F194: BDE CUB1 65X1,5 H12
A195: 0146002 | B195: 1 | C195: AK166 | D195: 5CP4748500 | E195: 265 | F195: BDE CUA1 5,6X1,6 TN
A196: 0146485 | B196: 1 | C196: AK015 | D196: 6FP0517300 | E196: 180 | F196: BDE CUFE0,1P 60X2 R360
A197: 0146485 | B197: 1 | C197: AI071 | D197: 6KP0709000 | E197: 2006 | F197: BDE CUFE0,1P 60X2 R360
A198: 0146485 | B198: 1 | C198: AI133 | D198: 6KP0709000 | E198: 609 | F198: BDE CUFE0,1P 60X2 R360
A199: 0146485 | B199: 1 | C199: AJ044 | D199: 6KP0709000 | E199: 915 | F199: BDE CUFE0,1P 60X2 R360
A200: 0146485 | B200: 1 | C200: AJ132 | D200: 6KP0709000 | E200: 1144 | F200: BDE CUFE0,1P 60X2 R360
A201: 0146485 | B201: 1 | C201: AJ102 | D201: 6LP0717000 | E201: 1578 | F201: BDE CUFE0,1P 60X2 R360
... 4299 more rows

Sheet Finale
B18: notes:
B19: les formules sont matricielles et doivent être entrées avec la touche enter en maintenant les touches ctrl et shift enfoncées
B20: elles s'affichent automatiquement entre accolades dans la barre de formule
B21: attention, le champ INDEX(….;commence en ligne 1 pour toputesles colonnes cherchées dans la feuille Stock (E/ C / D)
B22: les champs suivants commencent au début de la liste en ligne 3
B23: la formule utilise le rang de la donnée affiché en ligne 28 pour chaque élément du tableau
B24: cette numérotation peut être évitée, mais la formule devient plus complexe pour pouvoir être copier coller par groupe de 3 sur chaque tableau
B25: les matricielles étant assez lourdes, bien limiter les champs aux lignes utiles (ici ligne 1000) sinon les calculs sont lents
AQ26: Pas fait
A27: OF | B27: Désignation | C27: Qté | D27: CodeCompo | E27: Désignation | F27: QtéPcs | G27: Qté1 | H27: Emplt1 | I27: Lot1 | J27: Qté2 | K27: Emplt2 | L27: Lot2 | M27: Qté3 | N27: Emplt3 | O27: Lot3 | P27: Qté4 | Q27: Emplt4 | R27: Lot4 | S27: Qté5 | T27: Emplt5 | U27: Lot5 | V27: Qté6 | W27: Emplt6 | X27: Lot6 | Y27: Qté7 | Z27: Emplt7 | AA27: Lot7 | AB27: Qté8 | AC27: Emplt8 | AD27: Lot8 | AE27: Qté9 | AF27: Emplt9 | AG27: Lot9 | AH27: Qté10 | AI27: Emplt10 | AJ27: Lot10 | AK27: Qté11 | AL27: Emplt11 | AM27: Lot11 | AN27: Qté12 | AO27: Emplt12 | AP27: Lot12 | AQ27: Qté13 | AR27: Emplt13 | AS27: Lot13 | AT27: Qté14 | AU27: Emplt14 | AV27: Lot14 | AW27: Qté15 | AX27: Emplt15 | AY27: Lot15 | AZ27: Qté16 | BA27: Emplt16 | BB27: Lot16 | BC27: Qté17 | BD27: Emplt17 | BE27: Lot17 | BF27: Qté18 | BG27: Emplt18 | BH27: Lot18 | BI27: Qté19 | BJ27: Emplt19 | BK27: Lot19 | BL27: Qté20 | BM27: Emplt20 | BN27: Lot20 | BO27: Qté21 | BP27: Emplt21 | BQ27: Lot21
G28: 1 | J28: 2 | M28: 3 | P28: 4 | S28: 5 | V28: 6 | Y28: 7 | AB28: 8 | AE28: 9 | AH28: 10 | AK28: 11 | AN28: 12 | AQ28: 13 | AT28: 14 | AW28: 15 | AZ28: 16 | BC28: 17 | BF28: 18 | BI28: 19 | BL28: 20 | BO28: 21
A29: M452080 | B29: 51661-2JN | C29: 1500 | D29: 0961200 | E29: F+GPC JN-2 | F29: 1500 | G29: =IFERROR(INDEX(StockEmplt!$E$1:$E$18000,SMALL(IF(StockEmplt!$F$3:$F$18000=$E29,ROW($A$3:$A$17998)),G$28)),"") -> 700 | H29: =IFERROR(INDEX(StockEmplt!$C$1:$C$18000,SMALL(IF(StockEmplt!$F$3:$F$18000=$E29,ROW($A$3:$A$17998)),G$28)),"") -> BA033 | I29: =IFERROR(INDEX(StockEmplt!$D$1:$D$18000,SMALL(IF(StockEmplt!$F$3:$F$18000=$E29,ROW($A$3:$A$17998)),G$28)),"") -> 7AM3877800 | J29: =IFERROR(INDEX(StockEmplt!$E$1:$E$18000,SMALL(IF(StockEmplt!$F$3:$F$18000=$E29,ROW($A$3:$A$17998)),J$28)),"") -> 440 | K29: =IFERROR(INDEX(StockEmplt!$C$1:$C$18000,SMALL(IF(StockEmplt!$F$3:$F$18000=$E29,ROW($A$3:$A$17998)),J$28)),"") -> BA030 | L29: =IFERROR(INDEX(StockEmplt!$D$1:$D$18000,SMALL(IF(StockEmplt!$F$3:$F$18000=$E29,ROW($A$3:$A$17998)),J$28)),"") -> 7CM4101300 | M29: =IFERROR(INDEX(StockEmplt!$E$1:$E$18000,SMALL(IF(StockEmplt!$F$3:$F$18000=$E29,ROW($A$3:$A$17998)),M$28)),"") -> 300 | N29: =IFERROR(INDEX(StockEmplt!$C$1:$C$18000,SMALL(IF(StockEmplt!$F$3:$F$18000=$E29,ROW($A$3:$A$17998)),M$28)),"") -> SCCH | O29: =IFERROR(INDEX(StockEmplt!$D$1:$D$18000,SMALL(IF(StockEmplt!$F$3:$F$18000=$E29,ROW($A$3:$A$17998)),M$28)),"") -> 7CM4101300 | P29: =IFERROR(INDEX(StockEmplt!$E$1:$E$18000,SMALL(IF(StockEmplt!$F$3:$F$18000=$E29,ROW($A$3:$A$17998)),P$28)),"") -> 800 | Q29: =IFERROR(INDEX(StockEmplt!$C$1:$C$18000,SMALL(IF(StockEmplt!$F$3:$F$18000=$E29,ROW($A$3:$A$17998)),P$28)),"") -> SCCH | R29: =IFERROR(INDEX(StockEmplt!$D$1:$D$18000,SMALL(IF(StockEmplt!$F$3:$F$18000=$E29,ROW($A$3:$A$17998)),P$28)),"") -> 7CM4134600 | S29: =IFERROR(INDEX(StockEmplt!$E$1:$E$18000,SMALL(IF(StockEmplt!$F$3:$F$18000=$E29,ROW($A$3:$A$17998)),S$28)),"") -> 1100 | T29: =IFERROR(INDEX(StockEmplt!$C$1:$C$18000,SMALL(IF(StockEmplt!$F$3:$F$18000=$E29,ROW($A$3:$A$17998)),S$28)),"") -> SCSIG | U29: =IFERROR(INDEX(StockEmplt!$D$1:$D$18000,SMALL(IF(StockEmplt!$F$3:$F$18000=$E29,ROW($A$3:$A$17998)),S$28)),"") -> 7CM4134600 | V29: =IFERROR(INDEX(StockEmplt!$E$1:$E$18000,SMALL(IF(StockEmplt!$F$3:$F$18000=$E29,ROW($A$3:$A$17998)),V$28)),"") -> 4325 | W29: =IFERROR(INDEX(StockEmplt!$C$1:$C$18000,SMALL(IF(StockEmplt!$F$3:$F$18000=$E29,ROW($A$3:$A$17998)),V$28)),"") -> BA010 | X29: =IFERROR(INDEX(StockEmplt!$D$1:$D$18000,SMALL(IF(StockEmplt!$F$3:$F$18000=$E29,ROW($A$3:$A$17998)),V$28)),"") -> 7CM4171000 | Y29: =IFERROR(INDEX(StockEmplt!$E$1:$E$18000,SMALL(IF(StockEmplt!$F$3:$F$18000=$E29,ROW($A$3:$A$17998)),Y$28)),"") -> 1000 | Z29: =IFERROR(INDEX(StockEmplt!$C$1:$C$18000,SMALL(IF(StockEmplt!$F$3:$F$18000=$E29,ROW($A$3:$A$17998)),Y$28)),"") -> EAT32 | AA29: =IFERROR(INDEX(StockEmplt!$D$1:$D$18000,SMALL(IF(StockEmplt!$F$3:$F$18000=$E29,ROW($A$3:$A$17998)),Y$28)),"") -> 7CM4171000 | AB29: =IFERROR(INDEX(StockEmplt!$E$1:$E$18000,SMALL(IF(StockEmplt!$F$3:$F$18000=$E29,ROW($A$3:$A$17998)),AB$28)),"") -> 30000 | AC29: =IFERROR(INDEX(StockEmplt!$C$1:$C$18000,SMALL(IF(StockEmplt!$F$3:$F$18000=$E29,ROW($A$3:$A$17998)),AB$28)),"") -> BB011 | AD29: =IFERROR(INDEX(StockEmplt!$D$1:$D$18000,SMALL(IF(StockEmplt!$F$3:$F$18000=$E29,ROW($A$3:$A$17998)),AB$28)),"") -> 7CM4171400 | AE29: =IFERROR(INDEX(StockEmplt!$E$1:$E$18000,SMALL(IF(StockEmplt!$F$3:$F$18000=$E29,ROW($A$3:$A$17998)),AE$28)),"") -> 30000 | AF29: =IFERROR(INDEX(StockEmplt!$C$1:$C$18000,SMALL(IF(StockEmplt!$F$3:$F$18000=$E29,ROW($A$3:$A$17998)),AE$28)),"") -> BA022 | AG29: =IFERROR(INDEX(StockEmplt!$D$1:$D$18000,SMALL(IF(StockEmplt!$F$3:$F$18000=$E29,ROW($A$3:$A$17998)),AE$28)),"") -> 7DM4350000 | AH29: =IFERROR(INDEX(StockEmplt!$E$1:$E$18000,SMALL(IF(StockEmplt!$F$3:$F$18000=$E29,ROW($A$3:$A$17037)),AH$28)),"") -> 10000 | AI29: =IFERROR(INDEX(StockEmplt!$C$1:$C$18000,SMALL(IF(StockEmplt!$F$3:$F$18000=$E29,ROW($A$3:$A$17998)),AH$28)),"") -> BA011 | AJ29: =IFERROR(INDEX(StockEmplt!$D$1:$D$18000,SMALL(IF(StockEmplt!$F$3:$F$18000=$E29,ROW($A$3:$A$17998)),AH$28)),"") -> 7EM4172500 | AK29: =IFERROR(INDEX(StockEmplt!$E$1:$E$18000,SMALL(IF(StockEmplt!$F$3:$F$18000=$E29,ROW($A$3:$A$17998)),AK$28)),"") -> 20000 | AL29: =IFERROR(INDEX(StockEmplt!$C$1:$C$18000,SMALL(IF(StockEmplt!$F$3:$F$18000=$E29,ROW($A$3:$A$17998)),AK$28)),"") -> BA023 | AM29: =IFERROR(INDEX(StockEmplt!$D$1:$D$18000,SMALL(IF(StockEmplt!$F$3:$F$18000=$E29,ROW($A$3:$A$17998)),AK$28)),"") -> 7EM4426500 | AN29: =IFERROR(INDEX(StockEmplt!$E$1:$E$18000,SMALL(IF(StockEmplt!$F$3:$F$18000=$E29,ROW($A$3:$A$17998)),AN$28)),"") ->  | AO29: =IFERROR(INDEX(StockEmplt!$C$1:$C$18000,SMALL(IF(StockEmplt!$F$3:$F$18000=$E29,ROW($A$3:$A$17998)),AN$28)),"") ->  | AP29: =IFERROR(INDEX(StockEmplt!$D$1:$D$18000,SMALL(IF(StockEmplt!$F$3:$F$18000=$E29,ROW($A$3:$A$17998)),AN$28)),"") ->  | AQ29: =IFERROR(INDEX(StockEmplt!$E$1:$E$18000,SMALL(IF(StockEmplt!$F$3:$F$18000=$E29,ROW($A$3:$A$17998)),AQ$28)),"") ->  | AR29: =IFERROR(INDEX(StockEmplt!$C$1:$C$18000,SMALL(IF(StockEmplt!$F$3:$F$18000=$E29,ROW($A$3:$A$17998)),AQ$28)),"") ->  | AS29: =IFERROR(INDEX(StockEmplt!$D$1:$D$18000,SMALL(IF(StockEmplt!$F$3:$F$18000=$E29,ROW($A$3:$A$17998)),AQ$28)),"") ->  | AT29: =IFERROR(INDEX(StockEmplt!$E$1:$E$18000,SMALL(IF(StockEmplt!$F$3:$F$18000=$E29,ROW($A$3:$A$17998)),AT$28)),"") ->  | AU29: =IFERROR(INDEX(StockEmplt!$C$1:$C$18000,SMALL(IF(StockEmplt!$F$3:$F$18000=$E29,ROW($A$3:$A$17998)),AT$28)),"") ->  | AV29: =IFERROR(INDEX(StockEmplt!$D$1:$D$18000,SMALL(IF(StockEmplt!$F$3:$F$18000=$E29,ROW($A$3:$A$17998)),AT$28)),"") ->  | AW29: =IFERROR(INDEX(StockEmplt!$E$1:$E$18000,SMALL(IF(StockEmplt!$F$3:$F$18000=$E29,ROW($A$3:$A$17998)),AW$28)),"") ->  | AX29: =IFERROR(INDEX(StockEmplt!$C$1:$C$18000,SMALL(IF(StockEmplt!$F$3:$F$18000=$E29,ROW($A$3:$A$17998)),AW$28)),"") ->  | AY29: =IFERROR(INDEX(StockEmplt!$D$1:$D$18000,SMALL(IF(StockEmplt!$F$3:$F$18000=$E29,ROW($A$3:$A$17998)),AW$28)),"") ->  | AZ29: =IFERROR(INDEX(StockEmplt!$E$1:$E$18000,SMALL(IF(StockEmplt!$F$3:$F$18000=$E29,ROW($A$3:$A$17998)),AZ$28)),"") ->  | BA29: =IFERROR(INDEX(StockEmplt!$C$1:$C$18000,SMALL(IF(StockEmplt!$F$3:$F$18000=$E29,ROW($A$3:$A$17998)),AZ$28)),"") ->  | BB29: =IFERROR(INDEX(StockEmplt!$D$1:$D$18000,SMALL(IF(StockEmplt!$F$3:$F$18000=$E29,ROW($A$3:$A$17998)),AZ$28)),"") ->  | BC29: =IFERROR(INDEX(StockEmplt!$E$1:$E$18000,SMALL(IF(StockEmplt!$F$3:$F$18000=$E29,ROW($A$3:$A$17998)),BC$28)),"") ->  | BD29: =IFERROR(INDEX(StockEmplt!$C$1:$C$18000,SMALL(IF(StockEmplt!$F$3:$F$18000=$E29,ROW($A$3:$A$17998)),BC$28)),"") ->  | BE29: =IFERROR(INDEX(StockEmplt!$D$1:$D$18000,SMALL(IF(StockEmplt!$F$3:$F$18000=$E29,ROW($A$3:$A$17998)),BC$28)),"") ->  | BF29: =IFERROR(INDEX(StockEmplt!$E$1:$E$18000,SMALL(IF(StockEmplt!$F$3:$F$18000=$E29,ROW($A$3:$A$17998)),BF$28)),"") ->  | BG29: =IFERROR(INDEX(StockEmplt!$C$1:$C$18000,SMALL(IF(StockEmplt!$F$3:$F$18000=$E29,ROW($A$3:$A$17998)),BF$28)),"") ->  | BH29: =IFERROR(INDEX(StockEmplt!$D$1:$D$18000,SMALL(IF(StockEmplt!$F$3:$F$18000=$E29,ROW($A$3:$A$17998)),BF$28)),"") ->  | BI29: =IFERROR(INDEX(StockEmplt!$E$1:$E$18000,SMALL(IF(StockEmplt!$F$3:$F$18000=$E29,ROW($A$3:$A$17998)),BI$28)),"") ->  | BJ29: =IFERROR(INDEX(StockEmplt!$C$1:$C$18000,SMALL(IF(StockEmplt!$F$3:$F$18000=$E29,ROW($A$3:$A$17998)),BI$28)),"") ->  | BK29: =IFERROR(INDEX(StockEmplt!$D$1:$D$18000,SMALL(IF(StockEmplt!$F$3:$F$18000=$E29,ROW($A$3:$A$17998)),BI$28)),"") ->  | BL29: =IFERROR(INDEX(StockEmplt!$E$1:$E$18000,SMALL(IF(StockEmplt!$F$3:$F$18000=$E29,ROW($A$3:$A$17998)),BL$28)),"") ->  | BM29: =IFERROR(INDEX(StockEmplt!$C$1:$C$18000,SMALL(IF(StockEmplt!$F$3:$F$18000=$E29,ROW($A$3:$A$17998)),BL$28)),"") ->  | BN29: =IFERROR(INDEX(StockEmplt!$D$1:$D$18000,SMALL(IF(StockEmplt!$F$3:$F$18000=$E29,ROW($A$3:$A$17998)),BL$28)),"") ->  | BO29: =IFERROR(INDEX(StockEmplt!$E$1:$E$18000,SMALL(IF(StockEmplt!$F$3:$F$18000=$E29,ROW($A$3:$A$17998)),BO$28)),"") ->  | BP29: =IFERROR(INDEX(StockEmplt!$C$1:$C$18000,SMALL(IF(StockEmplt!$F$3:$F$18000=$E29,ROW($A$3:$A$17998)),BO$28)),"") ->  | BQ29: =IFERROR(INDEX(StockEmplt!$D$1:$D$18000,SMALL(IF(StockEmplt!$F$3:$F$18000=$E29,ROW($A$3:$A$17998)),BO$28)),"") -> 
A30: M452080 | B30: 51661-2JN | C30: 1500 | D30: 0962116 | E30: CUB 4,6X5,45X6,3 | F30: 1500 | G30: =IFERROR(INDEX(StockEmplt!$E$1:$E$18000,SMALL(IF(StockEmplt!$F$3:$F$18000=$E30,ROW($A$3:$A$17037)),G$28)),"") -> 700 | H30: =IFERROR(INDEX(StockEmplt!$C$1:$C$18000,SMALL(IF(StockEmplt!$F$3:$F$18000=$E30,ROW($A$3:$A$17998)),G$28)),"") -> BB024 | I30: =IFERROR(INDEX(StockEmplt!$D$1:$D$18000,SMALL(IF(StockEmplt!$F$3:$F$18000=$E30,ROW($A$3:$A$17998)),G$28)),"") -> 6LP0691100 | J30: =IFERROR(INDEX(StockEmplt!$E$1:$E$18000,SMALL(IF(StockEmplt!$F$3:$F$18000=$E30,ROW($A$3:$A$17998)),J$28)),"") -> 11100 | K30: =IFERROR(INDEX(StockEmplt!$C$1:$C$18000,SMALL(IF(StockEmplt!$F$3:$F$18000=$E30,ROW($A$3:$A$17998)),J$28)),"") -> SCCAS | L30: =IFERROR(INDEX(StockEmplt!$D$1:$D$18000,SMALL(IF(StockEmplt!$F$3:$F$18000=$E30,ROW($A$3:$A$17998)),J$28)),"") -> 6LP0691100 | M30: =IFERROR(INDEX(StockEmplt!$E$1:$E$18000,SMALL(IF(StockEmplt!$F$3:$F$18000=$E30,ROW($A$3:$A$17037)),M$28)),"") -> 75000 | N30: =IFERROR(INDEX(StockEmplt!$C$1:$C$18000,SMALL(IF(StockEmplt!$F$3:$F$18000=$E30,ROW($A$3:$A$17998)),M$28)),"") -> BB015 | O30: =IFERROR(INDEX(StockEmplt!$D$1:$D$18000,SMALL(IF(StockEmplt!$F$3:$F$18000=$E30,ROW($A$3:$A$17998)),M$28)),"") -> 7CP0902100 | P30: =IFERROR(INDEX(StockEmplt!$E$1:$E$18000,SMALL(IF(StockEmplt!$F$3:$F$18000=$E30,ROW($A$3:$A$17037)),P$28)),"") -> 14800 | Q30: =IFERROR(INDEX(StockEmplt!$C$1:$C$18000,SMALL(IF(StockEmplt!$F$3:$F$18000=$E30,ROW($A$3:$A$17998)),P$28)),"") -> SCCH | R30: =IFERROR(INDEX(StockEmplt!$D$1:$D$18000,SMALL(IF(StockEmplt!$F$3:$F$18000=$E30,ROW($A$3:$A$17998)),P$28)),"") -> 7CP0902100 | S30: =IFERROR(INDEX(StockEmplt!$E$1:$E$18000,SMALL(IF(StockEmplt!$F$3:$F$18000=$E30,ROW($A$3:$A$17037)),S$28)),"") ->  | T30: =IFERROR(INDEX(StockEmplt!$C$1:$C$18000,SMALL(IF(StockEmplt!$F$3:$F$18000=$E30,ROW($A$3:$A$17998)),S$28)),"") ->  | U30: =IFERROR(INDEX(StockEmplt!$D$1:$D$18000,SMALL(IF(StockEmplt!$F$3:$F$18000=$E30,ROW($A$3:$A$17998)),S$28)),"") ->  | V30: =IFERROR(INDEX(StockEmplt!$E$1:$E$18000,SMALL(IF(StockEmplt!$F$3:$F$18000=$E30,ROW($A$3:$A$17037)),V$28)),"") ->  | W30: =IFERROR(INDEX(StockEmplt!$C$1:$C$18000,SMALL(IF(StockEmplt!$F$3:$F$18000=$E30,ROW($A$3:$A$17998)),V$28)),"") ->  | X30: =IFERROR(INDEX(StockEmplt!$D$1:$D$18000,SMALL(IF(StockEmplt!$F$3:$F$18000=$E30,ROW($A$3:$A$17998)),V$28)),"") ->  | Y30: =IFERROR(INDEX(StockEmplt!$E$1:$E$18000,SMALL(IF(StockEmplt!$F$3:$F$18000=$E30,ROW($A$3:$A$17037)),Y$28)),"") ->  | Z30: =IFERROR(INDEX(StockEmplt!$C$1:$C$18000,SMALL(IF(StockEmplt!$F$3:$F$18000=$E30,ROW($A$3:$A$17998)),Y$28)),"") ->  | AA30: =IFERROR(INDEX(StockEmplt!$D$1:$D$18000,SMALL(IF(StockEmplt!$F$3:$F$18000=$E30,ROW($A$3:$A$17998)),Y$28)),"") ->  | AB30: =IFERROR(INDEX(StockEmplt!$E$1:$E$18000,SMALL(IF(StockEmplt!$F$3:$F$18000=$E30,ROW($A$3:$A$17037)),AB$28)),"") ->  | AC30: =IFERROR(INDEX(StockEmplt!$C$1:$C$18000,SMALL(IF(StockEmplt!$F$3:$F$18000=$E30,ROW($A$3:$A$17998)),AB$28)),"") ->  | AD30: =IFERROR(INDEX(StockEmplt!$D$1:$D$18000,SMALL(IF(StockEmplt!$F$3:$F$18000=$E30,ROW($A$3:$A$17998)),AB$28)),"") ->  | AE30: =IFERROR(INDEX(StockEmplt!$E$1:$E$18000,SMALL(IF(StockEmplt!$F$3:$F$18000=$E30,ROW($A$3:$A$17037)),AE$28)),"") ->  | AF30: =IFERROR(INDEX(StockEmplt!$C$1:$C$18000,SMALL(IF(StockEmplt!$F$3:$F$18000=$E30,ROW($A$3:$A$17998)),AE$28)),"") ->  | AG30: =IFERROR(INDEX(StockEmplt!$D$1:$D$18000,SMALL(IF(StockEmplt!$F$3:$F$18000=$E30,ROW($A$3:$A$17998)),AE$28)),"") ->  | AH30: =IFERROR(INDEX(StockEmplt!$E$1:$E$18000,SMALL(IF(StockEmplt!$F$3:$F$18000=$E30,ROW($A$3:$A$17037)),AH$28)),"") ->  | AI30: =IFERROR(INDEX(StockEmplt!$C$1:$C$18000,SMALL(IF(StockEmplt!$F$3:$F$18000=$E30,ROW($A$3:$A$17998)),AH$28)),"") ->  | AJ30: =IFERROR(INDEX(StockEmplt!$D$1:$D$18000,SMALL(IF(StockEmplt!$F$3:$F$18000=$E30,ROW($A$3:$A$17998)),AH$28)),"") ->  | AK30: =IFERROR(INDEX(StockEmplt!$E$1:$E$18000,SMALL(IF(StockEmplt!$F$3:$F$18000=$E30,ROW($A$3:$A$17998)),AK$28)),"") ->  | AL30: =IFERROR(INDEX(StockEmplt!$C$1:$C$18000,SMALL(IF(StockEmplt!$F$3:$F$18000=$E30,ROW($A$3:$A$17998)),AK$28)),"") ->  | AM30: =IFERROR(INDEX(StockEmplt!$D$1:$D$18000,SMALL(IF(StockEmplt!$F$3:$F$18000=$E30,ROW($A$3:$A$17998)),AK$28)),"") ->  | AN30: =IFERROR(INDEX(StockEmplt!$E$1:$E$18000,SMALL(IF(StockEmplt!$F$3:$F$18000=$E30,ROW($A$3:$A$17998)),AN$28)),"") ->  | AO30: =IFERROR(INDEX(StockEmplt!$C$1:$C$18000,SMALL(IF(StockEmplt!$F$3:$F$18000=$E30,ROW($A$3:$A$17998)),AN$28)),"") ->  | AP30: =IFERROR(INDEX(StockEmplt!$D$1:$D$18000,SMALL(IF(StockEmplt!$F$3:$F$18000=$E30,ROW($A$3:$A$17998)),AN$28)),"") ->  | AQ30: =IFERROR(INDEX(StockEmplt!$E$1:$E$18000,SMALL(IF(StockEmplt!$F$3:$F$18000=$E30,ROW($A$3:$A$17998)),AQ$28)),"") ->  | AR30: =IFERROR(INDEX(StockEmplt!$C$1:$C$18000,SMALL(IF(StockEmplt!$F$3:$F$18000=$E30,ROW($A$3:$A$17998)),AQ$28)),"") ->  | AS30: =IFERROR(INDEX(StockEmplt!$D$1:$D$18000,SMALL(IF(StockEmplt!$F$3:$F$18000=$E30,ROW($A$3:$A$17998)),AQ$28)),"") ->  | AT30: =IFERROR(INDEX(StockEmplt!$E$1:$E$18000,SMALL(IF(StockEmplt!$F$3:$F$18000=$E30,ROW($A$3:$A$17998)),AT$28)),"") ->  | AU30: =IFERROR(INDEX(StockEmplt!$C$1:$C$18000,SMALL(IF(StockEmplt!$F$3:$F$18000=$E30,ROW($A$3:$A$17998)),AT$28)),"") ->  | AV30: =IFERROR(INDEX(StockEmplt!$D$1:$D$18000,SMALL(IF(StockEmplt!$F$3:$F$18000=$E30,ROW($A$3:$A$17998)),AT$28)),"") ->  | AW30: =IFERROR(INDEX(StockEmplt!$E$1:$E$18000,SMALL(IF(StockEmplt!$F$3:$F$18000=$E30,ROW($A$3:$A$17998)),AW$28)),"") ->  | AX30: =IFERROR(INDEX(StockEmplt!$C$1:$C$18000,SMALL(IF(StockEmplt!$F$3:$F$18000=$E30,ROW($A$3:$A$17998)),AW$28)),"") ->  | AY30: =IFERROR(INDEX(StockEmplt!$D$1:$D$18000,SMALL(IF(StockEmplt!$F$3:$F$18000=$E30,ROW($A$3:$A$17998)),AW$28)),"") ->  | AZ30: =IFERROR(INDEX(StockEmplt!$E$1:$E$18000,SMALL(IF(StockEmplt!$F$3:$F$18000=$E30,ROW($A$3:$A$17998)),AZ$28)),"") ->  | BA30: =IFERROR(INDEX(StockEmplt!$C$1:$C$18000,SMALL(IF(StockEmplt!$F$3:$F$18000=$E30,ROW($A$3:$A$17998)),AZ$28)),"") ->  | BB30: =IFERROR(INDEX(StockEmplt!$D$1:$D$18000,SMALL(IF(StockEmplt!$F$3:$F$18000=$E30,ROW($A$3:$A$17998)),AZ$28)),"") ->  | BC30: =IFERROR(INDEX(StockEmplt!$E$1:$E$18000,SMALL(IF(StockEmplt!$F$3:$F$18000=$E30,ROW($A$3:$A$17998)),BC$28)),"") ->  | BD30: =IFERROR(INDEX(StockEmplt!$C$1:$C$18000,SMALL(IF(StockEmplt!$F$3:$F$18000=$E30,ROW($A$3:$A$17998)),BC$28)),"") ->  | BE30: =IFERROR(INDEX(StockEmplt!$D$1:$D$18000,SMALL(IF(StockEmplt!$F$3:$F$18000=$E30,ROW($A$3:$A$17998)),BC$28)),"") ->  | BF30: =IFERROR(INDEX(StockEmplt!$E$1:$E$18000,SMALL(IF(StockEmplt!$F$3:$F$18000=$E30,ROW($A$3:$A$17998)),BF$28)),"") ->  | BG30: =IFERROR(INDEX(StockEmplt!$C$1:$C$18000,SMALL(IF(StockEmplt!$F$3:$F$18000=$E30,ROW($A$3:$A$17998)),BF$28)),"") ->  | BH30: =IFERROR(INDEX(StockEmplt!$D$1:$D$18000,SMALL(IF(StockEmplt!$F$3:$F$18000=$E30,ROW($A$3:$A$17998)),BF$28)),"") ->  | BI30: =IFERROR(INDEX(StockEmplt!$E$1:$E$18000,SMALL(IF(StockEmplt!$F$3:$F$18000=$E30,ROW($A$3:$A$17998)),BI$28)),"") ->  | BJ30: =IFERROR(INDEX(StockEmplt!$C$1:$C$18000,SMALL(IF(StockEmplt!$F$3:$F$18000=$E30,ROW($A$3:$A$17998)),BI$28)),"") ->  | BK30: =IFERROR(INDEX(StockEmplt!$D$1:$D$18000,SMALL(IF(StockEmplt!$F$3:$F$18000=$E30,ROW($A$3:$A$17998)),BI$28)),"") ->  | BL30: =IFERROR(INDEX(StockEmplt!$E$1:$E$18000,SMALL(IF(StockEmplt!$F$3:$F$18000=$E30,ROW($A$3:$A$17998)),BL$28)),"") ->  | BM30: =IFERROR(INDEX(StockEmplt!$C$1:$C$18000,SMALL(IF(StockEmplt!$F$3:$F$18000=$E30,ROW($A$3:$A$17998)),BL$28)),"") ->  | BN30: =IFERROR(INDEX(StockEmplt!$D$1:$D$18000,SMALL(IF(StockEmplt!$F$3:$F$18000=$E30,ROW($A$3:$A$17998)),BL$28)),"") ->  | BO30: =IFERROR(INDEX(StockEmplt!$E$1:$E$18000,SMALL(IF(StockEmplt!$F$3:$F$18000=$E30,ROW($A$3:$A$17998)),BO$28)),"") ->  | BP30: =IFERROR(INDEX(StockEmplt!$C$1:$C$18000,SMALL(IF(StockEmplt!$F$3:$F$18000=$E30,ROW($A$3:$A$17998)),BO$28)),"") ->  | BQ30: =IFERROR(INDEX(StockEmplt!$D$1:$D$18000,SMALL(IF(StockEmplt!$F$3:$F$18000=$E30,ROW($A$3:$A$17998)),BO$28)),"") -> 
A31: M451890 | B31: NA2-6 | C31: 5000 | D31: 0964181 | E31: GD3,33X4,85X10,4R | F31: 5000 | G31: =IFERROR(INDEX(StockEmplt!$E$1:$E$18000,SMALL(IF(StockEmplt!$F$3:$F$18000=$E31,ROW($A$3:$A$17037)),G$28)),"") -> 5000 | H31: =IFERROR(INDEX(StockEmplt!$C$1:$C$18000,SMALL(IF(StockEmplt!$F$3:$F$18000=$E31,ROW($A$3:$A$17998)),G$28)),"") -> SCAPSA | I31: =IFERROR(INDEX(StockEmplt!$D$1:$D$18000,SMALL(IF(StockEmplt!$F$3:$F$18000=$E31,ROW($A$3:$A$17998)),G$28)),"") -> 6MP0654400 | J31: =IFERROR(INDEX(StockEmplt!$E$1:$E$18000,SMALL(IF(StockEmplt!$F$3:$F$18000=$E31,ROW($A$3:$A$17998)),J$28)),"") -> 9000 | K31: =IFERROR(INDEX(StockEmplt!$C$1:$C$18000,SMALL(IF(StockEmplt!$F$3:$F$18000=$E31,ROW($A$3:$A$17998)),J$28)),"") -> SCCH | L31: =IFERROR(INDEX(StockEmplt!$D$1:$D$18000,SMALL(IF(StockEmplt!$F$3:$F$18000=$E31,ROW($A$3:$A$17998)),J$28)),"") -> 7BP0806100 | M31: =IFERROR(INDEX(StockEmplt!$E$1:$E$18000,SMALL(IF(StockEmplt!$F$3:$F$18000=$E31,ROW($A$3:$A$17037)),M$28)),"") -> 300000 | N31: =IFERROR(INDEX(StockEmplt!$C$1:$C$18000,SMALL(IF(StockEmplt!$F$3:$F$18000=$E31,ROW($A$3:$A$17998)),M$28)),"") -> BA026 | O31: =IFERROR(INDEX(StockEmplt!$D$1:$D$18000,SMALL(IF(StockEmplt!$F$3:$F$18000=$E31,ROW($A$3:$A$17998)),M$28)),"") -> 7DP0902500 | P31: =IFERROR(INDEX(StockEmplt!$E$1:$E$18000,SMALL(IF(StockEmplt!$F$3:$F$18000=$E31,ROW($A$3:$A$17037)),P$28)),"") -> 300000 | Q31: =IFERROR(INDEX(StockEmplt!$C$1:$C$18000,SMALL(IF(StockEmplt!$F$3:$F$18000=$E31,ROW($A$3:$A$17998)),P$28)),"") -> BA032 | R31: =IFERROR(INDEX(StockEmplt!$D$1:$D$18000,SMALL(IF(StockEmplt!$F$3:$F$18000=$E31,ROW($A$3:$A$17998)),P$28)),"") -> 7DP0902500 | S31: =IFERROR(INDEX(StockEmplt!$E$1:$E$18000,SMALL(IF(StockEmplt!$F$3:$F$18000=$E31,ROW($A$3:$A$17037)),S$28)),"") ->  | T31: =IFERROR(INDEX(StockEmplt!$C$1:$C$18000,SMALL(IF(StockEmplt!$F$3:$F$18000=$E31,ROW($A$3:$A$17998)),S$28)),"") ->  | U31: =IFERROR(INDEX(StockEmplt!$D$1:$D$18000,SMALL(IF(StockEmplt!$F$3:$F$18000=$E31,ROW($A$3:$A$17998)),S$28)),"") ->  | V31: =IFERROR(INDEX(StockEmplt!$E$1:$E$18000,SMALL(IF(StockEmplt!$F$3:$F$18000=$E31,ROW($A$3:$A$17037)),V$28)),"") ->  | W31: =IFERROR(INDEX(StockEmplt!$C$1:$C$18000,SMALL(IF(StockEmplt!$F$3:$F$18000=$E31,ROW($A$3:$A$17998)),V$28)),"") ->  | X31: =IFERROR(INDEX(StockEmplt!$D$1:$D$18000,SMALL(IF(StockEmplt!$F$3:$F$18000=$E31,ROW($A$3:$A$17998)),V$28)),"") ->  | Y31: =IFERROR(INDEX(StockEmplt!$E$1:$E$18000,SMALL(IF(StockEmplt!$F$3:$F$18000=$E31,ROW($A$3:$A$17037)),Y$28)),"") ->  | Z31: =IFERROR(INDEX(StockEmplt!$C$1:$C$18000,SMALL(IF(StockEmplt!$F$3:$F$18000=$E31,ROW($A$3:$A$17998)),Y$28)),"") ->  | AA31: =IFERROR(INDEX(StockEmplt!$D$1:$D$18000,SMALL(IF(StockEmplt!$F$3:$F$18000=$E31,ROW($A$3:$A$17998)),Y$28)),"") ->  | AB31: =IFERROR(INDEX(StockEmplt!$E$1:$E$18000,SMALL(IF(StockEmplt!$F$3:$F$18000=$E31,ROW($A$3:$A$17037)),AB$28)),"") ->  | AC31: =IFERROR(INDEX(StockEmplt!$C$1:$C$18000,SMALL(IF(StockEmplt!$F$3:$F$18000=$E31,ROW($A$3:$A$17998)),AB$28)),"") ->  | AD31: =IFERROR(INDEX(StockEmplt!$D$1:$D$18000,SMALL(IF(StockEmplt!$F$3:$F$18000=$E31,ROW($A$3:$A$17998)),AB$28)),"") ->  | AE31: =IFERROR(INDEX(StockEmplt!$E$1:$E$18000,SMALL(IF(StockEmplt!$F$3:$F$18000=$E31,ROW($A$3:$A$17037)),AE$28)),"") ->  | AF31: =IFERROR(INDEX(StockEmplt!$C$1:$C$18000,SMALL(IF(StockEmplt!$F$3:$F$18000=$E31,ROW($A$3:$A$17998)),AE$28)),"") ->  | AG31: =IFERROR(INDEX(StockEmplt!$D$1:$D$18000,SMALL(IF(StockEmplt!$F$3:$F$18000=$E31,ROW($A$3:$A$17998)),AE$28)),"") ->  | AH31: =IFERROR(INDEX(StockEmplt!$E$1:$E$18000,SMALL(IF(StockEmplt!$F$3:$F$18000=$E31,ROW($A$3:$A$17037)),AH$28)),"") ->  | AI31: =IFERROR(INDEX(StockEmplt!$C$1:$C$18000,SMALL(IF(StockEmplt!$F$3:$F$18000=$E31,ROW($A$3:$A$17998)),AH$28)),"") ->  | AJ31: =IFERROR(INDEX(StockEmplt!$D$1:$D$18000,SMALL(IF(StockEmplt!$F$3:$F$18000=$E31,ROW($A$3:$A$17998)),AH$28)),"") ->  | AK31: =IFERROR(INDEX(StockEmplt!$E$1:$E$18000,SMALL(IF(StockEmplt!$F$3:$F$18000=$E31,ROW($A$3:$A$17998)),AK$28)),"") ->  | AL31: =IFERROR(INDEX(StockEmplt!$C$1:$C$18000,SMALL(IF(StockEmplt!$F$3:$F$18000=$E31,ROW($A$3:$A$17998)),AK$28)),"") ->  | AM31: =IFERROR(INDEX(StockEmplt!$D$1:$D$18000,SMALL(IF(StockEmplt!$F$3:$F$18000=$E31,ROW($A$3:$A$17998)),AK$28)),"") ->  | AN31: =IFERROR(INDEX(StockEmplt!$E$1:$E$18000,SMALL(IF(StockEmplt!$F$3:$F$18000=$E31,ROW($A$3:$A$17998)),AN$28)),"") ->  | AO31: =IFERROR(INDEX(StockEmplt!$C$1:$C$18000,SMALL(IF(StockEmplt!$F$3:$F$18000=$E31,ROW($A$3:$A$17998)),AN$28)),"") ->  | AP31: =IFERROR(INDEX(StockEmplt!$D$1:$D$18000,SMALL(IF(StockEmplt!$F$3:$F$18000=$E31,ROW($A$3:$A$17998)),AN$28)),"") ->  | AQ31: =IFERROR(INDEX(StockEmplt!$E$1:$E$18000,SMALL(IF(StockEmplt!$F$3:$F$18000=$E31,ROW($A$3:$A$17998)),AQ$28)),"") ->  | AR31: =IFERROR(INDEX(StockEmplt!$C$1:$C$18000,SMALL(IF(StockEmplt!$F$3:$F$18000=$E31,ROW($A$3:$A$17998)),AQ$28)),"") ->  | AS31: =IFERROR(INDEX(StockEmplt!$D$1:$D$18000,SMALL(IF(StockEmplt!$F$3:$F$18000=$E31,ROW($A$3:$A$17998)),AQ$28)),"") ->  | AT31: =IFERROR(INDEX(StockEmplt!$E$1:$E$18000,SMALL(IF(StockEmplt!$F$3:$F$18000=$E31,ROW($A$3:$A$17998)),AT$28)),"") ->  | AU31: =IFERROR(INDEX(StockEmplt!$C$1:$C$18000,SMALL(IF(StockEmplt!$F$3:$F$18000=$E31,ROW($A$3:$A$17998)),AT$28)),"") ->  | AV31: =IFERROR(INDEX(StockEmplt!$D$1:$D$18000,SMALL(IF(StockEmplt!$F$3:$F$18000=$E31,ROW($A$3:$A$17998)),AT$28)),"") ->  | AW31: =IFERROR(INDEX(StockEmplt!$E$1:$E$18000,SMALL(IF(StockEmplt!$F$3:$F$18000=$E31,ROW($A$3:$A$17998)),AW$28)),"") ->  | AX31: =IFERROR(INDEX(StockEmplt!$C$1:$C$18000,SMALL(IF(StockEmplt!$F$3:$F$18000=$E31,ROW($A$3:$A$17998)),AW$28)),"") ->  | AY31: =IFERROR(INDEX(StockEmplt!$D$1:$D$18000,SMALL(IF(StockEmplt!$F$3:$F$18000=$E31,ROW($A$3:$A$17998)),AW$28)),"") ->  | AZ31: =IFERROR(INDEX(StockEmplt!$E$1:$E$18000,SMALL(IF(StockEmplt!$F$3:$F$18000=$E31,ROW($A$3:$A$17998)),AZ$28)),"") ->  | BA31: =IFERROR(INDEX(StockEmplt!$C$1:$C$18000,SMALL(IF(StockEmplt!$F$3:$F$18000=$E31,ROW($A$3:$A$17998)),AZ$28)),"") ->  | BB31: =IFERROR(INDEX(StockEmplt!$D$1:$D$18000,SMALL(IF(StockEmplt!$F$3:$F$18000=$E31,ROW($A$3:$A$17998)),AZ$28)),"") ->  | BC31: =IFERROR(INDEX(StockEmplt!$E$1:$E$18000,SMALL(IF(StockEmplt!$F$3:$F$18000=$E31,ROW($A$3:$A$17998)),BC$28)),"") ->  | BD31: =IFERROR(INDEX(StockEmplt!$C$1:$C$18000,SMALL(IF(StockEmplt!$F$3:$F$18000=$E31,ROW($A$3:$A$17998)),BC$28)),"") ->  | BE31: =IFERROR(INDEX(StockEmplt!$D$1:$D$18000,SMALL(IF(StockEmplt!$F$3:$F$18000=$E31,ROW($A$3:$A$17998)),BC$28)),"") ->  | BF31: =IFERROR(INDEX(StockEmplt!$E$1:$E$18000,SMALL(IF(StockEmplt!$F$3:$F$18000=$E31,ROW($A$3:$A$17998)),BF$28)),"") ->  | BG31: =IFERROR(INDEX(StockEmplt!$C$1:$C$18000,SMALL(IF(StockEmplt!$F$3:$F$18000=$E31,ROW($A$3:$A$17998)),BF$28)),"") ->  | BH31: =IFERROR(INDEX(StockEmplt!$D$1:$D$18000,SMALL(IF(StockEmplt!$F$3:$F$18000=$E31,ROW($A$3:$A$17998)),BF$28)),"") ->  | BI31: =IFERROR(INDEX(StockEmplt!$E$1:$E$18000,SMALL(IF(StockEmplt!$F$3:$F$18000=$E31,ROW($A$3:$A$17998)),BI$28)),"") ->  | BJ31: =IFERROR(INDEX(StockEmplt!$C$1:$C$18000,SMALL(IF(StockEmplt!$F$3:$F$18000=$E31,ROW($A$3:$A$17998)),BI$28)),"") ->  | BK31: =IFERROR(INDEX(StockEmplt!$D$1:$D$18000,SMALL(IF(StockEmplt!$F$3:$F$18000=$E31,ROW($A$3:$A$17998)),BI$28)),"") ->  | BL31: =IFERROR(INDEX(StockEmplt!$E$1:$E$18000,SMALL(IF(StockEmplt!$F$3:$F$18000=$E31,ROW($A$3:$A$17998)),BL$28)),"") ->  | BM31: =IFERROR(INDEX(StockEmplt!$C$1:$C$18000,SMALL(IF(StockEmplt!$F$3:$F$18000=$E31,ROW($A$3:$A$17998)),BL$28)),"") ->  | BN31: =IFERROR(INDEX(StockEmplt!$D$1:$D$18000,SMALL(IF(StockEmplt!$F$3:$F$18000=$E31,ROW($A$3:$A$17998)),BL$28)),"") ->  | BO31: =IFERROR(INDEX(StockEmplt!$E$1:$E$18000,SMALL(IF(StockEmplt!$F$3:$F$18000=$E31,ROW($A$3:$A$17998)),BO$28)),"") ->  | BP31: =IFERROR(INDEX(StockEmplt!$C$1:$C$18000,SMALL(IF(StockEmplt!$F$3:$F$18000=$E31,ROW($A$3:$A$17998)),BO$28)),"") ->  | BQ31: =IFERROR(INDEX(StockEmplt!$D$1:$D$18000,SMALL(IF(StockEmplt!$F$3:$F$18000=$E31,ROW($A$3:$A$17998)),BO$28)),"") -> 
A32: M451920 | B32: B100NA2-6 | C32: 50 | D32: 0964181 | E32: GD3,33X4,85X10,4R | F32: 5000 | G32: =IFERROR(INDEX(StockEmplt!$E$1:$E$18000,SMALL(IF(StockEmplt!$F$3:$F$18000=$E32,ROW($A$3:$A$17037)),G$28)),"") -> 5000 | H32: =IFERROR(INDEX(StockEmplt!$C$1:$C$18000,SMALL(IF(StockEmplt!$F$3:$F$18000=$E32,ROW($A$3:$A$17998)),G$28)),"") -> SCAPSA | I32: =IFERROR(INDEX(StockEmplt!$D$1:$D$18000,SMALL(IF(StockEmplt!$F$3:$F$18000=$E32,ROW($A$3:$A$17998)),G$28)),"") -> 6MP0654400 | J32: =IFERROR(INDEX(StockEmplt!$E$1:$E$18000,SMALL(IF(StockEmplt!$F$3:$F$18000=$E32,ROW($A$3:$A$17998)),J$28)),"") -> 9000 | K32: =IFERROR(INDEX(StockEmplt!$C$1:$C$18000,SMALL(IF(StockEmplt!$F$3:$F$18000=$E32,ROW($A$3:$A$17998)),J$28)),"") -> SCCH | L32: =IFERROR(INDEX(StockEmplt!$D$1:$D$18000,SMALL(IF(StockEmplt!$F$3:$F$18000=$E32,ROW($A$3:$A$17998)),J$28)),"") -> 7BP0806100 | M32: =IFERROR(INDEX(StockEmplt!$E$1:$E$18000,SMALL(IF(StockEmplt!$F$3:$F$18000=$E32,ROW($A$3:$A$17037)),M$28)),"") -> 300000 | N32: =IFERROR(INDEX(StockEmplt!$C$1:$C$18000,SMALL(IF(StockEmplt!$F$3:$F$18000=$E32,ROW($A$3:$A$17998)),M$28)),"") -> BA026 | O32: =IFERROR(INDEX(StockEmplt!$D$1:$D$18000,SMALL(IF(StockEmplt!$F$3:$F$18000=$E32,ROW($A$3:$A$17998)),M$28)),"") -> 7DP0902500 | P32: =IFERROR(INDEX(StockEmplt!$E$1:$E$18000,SMALL(IF(StockEmplt!$F$3:$F$18000=$E32,ROW($A$3:$A$17037)),P$28)),"") -> 300000 | Q32: =IFERROR(INDEX(StockEmplt!$C$1:$C$18000,SMALL(IF(StockEmplt!$F$3:$F$18000=$E32,ROW($A$3:$A$17998)),P$28)),"") -> BA032 | R32: =IFERROR(INDEX(StockEmplt!$D$1:$D$18000,SMALL(IF(StockEmplt!$F$3:$F$18000=$E32,ROW($A$3:$A$17998)),P$28)),"") -> 7DP0902500 | S32: =IFERROR(INDEX(StockEmplt!$E$1:$E$18000,SMALL(IF(StockEmplt!$F$3:$F$18000=$E32,ROW($A$3:$A$17037)),S$28)),"") ->  | T32: =IFERROR(INDEX(StockEmplt!$C$1:$C$18000,SMALL(IF(StockEmplt!$F$3:$F$18000=$E32,ROW($A$3:$A$17998)),S$28)),"") ->  | U32: =IFERROR(INDEX(StockEmplt!$D$1:$D$18000,SMALL(IF(StockEmplt!$F$3:$F$18000=$E32,ROW($A$3:$A$17998)),S$28)),"") ->  | V32: =IFERROR(INDEX(StockEmplt!$E$1:$E$18000,SMALL(IF(StockEmplt!$F$3:$F$18000=$E32,ROW($A$3:$A$17037)),V$28)),"") ->  | W32: =IFERROR(INDEX(StockEmplt!$C$1:$C$18000,SMALL(IF(StockEmplt!$F$3:$F$18000=$E32,ROW($A$3:$A$17998)),V$28)),"") ->  | X32: =IFERROR(INDEX(StockEmplt!$D$1:$D$18000,SMALL(IF(StockEmplt!$F$3:$F$18000=$E32,ROW($A$3:$A$17998)),V$28)),"") ->  | Y32: =IFERROR(INDEX(StockEmplt!$E$1:$E$18000,SMALL(IF(StockEmplt!$F$3:$F$18000=$E32,ROW($A$3:$A$17037)),Y$28)),"") ->  | Z32: =IFERROR(INDEX(StockEmplt!$C$1:$C$18000,SMALL(IF(StockEmplt!$F$3:$F$18000=$E32,ROW($A$3:$A$17998)),Y$28)),"") ->  | AA32: =IFERROR(INDEX(StockEmplt!$D$1:$D$18000,SMALL(IF(StockEmplt!$F$3:$F$18000=$E32,ROW($A$3:$A$17998)),Y$28)),"") ->  | AB32: =IFERROR(INDEX(StockEmplt!$E$1:$E$18000,SMALL(IF(StockEmplt!$F$3:$F$18000=$E32,ROW($A$3:$A$17037)),AB$28)),"") ->  | AC32: =IFERROR(INDEX(StockEmplt!$C$1:$C$18000,SMALL(IF(StockEmplt!$F$3:$F$18000=$E32,ROW($A$3:$A$17998)),AB$28)),"") ->  | AD32: =IFERROR(INDEX(StockEmplt!$D$1:$D$18000,SMALL(IF(StockEmplt!$F$3:$F$18000=$E32,ROW($A$3:$A$17998)),AB$28)),"") ->  | AE32: =IFERROR(INDEX(StockEmplt!$E$1:$E$18000,SMALL(IF(StockEmplt!$F$3:$F$18000=$E32,ROW($A$3:$A$17037)),AE$28)),"") ->  | AF32: =IFERROR(INDEX(StockEmplt!$C$1:$C$18000,SMALL(IF(StockEmplt!$F$3:$F$18000=$E32,ROW($A$3:$A$17998)),AE$28)),"") ->  | AG32: =IFERROR(INDEX(StockEmplt!$D$1:$D$18000,SMALL(IF(StockEmplt!$F$3:$F$18000=$E32,ROW($A$3:$A$17998)),AE$28)),"") ->  | AH32: =IFERROR(INDEX(StockEmplt!$E$1:$E$18000,SMALL(IF(StockEmplt!$F$3:$F$18000=$E32,ROW($A$3:$A$17037)),AH$28)),"") ->  | AI32: =IFERROR(INDEX(StockEmplt!$C$1:$C$18000,SMALL(IF(StockEmplt!$F$3:$F$18000=$E32,ROW($A$3:$A$17998)),AH$28)),"") ->  | AJ32: =IFERROR(INDEX(StockEmplt!$D$1:$D$18000,SMALL(IF(StockEmplt!$F$3:$F$18000=$E32,ROW($A$3:$A$17998)),AH$28)),"") ->  | AK32: =IFERROR(INDEX(StockEmplt!$E$1:$E$18000,SMALL(IF(StockEmplt!$F$3:$F$18000=$E32,ROW($A$3:$A$17998)),AK$28)),"") ->  | AL32: =IFERROR(INDEX(StockEmplt!$C$1:$C$18000,SMALL(IF(StockEmplt!$F$3:$F$18000=$E32,ROW($A$3:$A$17998)),AK$28)),"") ->  | AM32: =IFERROR(INDEX(StockEmplt!$D$1:$D$18000,SMALL(IF(StockEmplt!$F$3:$F$18000=$E32,ROW($A$3:$A$17998)),AK$28)),"") ->  | AN32: =IFERROR(INDEX(StockEmplt!$E$1:$E$18000,SMALL(IF(StockEmplt!$F$3:$F$18000=$E32,ROW($A$3:$A$17998)),AN$28)),"") ->  | AO32: =IFERROR(INDEX(StockEmplt!$C$1:$C$18000,SMALL(IF(StockEmplt!$F$3:$F$18000=$E32,ROW($A$3:$A$17998)),AN$28)),"") ->  | AP32: =IFERROR(INDEX(StockEmplt!$D$1:$D$18000,SMALL(IF(StockEmplt!$F$3:$F$18000=$E32,ROW($A$3:$A$17998)),AN$28)),"") ->  | AQ32: =IFERROR(INDEX(StockEmplt!$E$1:$E$18000,SMALL(IF(StockEmplt!$F$3:$F$18000=$E32,ROW($A$3:$A$17998)),AQ$28)),"") ->  | AR32: =IFERROR(INDEX(StockEmplt!$C$1:$C$18000,SMALL(IF(StockEmplt!$F$3:$F$18000=$E32,ROW($A$3:$A$17998)),AQ$28)),"") ->  | AS32: =IFERROR(INDEX(StockEmplt!$D$1:$D$18000,SMALL(IF(StockEmplt!$F$3:$F$18000=$E32,ROW($A$3:$A$17998)),AQ$28)),"") ->  | AT32: =IFERROR(INDEX(StockEmplt!$E$1:$E$18000,SMALL(IF(StockEmplt!$F$3:$F$18000=$E32,ROW($A$3:$A$17998)),AT$28)),"") ->  | AU32: =IFERROR(INDEX(StockEmplt!$C$1:$C$18000,SMALL(IF(StockEmplt!$F$3:$F$18000=$E32,ROW($A$3:$A$17998)),AT$28)),"") ->  | AV32: =IFERROR(INDEX(StockEmplt!$D$1:$D$18000,SMALL(IF(StockEmplt!$F$3:$F$18000=$E32,ROW($A$3:$A$17998)),AT$28)),"") ->  | AW32: =IFERROR(INDEX(StockEmplt!$E$1:$E$18000,SMALL(IF(StockEmplt!$F$3:$F$18000=$E32,ROW($A$3:$A$17998)),AW$28)),"") ->  | AX32: =IFERROR(INDEX(StockEmplt!$C$1:$C$18000,SMALL(IF(StockEmplt!$F$3:$F$18000=$E32,ROW($A$3:$A$17998)),AW$28)),"") ->  | AY32: =IFERROR(INDEX(StockEmplt!$D$1:$D$18000,SMALL(IF(StockEmplt!$F$3:$F$18000=$E32,ROW($A$3:$A$17998)),AW$28)),"") ->  | AZ32: =IFERROR(INDEX(StockEmplt!$E$1:$E$18000,SMALL(IF(StockEmplt!$F$3:$F$18000=$E32,ROW($A$3:$A$17998)),AZ$28)),"") ->  | BA32: =IFERROR(INDEX(StockEmplt!$C$1:$C$18000,SMALL(IF(StockEmplt!$F$3:$F$18000=$E32,ROW($A$3:$A$17998)),AZ$28)),"") ->  | BB32: =IFERROR(INDEX(StockEmplt!$D$1:$D$18000,SMALL(IF(StockEmplt!$F$3:$F$18000=$E32,ROW($A$3:$A$17998)),AZ$28)),"") ->  | BC32: =IFERROR(INDEX(StockEmplt!$E$1:$E$18000,SMALL(IF(StockEmplt!$F$3:$F$18000=$E32,ROW($A$3:$A$17998)),BC$28)),"") ->  | BD32: =IFERROR(INDEX(StockEmplt!$C$1:$C$18000,SMALL(IF(StockEmplt!$F$3:$F$18000=$E32,ROW($A$3:$A$17998)),BC$28)),"") ->  | BE32: =IFERROR(INDEX(StockEmplt!$D$1:$D$18000,SMALL(IF(StockEmplt!$F$3:$F$18000=$E32,ROW($A$3:$A$17998)),BC$28)),"") ->  | BF32: =IFERROR(INDEX(StockEmplt!$E$1:$E$18000,SMALL(IF(StockEmplt!$F$3:$F$18000=$E32,ROW($A$3:$A$17998)),BF$28)),"") ->  | BG32: =IFERROR(INDEX(StockEmplt!$C$1:$C$18000,SMALL(IF(StockEmplt!$F$3:$F$18000=$E32,ROW($A$3:$A$17998)),BF$28)),"") ->  | BH32: =IFERROR(INDEX(StockEmplt!$D$1:$D$18000,SMALL(IF(StockEmplt!$F$3:$F$18000=$E32,ROW($A$3:$A$17998)),BF$28)),"") ->  | BI32: =IFERROR(INDEX(StockEmplt!$E$1:$E$18000,SMALL(IF(StockEmplt!$F$3:$F$18000=$E32,ROW($A$3:$A$17998)),BI$28)),"") ->  | BJ32: =IFERROR(INDEX(StockEmplt!$C$1:$C$18000,SMALL(IF(StockEmplt!$F$3:$F$18000=$E32,ROW($A$3:$A$17998)),BI$28)),"") ->  | BK32: =IFERROR(INDEX(StockEmplt!$D$1:$D$18000,SMALL(IF(StockEmplt!$F$3:$F$18000=$E32,ROW($A$3:$A$17998)),BI$28)),"") ->  | BL32: =IFERROR(INDEX(StockEmplt!$E$1:$E$18000,SMALL(IF(StockEmplt!$F$3:$F$18000=$E32,ROW($A$3:$A$17998)),BL$28)),"") ->  | BM32: =IFERROR(INDEX(StockEmplt!$C$1:$C$18000,SMALL(IF(StockEmplt!$F$3:$F$18000=$E32,ROW($A$3:$A$17998)),BL$28)),"") ->  | BN32: =IFERROR(INDEX(StockEmplt!$D$1:$D$18000,SMALL(IF(StockEmplt!$F$3:$F$18000=$E32,ROW($A$3:$A$17998)),BL$28)),"") ->  | BO32: =IFERROR(INDEX(StockEmplt!$E$1:$E$18000,SMALL(IF(StockEmplt!$F$3:$F$18000=$E32,ROW($A$3:$A$17998)),BO$28)),"") ->  | BP32: =IFERROR(INDEX(StockEmplt!$C$1:$C$18000,SMALL(IF(StockEmplt!$F$3:$F$18000=$E32,ROW($A$3:$A$17998)),BO$28)),"") ->  | BQ32: =IFERROR(INDEX(StockEmplt!$D$1:$D$18000,SMALL(IF(StockEmplt!$F$3:$F$18000=$E32,ROW($A$3:$A$17998)),BO$28)),"") -> 
A33: M451930 | B33: NRGFA2-4 | C33: 5000 | D33: 0964181 | E33: GD3,33X4,85X10,4R | F33: 5000 | G33: =IFERROR(INDEX(StockEmplt!$E$1:$E$18000,SMALL(IF(StockEmplt!$F$3:$F$18000=$E33,ROW($A$3:$A$17037)),G$28)),"") -> 5000 | H33: =IFERROR(INDEX(StockEmplt!$C$1:$C$18000,SMALL(IF(StockEmplt!$F$3:$F$18000=$E33,ROW($A$3:$A$17998)),G$28)),"") -> SCAPSA | I33: =IFERROR(INDEX(StockEmplt!$D$1:$D$18000,SMALL(IF(StockEmplt!$F$3:$F$18000=$E33,ROW($A$3:$A$17998)),G$28)),"") -> 6MP0654400 | J33: =IFERROR(INDEX(StockEmplt!$E$1:$E$18000,SMALL(IF(StockEmplt!$F$3:$F$18000=$E33,ROW($A$3:$A$17998)),J$28)),"") -> 9000 | K33: =IFERROR(INDEX(StockEmplt!$C$1:$C$18000,SMALL(IF(StockEmplt!$F$3:$F$18000=$E33,ROW($A$3:$A$17998)),J$28)),"") -> SCCH | L33: =IFERROR(INDEX(StockEmplt!$D$1:$D$18000,SMALL(IF(StockEmplt!$F$3:$F$18000=$E33,ROW($A$3:$A$17998)),J$28)),"") -> 7BP0806100 | M33: =IFERROR(INDEX(StockEmplt!$E$1:$E$18000,SMALL(IF(StockEmplt!$F$3:$F$18000=$E33,ROW($A$3:$A$17037)),M$28)),"") -> 300000 | N33: =IFERROR(INDEX(StockEmplt!$C$1:$C$18000,SMALL(IF(StockEmplt!$F$3:$F$18000=$E33,ROW($A$3:$A$17998)),M$28)),"") -> BA026 | O33: =IFERROR(INDEX(StockEmplt!$D$1:$D$18000,SMALL(IF(StockEmplt!$F$3:$F$18000=$E33,ROW($A$3:$A$17998)),M$28)),"") -> 7DP0902500 | P33: =IFERROR(INDEX(StockEmplt!$E$1:$E$18000,SMALL(IF(StockEmplt!$F$3:$F$18000=$E33,ROW($A$3:$A$17037)),P$28)),"") -> 300000 | Q33: =IFERROR(INDEX(StockEmplt!$C$1:$C$18000,SMALL(IF(StockEmplt!$F$3:$F$18000=$E33,ROW($A$3:$A$17998)),P$28)),"") -> BA032 | R33: =IFERROR(INDEX(StockEmplt!$D$1:$D$18000,SMALL(IF(StockEmplt!$F$3:$F$18000=$E33,ROW($A$3:$A$17998)),P$28)),"") -> 7DP0902500 | S33: =IFERROR(INDEX(StockEmplt!$E$1:$E$18000,SMALL(IF(StockEmplt!$F$3:$F$18000=$E33,ROW($A$3:$A$17037)),S$28)),"") ->  | T33: =IFERROR(INDEX(StockEmplt!$C$1:$C$18000,SMALL(IF(StockEmplt!$F$3:$F$18000=$E33,ROW($A$3:$A$17998)),S$28)),"") ->  | U33: =IFERROR(INDEX(StockEmplt!$D$1:$D$18000,SMALL(IF(StockEmplt!$F$3:$F$18000=$E33,ROW($A$3:$A$17998)),S$28)),"") ->  | V33: =IFERROR(INDEX(StockEmplt!$E$1:$E$18000,SMALL(IF(StockEmplt!$F$3:$F$18000=$E33,ROW($A$3:$A$17037)),V$28)),"") ->  | W33: =IFERROR(INDEX(StockEmplt!$C$1:$C$18000,SMALL(IF(StockEmplt!$F$3:$F$18000=$E33,ROW($A$3:$A$17998)),V$28)),"") ->  | X33: =IFERROR(INDEX(StockEmplt!$D$1:$D$18000,SMALL(IF(StockEmplt!$F$3:$F$18000=$E33,ROW($A$3:$A$17998)),V$28)),"") ->  | Y33: =IFERROR(INDEX(StockEmplt!$E$1:$E$18000,SMALL(IF(StockEmplt!$F$3:$F$18000=$E33,ROW($A$3:$A$17037)),Y$28)),"") ->  | Z33: =IFERROR(INDEX(StockEmplt!$C$1:$C$18000,SMALL(IF(StockEmplt!$F$3:$F$18000=$E33,ROW($A$3:$A$17998)),Y$28)),"") ->  | AA33: =IFERROR(INDEX(StockEmplt!$D$1:$D$18000,SMALL(IF(StockEmplt!$F$3:$F$18000=$E33,ROW($A$3:$A$17998)),Y$28)),"") ->  | AB33: =IFERROR(INDEX(StockEmplt!$E$1:$E$18000,SMALL(IF(StockEmplt!$F$3:$F$18000=$E33,ROW($A$3:$A$17037)),AB$28)),"") ->  | AC33: =IFERROR(INDEX(StockEmplt!$C$1:$C$18000,SMALL(IF(StockEmplt!$F$3:$F$18000=$E33,ROW($A$3:$A$17998)),AB$28)),"") ->  | AD33: =IFERROR(INDEX(StockEmplt!$D$1:$D$18000,SMALL(IF(StockEmplt!$F$3:$F$18000=$E33,ROW($A$3:$A$17998)),AB$28)),"") ->  | AE33: =IFERROR(INDEX(StockEmplt!$E$1:$E$18000,SMALL(IF(StockEmplt!$F$3:$F$18000=$E33,ROW($A$3:$A$17037)),AE$28)),"") ->  | AF33: =IFERROR(INDEX(StockEmplt!$C$1:$C$18000,SMALL(IF(StockEmplt!$F$3:$F$18000=$E33,ROW($A$3:$A$17998)),AE$28)),"") ->  | AG33: =IFERROR(INDEX(StockEmplt!$D$1:$D$18000,SMALL(IF(StockEmplt!$F$3:$F$18000=$E33,ROW($A$3:$A$17998)),AE$28)),"") ->  | AH33: =IFERROR(INDEX(StockEmplt!$E$1:$E$18000,SMALL(IF(StockEmplt!$F$3:$F$18000=$E33,ROW($A$3:$A$17037)),AH$28)),"") ->  | AI33: =IFERROR(INDEX(StockEmplt!$C$1:$C$18000,SMALL(IF(StockEmplt!$F$3:$F$18000=$E33,ROW($A$3:$A$17998)),AH$28)),"") ->  | AJ33: =IFERROR(INDEX(StockEmplt!$D$1:$D$18000,SMALL(IF(StockEmplt!$F$3:$F$18000=$E33,ROW($A$3:$A$17998)),AH$28)),"") ->  | AK33: =IFERROR(INDEX(StockEmplt!$E$1:$E$18000,SMALL(IF(StockEmplt!$F$3:$F$18000=$E33,ROW($A$3:$A$17998)),AK$28)),"") ->  | AL33: =IFERROR(INDEX(StockEmplt!$C$1:$C$18000,SMALL(IF(StockEmplt!$F$3:$F$18000=$E33,ROW($A$3:$A$17998)),AK$28)),"") ->  | AM33: =IFERROR(INDEX(StockEmplt!$D$1:$D$18000,SMALL(IF(StockEmplt!$F$3:$F$18000=$E33,ROW($A$3:$A$17998)),AK$28)),"") ->  | AN33: =IFERROR(INDEX(StockEmplt!$E$1:$E$18000,SMALL(IF(StockEmplt!$F$3:$F$18000=$E33,ROW($A$3:$A$17998)),AN$28)),"") ->  | AO33: =IFERROR(INDEX(StockEmplt!$C$1:$C$18000,SMALL(IF(StockEmplt!$F$3:$F$18000=$E33,ROW($A$3:$A$17998)),AN$28)),"") ->  | AP33: =IFERROR(INDEX(StockEmplt!$D$1:$D$18000,SMALL(IF(StockEmplt!$F$3:$F$18000=$E33,ROW($A$3:$A$17998)),AN$28)),"") ->  | AQ33: =IFERROR(INDEX(StockEmplt!$E$1:$E$18000,SMALL(IF(StockEmplt!$F$3:$F$18000=$E33,ROW($A$3:$A$17998)),AQ$28)),"") ->  | AR33: =IFERROR(INDEX(StockEmplt!$C$1:$C$18000,SMALL(IF(StockEmplt!$F$3:$F$18000=$E33,ROW($A$3:$A$17998)),AQ$28)),"") ->  | AS33: =IFERROR(INDEX(StockEmplt!$D$1:$D$18000,SMALL(IF(StockEmplt!$F$3:$F$18000=$E33,ROW($A$3:$A$17998)),AQ$28)),"") ->  | AT33: =IFERROR(INDEX(StockEmplt!$E$1:$E$18000,SMALL(IF(StockEmplt!$F$3:$F$18000=$E33,ROW($A$3:$A$17998)),AT$28)),"") ->  | AU33: =IFERROR(INDEX(StockEmplt!$C$1:$C$18000,SMALL(IF(StockEmplt!$F$3:$F$18000=$E33,ROW($A$3:$A$17998)),AT$28)),"") ->  | AV33: =IFERROR(INDEX(StockEmplt!$D$1:$D$18000,SMALL(IF(StockEmplt!$F$3:$F$18000=$E33,ROW($A$3:$A$17998)),AT$28)),"") ->  | AW33: =IFERROR(INDEX(StockEmplt!$E$1:$E$18000,SMALL(IF(StockEmplt!$F$3:$F$18000=$E33,ROW($A$3:$A$17998)),AW$28)),"") ->  | AX33: =IFERROR(INDEX(StockEmplt!$C$1:$C$18000,SMALL(IF(StockEmplt!$F$3:$F$18000=$E33,ROW($A$3:$A$17998)),AW$28)),"") ->  | AY33: =IFERROR(INDEX(StockEmplt!$D$1:$D$18000,SMALL(IF(StockEmplt!$F$3:$F$18000=$E33,ROW($A$3:$A$17998)),AW$28)),"") ->  | AZ33: =IFERROR(INDEX(StockEmplt!$E$1:$E$18000,SMALL(IF(StockEmplt!$F$3:$F$18000=$E33,ROW($A$3:$A$17998)),AZ$28)),"") ->  | BA33: =IFERROR(INDEX(StockEmplt!$C$1:$C$18000,SMALL(IF(StockEmplt!$F$3:$F$18000=$E33,ROW($A$3:$A$17998)),AZ$28)),"") ->  | BB33: =IFERROR(INDEX(StockEmplt!$D$1:$D$18000,SMALL(IF(StockEmplt!$F$3:$F$18000=$E33,ROW($A$3:$A$17998)),AZ$28)),"") ->  | BC33: =IFERROR(INDEX(StockEmplt!$E$1:$E$18000,SMALL(IF(StockEmplt!$F$3:$F$18000=$E33,ROW($A$3:$A$17998)),BC$28)),"") ->  | BD33: =IFERROR(INDEX(StockEmplt!$C$1:$C$18000,SMALL(IF(StockEmplt!$F$3:$F$18000=$E33,ROW($A$3:$A$17998)),BC$28)),"") ->  | BE33: =IFERROR(INDEX(StockEmplt!$D$1:$D$18000,SMALL(IF(StockEmplt!$F$3:$F$18000=$E33,ROW($A$3:$A$17998)),BC$28)),"") ->  | BF33: =IFERROR(INDEX(StockEmplt!$E$1:$E$18000,SMALL(IF(StockEmplt!$F$3:$F$18000=$E33,ROW($A$3:$A$17998)),BF$28)),"") ->  | BG33: =IFERROR(INDEX(StockEmplt!$C$1:$C$18000,SMALL(IF(StockEmplt!$F$3:$F$18000=$E33,ROW($A$3:$A$17998)),BF$28)),"") ->  | BH33: =IFERROR(INDEX(StockEmplt!$D$1:$D$18000,SMALL(IF(StockEmplt!$F$3:$F$18000=$E33,ROW($A$3:$A$17998)),BF$28)),"") ->  | BI33: =IFERROR(INDEX(StockEmplt!$E$1:$E$18000,SMALL(IF(StockEmplt!$F$3:$F$18000=$E33,ROW($A$3:$A$17998)),BI$28)),"") ->  | BJ33: =IFERROR(INDEX(StockEmplt!$C$1:$C$18000,SMALL(IF(StockEmplt!$F$3:$F$18000=$E33,ROW($A$3:$A$17998)),BI$28)),"") ->  | BK33: =IFERROR(INDEX(StockEmplt!$D$1:$D$18000,SMALL(IF(StockEmplt!$F$3:$F$18000=$E33,ROW($A$3:$A$17998)),BI$28)),"") ->  | BL33: =IFERROR(INDEX(StockEmplt!$E$1:$E$18000,SMALL(IF(StockEmplt!$F$3:$F$18000=$E33,ROW($A$3:$A$17998)),BL$28)),"") ->  | BM33: =IFERROR(INDEX(StockEmplt!$C$1:$C$18000,SMALL(IF(StockEmplt!$F$3:$F$18000=$E33,ROW($A$3:$A$17998)),BL$28)),"") ->  | BN33: =IFERROR(INDEX(StockEmplt!$D$1:$D$18000,SMALL(IF(StockEmplt!$F$3:$F$18000=$E33,ROW($A$3:$A$17998)),BL$28)),"") ->  | BO33: =IFERROR(INDEX(StockEmplt!$E$1:$E$18000,SMALL(IF(StockEmplt!$F$3:$F$18000=$E33,ROW($A$3:$A$17998)),BO$28)),"") ->  | BP33: =IFERROR(INDEX(StockEmplt!$C$1:$C$18000,SMALL(IF(StockEmplt!$F$3:$F$18000=$E33,ROW($A$3:$A$17998)),BO$28)),"") ->  | BQ33: =IFERROR(INDEX(StockEmplt!$D$1:$D$18000,SMALL(IF(StockEmplt!$F$3:$F$18000=$E33,ROW($A$3:$A$17998)),BO$28)),"") -> 
A34: M451940 | B34: NB0-4 | C34: 5000 | D34: 0964182 | E34: GD3,95X5,5X10,2B | F34: 5000 | G34: =IFERROR(INDEX(StockEmplt!$E$1:$E$18000,SMALL(IF(StockEmplt!$F$3:$F$18000=$E34,ROW($A$3:$A$17037)),G$28)),"") -> 191175 | H34: =IFERROR(INDEX(StockEmplt!$C$1:$C$18000,SMALL(IF(StockEmplt!$F$3:$F$18000=$E34,ROW($A$3:$A$17998)),G$28)),"") -> BA047 | I34: =IFERROR(INDEX(StockEmplt!$D$1:$D$18000,SMALL(IF(StockEmplt!$F$3:$F$18000=$E34,ROW($A$3:$A$17998)),G$28)),"") -> 7AP0737100 | J34: =IFERROR(INDEX(StockEmplt!$E$1:$E$18000,SMALL(IF(StockEmplt!$F$3:$F$18000=$E34,ROW($A$3:$A$17998)),J$28)),"") -> 7900 | K34: =IFERROR(INDEX(StockEmplt!$C$1:$C$18000,SMALL(IF(StockEmplt!$F$3:$F$18000=$E34,ROW($A$3:$A$17998)),J$28)),"") -> SCCH | L34: =IFERROR(INDEX(StockEmplt!$D$1:$D$18000,SMALL(IF(StockEmplt!$F$3:$F$18000=$E34,ROW($A$3:$A$17998)),J$28)),"") -> 7AP0737100 | M34: =IFERROR(INDEX(StockEmplt!$E$1:$E$18000,SMALL(IF(StockEmplt!$F$3:$F$18000=$E34,ROW($A$3:$A$17037)),M$28)),"") -> 500000 | N34: =IFERROR(INDEX(StockEmplt!$C$1:$C$18000,SMALL(IF(StockEmplt!$F$3:$F$18000=$E34,ROW($A$3:$A$17998)),M$28)),"") -> BB038 | O34: =IFERROR(INDEX(StockEmplt!$D$1:$D$18000,SMALL(IF(StockEmplt!$F$3:$F$18000=$E34,ROW($A$3:$A$17998)),M$28)),"") -> 7CP0902500 | P34: =IFERROR(INDEX(StockEmplt!$E$1:$E$18000,SMALL(IF(StockEmplt!$F$3:$F$18000=$E34,ROW($A$3:$A$17037)),P$28)),"") ->  | Q34: =IFERROR(INDEX(StockEmplt!$C$1:$C$18000,SMALL(IF(StockEmplt!$F$3:$F$18000=$E34,ROW($A$3:$A$17998)),P$28)),"") ->  | R34: =IFERROR(INDEX(StockEmplt!$D$1:$D$18000,SMALL(IF(StockEmplt!$F$3:$F$18000=$E34,ROW($A$3:$A$17998)),P$28)),"") ->  | S34: =IFERROR(INDEX(StockEmplt!$E$1:$E$18000,SMALL(IF(StockEmplt!$F$3:$F$18000=$E34,ROW($A$3:$A$17037)),S$28)),"") ->  | T34: =IFERROR(INDEX(StockEmplt!$C$1:$C$18000,SMALL(IF(StockEmplt!$F$3:$F$18000=$E34,ROW($A$3:$A$17998)),S$28)),"") ->  | U34: =IFERROR(INDEX(StockEmplt!$D$1:$D$18000,SMALL(IF(StockEmplt!$F$3:$F$18000=$E34,ROW($A$3:$A$17998)),S$28)),"") ->  | V34: =IFERROR(INDEX(StockEmplt!$E$1:$E$18000,SMALL(IF(StockEmplt!$F$3:$F$18000=$E34,ROW($A$3:$A$17037)),V$28)),"") ->  | W34: =IFERROR(INDEX(StockEmplt!$C$1:$C$18000,SMALL(IF(StockEmplt!$F$3:$F$18000=$E34,ROW($A$3:$A$17998)),V$28)),"") ->  | X34: =IFERROR(INDEX(StockEmplt!$D$1:$D$18000,SMALL(IF(StockEmplt!$F$3:$F$18000=$E34,ROW($A$3:$A$17998)),V$28)),"") ->  | Y34: =IFERROR(INDEX(StockEmplt!$E$1:$E$18000,SMALL(IF(StockEmplt!$F$3:$F$18000=$E34,ROW($A$3:$A$17037)),Y$28)),"") ->  | Z34: =IFERROR(INDEX(StockEmplt!$C$1:$C$18000,SMALL(IF(StockEmplt!$F$3:$F$18000=$E34,ROW($A$3:$A$17998)),Y$28)),"") ->  | AA34: =IFERROR(INDEX(StockEmplt!$D$1:$D$18000,SMALL(IF(StockEmplt!$F$3:$F$18000=$E34,ROW($A$3:$A$17998)),Y$28)),"") ->  | AB34: =IFERROR(INDEX(StockEmplt!$E$1:$E$18000,SMALL(IF(StockEmplt!$F$3:$F$18000=$E34,ROW($A$3:$A$17037)),AB$28)),"") ->  | AC34: =IFERROR(INDEX(StockEmplt!$C$1:$C$18000,SMALL(IF(StockEmplt!$F$3:$F$18000=$E34,ROW($A$3:$A$17998)),AB$28)),"") ->  | AD34: =IFERROR(INDEX(StockEmplt!$D$1:$D$18000,SMALL(IF(StockEmplt!$F$3:$F$18000=$E34,ROW($A$3:$A$17998)),AB$28)),"") ->  | AE34: =IFERROR(INDEX(StockEmplt!$E$1:$E$18000,SMALL(IF(StockEmplt!$F$3:$F$18000=$E34,ROW($A$3:$A$17037)),AE$28)),"") ->  | AF34: =IFERROR(INDEX(StockEmplt!$C$1:$C$18000,SMALL(IF(StockEmplt!$F$3:$F$18000=$E34,ROW($A$3:$A$17998)),AE$28)),"") ->  | AG34: =IFERROR(INDEX(StockEmplt!$D$1:$D$18000,SMALL(IF(StockEmplt!$F$3:$F$18000=$E34,ROW($A$3:$A$17998)),AE$28)),"") ->  | AH34: =IFERROR(INDEX(StockEmplt!$E$1:$E$18000,SMALL(IF(StockEmplt!$F$3:$F$18000=$E34,ROW($A$3:$A$17037)),AH$28)),"") ->  | AI34: =IFERROR(INDEX(StockEmplt!$C$1:$C$18000,SMALL(IF(StockEmplt!$F$3:$F$18000=$E34,ROW($A$3:$A$17998)),AH$28)),"") ->  | AJ34: =IFERROR(INDEX(StockEmplt!$D$1:$D$18000,SMALL(IF(StockEmplt!$F$3:$F$18000=$E34,ROW($A$3:$A$17998)),AH$28)),"") ->  | AK34: =IFERROR(INDEX(StockEmplt!$E$1:$E$18000,SMALL(IF(StockEmplt!$F$3:$F$18000=$E34,ROW($A$3:$A$17998)),AK$28)),"") ->  | AL34: =IFERROR(INDEX(StockEmplt!$C$1:$C$18000,SMALL(IF(StockEmplt!$F$3:$F$18000=$E34,ROW($A$3:$A$17998)),AK$28)),"") ->  | AM34: =IFERROR(INDEX(StockEmplt!$D$1:$D$18000,SMALL(IF(StockEmplt!$F$3:$F$18000=$E34,ROW($A$3:$A$17998)),AK$28)),"") ->  | AN34: =IFERROR(INDEX(StockEmplt!$E$1:$E$18000,SMALL(IF(StockEmplt!$F$3:$F$18000=$E34,ROW($A$3:$A$17998)),AN$28)),"") ->  | AO34: =IFERROR(INDEX(StockEmplt!$C$1:$C$18000,SMALL(IF(StockEmplt!$F$3:$F$18000=$E34,ROW($A$3:$A$17998)),AN$28)),"") ->  | AP34: =IFERROR(INDEX(StockEmplt!$D$1:$D$18000,SMALL(IF(StockEmplt!$F$3:$F$18000=$E34,ROW($A$3:$A$17998)),AN$28)),"") ->  | AQ34: =IFERROR(INDEX(StockEmplt!$E$1:$E$18000,SMALL(IF(StockEmplt!$F$3:$F$18000=$E34,ROW($A$3:$A$17998)),AQ$28)),"") ->  | AR34: =IFERROR(INDEX(StockEmplt!$C$1:$C$18000,SMALL(IF(StockEmplt!$F$3:$F$18000=$E34,ROW($A$3:$A$17998)),AQ$28)),"") ->  | AS34: =IFERROR(INDEX(StockEmplt!$D$1:$D$18000,SMALL(IF(StockEmplt!$F$3:$F$18000=$E34,ROW($A$3:$A$17998)),AQ$28)),"") ->  | AT34: =IFERROR(INDEX(StockEmplt!$E$1:$E$18000,SMALL(IF(StockEmplt!$F$3:$F$18000=$E34,ROW($A$3:$A$17998)),AT$28)),"") ->  | AU34: =IFERROR(INDEX(StockEmplt!$C$1:$C$18000,SMALL(IF(StockEmplt!$F$3:$F$18000=$E34,ROW($A$3:$A$17998)),AT$28)),"") ->  | AV34: =IFERROR(INDEX(StockEmplt!$D$1:$D$18000,SMALL(IF(StockEmplt!$F$3:$F$18000=$E34,ROW($A$3:$A$17998)),AT$28)),"") ->  | AW34: =IFERROR(INDEX(StockEmplt!$E$1:$E$18000,SMALL(IF(StockEmplt!$F$3:$F$18000=$E34,ROW($A$3:$A$17998)),AW$28)),"") ->  | AX34: =IFERROR(INDEX(StockEmplt!$C$1:$C$18000,SMALL(IF(StockEmplt!$F$3:$F$18000=$E34,ROW($A$3:$A$17998)),AW$28)),"") ->  | AY34: =IFERROR(INDEX(StockEmplt!$D$1:$D$18000,SMALL(IF(StockEmplt!$F$3:$F$18000=$E34,ROW($A$3:$A$17998)),AW$28)),"") ->  | AZ34: =IFERROR(INDEX(StockEmplt!$E$1:$E$18000,SMALL(IF(StockEmplt!$F$3:$F$18000=$E34,ROW($A$3:$A$17998)),AZ$28)),"") ->  | BA34: =IFERROR(INDEX(StockEmplt!$C$1:$C$18000,SMALL(IF(StockEmplt!$F$3:$F$18000=$E34,ROW($A$3:$A$17998)),AZ$28)),"") ->  | BB34: =IFERROR(INDEX(StockEmplt!$D$1:$D$18000,SMALL(IF(StockEmplt!$F$3:$F$18000=$E34,ROW($A$3:$A$17998)),AZ$28)),"") ->  | BC34: =IFERROR(INDEX(StockEmplt!$E$1:$E$18000,SMALL(IF(StockEmplt!$F$3:$F$18000=$E34,ROW($A$3:$A$17998)),BC$28)),"") ->  | BD34: =IFERROR(INDEX(StockEmplt!$C$1:$C$18000,SMALL(IF(StockEmplt!$F$3:$F$18000=$E34,ROW($A$3:$A$17998)),BC$28)),"") ->  | BE34: =IFERROR(INDEX(StockEmplt!$D$1:$D$18000,SMALL(IF(StockEmplt!$F$3:$F$18000=$E34,ROW($A$3:$A$17998)),BC$28)),"") ->  | BF34: =IFERROR(INDEX(StockEmplt!$E$1:$E$18000,SMALL(IF(StockEmplt!$F$3:$F$18000=$E34,ROW($A$3:$A$17998)),BF$28)),"") ->  | BG34: =IFERROR(INDEX(StockEmplt!$C$1:$C$18000,SMALL(IF(StockEmplt!$F$3:$F$18000=$E34,ROW($A$3:$A$17998)),BF$28)),"") ->  | BH34: =IFERROR(INDEX(StockEmplt!$D$1:$D$18000,SMALL(IF(StockEmplt!$F$3:$F$18000=$E34,ROW($A$3:$A$17998)),BF$28)),"") ->  | BI34: =IFERROR(INDEX(StockEmplt!$E$1:$E$18000,SMALL(IF(StockEmplt!$F$3:$F$18000=$E34,ROW($A$3:$A$17998)),BI$28)),"") ->  | BJ34: =IFERROR(INDEX(StockEmplt!$C$1:$C$18000,SMALL(IF(StockEmplt!$F$3:$F$18000=$E34,ROW($A$3:$A$17998)),BI$28)),"") ->  | BK34: =IFERROR(INDEX(StockEmplt!$D$1:$D$18000,SMALL(IF(StockEmplt!$F$3:$F$18000=$E34,ROW($A$3:$A$17998)),BI$28)),"") ->  | BL34: =IFERROR(INDEX(StockEmplt!$E$1:$E$18000,SMALL(IF(StockEmplt!$F$3:$F$18000=$E34,ROW($A$3:$A$17998)),BL$28)),"") ->  | BM34: =IFERROR(INDEX(StockEmplt!$C$1:$C$18000,SMALL(IF(StockEmplt!$F$3:$F$18000=$E34,ROW($A$3:$A$17998)),BL$28)),"") ->  | BN34: =IFERROR(INDEX(StockEmplt!$D$1:$D$18000,SMALL(IF(StockEmplt!$F$3:$F$18000=$E34,ROW($A$3:$A$17998)),BL$28)),"") ->  | BO34: =IFERROR(INDEX(StockEmplt!$E$1:$E$18000,SMALL(IF(StockEmplt!$F$3:$F$18000=$E34,ROW($A$3:$A$17998)),BO$28)),"") ->  | BP34: =IFERROR(INDEX(StockEmplt!$C$1:$C$18000,SMALL(IF(StockEmplt!$F$3:$F$18000=$E34,ROW($A$3:$A$17998)),BO$28)),"") ->  | BQ34: =IFERROR(INDEX(StockEmplt!$D$1:$D$18000,SMALL(IF(StockEmplt!$F$3:$F$18000=$E34,ROW($A$3:$A$17998)),BO$28)),"") -> 
A35: M451950 | B35: B100NB0-5 | C35: 50 | D35: 0964182 | E35: GD3,95X5,5X10,2B | F35: 5000 | G35: =IFERROR(INDEX(StockEmplt!$E$1:$E$18000,SMALL(IF(StockEmplt!$F$3:$F$18000=$E35,ROW($A$3:$A$17037)),G$28)),"") -> 191175 | H35: =IFERROR(INDEX(StockEmplt!$C$1:$C$18000,SMALL(IF(StockEmplt!$F$3:$F$18000=$E35,ROW($A$3:$A$17998)),G$28)),"") -> BA047 | I35: =IFERROR(INDEX(StockEmplt!$D$1:$D$18000,SMALL(IF(StockEmplt!$F$3:$F$18000=$E35,ROW($A$3:$A$17998)),G$28)),"") -> 7AP0737100 | J35: =IFERROR(INDEX(StockEmplt!$E$1:$E$18000,SMALL(IF(StockEmplt!$F$3:$F$18000=$E35,ROW($A$3:$A$17998)),J$28)),"") -> 7900 | K35: =IFERROR(INDEX(StockEmplt!$C$1:$C$18000,SMALL(IF(StockEmplt!$F$3:$F$18000=$E35,ROW($A$3:$A$17998)),J$28)),"") -> SCCH | L35: =IFERROR(INDEX(StockEmplt!$D$1:$D$18000,SMALL(IF(StockEmplt!$F$3:$F$18000=$E35,ROW($A$3:$A$17998)),J$28)),"") -> 7AP0737100 | M35: =IFERROR(INDEX(StockEmplt!$E$1:$E$18000,SMALL(IF(StockEmplt!$F$3:$F$18000=$E35,ROW($A$3:$A$17037)),M$28)),"") -> 500000 | N35: =IFERROR(INDEX(StockEmplt!$C$1:$C$18000,SMALL(IF(StockEmplt!$F$3:$F$18000=$E35,ROW($A$3:$A$17998)),M$28)),"") -> BB038 | O35: =IFERROR(INDEX(StockEmplt!$D$1:$D$18000,SMALL(IF(StockEmplt!$F$3:$F$18000=$E35,ROW($A$3:$A$17998)),M$28)),"") -> 7CP0902500 | P35: =IFERROR(INDEX(StockEmplt!$E$1:$E$18000,SMALL(IF(StockEmplt!$F$3:$F$18000=$E35,ROW($A$3:$A$17037)),P$28)),"") ->  | Q35: =IFERROR(INDEX(StockEmplt!$C$1:$C$18000,SMALL(IF(StockEmplt!$F$3:$F$18000=$E35,ROW($A$3:$A$17998)),P$28)),"") ->  | R35: =IFERROR(INDEX(StockEmplt!$D$1:$D$18000,SMALL(IF(StockEmplt!$F$3:$F$18000=$E35,ROW($A$3:$A$17998)),P$28)),"") ->  | S35: =IFERROR(INDEX(StockEmplt!$E$1:$E$18000,SMALL(IF(StockEmplt!$F$3:$F$18000=$E35,ROW($A$3:$A$17037)),S$28)),"") ->  | T35: =IFERROR(INDEX(StockEmplt!$C$1:$C$18000,SMALL(IF(StockEmplt!$F$3:$F$18000=$E35,ROW($A$3:$A$17998)),S$28)),"") ->  | U35: =IFERROR(INDEX(StockEmplt!$D$1:$D$18000,SMALL(IF(StockEmplt!$F$3:$F$18000=$E35,ROW($A$3:$A$17998)),S$28)),"") ->  | V35: =IFERROR(INDEX(StockEmplt!$E$1:$E$18000,SMALL(IF(StockEmplt!$F$3:$F$18000=$E35,ROW($A$3:$A$17037)),V$28)),"") ->  | W35: =IFERROR(INDEX(StockEmplt!$C$1:$C$18000,SMALL(IF(StockEmplt!$F$3:$F$18000=$E35,ROW($A$3:$A$17998)),V$28)),"") ->  | X35: =IFERROR(INDEX(StockEmplt!$D$1:$D$18000,SMALL(IF(StockEmplt!$F$3:$F$18000=$E35,ROW($A$3:$A$17998)),V$28)),"") ->  | Y35: =IFERROR(INDEX(StockEmplt!$E$1:$E$18000,SMALL(IF(StockEmplt!$F$3:$F$18000=$E35,ROW($A$3:$A$17037)),Y$28)),"") ->  | Z35: =IFERROR(INDEX(StockEmplt!$C$1:$C$18000,SMALL(IF(StockEmplt!$F$3:$F$18000=$E35,ROW($A$3:$A$17998)),Y$28)),"") ->  | AA35: =IFERROR(INDEX(StockEmplt!$D$1:$D$18000,SMALL(IF(StockEmplt!$F$3:$F$18000=$E35,ROW($A$3:$A$17998)),Y$28)),"") ->  | AB35: =IFERROR(INDEX(StockEmplt!$E$1:$E$18000,SMALL(IF(StockEmplt!$F$3:$F$18000=$E35,ROW($A$3:$A$17037)),AB$28)),"") ->  | AC35: =IFERROR(INDEX(StockEmplt!$C$1:$C$18000,SMALL(IF(StockEmplt!$F$3:$F$18000=$E35,ROW($A$3:$A$17998)),AB$28)),"") ->  | AD35: =IFERROR(INDEX(StockEmplt!$D$1:$D$18000,SMALL(IF(StockEmplt!$F$3:$F$18000=$E35,ROW($A$3:$A$17998)),AB$28)),"") ->  | AE35: =IFERROR(INDEX(StockEmplt!$E$1:$E$18000,SMALL(IF(StockEmplt!$F$3:$F$18000=$E35,ROW($A$3:$A$17037)),AE$28)),"") ->  | AF35: =IFERROR(INDEX(StockEmplt!$C$1:$C$18000,SMALL(IF(StockEmplt!$F$3:$F$18000=$E35,ROW($A$3:$A$17998)),AE$28)),"") ->  | AG35: =IFERROR(INDEX(StockEmplt!$D$1:$D$18000,SMALL(IF(StockEmplt!$F$3:$F$18000=$E35,ROW($A$3:$A$17998)),AE$28)),"") ->  | AH35: =IFERROR(INDEX(StockEmplt!$E$1:$E$18000,SMALL(IF(StockEmplt!$F$3:$F$18000=$E35,ROW($A$3:$A$17037)),AH$28)),"") ->  | AI35: =IFERROR(INDEX(StockEmplt!$C$1:$C$18000,SMALL(IF(StockEmplt!$F$3:$F$18000=$E35,ROW($A$3:$A$17998)),AH$28)),"") ->  | AJ35: =IFERROR(INDEX(StockEmplt!$D$1:$D$18000,SMALL(IF(StockEmplt!$F$3:$F$18000=$E35,ROW($A$3:$A$17998)),AH$28)),"") ->  | AK35: =IFERROR(INDEX(StockEmplt!$E$1:$E$18000,SMALL(IF(StockEmplt!$F$3:$F$18000=$E35,ROW($A$3:$A$17998)),AK$28)),"") ->  | AL35: =IFERROR(INDEX(StockEmplt!$C$1:$C$18000,SMALL(IF(StockEmplt!$F$3:$F$18000=$E35,ROW($A$3:$A$17998)),AK$28)),"") ->  | AM35: =IFERROR(INDEX(StockEmplt!$D$1:$D$18000,SMALL(IF(StockEmplt!$F$3:$F$18000=$E35,ROW($A$3:$A$17998)),AK$28)),"") ->  | AN35: =IFERROR(INDEX(StockEmplt!$E$1:$E$18000,SMALL(IF(StockEmplt!$F$3:$F$18000=$E35,ROW($A$3:$A$17998)),AN$28)),"") ->  | AO35: =IFERROR(INDEX(StockEmplt!$C$1:$C$18000,SMALL(IF(StockEmplt!$F$3:$F$18000=$E35,ROW($A$3:$A$17998)),AN$28)),"") ->  | AP35: =IFERROR(INDEX(StockEmplt!$D$1:$D$18000,SMALL(IF(StockEmplt!$F$3:$F$18000=$E35,ROW($A$3:$A$17998)),AN$28)),"") ->  | AQ35: =IFERROR(INDEX(StockEmplt!$E$1:$E$18000,SMALL(IF(StockEmplt!$F$3:$F$18000=$E35,ROW($A$3:$A$17998)),AQ$28)),"") ->  | AR35: =IFERROR(INDEX(StockEmplt!$C$1:$C$18000,SMALL(IF(StockEmplt!$F$3:$F$18000=$E35,ROW($A$3:$A$17998)),AQ$28)),"") ->  | AS35: =IFERROR(INDEX(StockEmplt!$D$1:$D$18000,SMALL(IF(StockEmplt!$F$3:$F$18000=$E35,ROW($A$3:$A$17998)),AQ$28)),"") ->  | AT35: =IFERROR(INDEX(StockEmplt!$E$1:$E$18000,SMALL(IF(StockEmplt!$F$3:$F$18000=$E35,ROW($A$3:$A$17998)),AT$28)),"") ->  | AU35: =IFERROR(INDEX(StockEmplt!$C$1:$C$18000,SMALL(IF(StockEmplt!$F$3:$F$18000=$E35,ROW($A$3:$A$17998)),AT$28)),"") ->  | AV35: =IFERROR(INDEX(StockEmplt!$D$1:$D$18000,SMALL(IF(StockEmplt!$F$3:$F$18000=$E35,ROW($A$3:$A$17998)),AT$28)),"") ->  | AW35: =IFERROR(INDEX(StockEmplt!$E$1:$E$18000,SMALL(IF(StockEmplt!$F$3:$F$18000=$E35,ROW($A$3:$A$17998)),AW$28)),"") ->  | AX35: =IFERROR(INDEX(StockEmplt!$C$1:$C$18000,SMALL(IF(StockEmplt!$F$3:$F$18000=$E35,ROW($A$3:$A$17998)),AW$28)),"") ->  | AY35: =IFERROR(INDEX(StockEmplt!$D$1:$D$18000,SMALL(IF(StockEmplt!$F$3:$F$18000=$E35,ROW($A$3:$A$17998)),AW$28)),"") ->  | AZ35: =IFERROR(INDEX(StockEmplt!$E$1:$E$18000,SMALL(IF(StockEmplt!$F$3:$F$18000=$E35,ROW($A$3:$A$17998)),AZ$28)),"") ->  | BA35: =IFERROR(INDEX(StockEmplt!$C$1:$C$18000,SMALL(IF(StockEmplt!$F$3:$F$18000=$E35,ROW($A$3:$A$17998)),AZ$28)),"") ->  | BB35: =IFERROR(INDEX(StockEmplt!$D$1:$D$18000,SMALL(IF(StockEmplt!$F$3:$F$18000=$E35,ROW($A$3:$A$17998)),AZ$28)),"") ->  | BC35: =IFERROR(INDEX(StockEmplt!$E$1:$E$18000,SMALL(IF(StockEmplt!$F$3:$F$18000=$E35,ROW($A$3:$A$17998)),BC$28)),"") ->  | BD35: =IFERROR(INDEX(StockEmplt!$C$1:$C$18000,SMALL(IF(StockEmplt!$F$3:$F$18000=$E35,ROW($A$3:$A$17998)),BC$28)),"") ->  | BE35: =IFERROR(INDEX(StockEmplt!$D$1:$D$18000,SMALL(IF(StockEmplt!$F$3:$F$18000=$E35,ROW($A$3:$A$17998)),BC$28)),"") ->  | BF35: =IFERROR(INDEX(StockEmplt!$E$1:$E$18000,SMALL(IF(StockEmplt!$F$3:$F$18000=$E35,ROW($A$3:$A$17998)),BF$28)),"") ->  | BG35: =IFERROR(INDEX(StockEmplt!$C$1:$C$18000,SMALL(IF(StockEmplt!$F$3:$F$18000=$E35,ROW($A$3:$A$17998)),BF$28)),"") ->  | BH35: =IFERROR(INDEX(StockEmplt!$D$1:$D$18000,SMALL(IF(StockEmplt!$F$3:$F$18000=$E35,ROW($A$3:$A$17998)),BF$28)),"") ->  | BI35: =IFERROR(INDEX(StockEmplt!$E$1:$E$18000,SMALL(IF(StockEmplt!$F$3:$F$18000=$E35,ROW($A$3:$A$17998)),BI$28)),"") ->  | BJ35: =IFERROR(INDEX(StockEmplt!$C$1:$C$18000,SMALL(IF(StockEmplt!$F$3:$F$18000=$E35,ROW($A$3:$A$17998)),BI$28)),"") ->  | BK35: =IFERROR(INDEX(StockEmplt!$D$1:$D$18000,SMALL(IF(StockEmplt!$F$3:$F$18000=$E35,ROW($A$3:$A$17998)),BI$28)),"") ->  | BL35: =IFERROR(INDEX(StockEmplt!$E$1:$E$18000,SMALL(IF(StockEmplt!$F$3:$F$18000=$E35,ROW($A$3:$A$17998)),BL$28)),"") ->  | BM35: =IFERROR(INDEX(StockEmplt!$C$1:$C$18000,SMALL(IF(StockEmplt!$F$3:$F$18000=$E35,ROW($A$3:$A$17998)),BL$28)),"") ->  | BN35: =IFERROR(INDEX(StockEmplt!$D$1:$D$18000,SMALL(IF(StockEmplt!$F$3:$F$18000=$E35,ROW($A$3:$A$17998)),BL$28)),"") ->  | BO35: =IFERROR(INDEX(StockEmplt!$E$1:$E$18000,SMALL(IF(StockEmplt!$F$3:$F$18000=$E35,ROW($A$3:$A$17998)),BO$28)),"") ->  | BP35: =IFERROR(INDEX(StockEmplt!$C$1:$C$18000,SMALL(IF(StockEmplt!$F$3:$F$18000=$E35,ROW($A$3:$A$17998)),BO$28)),"") ->  | BQ35: =IFERROR(INDEX(StockEmplt!$D$1:$D$18000,SMALL(IF(StockEmplt!$F$3:$F$18000=$E35,ROW($A$3:$A$17998)),BO$28)),"") -> 
A36: M451960 | B36: B100NB1-4 | C36: 30 | D36: 0964182 | E36: GD3,95X5,5X10,2B | F36: 3000 | G36: =IFERROR(INDEX(StockEmplt!$E$1:$E$18000,SMALL(IF(StockEmplt!$F$3:$F$18000=$E36,ROW($A$3:$A$17037)),G$28)),"") -> 191175 | H36: =IFERROR(INDEX(StockEmplt!$C$1:$C$18000,SMALL(IF(StockEmplt!$F$3:$F$18000=$E36,ROW($A$3:$A$17998)),G$28)),"") -> BA047 | I36: =IFERROR(INDEX(StockEmplt!$D$1:$D$18000,SMALL(IF(StockEmplt!$F$3:$F$18000=$E36,ROW($A$3:$A$17998)),G$28)),"") -> 7AP0737100 | J36: =IFERROR(INDEX(StockEmplt!$E$1:$E$18000,SMALL(IF(StockEmplt!$F$3:$F$18000=$E36,ROW($A$3:$A$17998)),J$28)),"") -> 7900 | K36: =IFERROR(INDEX(StockEmplt!$C$1:$C$18000,SMALL(IF(StockEmplt!$F$3:$F$18000=$E36,ROW($A$3:$A$17998)),J$28)),"") -> SCCH | L36: =IFERROR(INDEX(StockEmplt!$D$1:$D$18000,SMALL(IF(StockEmplt!$F$3:$F$18000=$E36,ROW($A$3:$A$17998)),J$28)),"") -> 7AP0737100 | M36: =IFERROR(INDEX(StockEmplt!$E$1:$E$18000,SMALL(IF(StockEmplt!$F$3:$F$18000=$E36,ROW($A$3:$A$17037)),M$28)),"") -> 500000 | N36: =IFERROR(INDEX(StockEmplt!$C$1:$C$18000,SMALL(IF(StockEmplt!$F$3:$F$18000=$E36,ROW($A$3:$A$17998)),M$28)),"") -> BB038 | O36: =IFERROR(INDEX(StockEmplt!$D$1:$D$18000,SMALL(IF(StockEmplt!$F$3:$F$18000=$E36,ROW($A$3:$A$17998)),M$28)),"") -> 7CP0902500 | P36: =IFERROR(INDEX(StockEmplt!$E$1:$E$18000,SMALL(IF(StockEmplt!$F$3:$F$18000=$E36,ROW($A$3:$A$17037)),P$28)),"") ->  | Q36: =IFERROR(INDEX(StockEmplt!$C$1:$C$18000,SMALL(IF(StockEmplt!$F$3:$F$18000=$E36,ROW($A$3:$A$17998)),P$28)),"") ->  | R36: =IFERROR(INDEX(StockEmplt!$D$1:$D$18000,SMALL(IF(StockEmplt!$F$3:$F$18000=$E36,ROW($A$3:$A$17998)),P$28)),"") ->  | S36: =IFERROR(INDEX(StockEmplt!$E$1:$E$18000,SMALL(IF(StockEmplt!$F$3:$F$18000=$E36,ROW($A$3:$A$17037)),S$28)),"") ->  | T36: =IFERROR(INDEX(StockEmplt!$C$1:$C$18000,SMALL(IF(StockEmplt!$F$3:$F$18000=$E36,ROW($A$3:$A$17998)),S$28)),"") ->  | U36: =IFERROR(INDEX(StockEmplt!$D$1:$D$18000,SMALL(IF(StockEmplt!$F$3:$F$18000=$E36,ROW($A$3:$A$17998)),S$28)),"") ->  | V36: =IFERROR(INDEX(StockEmplt!$E$1:$E$18000,SMALL(IF(StockEmplt!$F$3:$F$18000=$E36,ROW($A$3:$A$17037)),V$28)),"") ->  | W36: =IFERROR(INDEX(StockEmplt!$C$1:$C$18000,SMALL(IF(StockEmplt!$F$3:$F$18000=$E36,ROW($A$3:$A$17998)),V$28)),"") ->  | X36: =IFERROR(INDEX(StockEmplt!$D$1:$D$18000,SMALL(IF(StockEmplt!$F$3:$F$18000=$E36,ROW($A$3:$A$17998)),V$28)),"") ->  | Y36: =IFERROR(INDEX(StockEmplt!$E$1:$E$18000,SMALL(IF(StockEmplt!$F$3:$F$18000=$E36,ROW($A$3:$A$17037)),Y$28)),"") ->  | Z36: =IFERROR(INDEX(StockEmplt!$C$1:$C$18000,SMALL(IF(StockEmplt!$F$3:$F$18000=$E36,ROW($A$3:$A$17998)),Y$28)),"") ->  | AA36: =IFERROR(INDEX(StockEmplt!$D$1:$D$18000,SMALL(IF(StockEmplt!$F$3:$F$18000=$E36,ROW($A$3:$A$17998)),Y$28)),"") ->  | AB36: =IFERROR(INDEX(StockEmplt!$E$1:$E$18000,SMALL(IF(StockEmplt!$F$3:$F$18000=$E36,ROW($A$3:$A$17037)),AB$28)),"") ->  | AC36: =IFERROR(INDEX(StockEmplt!$C$1:$C$18000,SMALL(IF(StockEmplt!$F$3:$F$18000=$E36,ROW($A$3:$A$17998)),AB$28)),"") ->  | AD36: =IFERROR(INDEX(StockEmplt!$D$1:$D$18000,SMALL(IF(StockEmplt!$F$3:$F$18000=$E36,ROW($A$3:$A$17998)),AB$28)),"") ->  | AE36: =IFERROR(INDEX(StockEmplt!$E$1:$E$18000,SMALL(IF(StockEmplt!$F$3:$F$18000=$E36,ROW($A$3:$A$17037)),AE$28)),"") ->  | AF36: =IFERROR(INDEX(StockEmplt!$C$1:$C$18000,SMALL(IF(StockEmplt!$F$3:$F$18000=$E36,ROW($A$3:$A$17998)),AE$28)),"") ->  | AG36: =IFERROR(INDEX(StockEmplt!$D$1:$D$18000,SMALL(IF(StockEmplt!$F$3:$F$18000=$E36,ROW($A$3:$A$17998)),AE$28)),"") ->  | AH36: =IFERROR(INDEX(StockEmplt!$E$1:$E$18000,SMALL(IF(StockEmplt!$F$3:$F$18000=$E36,ROW($A$3:$A$17037)),AH$28)),"") ->  | AI36: =IFERROR(INDEX(StockEmplt!$C$1:$C$18000,SMALL(IF(StockEmplt!$F$3:$F$18000=$E36,ROW($A$3:$A$17998)),AH$28)),"") ->  | AJ36: =IFERROR(INDEX(StockEmplt!$D$1:$D$18000,SMALL(IF(StockEmplt!$F$3:$F$18000=$E36,ROW($A$3:$A$17998)),AH$28)),"") ->  | AK36: =IFERROR(INDEX(StockEmplt!$E$1:$E$18000,SMALL(IF(StockEmplt!$F$3:$F$18000=$E36,ROW($A$3:$A$17998)),AK$28)),"") ->  | AL36: =IFERROR(INDEX(StockEmplt!$C$1:$C$18000,SMALL(IF(StockEmplt!$F$3:$F$18000=$E36,ROW($A$3:$A$17998)),AK$28)),"") ->  | AM36: =IFERROR(INDEX(StockEmplt!$D$1:$D$18000,SMALL(IF(StockEmplt!$F$3:$F$18000=$E36,ROW($A$3:$A$17998)),AK$28)),"") ->  | AN36: =IFERROR(INDEX(StockEmplt!$E$1:$E$18000,SMALL(IF(StockEmplt!$F$3:$F$18000=$E36,ROW($A$3:$A$17998)),AN$28)),"") ->  | AO36: =IFERROR(INDEX(StockEmplt!$C$1:$C$18000,SMALL(IF(StockEmplt!$F$3:$F$18000=$E36,ROW($A$3:$A$17998)),AN$28)),"") ->  | AP36: =IFERROR(INDEX(StockEmplt!$D$1:$D$18000,SMALL(IF(StockEmplt!$F$3:$F$18000=$E36,ROW($A$3:$A$17998)),AN$28)),"") ->  | AQ36: =IFERROR(INDEX(StockEmplt!$E$1:$E$18000,SMALL(IF(StockEmplt!$F$3:$F$18000=$E36,ROW($A$3:$A$17998)),AQ$28)),"") ->  | AR36: =IFERROR(INDEX(StockEmplt!$C$1:$C$18000,SMALL(IF(StockEmplt!$F$3:$F$18000=$E36,ROW($A$3:$A$17998)),AQ$28)),"") ->  | AS36: =IFERROR(INDEX(StockEmplt!$D$1:$D$18000,SMALL(IF(StockEmplt!$F$3:$F$18000=$E36,ROW($A$3:$A$17998)),AQ$28)),"") ->  | AT36: =IFERROR(INDEX(StockEmplt!$E$1:$E$18000,SMALL(IF(StockEmplt!$F$3:$F$18000=$E36,ROW($A$3:$A$17998)),AT$28)),"") ->  | AU36: =IFERROR(INDEX(StockEmplt!$C$1:$C$18000,SMALL(IF(StockEmplt!$F$3:$F$18000=$E36,ROW($A$3:$A$17998)),AT$28)),"") ->  | AV36: =IFERROR(INDEX(StockEmplt!$D$1:$D$18000,SMALL(IF(StockEmplt!$F$3:$F$18000=$E36,ROW($A$3:$A$17998)),AT$28)),"") ->  | AW36: =IFERROR(INDEX(StockEmplt!$E$1:$E$18000,SMALL(IF(StockEmplt!$F$3:$F$18000=$E36,ROW($A$3:$A$17998)),AW$28)),"") ->  | AX36: =IFERROR(INDEX(StockEmplt!$C$1:$C$18000,SMALL(IF(StockEmplt!$F$3:$F$18000=$E36,ROW($A$3:$A$17998)),AW$28)),"") ->  | AY36: =IFERROR(INDEX(StockEmplt!$D$1:$D$18000,SMALL(IF(StockEmplt!$F$3:$F$18000=$E36,ROW($A$3:$A$17998)),AW$28)),"") ->  | AZ36: =IFERROR(INDEX(StockEmplt!$E$1:$E$18000,SMALL(IF(StockEmplt!$F$3:$F$18000=$E36,ROW($A$3:$A$17998)),AZ$28)),"") ->  | BA36: =IFERROR(INDEX(StockEmplt!$C$1:$C$18000,SMALL(IF(StockEmplt!$F$3:$F$18000=$E36,ROW($A$3:$A$17998)),AZ$28)),"") ->  | BB36: =IFERROR(INDEX(StockEmplt!$D$1:$D$18000,SMALL(IF(StockEmplt!$F$3:$F$18000=$E36,ROW($A$3:$A$17998)),AZ$28)),"") ->  | BC36: =IFERROR(INDEX(StockEmplt!$E$1:$E$18000,SMALL(IF(StockEmplt!$F$3:$F$18000=$E36,ROW($A$3:$A$17998)),BC$28)),"") ->  | BD36: =IFERROR(INDEX(StockEmplt!$C$1:$C$18000,SMALL(IF(StockEmplt!$F$3:$F$18000=$E36,ROW($A$3:$A$17998)),BC$28)),"") ->  | BE36: =IFERROR(INDEX(StockEmplt!$D$1:$D$18000,SMALL(IF(StockEmplt!$F$3:$F$18000=$E36,ROW($A$3:$A$17998)),BC$28)),"") ->  | BF36: =IFERROR(INDEX(StockEmplt!$E$1:$E$18000,SMALL(IF(StockEmplt!$F$3:$F$18000=$E36,ROW($A$3:$A$17998)),BF$28)),"") ->  | BG36: =IFERROR(INDEX(StockEmplt!$C$1:$C$18000,SMALL(IF(StockEmplt!$F$3:$F$18000=$E36,ROW($A$3:$A$17998)),BF$28)),"") ->  | BH36: =IFERROR(INDEX(StockEmplt!$D$1:$D$18000,SMALL(IF(StockEmplt!$F$3:$F$18000=$E36,ROW($A$3:$A$17998)),BF$28)),"") ->  | BI36: =IFERROR(INDEX(StockEmplt!$E$1:$E$18000,SMALL(IF(StockEmplt!$F$3:$F$18000=$E36,ROW($A$3:$A$17998)),BI$28)),"") ->  | BJ36: =IFERROR(INDEX(StockEmplt!$C$1:$C$18000,SMALL(IF(StockEmplt!$F$3:$F$18000=$E36,ROW($A$3:$A$17998)),BI$28)),"") ->  | BK36: =IFERROR(INDEX(StockEmplt!$D$1:$D$18000,SMALL(IF(StockEmplt!$F$3:$F$18000=$E36,ROW($A$3:$A$17998)),BI$28)),"") ->  | BL36: =IFERROR(INDEX(StockEmplt!$E$1:$E$18000,SMALL(IF(StockEmplt!$F$3:$F$18000=$E36,ROW($A$3:$A$17998)),BL$28)),"") ->  | BM36: =IFERROR(INDEX(StockEmplt!$C$1:$C$18000,SMALL(IF(StockEmplt!$F$3:$F$18000=$E36,ROW($A$3:$A$17998)),BL$28)),"") ->  | BN36: =IFERROR(INDEX(StockEmplt!$D$1:$D$18000,SMALL(IF(StockEmplt!$F$3:$F$18000=$E36,ROW($A$3:$A$17998)),BL$28)),"") ->  | BO36: =IFERROR(INDEX(StockEmplt!$E$1:$E$18000,SMALL(IF(StockEmplt!$F$3:$F$18000=$E36,ROW($A$3:$A$17998)),BO$28)),"") ->  | BP36: =IFERROR(INDEX(StockEmplt!$C$1:$C$18000,SMALL(IF(StockEmplt!$F$3:$F$18000=$E36,ROW($A$3:$A$17998)),BO$28)),"") ->  | BQ36: =IFERROR(INDEX(StockEmplt!$D$1:$D$18000,SMALL(IF(StockEmplt!$F$3:$F$18000=$E36,ROW($A$3:$A$17998)),BO$28)),"") -> 
A37: M451970 | B37: NRGB0-4 | C37: 3000 | D37: 0964182 | E37: GD3,95X5,5X10,2B | F37: 3000 | G37: =IFERROR(INDEX(StockEmplt!$E$1:$E$18000,SMALL(IF(StockEmplt!$F$3:$F$18000=$E37,ROW($A$3:$A$17037)),G$28)),"") -> 191175 | H37: =IFERROR(INDEX(StockEmplt!$C$1:$C$18000,SMALL(IF(StockEmplt!$F$3:$F$18000=$E37,ROW($A$3:$A$17998)),G$28)),"") -> BA047 | I37: =IFERROR(INDEX(StockEmplt!$D$1:$D$18000,SMALL(IF(StockEmplt!$F$3:$F$18000=$E37,ROW($A$3:$A$17998)),G$28)),"") -> 7AP0737100 | J37: =IFERROR(INDEX(StockEmplt!$E$1:$E$18000,SMALL(IF(StockEmplt!$F$3:$F$18000=$E37,ROW($A$3:$A$17998)),J$28)),"") -> 7900 | K37: =IFERROR(INDEX(StockEmplt!$C$1:$C$18000,SMALL(IF(StockEmplt!$F$3:$F$18000=$E37,ROW($A$3:$A$17998)),J$28)),"") -> SCCH | L37: =IFERROR(INDEX(StockEmplt!$D$1:$D$18000,SMALL(IF(StockEmplt!$F$3:$F$18000=$E37,ROW($A$3:$A$17998)),J$28)),"") -> 7AP0737100 | M37: =IFERROR(INDEX(StockEmplt!$E$1:$E$18000,SMALL(IF(StockEmplt!$F$3:$F$18000=$E37,ROW($A$3:$A$17037)),M$28)),"") -> 500000 | N37: =IFERROR(INDEX(StockEmplt!$C$1:$C$18000,SMALL(IF(StockEmplt!$F$3:$F$18000=$E37,ROW($A$3:$A$17998)),M$28)),"") -> BB038 | O37: =IFERROR(INDEX(StockEmplt!$D$1:$D$18000,SMALL(IF(StockEmplt!$F$3:$F$18000=$E37,ROW($A$3:$A$17998)),M$28)),"") -> 7CP0902500 | P37: =IFERROR(INDEX(StockEmplt!$E$1:$E$18000,SMALL(IF(StockEmplt!$F$3:$F$18000=$E37,ROW($A$3:$A$17037)),P$28)),"") ->  | Q37: =IFERROR(INDEX(StockEmplt!$C$1:$C$18000,SMALL(IF(StockEmplt!$F$3:$F$18000=$E37,ROW($A$3:$A$17998)),P$28)),"") ->  | R37: =IFERROR(INDEX(StockEmplt!$D$1:$D$18000,SMALL(IF(StockEmplt!$F$3:$F$18000=$E37,ROW($A$3:$A$17998)),P$28)),"") ->  | S37: =IFERROR(INDEX(StockEmplt!$E$1:$E$18000,SMALL(IF(StockEmplt!$F$3:$F$18000=$E37,ROW($A$3:$A$17037)),S$28)),"") ->  | T37: =IFERROR(INDEX(StockEmplt!$C$1:$C$18000,SMALL(IF(StockEmplt!$F$3:$F$18000=$E37,ROW($A$3:$A$17998)),S$28)),"") ->  | U37: =IFERROR(INDEX(StockEmplt!$D$1:$D$18000,SMALL(IF(StockEmplt!$F$3:$F$18000=$E37,ROW($A$3:$A$17998)),S$28)),"") ->  | V37: =IFERROR(INDEX(StockEmplt!$E$1:$E$18000,SMALL(IF(StockEmplt!$F$3:$F$18000=$E37,ROW($A$3:$A$17037)),V$28)),"") ->  | W37: =IFERROR(INDEX(StockEmplt!$C$1:$C$18000,SMALL(IF(StockEmplt!$F$3:$F$18000=$E37,ROW($A$3:$A$17998)),V$28)),"") ->  | X37: =IFERROR(INDEX(StockEmplt!$D$1:$D$18000,SMALL(IF(StockEmplt!$F$3:$F$18000=$E37,ROW($A$3:$A$17998)),V$28)),"") ->  | Y37: =IFERROR(INDEX(StockEmplt!$E$1:$E$18000,SMALL(IF(StockEmplt!$F$3:$F$18000=$E37,ROW($A$3:$A$17037)),Y$28)),"") ->  | Z37: =IFERROR(INDEX(StockEmplt!$C$1:$C$18000,SMALL(IF(StockEmplt!$F$3:$F$18000=$E37,ROW($A$3:$A$17998)),Y$28)),"") ->  | AA37: =IFERROR(INDEX(StockEmplt!$D$1:$D$18000,SMALL(IF(StockEmplt!$F$3:$F$18000=$E37,ROW($A$3:$A$17998)),Y$28)),"") ->  | AB37: =IFERROR(INDEX(StockEmplt!$E$1:$E$18000,SMALL(IF(StockEmplt!$F$3:$F$18000=$E37,ROW($A$3:$A$17037)),AB$28)),"") ->  | AC37: =IFERROR(INDEX(StockEmplt!$C$1:$C$18000,SMALL(IF(StockEmplt!$F$3:$F$18000=$E37,ROW($A$3:$A$17998)),AB$28)),"") ->  | AD37: =IFERROR(INDEX(StockEmplt!$D$1:$D$18000,SMALL(IF(StockEmplt!$F$3:$F$18000=$E37,ROW($A$3:$A$17998)),AB$28)),"") ->  | AE37: =IFERROR(INDEX(StockEmplt!$E$1:$E$18000,SMALL(IF(StockEmplt!$F$3:$F$18000=$E37,ROW($A$3:$A$17037)),AE$28)),"") ->  | AF37: =IFERROR(INDEX(StockEmplt!$C$1:$C$18000,SMALL(IF(StockEmplt!$F$3:$F$18000=$E37,ROW($A$3:$A$17998)),AE$28)),"") ->  | AG37: =IFERROR(INDEX(StockEmplt!$D$1:$D$18000,SMALL(IF(StockEmplt!$F$3:$F$18000=$E37,ROW($A$3:$A$17998)),AE$28)),"") ->  | AH37: =IFERROR(INDEX(StockEmplt!$E$1:$E$18000,SMALL(IF(StockEmplt!$F$3:$F$18000=$E37,ROW($A$3:$A$17037)),AH$28)),"") ->  | AI37: =IFERROR(INDEX(StockEmplt!$C$1:$C$18000,SMALL(IF(StockEmplt!$F$3:$F$18000=$E37,ROW($A$3:$A$17998)),AH$28)),"") ->  | AJ37: =IFERROR(INDEX(StockEmplt!$D$1:$D$18000,SMALL(IF(StockEmplt!$F$3:$F$18000=$E37,ROW($A$3:$A$17998)),AH$28)),"") ->  | AK37: =IFERROR(INDEX(StockEmplt!$E$1:$E$18000,SMALL(IF(StockEmplt!$F$3:$F$18000=$E37,ROW($A$3:$A$17998)),AK$28)),"") ->  | AL37: =IFERROR(INDEX(StockEmplt!$C$1:$C$18000,SMALL(IF(StockEmplt!$F$3:$F$18000=$E37,ROW($A$3:$A$17998)),AK$28)),"") ->  | AM37: =IFERROR(INDEX(StockEmplt!$D$1:$D$18000,SMALL(IF(StockEmplt!$F$3:$F$18000=$E37,ROW($A$3:$A$17998)),AK$28)),"") ->  | AN37: =IFERROR(INDEX(StockEmplt!$E$1:$E$18000,SMALL(IF(StockEmplt!$F$3:$F$18000=$E37,ROW($A$3:$A$17998)),AN$28)),"") ->  | AO37: =IFERROR(INDEX(StockEmplt!$C$1:$C$18000,SMALL(IF(StockEmplt!$F$3:$F$18000=$E37,ROW($A$3:$A$17998)),AN$28)),"") ->  | AP37: =IFERROR(INDEX(StockEmplt!$D$1:$D$18000,SMALL(IF(StockEmplt!$F$3:$F$18000=$E37,ROW($A$3:$A$17998)),AN$28)),"") ->  | AQ37: =IFERROR(INDEX(StockEmplt!$E$1:$E$18000,SMALL(IF(StockEmplt!$F$3:$F$18000=$E37,ROW($A$3:$A$17998)),AQ$28)),"") ->  | AR37: =IFERROR(INDEX(StockEmplt!$C$1:$C$18000,SMALL(IF(StockEmplt!$F$3:$F$18000=$E37,ROW($A$3:$A$17998)),AQ$28)),"") ->  | AS37: =IFERROR(INDEX(StockEmplt!$D$1:$D$18000,SMALL(IF(StockEmplt!$F$3:$F$18000=$E37,ROW($A$3:$A$17998)),AQ$28)),"") ->  | AT37: =IFERROR(INDEX(StockEmplt!$E$1:$E$18000,SMALL(IF(StockEmplt!$F$3:$F$18000=$E37,ROW($A$3:$A$17998)),AT$28)),"") ->  | AU37: =IFERROR(INDEX(StockEmplt!$C$1:$C$18000,SMALL(IF(StockEmplt!$F$3:$F$18000=$E37,ROW($A$3:$A$17998)),AT$28)),"") ->  | AV37: =IFERROR(INDEX(StockEmplt!$D$1:$D$18000,SMALL(IF(StockEmplt!$F$3:$F$18000=$E37,ROW($A$3:$A$17998)),AT$28)),"") ->  | AW37: =IFERROR(INDEX(StockEmplt!$E$1:$E$18000,SMALL(IF(StockEmplt!$F$3:$F$18000=$E37,ROW($A$3:$A$17998)),AW$28)),"") ->  | AX37: =IFERROR(INDEX(StockEmplt!$C$1:$C$18000,SMALL(IF(StockEmplt!$F$3:$F$18000=$E37,ROW($A$3:$A$17998)),AW$28)),"") ->  | AY37: =IFERROR(INDEX(StockEmplt!$D$1:$D$18000,SMALL(IF(StockEmplt!$F$3:$F$18000=$E37,ROW($A$3:$A$17998)),AW$28)),"") ->  | AZ37: =IFERROR(INDEX(StockEmplt!$E$1:$E$18000,SMALL(IF(StockEmplt!$F$3:$F$18000=$E37,ROW($A$3:$A$17998)),AZ$28)),"") ->  | BA37: =IFERROR(INDEX(StockEmplt!$C$1:$C$18000,SMALL(IF(StockEmplt!$F$3:$F$18000=$E37,ROW($A$3:$A$17998)),AZ$28)),"") ->  | BB37: =IFERROR(INDEX(StockEmplt!$D$1:$D$18000,SMALL(IF(StockEmplt!$F$3:$F$18000=$E37,ROW($A$3:$A$17998)),AZ$28)),"") ->  | BC37: =IFERROR(INDEX(StockEmplt!$E$1:$E$18000,SMALL(IF(StockEmplt!$F$3:$F$18000=$E37,ROW($A$3:$A$17998)),BC$28)),"") ->  | BD37: =IFERROR(INDEX(StockEmplt!$C$1:$C$18000,SMALL(IF(StockEmplt!$F$3:$F$18000=$E37,ROW($A$3:$A$17998)),BC$28)),"") ->  | BE37: =IFERROR(INDEX(StockEmplt!$D$1:$D$18000,SMALL(IF(StockEmplt!$F$3:$F$18000=$E37,ROW($A$3:$A$17998)),BC$28)),"") ->  | BF37: =IFERROR(INDEX(StockEmplt!$E$1:$E$18000,SMALL(IF(StockEmplt!$F$3:$F$18000=$E37,ROW($A$3:$A$17998)),BF$28)),"") ->  | BG37: =IFERROR(INDEX(StockEmplt!$C$1:$C$18000,SMALL(IF(StockEmplt!$F$3:$F$18000=$E37,ROW($A$3:$A$17998)),BF$28)),"") ->  | BH37: =IFERROR(INDEX(StockEmplt!$D$1:$D$18000,SMALL(IF(StockEmplt!$F$3:$F$18000=$E37,ROW($A$3:$A$17998)),BF$28)),"") ->  | BI37: =IFERROR(INDEX(StockEmplt!$E$1:$E$18000,SMALL(IF(StockEmplt!$F$3:$F$18000=$E37,ROW($A$3:$A$17998)),BI$28)),"") ->  | BJ37: =IFERROR(INDEX(StockEmplt!$C$1:$C$18000,SMALL(IF(StockEmplt!$F$3:$F$18000=$E37,ROW($A$3:$A$17998)),BI$28)),"") ->  | BK37: =IFERROR(INDEX(StockEmplt!$D$1:$D$18000,SMALL(IF(StockEmplt!$F$3:$F$18000=$E37,ROW($A$3:$A$17998)),BI$28)),"") ->  | BL37: =IFERROR(INDEX(StockEmplt!$E$1:$E$18000,SMALL(IF(StockEmplt!$F$3:$F$18000=$E37,ROW($A$3:$A$17998)),BL$28)),"") ->  | BM37: =IFERROR(INDEX(StockEmplt!$C$1:$C$18000,SMALL(IF(StockEmplt!$F$3:$F$18000=$E37,ROW($A$3:$A$17998)),BL$28)),"") ->  | BN37: =IFERROR(INDEX(StockEmplt!$D$1:$D$18000,SMALL(IF(StockEmplt!$F$3:$F$18000=$E37,ROW($A$3:$A$17998)),BL$28)),"") ->  | BO37: =IFERROR(INDEX(StockEmplt!$E$1:$E$18000,SMALL(IF(StockEmplt!$F$3:$F$18000=$E37,ROW($A$3:$A$17998)),BO$28)),"") ->  | BP37: =IFERROR(INDEX(StockEmplt!$C$1:$C$18000,SMALL(IF(StockEmplt!$F$3:$F$18000=$E37,ROW($A$3:$A$17998)),BO$28)),"") ->  | BQ37: =IFERROR(INDEX(StockEmplt!$D$1:$D$18000,SMALL(IF(StockEmplt!$F$3:$F$18000=$E37,ROW($A$3:$A$17998)),BO$28)),"") -> 
A38: M452010 | B38: B100NC2-12 | C38: 40 | D38: 0964183 | E38: GD5,3X7,1X13,5J | F38: 4000 | G38: =IFERROR(INDEX(StockEmplt!$E$1:$E$18000,SMALL(IF(StockEmplt!$F$3:$F$18000=$E38,ROW($A$3:$A$17037)),G$28)),"") -> 5150 | H38: =IFERROR(INDEX(StockEmplt!$C$1:$C$18000,SMALL(IF(StockEmplt!$F$3:$F$18000=$E38,ROW($A$3:$A$17998)),G$28)),"") -> BA033 | I38: =IFERROR(INDEX(StockEmplt!$D$1:$D$18000,SMALL(IF(StockEmplt!$F$3:$F$18000=$E38,ROW($A$3:$A$17998)),G$28)),"") -> 6JP0654600 | J38: =IFERROR(INDEX(StockEmplt!$E$1:$E$18000,SMALL(IF(StockEmplt!$F$3:$F$18000=$E38,ROW($A$3:$A$17998)),J$28)),"") -> 112300 | K38: =IFERROR(INDEX(StockEmplt!$C$1:$C$18000,SMALL(IF(StockEmplt!$F$3:$F$18000=$E38,ROW($A$3:$A$17998)),J$28)),"") -> BA043 | L38: =IFERROR(INDEX(StockEmplt!$D$1:$D$18000,SMALL(IF(StockEmplt!$F$3:$F$18000=$E38,ROW($A$3:$A$17998)),J$28)),"") -> 6MP07706D0 | M38: =IFERROR(INDEX(StockEmplt!$E$1:$E$18000,SMALL(IF(StockEmplt!$F$3:$F$18000=$E38,ROW($A$3:$A$17037)),M$28)),"") -> 112000 | N38: =IFERROR(INDEX(StockEmplt!$C$1:$C$18000,SMALL(IF(StockEmplt!$F$3:$F$18000=$E38,ROW($A$3:$A$17998)),M$28)),"") -> BB048 | O38: =IFERROR(INDEX(StockEmplt!$D$1:$D$18000,SMALL(IF(StockEmplt!$F$3:$F$18000=$E38,ROW($A$3:$A$17998)),M$28)),"") -> 6MP07706D0 | P38: =IFERROR(INDEX(StockEmplt!$E$1:$E$18000,SMALL(IF(StockEmplt!$F$3:$F$18000=$E38,ROW($A$3:$A$17037)),P$28)),"") -> 2600 | Q38: =IFERROR(INDEX(StockEmplt!$C$1:$C$18000,SMALL(IF(StockEmplt!$F$3:$F$18000=$E38,ROW($A$3:$A$17998)),P$28)),"") -> SCCH | R38: =IFERROR(INDEX(StockEmplt!$D$1:$D$18000,SMALL(IF(StockEmplt!$F$3:$F$18000=$E38,ROW($A$3:$A$17998)),P$28)),"") -> 6MP07706D0 | S38: =IFERROR(INDEX(StockEmplt!$E$1:$E$18000,SMALL(IF(StockEmplt!$F$3:$F$18000=$E38,ROW($A$3:$A$17037)),S$28)),"") -> 376000 | T38: =IFERROR(INDEX(StockEmplt!$C$1:$C$18000,SMALL(IF(StockEmplt!$F$3:$F$18000=$E38,ROW($A$3:$A$17998)),S$28)),"") -> BA037 | U38: =IFERROR(INDEX(StockEmplt!$D$1:$D$18000,SMALL(IF(StockEmplt!$F$3:$F$18000=$E38,ROW($A$3:$A$17998)),S$28)),"") -> 7BP0806200 | V38: =IFERROR(INDEX(StockEmplt!$E$1:$E$18000,SMALL(IF(StockEmplt!$F$3:$F$18000=$E38,ROW($A$3:$A$17037)),V$28)),"") -> 128500 | W38: =IFERROR(INDEX(StockEmplt!$C$1:$C$18000,SMALL(IF(StockEmplt!$F$3:$F$18000=$E38,ROW($A$3:$A$17998)),V$28)),"") -> BA046 | X38: =IFERROR(INDEX(StockEmplt!$D$1:$D$18000,SMALL(IF(StockEmplt!$F$3:$F$18000=$E38,ROW($A$3:$A$17998)),V$28)),"") -> 7CP0806200 | Y38: =IFERROR(INDEX(StockEmplt!$E$1:$E$18000,SMALL(IF(StockEmplt!$F$3:$F$18000=$E38,ROW($A$3:$A$17037)),Y$28)),"") ->  | Z38: =IFERROR(INDEX(StockEmplt!$C$1:$C$18000,SMALL(IF(StockEmplt!$F$3:$F$18000=$E38,ROW($A$3:$A$17998)),Y$28)),"") ->  | AA38: =IFERROR(INDEX(StockEmplt!$D$1:$D$18000,SMALL(IF(StockEmplt!$F$3:$F$18000=$E38,ROW($A$3:$A$17998)),Y$28)),"") ->  | AB38: =IFERROR(INDEX(StockEmplt!$E$1:$E$18000,SMALL(IF(StockEmplt!$F$3:$F$18000=$E38,ROW($A$3:$A$17037)),AB$28)),"") ->  | AC38: =IFERROR(INDEX(StockEmplt!$C$1:$C$18000,SMALL(IF(StockEmplt!$F$3:$F$18000=$E38,ROW($A$3:$A$17998)),AB$28)),"") ->  | AD38: =IFERROR(INDEX(StockEmplt!$D$1:$D$18000,SMALL(IF(StockEmplt!$F$3:$F$18000=$E38,ROW($A$3:$A$17998)),AB$28)),"") ->  | AE38: =IFERROR(INDEX(StockEmplt!$E$1:$E$18000,SMALL(IF(StockEmplt!$F$3:$F$18000=$E38,ROW($A$3:$A$17037)),AE$28)),"") ->  | AF38: =IFERROR(INDEX(StockEmplt!$C$1:$C$18000,SMALL(IF(StockEmplt!$F$3:$F$18000=$E38,ROW($A$3:$A$17998)),AE$28)),"") ->  | AG38: =IFERROR(INDEX(StockEmplt!$D$1:$D$18000,SMALL(IF(StockEmplt!$F$3:$F$18000=$E38,ROW($A$3:$A$17998)),AE$28)),"") ->  | AH38: =IFERROR(INDEX(StockEmplt!$E$1:$E$18000,SMALL(IF(StockEmplt!$F$3:$F$18000=$E38,ROW($A$3:$A$17037)),AH$28)),"") ->  | AI38: =IFERROR(INDEX(StockEmplt!$C$1:$C$18000,SMALL(IF(StockEmplt!$F$3:$F$18000=$E38,ROW($A$3:$A$17998)),AH$28)),"") ->  | AJ38: =IFERROR(INDEX(StockEmplt!$D$1:$D$18000,SMALL(IF(StockEmplt!$F$3:$F$18000=$E38,ROW($A$3:$A$17998)),AH$28)),"") ->  | AK38: =IFERROR(INDEX(StockEmplt!$E$1:$E$18000,SMALL(IF(StockEmplt!$F$3:$F$18000=$E38,ROW($A$3:$A$17998)),AK$28)),"") ->  | AL38: =IFERROR(INDEX(StockEmplt!$C$1:$C$18000,SMALL(IF(StockEmplt!$F$3:$F$18000=$E38,ROW($A$3:$A$17998)),AK$28)),"") ->  | AM38: =IFERROR(INDEX(StockEmplt!$D$1:$D$18000,SMALL(IF(StockEmplt!$F$3:$F$18000=$E38,ROW($A$3:$A$17998)),AK$28)),"") ->  | AN38: =IFERROR(INDEX(StockEmplt!$E$1:$E$18000,SMALL(IF(StockEmplt!$F$3:$F$18000=$E38,ROW($A$3:$A$17998)),AN$28)),"") ->  | AO38: =IFERROR(INDEX(StockEmplt!$C$1:$C$18000,SMALL(IF(StockEmplt!$F$3:$F$18000=$E38,ROW($A$3:$A$17998)),AN$28)),"") ->  | AP38: =IFERROR(INDEX(StockEmplt!$D$1:$D$18000,SMALL(IF(StockEmplt!$F$3:$F$18000=$E38,ROW($A$3:$A$17998)),AN$28)),"") ->  | AQ38: =IFERROR(INDEX(StockEmplt!$E$1:$E$18000,SMALL(IF(StockEmplt!$F$3:$F$18000=$E38,ROW($A$3:$A$17998)),AQ$28)),"") ->  | AR38: =IFERROR(INDEX(StockEmplt!$C$1:$C$18000,SMALL(IF(StockEmplt!$F$3:$F$18000=$E38,ROW($A$3:$A$17998)),AQ$28)),"") ->  | AS38: =IFERROR(INDEX(StockEmplt!$D$1:$D$18000,SMALL(IF(StockEmplt!$F$3:$F$18000=$E38,ROW($A$3:$A$17998)),AQ$28)),"") ->  | AT38: =IFERROR(INDEX(StockEmplt!$E$1:$E$18000,SMALL(IF(StockEmplt!$F$3:$F$18000=$E38,ROW($A$3:$A$17998)),AT$28)),"") ->  | AU38: =IFERROR(INDEX(StockEmplt!$C$1:$C$18000,SMALL(IF(StockEmplt!$F$3:$F$18000=$E38,ROW($A$3:$A$17998)),AT$28)),"") ->  | AV38: =IFERROR(INDEX(StockEmplt!$D$1:$D$18000,SMALL(IF(StockEmplt!$F$3:$F$18000=$E38,ROW($A$3:$A$17998)),AT$28)),"") ->  | AW38: =IFERROR(INDEX(StockEmplt!$E$1:$E$18000,SMALL(IF(StockEmplt!$F$3:$F$18000=$E38,ROW($A$3:$A$17998)),AW$28)),"") ->  | AX38: =IFERROR(INDEX(StockEmplt!$C$1:$C$18000,SMALL(IF(StockEmplt!$F$3:$F$18000=$E38,ROW($A$3:$A$17998)),AW$28)),"") ->  | AY38: =IFERROR(INDEX(StockEmplt!$D$1:$D$18000,SMALL(IF(StockEmplt!$F$3:$F$18000=$E38,ROW($A$3:$A$17998)),AW$28)),"") ->  | AZ38: =IFERROR(INDEX(StockEmplt!$E$1:$E$18000,SMALL(IF(StockEmplt!$F$3:$F$18000=$E38,ROW($A$3:$A$17998)),AZ$28)),"") ->  | BA38: =IFERROR(INDEX(StockEmplt!$C$1:$C$18000,SMALL(IF(StockEmplt!$F$3:$F$18000=$E38,ROW($A$3:$A$17998)),AZ$28)),"") ->  | BB38: =IFERROR(INDEX(StockEmplt!$D$1:$D$18000,SMALL(IF(StockEmplt!$F$3:$F$18000=$E38,ROW($A$3:$A$17998)),AZ$28)),"") ->  | BC38: =IFERROR(INDEX(StockEmplt!$E$1:$E$18000,SMALL(IF(StockEmplt!$F$3:$F$18000=$E38,ROW($A$3:$A$17998)),BC$28)),"") ->  | BD38: =IFERROR(INDEX(StockEmplt!$C$1:$C$18000,SMALL(IF(StockEmplt!$F$3:$F$18000=$E38,ROW($A$3:$A$17998)),BC$28)),"") ->  | BE38: =IFERROR(INDEX(StockEmplt!$D$1:$D$18000,SMALL(IF(StockEmplt!$F$3:$F$18000=$E38,ROW($A$3:$A$17998)),BC$28)),"") ->  | BF38: =IFERROR(INDEX(StockEmplt!$E$1:$E$18000,SMALL(IF(StockEmplt!$F$3:$F$18000=$E38,ROW($A$3:$A$17998)),BF$28)),"") ->  | BG38: =IFERROR(INDEX(StockEmplt!$C$1:$C$18000,SMALL(IF(StockEmplt!$F$3:$F$18000=$E38,ROW($A$3:$A$17998)),BF$28)),"") ->  | BH38: =IFERROR(INDEX(StockEmplt!$D$1:$D$18000,SMALL(IF(StockEmplt!$F$3:$F$18000=$E38,ROW($A$3:$A$17998)),BF$28)),"") ->  | BI38: =IFERROR(INDEX(StockEmplt!$E$1:$E$18000,SMALL(IF(StockEmplt!$F$3:$F$18000=$E38,ROW($A$3:$A$17998)),BI$28)),"") ->  | BJ38: =IFERROR(INDEX(StockEmplt!$C$1:$C$18000,SMALL(IF(StockEmplt!$F$3:$F$18000=$E38,ROW($A$3:$A$17998)),BI$28)),"") ->  | BK38: =IFERROR(INDEX(StockEmplt!$D$1:$D$18000,SMALL(IF(StockEmplt!$F$3:$F$18000=$E38,ROW($A$3:$A$17998)),BI$28)),"") ->  | BL38: =IFERROR(INDEX(StockEmplt!$E$1:$E$18000,SMALL(IF(StockEmplt!$F$3:$F$18000=$E38,ROW($A$3:$A$17998)),BL$28)),"") ->  | BM38: =IFERROR(INDEX(StockEmplt!$C$1:$C$18000,SMALL(IF(StockEmplt!$F$3:$F$18000=$E38,ROW($A$3:$A$17998)),BL$28)),"") ->  | BN38: =IFERROR(INDEX(StockEmplt!$D$1:$D$18000,SMALL(IF(StockEmplt!$F$3:$F$18000=$E38,ROW($A$3:$A$17998)),BL$28)),"") ->  | BO38: =IFERROR(INDEX(StockEmplt!$E$1:$E$18000,SMALL(IF(StockEmplt!$F$3:$F$18000=$E38,ROW($A$3:$A$17998)),BO$28)),"") ->  | BP38: =IFERROR(INDEX(StockEmplt!$C$1:$C$18000,SMALL(IF(StockEmplt!$F$3:$F$18000=$E38,ROW($A$3:$A$17998)),BO$28)),"") ->  | BQ38: =IFERROR(INDEX(StockEmplt!$D$1:$D$18000,SMALL(IF(StockEmplt!$F$3:$F$18000=$E38,ROW($A$3:$A$17998)),BO$28)),"") -> 
A39: M452020 | B39: B100NRGFC1-5 | C39: 10 | D39: 0964183 | E39: GD5,3X7,1X13,5J | F39: 1000 | G39: =IFERROR(INDEX(StockEmplt!$E$1:$E$18000,SMALL(IF(StockEmplt!$F$3:$F$18000=$E39,ROW($A$3:$A$17037)),G$28)),"") -> 5150 | H39: =IFERROR(INDEX(StockEmplt!$C$1:$C$18000,SMALL(IF(StockEmplt!$F$3:$F$18000=$E39,ROW($A$3:$A$17998)),G$28)),"") -> BA033 | I39: =IFERROR(INDEX(StockEmplt!$D$1:$D$18000,SMALL(IF(StockEmplt!$F$3:$F$18000=$E39,ROW($A$3:$A$17998)),G$28)),"") -> 6JP0654600 | J39: =IFERROR(INDEX(StockEmplt!$E$1:$E$18000,SMALL(IF(StockEmplt!$F$3:$F$18000=$E39,ROW($A$3:$A$17998)),J$28)),"") -> 112300 | K39: =IFERROR(INDEX(StockEmplt!$C$1:$C$18000,SMALL(IF(StockEmplt!$F$3:$F$18000=$E39,ROW($A$3:$A$17998)),J$28)),"") -> BA043 | L39: =IFERROR(INDEX(StockEmplt!$D$1:$D$18000,SMALL(IF(StockEmplt!$F$3:$F$18000=$E39,ROW($A$3:$A$17998)),J$28)),"") -> 6MP07706D0 | M39: =IFERROR(INDEX(StockEmplt!$E$1:$E$18000,SMALL(IF(StockEmplt!$F$3:$F$18000=$E39,ROW($A$3:$A$17037)),M$28)),"") -> 112000 | N39: =IFERROR(INDEX(StockEmplt!$C$1:$C$18000,SMALL(IF(StockEmplt!$F$3:$F$18000=$E39,ROW($A$3:$A$17998)),M$28)),"") -> BB048 | O39: =IFERROR(INDEX(StockEmplt!$D$1:$D$18000,SMALL(IF(StockEmplt!$F$3:$F$18000=$E39,ROW($A$3:$A$17998)),M$28)),"") -> 6MP07706D0 | P39: =IFERROR(INDEX(StockEmplt!$E$1:$E$18000,SMALL(IF(StockEmplt!$F$3:$F$18000=$E39,ROW($A$3:$A$17037)),P$28)),"") -> 2600 | Q39: =IFERROR(INDEX(StockEmplt!$C$1:$C$18000,SMALL(IF(StockEmplt!$F$3:$F$18000=$E39,ROW($A$3:$A$17998)),P$28)),"") -> SCCH | R39: =IFERROR(INDEX(StockEmplt!$D$1:$D$18000,SMALL(IF(StockEmplt!$F$3:$F$18000=$E39,ROW($A$3:$A$17998)),P$28)),"") -> 6MP07706D0 | S39: =IFERROR(INDEX(StockEmplt!$E$1:$E$18000,SMALL(IF(StockEmplt!$F$3:$F$18000=$E39,ROW($A$3:$A$17037)),S$28)),"") -> 376000 | T39: =IFERROR(INDEX(StockEmplt!$C$1:$C$18000,SMALL(IF(StockEmplt!$F$3:$F$18000=$E39,ROW($A$3:$A$17998)),S$28)),"") -> BA037 | U39: =IFERROR(INDEX(StockEmplt!$D$1:$D$18000,SMALL(IF(StockEmplt!$F$3:$F$18000=$E39,ROW($A$3:$A$17998)),S$28)),"") -> 7BP0806200 | V39: =IFERROR(INDEX(StockEmplt!$E$1:$E$18000,SMALL(IF(StockEmplt!$F$3:$F$18000=$E39,ROW($A$3:$A$17037)),V$28)),"") -> 128500 | W39: =IFERROR(INDEX(StockEmplt!$C$1:$C$18000,SMALL(IF(StockEmplt!$F$3:$F$18000=$E39,ROW($A$3:$A$17998)),V$28)),"") -> BA046 | X39: =IFERROR(INDEX(StockEmplt!$D$1:$D$18000,SMALL(IF(StockEmplt!$F$3:$F$18000=$E39,ROW($A$3:$A$17998)),V$28)),"") -> 7CP0806200 | Y39: =IFERROR(INDEX(StockEmplt!$E$1:$E$18000,SMALL(IF(StockEmplt!$F$3:$F$18000=$E39,ROW($A$3:$A$17037)),Y$28)),"") ->  | Z39: =IFERROR(INDEX(StockEmplt!$C$1:$C$18000,SMALL(IF(StockEmplt!$F$3:$F$18000=$E39,ROW($A$3:$A$17998)),Y$28)),"") ->  | AA39: =IFERROR(INDEX(StockEmplt!$D$1:$D$18000,SMALL(IF(StockEmplt!$F$3:$F$18000=$E39,ROW($A$3:$A$17998)),Y$28)),"") ->  | AB39: =IFERROR(INDEX(StockEmplt!$E$1:$E$18000,SMALL(IF(StockEmplt!$F$3:$F$18000=$E39,ROW($A$3:$A$17037)),AB$28)),"") ->  | AC39: =IFERROR(INDEX(StockEmplt!$C$1:$C$18000,SMALL(IF(StockEmplt!$F$3:$F$18000=$E39,ROW($A$3:$A$17998)),AB$28)),"") ->  | AD39: =IFERROR(INDEX(StockEmplt!$D$1:$D$18000,SMALL(IF(StockEmplt!$F$3:$F$18000=$E39,ROW($A$3:$A$17998)),AB$28)),"") ->  | AE39: =IFERROR(INDEX(StockEmplt!$E$1:$E$18000,SMALL(IF(StockEmplt!$F$3:$F$18000=$E39,ROW($A$3:$A$17037)),AE$28)),"") ->  | AF39: =IFERROR(INDEX(StockEmplt!$C$1:$C$18000,SMALL(IF(StockEmplt!$F$3:$F$18000=$E39,ROW($A$3:$A$17998)),AE$28)),"") ->  | AG39: =IFERROR(INDEX(StockEmplt!$D$1:$D$18000,SMALL(IF(StockEmplt!$F$3:$F$18000=$E39,ROW($A$3:$A$17998)),AE$28)),"") ->  | AH39: =IFERROR(INDEX(StockEmplt!$E$1:$E$18000,SMALL(IF(StockEmplt!$F$3:$F$18000=$E39,ROW($A$3:$A$17037)),AH$28)),"") ->  | AI39: =IFERROR(INDEX(StockEmplt!$C$1:$C$18000,SMALL(IF(StockEmplt!$F$3:$F$18000=$E39,ROW($A$3:$A$17998)),AH$28)),"") ->  | AJ39: =IFERROR(INDEX(StockEmplt!$D$1:$D$18000,SMALL(IF(StockEmplt!$F$3:$F$18000=$E39,ROW($A$3:$A$17998)),AH$28)),"") ->  | AK39: =IFERROR(INDEX(StockEmplt!$E$1:$E$18000,SMALL(IF(StockEmplt!$F$3:$F$18000=$E39,ROW($A$3:$A$17998)),AK$28)),"") ->  | AL39: =IFERROR(INDEX(StockEmplt!$C$1:$C$18000,SMALL(IF(StockEmplt!$F$3:$F$18000=$E39,ROW($A$3:$A$17998)),AK$28)),"") ->  | AM39: =IFERROR(INDEX(StockEmplt!$D$1:$D$18000,SMALL(IF(StockEmplt!$F$3:$F$18000=$E39,ROW($A$3:$A$17998)),AK$28)),"") ->  | AN39: =IFERROR(INDEX(StockEmplt!$E$1:$E$18000,SMALL(IF(StockEmplt!$F$3:$F$18000=$E39,ROW($A$3:$A$17998)),AN$28)),"") ->  | AO39: =IFERROR(INDEX(StockEmplt!$C$1:$C$18000,SMALL(IF(StockEmplt!$F$3:$F$18000=$E39,ROW($A$3:$A$17998)),AN$28)),"") ->  | AP39: =IFERROR(INDEX(StockEmplt!$D$1:$D$18000,SMALL(IF(StockEmplt!$F$3:$F$18000=$E39,ROW($A$3:$A$17998)),AN$28)),"") ->  | AQ39: =IFERROR(INDEX(StockEmplt!$E$1:$E$18000,SMALL(IF(StockEmplt!$F$3:$F$18000=$E39,ROW($A$3:$A$17998)),AQ$28)),"") ->  | AR39: =IFERROR(INDEX(StockEmplt!$C$1:$C$18000,SMALL(IF(StockEmplt!$F$3:$F$18000=$E39,ROW($A$3:$A$17998)),AQ$28)),"") ->  | AS39: =IFERROR(INDEX(StockEmplt!$D$1:$D$18000,SMALL(IF(StockEmplt!$F$3:$F$18000=$E39,ROW($A$3:$A$17998)),AQ$28)),"") ->  | AT39: =IFERROR(INDEX(StockEmplt!$E$1:$E$18000,SMALL(IF(StockEmplt!$F$3:$F$18000=$E39,ROW($A$3:$A$17998)),AT$28)),"") ->  | AU39: =IFERROR(INDEX(StockEmplt!$C$1:$C$18000,SMALL(IF(StockEmplt!$F$3:$F$18000=$E39,ROW($A$3:$A$17998)),AT$28)),"") ->  | AV39: =IFERROR(INDEX(StockEmplt!$D$1:$D$18000,SMALL(IF(StockEmplt!$F$3:$F$18000=$E39,ROW($A$3:$A$17998)),AT$28)),"") ->  | AW39: =IFERROR(INDEX(StockEmplt!$E$1:$E$18000,SMALL(IF(StockEmplt!$F$3:$F$18000=$E39,ROW($A$3:$A$17998)),AW$28)),"") ->  | AX39: =IFERROR(INDEX(StockEmplt!$C$1:$C$18000,SMALL(IF(StockEmplt!$F$3:$F$18000=$E39,ROW($A$3:$A$17998)),AW$28)),"") ->  | AY39: =IFERROR(INDEX(StockEmplt!$D$1:$D$18000,SMALL(IF(StockEmplt!$F$3:$F$18000=$E39,ROW($A$3:$A$17998)),AW$28)),"") ->  | AZ39: =IFERROR(INDEX(StockEmplt!$E$1:$E$18000,SMALL(IF(StockEmplt!$F$3:$F$18000=$E39,ROW($A$3:$A$17998)),AZ$28)),"") ->  | BA39: =IFERROR(INDEX(StockEmplt!$C$1:$C$18000,SMALL(IF(StockEmplt!$F$3:$F$18000=$E39,ROW($A$3:$A$17998)),AZ$28)),"") ->  | BB39: =IFERROR(INDEX(StockEmplt!$D$1:$D$18000,SMALL(IF(StockEmplt!$F$3:$F$18000=$E39,ROW($A$3:$A$17998)),AZ$28)),"") ->  | BC39: =IFERROR(INDEX(StockEmplt!$E$1:$E$18000,SMALL(IF(StockEmplt!$F$3:$F$18000=$E39,ROW($A$3:$A$17998)),BC$28)),"") ->  | BD39: =IFERROR(INDEX(StockEmplt!$C$1:$C$18000,SMALL(IF(StockEmplt!$F$3:$F$18000=$E39,ROW($A$3:$A$17998)),BC$28)),"") ->  | BE39: =IFERROR(INDEX(StockEmplt!$D$1:$D$18000,SMALL(IF(StockEmplt!$F$3:$F$18000=$E39,ROW($A$3:$A$17998)),BC$28)),"") ->  | BF39: =IFERROR(INDEX(StockEmplt!$E$1:$E$18000,SMALL(IF(StockEmplt!$F$3:$F$18000=$E39,ROW($A$3:$A$17998)),BF$28)),"") ->  | BG39: =IFERROR(INDEX(StockEmplt!$C$1:$C$18000,SMALL(IF(StockEmplt!$F$3:$F$18000=$E39,ROW($A$3:$A$17998)),BF$28)),"") ->  | BH39: =IFERROR(INDEX(StockEmplt!$D$1:$D$18000,SMALL(IF(StockEmplt!$F$3:$F$18000=$E39,ROW($A$3:$A$17998)),BF$28)),"") ->  | BI39: =IFERROR(INDEX(StockEmplt!$E$1:$E$18000,SMALL(IF(StockEmplt!$F$3:$F$18000=$E39,ROW($A$3:$A$17998)),BI$28)),"") ->  | BJ39: =IFERROR(INDEX(StockEmplt!$C$1:$C$18000,SMALL(IF(StockEmplt!$F$3:$F$18000=$E39,ROW($A$3:$A$17998)),BI$28)),"") ->  | BK39: =IFERROR(INDEX(StockEmplt!$D$1:$D$18000,SMALL(IF(StockEmplt!$F$3:$F$18000=$E39,ROW($A$3:$A$17998)),BI$28)),"") ->  | BL39: =IFERROR(INDEX(StockEmplt!$E$1:$E$18000,SMALL(IF(StockEmplt!$F$3:$F$18000=$E39,ROW($A$3:$A$17998)),BL$28)),"") ->  | BM39: =IFERROR(INDEX(StockEmplt!$C$1:$C$18000,SMALL(IF(StockEmplt!$F$3:$F$18000=$E39,ROW($A$3:$A$17998)),BL$28)),"") ->  | BN39: =IFERROR(INDEX(StockEmplt!$D$1:$D$18000,SMALL(IF(StockEmplt!$F$3:$F$18000=$E39,ROW($A$3:$A$17998)),BL$28)),"") ->  | BO39: =IFERROR(INDEX(StockEmplt!$E$1:$E$18000,SMALL(IF(StockEmplt!$F$3:$F$18000=$E39,ROW($A$3:$A$17998)),BO$28)),"") ->  | BP39: =IFERROR(INDEX(StockEmplt!$C$1:$C$18000,SMALL(IF(StockEmplt!$F$3:$F$18000=$E39,ROW($A$3:$A$17998)),BO$28)),"") ->  | BQ39: =IFERROR(INDEX(StockEmplt!$D$1:$D$18000,SMALL(IF(StockEmplt!$F$3:$F$18000=$E39,ROW($A$3:$A$17998)),BO$28)),"") -> 
A40: M451980 | B40: NC2-6 | C40: 5000 | D40: 0964184 | E40: GD5,4X7,1X13,5J | F40: 5000 | G40: =IFERROR(INDEX(StockEmplt!$E$1:$E$18000,SMALL(IF(StockEmplt!$F$3:$F$18000=$E40,ROW($A$3:$A$17037)),G$28)),"") -> 32000 | H40: =IFERROR(INDEX(StockEmplt!$C$1:$C$18000,SMALL(IF(StockEmplt!$F$3:$F$18000=$E40,ROW($A$3:$A$17998)),G$28)),"") -> BA032 | I40: =IFERROR(INDEX(StockEmplt!$D$1:$D$18000,SMALL(IF(StockEmplt!$F$3:$F$18000=$E40,ROW($A$3:$A$17998)),G$28)),"") -> 7AP0654600 | J40: =IFERROR(INDEX(StockEmplt!$E$1:$E$18000,SMALL(IF(StockEmplt!$F$3:$F$18000=$E40,ROW($A$3:$A$17998)),J$28)),"") -> 6000 | K40: =IFERROR(INDEX(StockEmplt!$C$1:$C$18000,SMALL(IF(StockEmplt!$F$3:$F$18000=$E40,ROW($A$3:$A$17998)),J$28)),"") -> SCCH | L40: =IFERROR(INDEX(StockEmplt!$D$1:$D$18000,SMALL(IF(StockEmplt!$F$3:$F$18000=$E40,ROW($A$3:$A$17998)),J$28)),"") -> 7AP0654600 | M40: =IFERROR(INDEX(StockEmplt!$E$1:$E$18000,SMALL(IF(StockEmplt!$F$3:$F$18000=$E40,ROW($A$3:$A$17037)),M$28)),"") -> 206250 | N40: =IFERROR(INDEX(StockEmplt!$C$1:$C$18000,SMALL(IF(StockEmplt!$F$3:$F$18000=$E40,ROW($A$3:$A$17998)),M$28)),"") -> BC047 | O40: =IFERROR(INDEX(StockEmplt!$D$1:$D$18000,SMALL(IF(StockEmplt!$F$3:$F$18000=$E40,ROW($A$3:$A$17998)),M$28)),"") -> 7AP0770600 | P40: =IFERROR(INDEX(StockEmplt!$E$1:$E$18000,SMALL(IF(StockEmplt!$F$3:$F$18000=$E40,ROW($A$3:$A$17037)),P$28)),"") ->  | Q40: =IFERROR(INDEX(StockEmplt!$C$1:$C$18000,SMALL(IF(StockEmplt!$F$3:$F$18000=$E40,ROW($A$3:$A$17998)),P$28)),"") ->  | R40: =IFERROR(INDEX(StockEmplt!$D$1:$D$18000,SMALL(IF(StockEmplt!$F$3:$F$18000=$E40,ROW($A$3:$A$17998)),P$28)),"") ->  | S40: =IFERROR(INDEX(StockEmplt!$E$1:$E$18000,SMALL(IF(StockEmplt!$F$3:$F$18000=$E40,ROW($A$3:$A$17037)),S$28)),"") ->  | T40: =IFERROR(INDEX(StockEmplt!$C$1:$C$18000,SMALL(IF(StockEmplt!$F$3:$F$18000=$E40,ROW($A$3:$A$17998)),S$28)),"") ->  | U40: =IFERROR(INDEX(StockEmplt!$D$1:$D$18000,SMALL(IF(StockEmplt!$F$3:$F$18000=$E40,ROW($A$3:$A$17998)),S$28)),"") ->  | V40: =IFERROR(INDEX(StockEmplt!$E$1:$E$18000,SMALL(IF(StockEmplt!$F$3:$F$18000=$E40,ROW($A$3:$A$17037)),V$28)),"") ->  | W40: =IFERROR(INDEX(StockEmplt!$C$1:$C$18000,SMALL(IF(StockEmplt!$F$3:$F$18000=$E40,ROW($A$3:$A$17998)),V$28)),"") ->  | X40: =IFERROR(INDEX(StockEmplt!$D$1:$D$18000,SMALL(IF(StockEmplt!$F$3:$F$18000=$E40,ROW($A$3:$A$17998)),V$28)),"") ->  | Y40: =IFERROR(INDEX(StockEmplt!$E$1:$E$18000,SMALL(IF(StockEmplt!$F$3:$F$18000=$E40,ROW($A$3:$A$17037)),Y$28)),"") ->  | Z40: =IFERROR(INDEX(StockEmplt!$C$1:$C$18000,SMALL(IF(StockEmplt!$F$3:$F$18000=$E40,ROW($A$3:$A$17998)),Y$28)),"") ->  | AA40: =IFERROR(INDEX(StockEmplt!$D$1:$D$18000,SMALL(IF(StockEmplt!$F$3:$F$18000=$E40,ROW($A$3:$A$17998)),Y$28)),"") ->  | AB40: =IFERROR(INDEX(StockEmplt!$E$1:$E$18000,SMALL(IF(StockEmplt!$F$3:$F$18000=$E40,ROW($A$3:$A$17037)),AB$28)),"") ->  | AC40: =IFERROR(INDEX(StockEmplt!$C$1:$C$18000,SMALL(IF(StockEmplt!$F$3:$F$18000=$E40,ROW($A$3:$A$17998)),AB$28)),"") ->  | AD40: =IFERROR(INDEX(StockEmplt!$D$1:$D$18000,SMALL(IF(StockEmplt!$F$3:$F$18000=$E40,ROW($A$3:$A$17998)),AB$28)),"") ->  | AE40: =IFERROR(INDEX(StockEmplt!$E$1:$E$18000,SMALL(IF(StockEmplt!$F$3:$F$18000=$E40,ROW($A$3:$A$17037)),AE$28)),"") ->  | AF40: =IFERROR(INDEX(StockEmplt!$C$1:$C$18000,SMALL(IF(StockEmplt!$F$3:$F$18000=$E40,ROW($A$3:$A$17998)),AE$28)),"") ->  | AG40: =IFERROR(INDEX(StockEmplt!$D$1:$D$18000,SMALL(IF(StockEmplt!$F$3:$F$18000=$E40,ROW($A$3:$A$17998)),AE$28)),"") ->  | AH40: =IFERROR(INDEX(StockEmplt!$E$1:$E$18000,SMALL(IF(StockEmplt!$F$3:$F$18000=$E40,ROW($A$3:$A$17037)),AH$28)),"") ->  | AI40: =IFERROR(INDEX(StockEmplt!$C$1:$C$18000,SMALL(IF(StockEmplt!$F$3:$F$18000=$E40,ROW($A$3:$A$17998)),AH$28)),"") ->  | AJ40: =IFERROR(INDEX(StockEmplt!$D$1:$D$18000,SMALL(IF(StockEmplt!$F$3:$F$18000=$E40,ROW($A$3:$A$17998)),AH$28)),"") ->  | AK40: =IFERROR(INDEX(StockEmplt!$E$1:$E$18000,SMALL(IF(StockEmplt!$F$3:$F$18000=$E40,ROW($A$3:$A$17998)),AK$28)),"") ->  | AL40: =IFERROR(INDEX(StockEmplt!$C$1:$C$18000,SMALL(IF(StockEmplt!$F$3:$F$18000=$E40,ROW($A$3:$A$17998)),AK$28)),"") ->  | AM40: =IFERROR(INDEX(StockEmplt!$D$1:$D$18000,SMALL(IF(StockEmplt!$F$3:$F$18000=$E40,ROW($A$3:$A$17998)),AK$28)),"") ->  | AN40: =IFERROR(INDEX(StockEmplt!$E$1:$E$18000,SMALL(IF(StockEmplt!$F$3:$F$18000=$E40,ROW($A$3:$A$17998)),AN$28)),"") ->  | AO40: =IFERROR(INDEX(StockEmplt!$C$1:$C$18000,SMALL(IF(StockEmplt!$F$3:$F$18000=$E40,ROW($A$3:$A$17998)),AN$28)),"") ->  | AP40: =IFERROR(INDEX(StockEmplt!$D$1:$D$18000,SMALL(IF(StockEmplt!$F$3:$F$18000=$E40,ROW($A$3:$A$17998)),AN$28)),"") ->  | AQ40: =IFERROR(INDEX(StockEmplt!$E$1:$E$18000,SMALL(IF(StockEmplt!$F$3:$F$18000=$E40,ROW($A$3:$A$17998)),AQ$28)),"") ->  | AR40: =IFERROR(INDEX(StockEmplt!$C$1:$C$18000,SMALL(IF(StockEmplt!$F$3:$F$18000=$E40,ROW($A$3:$A$17998)),AQ$28)),"") ->  | AS40: =IFERROR(INDEX(StockEmplt!$D$1:$D$18000,SMALL(IF(StockEmplt!$F$3:$F$18000=$E40,ROW($A$3:$A$17998)),AQ$28)),"") ->  | AT40: =IFERROR(INDEX(StockEmplt!$E$1:$E$18000,SMALL(IF(StockEmplt!$F$3:$F$18000=$E40,ROW($A$3:$A$17998)),AT$28)),"") ->  | AU40: =IFERROR(INDEX(StockEmplt!$C$1:$C$18000,SMALL(IF(StockEmplt!$F$3:$F$18000=$E40,ROW($A$3:$A$17998)),AT$28)),"") ->  | AV40: =IFERROR(INDEX(StockEmplt!$D$1:$D$18000,SMALL(IF(StockEmplt!$F$3:$F$18000=$E40,ROW($A$3:$A$17998)),AT$28)),"") ->  | AW40: =IFERROR(INDEX(StockEmplt!$E$1:$E$18000,SMALL(IF(StockEmplt!$F$3:$F$18000=$E40,ROW($A$3:$A$17998)),AW$28)),"") ->  | AX40: =IFERROR(INDEX(StockEmplt!$C$1:$C$18000,SMALL(IF(StockEmplt!$F$3:$F$18000=$E40,ROW($A$3:$A$17998)),AW$28)),"") ->  | AY40: =IFERROR(INDEX(StockEmplt!$D$1:$D$18000,SMALL(IF(StockEmplt!$F$3:$F$18000=$E40,ROW($A$3:$A$17998)),AW$28)),"") ->  | AZ40: =IFERROR(INDEX(StockEmplt!$E$1:$E$18000,SMALL(IF(StockEmplt!$F$3:$F$18000=$E40,ROW($A$3:$A$17998)),AZ$28)),"") ->  | BA40: =IFERROR(INDEX(StockEmplt!$C$1:$C$18000,SMALL(IF(StockEmplt!$F$3:$F$18000=$E40,ROW($A$3:$A$17998)),AZ$28)),"") ->  | BB40: =IFERROR(INDEX(StockEmplt!$D$1:$D$18000,SMALL(IF(StockEmplt!$F$3:$F$18000=$E40,ROW($A$3:$A$17998)),AZ$28)),"") ->  | BC40: =IFERROR(INDEX(StockEmplt!$E$1:$E$18000,SMALL(IF(StockEmplt!$F$3:$F$18000=$E40,ROW($A$3:$A$17998)),BC$28)),"") ->  | BD40: =IFERROR(INDEX(StockEmplt!$C$1:$C$18000,SMALL(IF(StockEmplt!$F$3:$F$18000=$E40,ROW($A$3:$A$17998)),BC$28)),"") ->  | BE40: =IFERROR(INDEX(StockEmplt!$D$1:$D$18000,SMALL(IF(StockEmplt!$F$3:$F$18000=$E40,ROW($A$3:$A$17998)),BC$28)),"") ->  | BF40: =IFERROR(INDEX(StockEmplt!$E$1:$E$18000,SMALL(IF(StockEmplt!$F$3:$F$18000=$E40,ROW($A$3:$A$17998)),BF$28)),"") ->  | BG40: =IFERROR(INDEX(StockEmplt!$C$1:$C$18000,SMALL(IF(StockEmplt!$F$3:$F$18000=$E40,ROW($A$3:$A$17998)),BF$28)),"") ->  | BH40: =IFERROR(INDEX(StockEmplt!$D$1:$D$18000,SMALL(IF(StockEmplt!$F$3:$F$18000=$E40,ROW($A$3:$A$17998)),BF$28)),"") ->  | BI40: =IFERROR(INDEX(StockEmplt!$E$1:$E$18000,SMALL(IF(StockEmplt!$F$3:$F$18000=$E40,ROW($A$3:$A$17998)),BI$28)),"") ->  | BJ40: =IFERROR(INDEX(StockEmplt!$C$1:$C$18000,SMALL(IF(StockEmplt!$F$3:$F$18000=$E40,ROW($A$3:$A$17998)),BI$28)),"") ->  | BK40: =IFERROR(INDEX(StockEmplt!$D$1:$D$18000,SMALL(IF(StockEmplt!$F$3:$F$18000=$E40,ROW($A$3:$A$17998)),BI$28)),"") ->  | BL40: =IFERROR(INDEX(StockEmplt!$E$1:$E$18000,SMALL(IF(StockEmplt!$F$3:$F$18000=$E40,ROW($A$3:$A$17998)),BL$28)),"") ->  | BM40: =IFERROR(INDEX(StockEmplt!$C$1:$C$18000,SMALL(IF(StockEmplt!$F$3:$F$18000=$E40,ROW($A$3:$A$17998)),BL$28)),"") ->  | BN40: =IFERROR(INDEX(StockEmplt!$D$1:$D$18000,SMALL(IF(StockEmplt!$F$3:$F$18000=$E40,ROW($A$3:$A$17998)),BL$28)),"") ->  | BO40: =IFERROR(INDEX(StockEmplt!$E$1:$E$18000,SMALL(IF(StockEmplt!$F$3:$F$18000=$E40,ROW($A$3:$A$17998)),BO$28)),"") ->  | BP40: =IFERROR(INDEX(StockEmplt!$C$1:$C$18000,SMALL(IF(StockEmplt!$F$3:$F$18000=$E40,ROW($A$3:$A$17998)),BO$28)),"") ->  | BQ40: =IFERROR(INDEX(StockEmplt!$D$1:$D$18000,SMALL(IF(StockEmplt!$F$3:$F$18000=$E40,ROW($A$3:$A$17998)),BO$28)),"") -> 
A41: M451990 | B41: B100NC2-8 | C41: 50 | D41: 0964184 | E41: GD5,4X7,1X13,5J | F41: 5000 | G41: =IFERROR(INDEX(StockEmplt!$E$1:$E$18000,SMALL(IF(StockEmplt!$F$3:$F$18000=$E41,ROW($A$3:$A$17037)),G$28)),"") -> 32000 | H41: =IFERROR(INDEX(StockEmplt!$C$1:$C$18000,SMALL(IF(StockEmplt!$F$3:$F$18000=$E41,ROW($A$3:$A$17998)),G$28)),"") -> BA032 | I41: =IFERROR(INDEX(StockEmplt!$D$1:$D$18000,SMALL(IF(StockEmplt!$F$3:$F$18000=$E41,ROW($A$3:$A$17998)),G$28)),"") -> 7AP0654600 | J41: =IFERROR(INDEX(StockEmplt!$E$1:$E$18000,SMALL(IF(StockEmplt!$F$3:$F$18000=$E41,ROW($A$3:$A$17998)),J$28)),"") -> 6000 | K41: =IFERROR(INDEX(StockEmplt!$C$1:$C$18000,SMALL(IF(StockEmplt!$F$3:$F$18000=$E41,ROW($A$3:$A$17998)),J$28)),"") -> SCCH | L41: =IFERROR(INDEX(StockEmplt!$D$1:$D$18000,SMALL(IF(StockEmplt!$F$3:$F$18000=$E41,ROW($A$3:$A$17998)),J$28)),"") -> 7AP0654600 | M41: =IFERROR(INDEX(StockEmplt!$E$1:$E$18000,SMALL(IF(StockEmplt!$F$3:$F$18000=$E41,ROW($A$3:$A$17037)),M$28)),"") -> 206250 | N41: =IFERROR(INDEX(StockEmplt!$C$1:$C$18000,SMALL(IF(StockEmplt!$F$3:$F$18000=$E41,ROW($A$3:$A$17998)),M$28)),"") -> BC047 | O41: =IFERROR(INDEX(StockEmplt!$D$1:$D$18000,SMALL(IF(StockEmplt!$F$3:$F$18000=$E41,ROW($A$3:$A$17998)),M$28)),"") -> 7AP0770600 | P41: =IFERROR(INDEX(StockEmplt!$E$1:$E$18000,SMALL(IF(StockEmplt!$F$3:$F$18000=$E41,ROW($A$3:$A$17037)),P$28)),"") ->  | Q41: =IFERROR(INDEX(StockEmplt!$C$1:$C$18000,SMALL(IF(StockEmplt!$F$3:$F$18000=$E41,ROW($A$3:$A$17998)),P$28)),"") ->  | R41: =IFERROR(INDEX(StockEmplt!$D$1:$D$18000,SMALL(IF(StockEmplt!$F$3:$F$18000=$E41,ROW($A$3:$A$17998)),P$28)),"") ->  | S41: =IFERROR(INDEX(StockEmplt!$E$1:$E$18000,SMALL(IF(StockEmplt!$F$3:$F$18000=$E41,ROW($A$3:$A$17037)),S$28)),"") ->  | T41: =IFERROR(INDEX(StockEmplt!$C$1:$C$18000,SMALL(IF(StockEmplt!$F$3:$F$18000=$E41,ROW($A$3:$A$17998)),S$28)),"") ->  | U41: =IFERROR(INDEX(StockEmplt!$D$1:$D$18000,SMALL(IF(StockEmplt!$F$3:$F$18000=$E41,ROW($A$3:$A$17998)),S$28)),"") ->  | V41: =IFERROR(INDEX(StockEmplt!$E$1:$E$18000,SMALL(IF(StockEmplt!$F$3:$F$18000=$E41,ROW($A$3:$A$17037)),V$28)),"") ->  | W41: =IFERROR(INDEX(StockEmplt!$C$1:$C$18000,SMALL(IF(StockEmplt!$F$3:$F$18000=$E41,ROW($A$3:$A$17998)),V$28)),"") ->  | X41: =IFERROR(INDEX(StockEmplt!$D$1:$D$18000,SMALL(IF(StockEmplt!$F$3:$F$18000=$E41,ROW($A$3:$A$17998)),V$28)),"") ->  | Y41: =IFERROR(INDEX(StockEmplt!$E$1:$E$18000,SMALL(IF(StockEmplt!$F$3:$F$18000=$E41,ROW($A$3:$A$17037)),Y$28)),"") ->  | Z41: =IFERROR(INDEX(StockEmplt!$C$1:$C$18000,SMALL(IF(StockEmplt!$F$3:$F$18000=$E41,ROW($A$3:$A$17998)),Y$28)),"") ->  | AA41: =IFERROR(INDEX(StockEmplt!$D$1:$D$18000,SMALL(IF(StockEmplt!$F$3:$F$18000=$E41,ROW($A$3:$A$17998)),Y$28)),"") ->  | AB41: =IFERROR(INDEX(StockEmplt!$E$1:$E$18000,SMALL(IF(StockEmplt!$F$3:$F$18000=$E41,ROW($A$3:$A$17037)),AB$28)),"") ->  | AC41: =IFERROR(INDEX(StockEmplt!$C$1:$C$18000,SMALL(IF(StockEmplt!$F$3:$F$18000=$E41,ROW($A$3:$A$17998)),AB$28)),"") ->  | AD41: =IFERROR(INDEX(StockEmplt!$D$1:$D$18000,SMALL(IF(StockEmplt!$F$3:$F$18000=$E41,ROW($A$3:$A$17998)),AB$28)),"") ->  | AE41: =IFERROR(INDEX(StockEmplt!$E$1:$E$18000,SMALL(IF(StockEmplt!$F$3:$F$18000=$E41,ROW($A$3:$A$17037)),AE$28)),"") ->  | AF41: =IFERROR(INDEX(StockEmplt!$C$1:$C$18000,SMALL(IF(StockEmplt!$F$3:$F$18000=$E41,ROW($A$3:$A$17998)),AE$28)),"") ->  | AG41: =IFERROR(INDEX(StockEmplt!$D$1:$D$18000,SMALL(IF(StockEmplt!$F$3:$F$18000=$E41,ROW($A$3:$A$17998)),AE$28)),"") ->  | AH41: =IFERROR(INDEX(StockEmplt!$E$1:$E$18000,SMALL(IF(StockEmplt!$F$3:$F$18000=$E41,ROW($A$3:$A$17037)),AH$28)),"") ->  | AI41: =IFERROR(INDEX(StockEmplt!$C$1:$C$18000,SMALL(IF(StockEmplt!$F$3:$F$18000=$E41,ROW($A$3:$A$17998)),AH$28)),"") ->  | AJ41: =IFERROR(INDEX(StockEmplt!$D$1:$D$18000,SMALL(IF(StockEmplt!$F$3:$F$18000=$E41,ROW($A$3:$A$17998)),AH$28)),"") ->  | AK41: =IFERROR(INDEX(StockEmplt!$E$1:$E$18000,SMALL(IF(StockEmplt!$F$3:$F$18000=$E41,ROW($A$3:$A$17998)),AK$28)),"") ->  | AL41: =IFERROR(INDEX(StockEmplt!$C$1:$C$18000,SMALL(IF(StockEmplt!$F$3:$F$18000=$E41,ROW($A$3:$A$17998)),AK$28)),"") ->  | AM41: =IFERROR(INDEX(StockEmplt!$D$1:$D$18000,SMALL(IF(StockEmplt!$F$3:$F$18000=$E41,ROW($A$3:$A$17998)),AK$28)),"") ->  | AN41: =IFERROR(INDEX(StockEmplt!$E$1:$E$18000,SMALL(IF(StockEmplt!$F$3:$F$18000=$E41,ROW($A$3:$A$17998)),AN$28)),"") ->  | AO41: =IFERROR(INDEX(StockEmplt!$C$1:$C$18000,SMALL(IF(StockEmplt!$F$3:$F$18000=$E41,ROW($A$3:$A$17998)),AN$28)),"") ->  | AP41: =IFERROR(INDEX(StockEmplt!$D$1:$D$18000,SMALL(IF(StockEmplt!$F$3:$F$18000=$E41,ROW($A$3:$A$17998)),AN$28)),"") ->  | AQ41: =IFERROR(INDEX(StockEmplt!$E$1:$E$18000,SMALL(IF(StockEmplt!$F$3:$F$18000=$E41,ROW($A$3:$A$17998)),AQ$28)),"") ->  | AR41: =IFERROR(INDEX(StockEmplt!$C$1:$C$18000,SMALL(IF(StockEmplt!$F$3:$F$18000=$E41,ROW($A$3:$A$17998)),AQ$28)),"") ->  | AS41: =IFERROR(INDEX(StockEmplt!$D$1:$D$18000,SMALL(IF(StockEmplt!$F$3:$F$18000=$E41,ROW($A$3:$A$17998)),AQ$28)),"") ->  | AT41: =IFERROR(INDEX(StockEmplt!$E$1:$E$18000,SMALL(IF(StockEmplt!$F$3:$F$18000=$E41,ROW($A$3:$A$17998)),AT$28)),"") ->  | AU41: =IFERROR(INDEX(StockEmplt!$C$1:$C$18000,SMALL(IF(StockEmplt!$F$3:$F$18000=$E41,ROW($A$3:$A$17998)),AT$28)),"") ->  | AV41: =IFERROR(INDEX(StockEmplt!$D$1:$D$18000,SMALL(IF(StockEmplt!$F$3:$F$18000=$E41,ROW($A$3:$A$17998)),AT$28)),"") ->  | AW41: =IFERROR(INDEX(StockEmplt!$E$1:$E$18000,SMALL(IF(StockEmplt!$F$3:$F$18000=$E41,ROW($A$3:$A$17998)),AW$28)),"") ->  | AX41: =IFERROR(INDEX(StockEmplt!$C$1:$C$18000,SMALL(IF(StockEmplt!$F$3:$F$18000=$E41,ROW($A$3:$A$17998)),AW$28)),"") ->  | AY41: =IFERROR(INDEX(StockEmplt!$D$1:$D$18000,SMALL(IF(StockEmplt!$F$3:$F$18000=$E41,ROW($A$3:$A$17998)),AW$28)),"") ->  | AZ41: =IFERROR(INDEX(StockEmplt!$E$1:$E$18000,SMALL(IF(StockEmplt!$F$3:$F$18000=$E41,ROW($A$3:$A$17998)),AZ$28)),"") ->  | BA41: =IFERROR(INDEX(StockEmplt!$C$1:$C$18000,SMALL(IF(StockEmplt!$F$3:$F$18000=$E41,ROW($A$3:$A$17998)),AZ$28)),"") ->  | BB41: =IFERROR(INDEX(StockEmplt!$D$1:$D$18000,SMALL(IF(StockEmplt!$F$3:$F$18000=$E41,ROW($A$3:$A$17998)),AZ$28)),"") ->  | BC41: =IFERROR(INDEX(StockEmplt!$E$1:$E$18000,SMALL(IF(StockEmplt!$F$3:$F$18000=$E41,ROW($A$3:$A$17998)),BC$28)),"") ->  | BD41: =IFERROR(INDEX(StockEmplt!$C$1:$C$18000,SMALL(IF(StockEmplt!$F$3:$F$18000=$E41,ROW($A$3:$A$17998)),BC$28)),"") ->  | BE41: =IFERROR(INDEX(StockEmplt!$D$1:$D$18000,SMALL(IF(StockEmplt!$F$3:$F$18000=$E41,ROW($A$3:$A$17998)),BC$28)),"") ->  | BF41: =IFERROR(INDEX(StockEmplt!$E$1:$E$18000,SMALL(IF(StockEmplt!$F$3:$F$18000=$E41,ROW($A$3:$A$17998)),BF$28)),"") ->  | BG41: =IFERROR(INDEX(StockEmplt!$C$1:$C$18000,SMALL(IF(StockEmplt!$F$3:$F$18000=$E41,ROW($A$3:$A$17998)),BF$28)),"") ->  | BH41: =IFERROR(INDEX(StockEmplt!$D$1:$D$18000,SMALL(IF(StockEmplt!$F$3:$F$18000=$E41,ROW($A$3:$A$17998)),BF$28)),"") ->  | BI41: =IFERROR(INDEX(StockEmplt!$E$1:$E$18000,SMALL(IF(StockEmplt!$F$3:$F$18000=$E41,ROW($A$3:$A$17998)),BI$28)),"") ->  | BJ41: =IFERROR(INDEX(StockEmplt!$C$1:$C$18000,SMALL(IF(StockEmplt!$F$3:$F$18000=$E41,ROW($A$3:$A$17998)),BI$28)),"") ->  | BK41: =IFERROR(INDEX(StockEmplt!$D$1:$D$18000,SMALL(IF(StockEmplt!$F$3:$F$18000=$E41,ROW($A$3:$A$17998)),BI$28)),"") ->  | BL41: =IFERROR(INDEX(StockEmplt!$E$1:$E$18000,SMALL(IF(StockEmplt!$F$3:$F$18000=$E41,ROW($A$3:$A$17998)),BL$28)),"") ->  | BM41: =IFERROR(INDEX(StockEmplt!$C$1:$C$18000,SMALL(IF(StockEmplt!$F$3:$F$18000=$E41,ROW($A$3:$A$17998)),BL$28)),"") ->  | BN41: =IFERROR(INDEX(StockEmplt!$D$1:$D$18000,SMALL(IF(StockEmplt!$F$3:$F$18000=$E41,ROW($A$3:$A$17998)),BL$28)),"") ->  | BO41: =IFERROR(INDEX(StockEmplt!$E$1:$E$18000,SMALL(IF(StockEmplt!$F$3:$F$18000=$E41,ROW($A$3:$A$17998)),BO$28)),"") ->  | BP41: =IFERROR(INDEX(StockEmplt!$C$1:$C$18000,SMALL(IF(StockEmplt!$F$3:$F$18000=$E41,ROW($A$3:$A$17998)),BO$28)),"") ->  | BQ41: =IFERROR(INDEX(StockEmplt!$D$1:$D$18000,SMALL(IF(StockEmplt!$F$3:$F$18000=$E41,ROW($A$3:$A$17998)),BO$28)),"") -> 
A42: M452000 | B42: B100NC2-10 | C42: 30 | D42: 0964184 | E42: GD5,4X7,1X13,5J | F42: 3000 | G42: =IFERROR(INDEX(StockEmplt!$E$1:$E$18000,SMALL(IF(StockEmplt!$F$3:$F$18000=$E42,ROW($A$3:$A$17037)),G$28)),"") -> 32000 | H42: =IFERROR(INDEX(StockEmplt!$C$1:$C$18000,SMALL(IF(StockEmplt!$F$3:$F$18000=$E42,ROW($A$3:$A$17998)),G$28)),"") -> BA032 | I42: =IFERROR(INDEX(StockEmplt!$D$1:$D$18000,SMALL(IF(StockEmplt!$F$3:$F$18000=$E42,ROW($A$3:$A$17998)),G$28)),"") -> 7AP0654600 | J42: =IFERROR(INDEX(StockEmplt!$E$1:$E$18000,SMALL(IF(StockEmplt!$F$3:$F$18000=$E42,ROW($A$3:$A$17998)),J$28)),"") -> 6000 | K42: =IFERROR(INDEX(StockEmplt!$C$1:$C$18000,SMALL(IF(StockEmplt!$F$3:$F$18000=$E42,ROW($A$3:$A$17998)),J$28)),"") -> SCCH | L42: =IFERROR(INDEX(StockEmplt!$D$1:$D$18000,SMALL(IF(StockEmplt!$F$3:$F$18000=$E42,ROW($A$3:$A$17998)),J$28)),"") -> 7AP0654600 | M42: =IFERROR(INDEX(StockEmplt!$E$1:$E$18000,SMALL(IF(StockEmplt!$F$3:$F$18000=$E42,ROW($A$3:$A$17037)),M$28)),"") -> 206250 | N42: =IFERROR(INDEX(StockEmplt!$C$1:$C$18000,SMALL(IF(StockEmplt!$F$3:$F$18000=$E42,ROW($A$3:$A$17998)),M$28)),"") -> BC047 | O42: =IFERROR(INDEX(StockEmplt!$D$1:$D$18000,SMALL(IF(StockEmplt!$F$3:$F$18000=$E42,ROW($A$3:$A$17998)),M$28)),"") -> 7AP0770600 | P42: =IFERROR(INDEX(StockEmplt!$E$1:$E$18000,SMALL(IF(StockEmplt!$F$3:$F$18000=$E42,ROW($A$3:$A$17037)),P$28)),"") ->  | Q42: =IFERROR(INDEX(StockEmplt!$C$1:$C$18000,SMALL(IF(StockEmplt!$F$3:$F$18000=$E42,ROW($A$3:$A$17998)),P$28)),"") ->  | R42: =IFERROR(INDEX(StockEmplt!$D$1:$D$18000,SMALL(IF(StockEmplt!$F$3:$F$18000=$E42,ROW($A$3:$A$17998)),P$28)),"") ->  | S42: =IFERROR(INDEX(StockEmplt!$E$1:$E$18000,SMALL(IF(StockEmplt!$F$3:$F$18000=$E42,ROW($A$3:$A$17037)),S$28)),"") ->  | T42: =IFERROR(INDEX(StockEmplt!$C$1:$C$18000,SMALL(IF(StockEmplt!$F$3:$F$18000=$E42,ROW($A$3:$A$17998)),S$28)),"") ->  | U42: =IFERROR(INDEX(StockEmplt!$D$1:$D$18000,SMALL(IF(StockEmplt!$F$3:$F$18000=$E42,ROW($A$3:$A$17998)),S$28)),"") ->  | V42: =IFERROR(INDEX(StockEmplt!$E$1:$E$18000,SMALL(IF(StockEmplt!$F$3:$F$18000=$E42,ROW($A$3:$A$17037)),V$28)),"") ->  | W42: =IFERROR(INDEX(StockEmplt!$C$1:$C$18000,SMALL(IF(StockEmplt!$F$3:$F$18000=$E42,ROW($A$3:$A$17998)),V$28)),"") ->  | X42: =IFERROR(INDEX(StockEmplt!$D$1:$D$18000,SMALL(IF(StockEmplt!$F$3:$F$18000=$E42,ROW($A$3:$A$17998)),V$28)),"") ->  | Y42: =IFERROR(INDEX(StockEmplt!$E$1:$E$18000,SMALL(IF(StockEmplt!$F$3:$F$18000=$E42,ROW($A$3:$A$17037)),Y$28)),"") ->  | Z42: =IFERROR(INDEX(StockEmplt!$C$1:$C$18000,SMALL(IF(StockEmplt!$F$3:$F$18000=$E42,ROW($A$3:$A$17998)),Y$28)),"") ->  | AA42: =IFERROR(INDEX(StockEmplt!$D$1:$D$18000,SMALL(IF(StockEmplt!$F$3:$F$18000=$E42,ROW($A$3:$A$17998)),Y$28)),"") ->  | AB42: =IFERROR(INDEX(StockEmplt!$E$1:$E$18000,SMALL(IF(StockEmplt!$F$3:$F$18000=$E42,ROW($A$3:$A$17037)),AB$28)),"") ->  | AC42: =IFERROR(INDEX(StockEmplt!$C$1:$C$18000,SMALL(IF(StockEmplt!$F$3:$F$18000=$E42,ROW($A$3:$A$17998)),AB$28)),"") ->  | AD42: =IFERROR(INDEX(StockEmplt!$D$1:$D$18000,SMALL(IF(StockEmplt!$F$3:$F$18000=$E42,ROW($A$3:$A$17998)),AB$28)),"") ->  | AE42: =IFERROR(INDEX(StockEmplt!$E$1:$E$18000,SMALL(IF(StockEmplt!$F$3:$F$18000=$E42,ROW($A$3:$A$17037)),AE$28)),"") ->  | AF42: =IFERROR(INDEX(StockEmplt!$C$1:$C$18000,SMALL(IF(StockEmplt!$F$3:$F$18000=$E42,ROW($A$3:$A$17998)),AE$28)),"") ->  | AG42: =IFERROR(INDEX(StockEmplt!$D$1:$D$18000,SMALL(IF(StockEmplt!$F$3:$F$18000=$E42,ROW($A$3:$A$17998)),AE$28)),"") ->  | AH42: =IFERROR(INDEX(StockEmplt!$E$1:$E$18000,SMALL(IF(StockEmplt!$F$3:$F$18000=$E42,ROW($A$3:$A$17037)),AH$28)),"") ->  | AI42: =IFERROR(INDEX(StockEmplt!$C$1:$C$18000,SMALL(IF(StockEmplt!$F$3:$F$18000=$E42,ROW($A$3:$A$17998)),AH$28)),"") ->  | AJ42: =IFERROR(INDEX(StockEmplt!$D$1:$D$18000,SMALL(IF(StockEmplt!$F$3:$F$18000=$E42,ROW($A$3:$A$17998)),AH$28)),"") ->  | AK42: =IFERROR(INDEX(StockEmplt!$E$1:$E$18000,SMALL(IF(StockEmplt!$F$3:$F$18000=$E42,ROW($A$3:$A$17998)),AK$28)),"") ->  | AL42: =IFERROR(INDEX(StockEmplt!$C$1:$C$18000,SMALL(IF(StockEmplt!$F$3:$F$18000=$E42,ROW($A$3:$A$17998)),AK$28)),"") ->  | AM42: =IFERROR(INDEX(StockEmplt!$D$1:$D$18000,SMALL(IF(StockEmplt!$F$3:$F$18000=$E42,ROW($A$3:$A$17998)),AK$28)),"") ->  | AN42: =IFERROR(INDEX(StockEmplt!$E$1:$E$18000,SMALL(IF(StockEmplt!$F$3:$F$18000=$E42,ROW($A$3:$A$17998)),AN$28)),"") ->  | AO42: =IFERROR(INDEX(StockEmplt!$C$1:$C$18000,SMALL(IF(StockEmplt!$F$3:$F$18000=$E42,ROW($A$3:$A$17998)),AN$28)),"") ->  | AP42: =IFERROR(INDEX(StockEmplt!$D$1:$D$18000,SMALL(IF(StockEmplt!$F$3:$F$18000=$E42,ROW($A$3:$A$17998)),AN$28)),"") ->  | AQ42: =IFERROR(INDEX(StockEmplt!$E$1:$E$18000,SMALL(IF(StockEmplt!$F$3:$F$18000=$E42,ROW($A$3:$A$17998)),AQ$28)),"") ->  | AR42: =IFERROR(INDEX(StockEmplt!$C$1:$C$18000,SMALL(IF(StockEmplt!$F$3:$F$18000=$E42,ROW($A$3:$A$17998)),AQ$28)),"") ->  | AS42: =IFERROR(INDEX(StockEmplt!$D$1:$D$18000,SMALL(IF(StockEmplt!$F$3:$F$18000=$E42,ROW($A$3:$A$17998)),AQ$28)),"") ->  | AT42: =IFERROR(INDEX(StockEmplt!$E$1:$E$18000,SMALL(IF(StockEmplt!$F$3:$F$18000=$E42,ROW($A$3:$A$17998)),AT$28)),"") ->  | AU42: =IFERROR(INDEX(StockEmplt!$C$1:$C$18000,SMALL(IF(StockEmplt!$F$3:$F$18000=$E42,ROW($A$3:$A$17998)),AT$28)),"") ->  | AV42: =IFERROR(INDEX(StockEmplt!$D$1:$D$18000,SMALL(IF(StockEmplt!$F$3:$F$18000=$E42,ROW($A$3:$A$17998)),AT$28)),"") ->  | AW42: =IFERROR(INDEX(StockEmplt!$E$1:$E$18000,SMALL(IF(StockEmplt!$F$3:$F$18000=$E42,ROW($A$3:$A$17998)),AW$28)),"") ->  | AX42: =IFERROR(INDEX(StockEmplt!$C$1:$C$18000,SMALL(IF(StockEmplt!$F$3:$F$18000=$E42,ROW($A$3:$A$17998)),AW$28)),"") ->  | AY42: =IFERROR(INDEX(StockEmplt!$D$1:$D$18000,SMALL(IF(StockEmplt!$F$3:$F$18000=$E42,ROW($A$3:$A$17998)),AW$28)),"") ->  | AZ42: =IFERROR(INDEX(StockEmplt!$E$1:$E$18000,SMALL(IF(StockEmplt!$F$3:$F$18000=$E42,ROW($A$3:$A$17998)),AZ$28)),"") ->  | BA42: =IFERROR(INDEX(StockEmplt!$C$1:$C$18000,SMALL(IF(StockEmplt!$F$3:$F$18000=$E42,ROW($A$3:$A$17998)),AZ$28)),"") ->  | BB42: =IFERROR(INDEX(StockEmplt!$D$1:$D$18000,SMALL(IF(StockEmplt!$F$3:$F$18000=$E42,ROW($A$3:$A$17998)),AZ$28)),"") ->  | BC42: =IFERROR(INDEX(StockEmplt!$E$1:$E$18000,SMALL(IF(StockEmplt!$F$3:$F$18000=$E42,ROW($A$3:$A$17998)),BC$28)),"") ->  | BD42: =IFERROR(INDEX(StockEmplt!$C$1:$C$18000,SMALL(IF(StockEmplt!$F$3:$F$18000=$E42,ROW($A$3:$A$17998)),BC$28)),"") ->  | BE42: =IFERROR(INDEX(StockEmplt!$D$1:$D$18000,SMALL(IF(StockEmplt!$F$3:$F$18000=$E42,ROW($A$3:$A$17998)),BC$28)),"") ->  | BF42: =IFERROR(INDEX(StockEmplt!$E$1:$E$18000,SMALL(IF(StockEmplt!$F$3:$F$18000=$E42,ROW($A$3:$A$17998)),BF$28)),"") ->  | BG42: =IFERROR(INDEX(StockEmplt!$C$1:$C$18000,SMALL(IF(StockEmplt!$F$3:$F$18000=$E42,ROW($A$3:$A$17998)),BF$28)),"") ->  | BH42: =IFERROR(INDEX(StockEmplt!$D$1:$D$18000,SMALL(IF(StockEmplt!$F$3:$F$18000=$E42,ROW($A$3:$A$17998)),BF$28)),"") ->  | BI42: =IFERROR(INDEX(StockEmplt!$E$1:$E$18000,SMALL(IF(StockEmplt!$F$3:$F$18000=$E42,ROW($A$3:$A$17998)),BI$28)),"") ->  | BJ42: =IFERROR(INDEX(StockEmplt!$C$1:$C$18000,SMALL(IF(StockEmplt!$F$3:$F$18000=$E42,ROW($A$3:$A$17998)),BI$28)),"") ->  | BK42: =IFERROR(INDEX(StockEmplt!$D$1:$D$18000,SMALL(IF(StockEmplt!$F$3:$F$18000=$E42,ROW($A$3:$A$17998)),BI$28)),"") ->  | BL42: =IFERROR(INDEX(StockEmplt!$E$1:$E$18000,SMALL(IF(StockEmplt!$F$3:$F$18000=$E42,ROW($A$3:$A$17998)),BL$28)),"") ->  | BM42: =IFERROR(INDEX(StockEmplt!$C$1:$C$18000,SMALL(IF(StockEmplt!$F$3:$F$18000=$E42,ROW($A$3:$A$17998)),BL$28)),"") ->  | BN42: =IFERROR(INDEX(StockEmplt!$D$1:$D$18000,SMALL(IF(StockEmplt!$F$3:$F$18000=$E42,ROW($A$3:$A$17998)),BL$28)),"") ->  | BO42: =IFERROR(INDEX(StockEmplt!$E$1:$E$18000,SMALL(IF(StockEmplt!$F$3:$F$18000=$E42,ROW($A$3:$A$17998)),BO$28)),"") ->  | BP42: =IFERROR(INDEX(StockEmplt!$C$1:$C$18000,SMALL(IF(StockEmplt!$F$3:$F$18000=$E42,ROW($A$3:$A$17998)),BO$28)),"") ->  | BQ42: =IFERROR(INDEX(StockEmplt!$D$1:$D$18000,SMALL(IF(StockEmplt!$F$3:$F$18000=$E42,ROW($A$3:$A$17998)),BO$28)),"") -> 
A43: M452030 | B43: B100-51232 | C43: 40 | D43: 0967052 | E43: REDUCTEUR BLEU RB2 | F43: 4000 | G43: =IFERROR(INDEX(StockEmplt!$E$1:$E$18000,SMALL(IF(StockEmplt!$F$3:$F$18000=$E43,ROW($A$3:$A$17037)),G$28)),"") -> 15000 | H43: =IFERROR(INDEX(StockEmplt!$C$1:$C$18000,SMALL(IF(StockEmplt!$F$3:$F$18000=$E43,ROW($A$3:$A$17998)),G$28)),"") -> BA066 | I43: =IFERROR(INDEX(StockEmplt!$D$1:$D$18000,SMALL(IF(StockEmplt!$F$3:$F$18000=$E43,ROW($A$3:$A$17998)),G$28)),"") -> 5AM0745300 | J43: =IFERROR(INDEX(StockEmplt!$E$1:$E$18000,SMALL(IF(StockEmplt!$F$3:$F$18000=$E43,ROW($A$3:$A$17998)),J$28)),"") -> 1000 | K43: =IFERROR(INDEX(StockEmplt!$C$1:$C$18000,SMALL(IF(StockEmplt!$F$3:$F$18000=$E43,ROW($A$3:$A$17998)),J$28)),"") -> SCCH | L43: =IFERROR(INDEX(StockEmplt!$D$1:$D$18000,SMALL(IF(StockEmplt!$F$3:$F$18000=$E43,ROW($A$3:$A$17998)),J$28)),"") -> 5AM0745300 | M43: =IFERROR(INDEX(StockEmplt!$E$1:$E$18000,SMALL(IF(StockEmplt!$F$3:$F$18000=$E43,ROW($A$3:$A$17037)),M$28)),"") -> 93000 | N43: =IFERROR(INDEX(StockEmplt!$C$1:$C$18000,SMALL(IF(StockEmplt!$F$3:$F$18000=$E43,ROW($A$3:$A$17998)),M$28)),"") -> SCCV | O43: =IFERROR(INDEX(StockEmplt!$D$1:$D$18000,SMALL(IF(StockEmplt!$F$3:$F$18000=$E43,ROW($A$3:$A$17998)),M$28)),"") -> 5AM0745300 | P43: =IFERROR(INDEX(StockEmplt!$E$1:$E$18000,SMALL(IF(StockEmplt!$F$3:$F$18000=$E43,ROW($A$3:$A$17037)),P$28)),"") -> 3000 | Q43: =IFERROR(INDEX(StockEmplt!$C$1:$C$18000,SMALL(IF(StockEmplt!$F$3:$F$18000=$E43,ROW($A$3:$A$17998)),P$28)),"") -> SCSIG | R43: =IFERROR(INDEX(StockEmplt!$D$1:$D$18000,SMALL(IF(StockEmplt!$F$3:$F$18000=$E43,ROW($A$3:$A$17998)),P$28)),"") -> 5AM0745300 | S43: =IFERROR(INDEX(StockEmplt!$E$1:$E$18000,SMALL(IF(StockEmplt!$F$3:$F$18000=$E43,ROW($A$3:$A$17037)),S$28)),"") -> 292000 | T43: =IFERROR(INDEX(StockEmplt!$C$1:$C$18000,SMALL(IF(StockEmplt!$F$3:$F$18000=$E43,ROW($A$3:$A$17998)),S$28)),"") -> SCCV | U43: =IFERROR(INDEX(StockEmplt!$D$1:$D$18000,SMALL(IF(StockEmplt!$F$3:$F$18000=$E43,ROW($A$3:$A$17998)),S$28)),"") -> 5EM1213300 | V43: =IFERROR(INDEX(StockEmplt!$E$1:$E$18000,SMALL(IF(StockEmplt!$F$3:$F$18000=$E43,ROW($A$3:$A$17037)),V$28)),"") ->  | W43: =IFERROR(INDEX(StockEmplt!$C$1:$C$18000,SMALL(IF(StockEmplt!$F$3:$F$18000=$E43,ROW($A$3:$A$17998)),V$28)),"") ->  | X43: =IFERROR(INDEX(StockEmplt!$D$1:$D$18000,SMALL(IF(StockEmplt!$F$3:$F$18000=$E43,ROW($A$3:$A$17998)),V$28)),"") ->  | Y43: =IFERROR(INDEX(StockEmplt!$E$1:$E$18000,SMALL(IF(StockEmplt!$F$3:$F$18000=$E43,ROW($A$3:$A$17037)),Y$28)),"") ->  | Z43: =IFERROR(INDEX(StockEmplt!$C$1:$C$18000,SMALL(IF(StockEmplt!$F$3:$F$18000=$E43,ROW($A$3:$A$17998)),Y$28)),"") ->  | AA43: =IFERROR(INDEX(StockEmplt!$D$1:$D$18000,SMALL(IF(StockEmplt!$F$3:$F$18000=$E43,ROW($A$3:$A$17998)),Y$28)),"") ->  | AB43: =IFERROR(INDEX(StockEmplt!$E$1:$E$18000,SMALL(IF(StockEmplt!$F$3:$F$18000=$E43,ROW($A$3:$A$17037)),AB$28)),"") ->  | AC43: =IFERROR(INDEX(StockEmplt!$C$1:$C$18000,SMALL(IF(StockEmplt!$F$3:$F$18000=$E43,ROW($A$3:$A$17998)),AB$28)),"") ->  | AD43: =IFERROR(INDEX(StockEmplt!$D$1:$D$18000,SMALL(IF(StockEmplt!$F$3:$F$18000=$E43,ROW($A$3:$A$17998)),AB$28)),"") ->  | AE43: =IFERROR(INDEX(StockEmplt!$E$1:$E$18000,SMALL(IF(StockEmplt!$F$3:$F$18000=$E43,ROW($A$3:$A$17037)),AE$28)),"") ->  | AF43: =IFERROR(INDEX(StockEmplt!$C$1:$C$18000,SMALL(IF(StockEmplt!$F$3:$F$18000=$E43,ROW($A$3:$A$17998)),AE$28)),"") ->  | AG43: =IFERROR(INDEX(StockEmplt!$D$1:$D$18000,SMALL(IF(StockEmplt!$F$3:$F$18000=$E43,ROW($A$3:$A$17998)),AE$28)),"") ->  | AH43: =IFERROR(INDEX(StockEmplt!$E$1:$E$18000,SMALL(IF(StockEmplt!$F$3:$F$18000=$E43,ROW($A$3:$A$17037)),AH$28)),"") ->  | AI43: =IFERROR(INDEX(StockEmplt!$C$1:$C$18000,SMALL(IF(StockEmplt!$F$3:$F$18000=$E43,ROW($A$3:$A$17998)),AH$28)),"") ->  | AJ43: =IFERROR(INDEX(StockEmplt!$D$1:$D$18000,SMALL(IF(StockEmplt!$F$3:$F$18000=$E43,ROW($A$3:$A$17998)),AH$28)),"") ->  | AK43: =IFERROR(INDEX(StockEmplt!$E$1:$E$18000,SMALL(IF(StockEmplt!$F$3:$F$18000=$E43,ROW($A$3:$A$17998)),AK$28)),"") ->  | AL43: =IFERROR(INDEX(StockEmplt!$C$1:$C$18000,SMALL(IF(StockEmplt!$F$3:$F$18000=$E43,ROW($A$3:$A$17998)),AK$28)),"") ->  | AM43: =IFERROR(INDEX(StockEmplt!$D$1:$D$18000,SMALL(IF(StockEmplt!$F$3:$F$18000=$E43,ROW($A$3:$A$17998)),AK$28)),"") ->  | AN43: =IFERROR(INDEX(StockEmplt!$E$1:$E$18000,SMALL(IF(StockEmplt!$F$3:$F$18000=$E43,ROW($A$3:$A$17998)),AN$28)),"") ->  | AO43: =IFERROR(INDEX(StockEmplt!$C$1:$C$18000,SMALL(IF(StockEmplt!$F$3:$F$18000=$E43,ROW($A$3:$A$17998)),AN$28)),"") ->  | AP43: =IFERROR(INDEX(StockEmplt!$D$1:$D$18000,SMALL(IF(StockEmplt!$F$3:$F$18000=$E43,ROW($A$3:$A$17998)),AN$28)),"") ->  | AQ43: =IFERROR(INDEX(StockEmplt!$E$1:$E$18000,SMALL(IF(StockEmplt!$F$3:$F$18000=$E43,ROW($A$3:$A$17998)),AQ$28)),"") ->  | AR43: =IFERROR(INDEX(StockEmplt!$C$1:$C$18000,SMALL(IF(StockEmplt!$F$3:$F$18000=$E43,ROW($A$3:$A$17998)),AQ$28)),"") ->  | AS43: =IFERROR(INDEX(StockEmplt!$D$1:$D$18000,SMALL(IF(StockEmplt!$F$3:$F$18000=$E43,ROW($A$3:$A$17998)),AQ$28)),"") ->  | AT43: =IFERROR(INDEX(StockEmplt!$E$1:$E$18000,SMALL(IF(StockEmplt!$F$3:$F$18000=$E43,ROW($A$3:$A$17998)),AT$28)),"") ->  | AU43: =IFERROR(INDEX(StockEmplt!$C$1:$C$18000,SMALL(IF(StockEmplt!$F$3:$F$18000=$E43,ROW($A$3:$A$17998)),AT$28)),"") ->  | AV43: =IFERROR(INDEX(StockEmplt!$D$1:$D$18000,SMALL(IF(StockEmplt!$F$3:$F$18000=$E43,ROW($A$3:$A$17998)),AT$28)),"") ->  | AW43: =IFERROR(INDEX(StockEmplt!$E$1:$E$18000,SMALL(IF(StockEmplt!$F$3:$F$18000=$E43,ROW($A$3:$A$17998)),AW$28)),"") ->  | AX43: =IFERROR(INDEX(StockEmplt!$C$1:$C$18000,SMALL(IF(StockEmplt!$F$3:$F$18000=$E43,ROW($A$3:$A$17998)),AW$28)),"") ->  | AY43: =IFERROR(INDEX(StockEmplt!$D$1:$D$18000,SMALL(IF(StockEmplt!$F$3:$F$18000=$E43,ROW($A$3:$A$17998)),AW$28)),"") ->  | AZ43: =IFERROR(INDEX(StockEmplt!$E$1:$E$18000,SMALL(IF(StockEmplt!$F$3:$F$18000=$E43,ROW($A$3:$A$17998)),AZ$28)),"") ->  | BA43: =IFERROR(INDEX(StockEmplt!$C$1:$C$18000,SMALL(IF(StockEmplt!$F$3:$F$18000=$E43,ROW($A$3:$A$17998)),AZ$28)),"") ->  | BB43: =IFERROR(INDEX(StockEmplt!$D$1:$D$18000,SMALL(IF(StockEmplt!$F$3:$F$18000=$E43,ROW($A$3:$A$17998)),AZ$28)),"") ->  | BC43: =IFERROR(INDEX(StockEmplt!$E$1:$E$18000,SMALL(IF(StockEmplt!$F$3:$F$18000=$E43,ROW($A$3:$A$17998)),BC$28)),"") ->  | BD43: =IFERROR(INDEX(StockEmplt!$C$1:$C$18000,SMALL(IF(StockEmplt!$F$3:$F$18000=$E43,ROW($A$3:$A$17998)),BC$28)),"") ->  | BE43: =IFERROR(INDEX(StockEmplt!$D$1:$D$18000,SMALL(IF(StockEmplt!$F$3:$F$18000=$E43,ROW($A$3:$A$17998)),BC$28)),"") ->  | BF43: =IFERROR(INDEX(StockEmplt!$E$1:$E$18000,SMALL(IF(StockEmplt!$F$3:$F$18000=$E43,ROW($A$3:$A$17998)),BF$28)),"") ->  | BG43: =IFERROR(INDEX(StockEmplt!$C$1:$C$18000,SMALL(IF(StockEmplt!$F$3:$F$18000=$E43,ROW($A$3:$A$17998)),BF$28)),"") ->  | BH43: =IFERROR(INDEX(StockEmplt!$D$1:$D$18000,SMALL(IF(StockEmplt!$F$3:$F$18000=$E43,ROW($A$3:$A$17998)),BF$28)),"") ->  | BI43: =IFERROR(INDEX(StockEmplt!$E$1:$E$18000,SMALL(IF(StockEmplt!$F$3:$F$18000=$E43,ROW($A$3:$A$17998)),BI$28)),"") ->  | BJ43: =IFERROR(INDEX(StockEmplt!$C$1:$C$18000,SMALL(IF(StockEmplt!$F$3:$F$18000=$E43,ROW($A$3:$A$17998)),BI$28)),"") ->  | BK43: =IFERROR(INDEX(StockEmplt!$D$1:$D$18000,SMALL(IF(StockEmplt!$F$3:$F$18000=$E43,ROW($A$3:$A$17998)),BI$28)),"") ->  | BL43: =IFERROR(INDEX(StockEmplt!$E$1:$E$18000,SMALL(IF(StockEmplt!$F$3:$F$18000=$E43,ROW($A$3:$A$17998)),BL$28)),"") ->  | BM43: =IFERROR(INDEX(StockEmplt!$C$1:$C$18000,SMALL(IF(StockEmplt!$F$3:$F$18000=$E43,ROW($A$3:$A$17998)),BL$28)),"") ->  | BN43: =IFERROR(INDEX(StockEmplt!$D$1:$D$18000,SMALL(IF(StockEmplt!$F$3:$F$18000=$E43,ROW($A$3:$A$17998)),BL$28)),"") ->  | BO43: =IFERROR(INDEX(StockEmplt!$E$1:$E$18000,SMALL(IF(StockEmplt!$F$3:$F$18000=$E43,ROW($A$3:$A$17998)),BO$28)),"") ->  | BP43: =IFERROR(INDEX(StockEmplt!$C$1:$C$18000,SMALL(IF(StockEmplt!$F$3:$F$18000=$E43,ROW($A$3:$A$17998)),BO$28)),"") ->  | BQ43: =IFERROR(INDEX(StockEmplt!$D$1:$D$18000,SMALL(IF(StockEmplt!$F$3:$F$18000=$E43,ROW($A$3:$A$17998)),BO$28)),"") -> 
A44: M452050 | B44: 51132 | C44: 5000 | D44: 0967052 | E44: REDUCTEUR BLEU RB2 | F44: 5000 | G44: =IFERROR(INDEX(StockEmplt!$E$1:$E$18000,SMALL(IF(StockEmplt!$F$3:$F$18000=$E44,ROW($A$3:$A$17037)),G$28)),"") -> 15000 | H44: =IFERROR(INDEX(StockEmplt!$C$1:$C$18000,SMALL(IF(StockEmplt!$F$3:$F$18000=$E44,ROW($A$3:$A$17998)),G$28)),"") -> BA066 | I44: =IFERROR(INDEX(StockEmplt!$D$1:$D$18000,SMALL(IF(StockEmplt!$F$3:$F$18000=$E44,ROW($A$3:$A$17998)),G$28)),"") -> 5AM0745300 | J44: =IFERROR(INDEX(StockEmplt!$E$1:$E$18000,SMALL(IF(StockEmplt!$F$3:$F$18000=$E44,ROW($A$3:$A$17998)),J$28)),"") -> 1000 | K44: =IFERROR(INDEX(StockEmplt!$C$1:$C$18000,SMALL(IF(StockEmplt!$F$3:$F$18000=$E44,ROW($A$3:$A$17998)),J$28)),"") -> SCCH | L44: =IFERROR(INDEX(StockEmplt!$D$1:$D$18000,SMALL(IF(StockEmplt!$F$3:$F$18000=$E44,ROW($A$3:$A$17998)),J$28)),"") -> 5AM0745300 | M44: =IFERROR(INDEX(StockEmplt!$E$1:$E$18000,SMALL(IF(StockEmplt!$F$3:$F$18000=$E44,ROW($A$3:$A$17037)),M$28)),"") -> 93000 | N44: =IFERROR(INDEX(StockEmplt!$C$1:$C$18000,SMALL(IF(StockEmplt!$F$3:$F$18000=$E44,ROW($A$3:$A$17998)),M$28)),"") -> SCCV | O44: =IFERROR(INDEX(StockEmplt!$D$1:$D$18000,SMALL(IF(StockEmplt!$F$3:$F$18000=$E44,ROW($A$3:$A$17998)),M$28)),"") -> 5AM0745300 | P44: =IFERROR(INDEX(StockEmplt!$E$1:$E$18000,SMALL(IF(StockEmplt!$F$3:$F$18000=$E44,ROW($A$3:$A$17037)),P$28)),"") -> 3000 | Q44: =IFERROR(INDEX(StockEmplt!$C$1:$C$18000,SMALL(IF(StockEmplt!$F$3:$F$18000=$E44,ROW($A$3:$A$17998)),P$28)),"") -> SCSIG | R44: =IFERROR(INDEX(StockEmplt!$D$1:$D$18000,SMALL(IF(StockEmplt!$F$3:$F$18000=$E44,ROW($A$3:$A$17998)),P$28)),"") -> 5AM0745300 | S44: =IFERROR(INDEX(StockEmplt!$E$1:$E$18000,SMALL(IF(StockEmplt!$F$3:$F$18000=$E44,ROW($A$3:$A$17037)),S$28)),"") -> 292000 | T44: =IFERROR(INDEX(StockEmplt!$C$1:$C$18000,SMALL(IF(StockEmplt!$F$3:$F$18000=$E44,ROW($A$3:$A$17998)),S$28)),"") -> SCCV | U44: =IFERROR(INDEX(StockEmplt!$D$1:$D$18000,SMALL(IF(StockEmplt!$F$3:$F$18000=$E44,ROW($A$3:$A$17998)),S$28)),"") -> 5EM1213300 | V44: =IFERROR(INDEX(StockEmplt!$E$1:$E$18000,SMALL(IF(StockEmplt!$F$3:$F$18000=$E44,ROW($A$3:$A$17037)),V$28)),"") ->  | W44: =IFERROR(INDEX(StockEmplt!$C$1:$C$18000,SMALL(IF(StockEmplt!$F$3:$F$18000=$E44,ROW($A$3:$A$17998)),V$28)),"") ->  | X44: =IFERROR(INDEX(StockEmplt!$D$1:$D$18000,SMALL(IF(StockEmplt!$F$3:$F$18000=$E44,ROW($A$3:$A$17998)),V$28)),"") ->  | Y44: =IFERROR(INDEX(StockEmplt!$E$1:$E$18000,SMALL(IF(StockEmplt!$F$3:$F$18000=$E44,ROW($A$3:$A$17037)),Y$28)),"") ->  | Z44: =IFERROR(INDEX(StockEmplt!$C$1:$C$18000,SMALL(IF(StockEmplt!$F$3:$F$18000=$E44,ROW($A$3:$A$17998)),Y$28)),"") ->  | AA44: =IFERROR(INDEX(StockEmplt!$D$1:$D$18000,SMALL(IF(StockEmplt!$F$3:$F$18000=$E44,ROW($A$3:$A$17998)),Y$28)),"") ->  | AB44: =IFERROR(INDEX(StockEmplt!$E$1:$E$18000,SMALL(IF(StockEmplt!$F$3:$F$18000=$E44,ROW($A$3:$A$17037)),AB$28)),"") ->  | AC44: =IFERROR(INDEX(StockEmplt!$C$1:$C$18000,SMALL(IF(StockEmplt!$F$3:$F$18000=$E44,ROW($A$3:$A$17998)),AB$28)),"") ->  | AD44: =IFERROR(INDEX(StockEmplt!$D$1:$D$18000,SMALL(IF(StockEmplt!$F$3:$F$18000=$E44,ROW($A$3:$A$17998)),AB$28)),"") ->  | AE44: =IFERROR(INDEX(StockEmplt!$E$1:$E$18000,SMALL(IF(StockEmplt!$F$3:$F$18000=$E44,ROW($A$3:$A$17037)),AE$28)),"") ->  | AF44: =IFERROR(INDEX(StockEmplt!$C$1:$C$18000,SMALL(IF(StockEmplt!$F$3:$F$18000=$E44,ROW($A$3:$A$17998)),AE$28)),"") ->  | AG44: =IFERROR(INDEX(StockEmplt!$D$1:$D$18000,SMALL(IF(StockEmplt!$F$3:$F$18000=$E44,ROW($A$3:$A$17998)),AE$28)),"") ->  | AH44: =IFERROR(INDEX(StockEmplt!$E$1:$E$18000,SMALL(IF(StockEmplt!$F$3:$F$18000=$E44,ROW($A$3:$A$17037)),AH$28)),"") ->  | AI44: =IFERROR(INDEX(StockEmplt!$C$1:$C$18000,SMALL(IF(StockEmplt!$F$3:$F$18000=$E44,ROW($A$3:$A$17998)),AH$28)),"") ->  | AJ44: =IFERROR(INDEX(StockEmplt!$D$1:$D$18000,SMALL(IF(StockEmplt!$F$3:$F$18000=$E44,ROW($A$3:$A$17998)),AH$28)),"") ->  | AK44: =IFERROR(INDEX(StockEmplt!$E$1:$E$18000,SMALL(IF(StockEmplt!$F$3:$F$18000=$E44,ROW($A$3:$A$17998)),AK$28)),"") ->  | AL44: =IFERROR(INDEX(StockEmplt!$C$1:$C$18000,SMALL(IF(StockEmplt!$F$3:$F$18000=$E44,ROW($A$3:$A$17998)),AK$28)),"") ->  | AM44: =IFERROR(INDEX(StockEmplt!$D$1:$D$18000,SMALL(IF(StockEmplt!$F$3:$F$18000=$E44,ROW($A$3:$A$17998)),AK$28)),"") ->  | AN44: =IFERROR(INDEX(StockEmplt!$E$1:$E$18000,SMALL(IF(StockEmplt!$F$3:$F$18000=$E44,ROW($A$3:$A$17998)),AN$28)),"") ->  | AO44: =IFERROR(INDEX(StockEmplt!$C$1:$C$18000,SMALL(IF(StockEmplt!$F$3:$F$18000=$E44,ROW($A$3:$A$17998)),AN$28)),"") ->  | AP44: =IFERROR(INDEX(StockEmplt!$D$1:$D$18000,SMALL(IF(StockEmplt!$F$3:$F$18000=$E44,ROW($A$3:$A$17998)),AN$28)),"") ->  | AQ44: =IFERROR(INDEX(StockEmplt!$E$1:$E$18000,SMALL(IF(StockEmplt!$F$3:$F$18000=$E44,ROW($A$3:$A$17998)),AQ$28)),"") ->  | AR44: =IFERROR(INDEX(StockEmplt!$C$1:$C$18000,SMALL(IF(StockEmplt!$F$3:$F$18000=$E44,ROW($A$3:$A$17998)),AQ$28)),"") ->  | AS44: =IFERROR(INDEX(StockEmplt!$D$1:$D$18000,SMALL(IF(StockEmplt!$F$3:$F$18000=$E44,ROW($A$3:$A$17998)),AQ$28)),"") ->  | AT44: =IFERROR(INDEX(StockEmplt!$E$1:$E$18000,SMALL(IF(StockEmplt!$F$3:$F$18000=$E44,ROW($A$3:$A$17998)),AT$28)),"") ->  | AU44: =IFERROR(INDEX(StockEmplt!$C$1:$C$18000,SMALL(IF(StockEmplt!$F$3:$F$18000=$E44,ROW($A$3:$A$17998)),AT$28)),"") ->  | AV44: =IFERROR(INDEX(StockEmplt!$D$1:$D$18000,SMALL(IF(StockEmplt!$F$3:$F$18000=$E44,ROW($A$3:$A$17998)),AT$28)),"") ->  | AW44: =IFERROR(INDEX(StockEmplt!$E$1:$E$18000,SMALL(IF(StockEmplt!$F$3:$F$18000=$E44,ROW($A$3:$A$17998)),AW$28)),"") ->  | AX44: =IFERROR(INDEX(StockEmplt!$C$1:$C$18000,SMALL(IF(StockEmplt!$F$3:$F$18000=$E44,ROW($A$3:$A$17998)),AW$28)),"") ->  | AY44: =IFERROR(INDEX(StockEmplt!$D$1:$D$18000,SMALL(IF(StockEmplt!$F$3:$F$18000=$E44,ROW($A$3:$A$17998)),AW$28)),"") ->  | AZ44: =IFERROR(INDEX(StockEmplt!$E$1:$E$18000,SMALL(IF(StockEmplt!$F$3:$F$18000=$E44,ROW($A$3:$A$17998)),AZ$28)),"") ->  | BA44: =IFERROR(INDEX(StockEmplt!$C$1:$C$18000,SMALL(IF(StockEmplt!$F$3:$F$18000=$E44,ROW($A$3:$A$17998)),AZ$28)),"") ->  | BB44: =IFERROR(INDEX(StockEmplt!$D$1:$D$18000,SMALL(IF(StockEmplt!$F$3:$F$18000=$E44,ROW($A$3:$A$17998)),AZ$28)),"") ->  | BC44: =IFERROR(INDEX(StockEmplt!$E$1:$E$18000,SMALL(IF(StockEmplt!$F$3:$F$18000=$E44,ROW($A$3:$A$17998)),BC$28)),"") ->  | BD44: =IFERROR(INDEX(StockEmplt!$C$1:$C$18000,SMALL(IF(StockEmplt!$F$3:$F$18000=$E44,ROW($A$3:$A$17998)),BC$28)),"") ->  | BE44: =IFERROR(INDEX(StockEmplt!$D$1:$D$18000,SMALL(IF(StockEmplt!$F$3:$F$18000=$E44,ROW($A$3:$A$17998)),BC$28)),"") ->  | BF44: =IFERROR(INDEX(StockEmplt!$E$1:$E$18000,SMALL(IF(StockEmplt!$F$3:$F$18000=$E44,ROW($A$3:$A$17998)),BF$28)),"") ->  | BG44: =IFERROR(INDEX(StockEmplt!$C$1:$C$18000,SMALL(IF(StockEmplt!$F$3:$F$18000=$E44,ROW($A$3:$A$17998)),BF$28)),"") ->  | BH44: =IFERROR(INDEX(StockEmplt!$D$1:$D$18000,SMALL(IF(StockEmplt!$F$3:$F$18000=$E44,ROW($A$3:$A$17998)),BF$28)),"") ->  | BI44: =IFERROR(INDEX(StockEmplt!$E$1:$E$18000,SMALL(IF(StockEmplt!$F$3:$F$18000=$E44,ROW($A$3:$A$17998)),BI$28)),"") ->  | BJ44: =IFERROR(INDEX(StockEmplt!$C$1:$C$18000,SMALL(IF(StockEmplt!$F$3:$F$18000=$E44,ROW($A$3:$A$17998)),BI$28)),"") ->  | BK44: =IFERROR(INDEX(StockEmplt!$D$1:$D$18000,SMALL(IF(StockEmplt!$F$3:$F$18000=$E44,ROW($A$3:$A$17998)),BI$28)),"") ->  | BL44: =IFERROR(INDEX(StockEmplt!$E$1:$E$18000,SMALL(IF(StockEmplt!$F$3:$F$18000=$E44,ROW($A$3:$A$17998)),BL$28)),"") ->  | BM44: =IFERROR(INDEX(StockEmplt!$C$1:$C$18000,SMALL(IF(StockEmplt!$F$3:$F$18000=$E44,ROW($A$3:$A$17998)),BL$28)),"") ->  | BN44: =IFERROR(INDEX(StockEmplt!$D$1:$D$18000,SMALL(IF(StockEmplt!$F$3:$F$18000=$E44,ROW($A$3:$A$17998)),BL$28)),"") ->  | BO44: =IFERROR(INDEX(StockEmplt!$E$1:$E$18000,SMALL(IF(StockEmplt!$F$3:$F$18000=$E44,ROW($A$3:$A$17998)),BO$28)),"") ->  | BP44: =IFERROR(INDEX(StockEmplt!$C$1:$C$18000,SMALL(IF(StockEmplt!$F$3:$F$18000=$E44,ROW($A$3:$A$17998)),BO$28)),"") ->  | BQ44: =IFERROR(INDEX(StockEmplt!$D$1:$D$18000,SMALL(IF(StockEmplt!$F$3:$F$18000=$E44,ROW($A$3:$A$17998)),BO$28)),"") -> 
A45: M452060 | B45: 51133 | C45: 5000 | D45: 0967053 | E45: REDUCTEUR VERT RV3 | F45: 5000 | G45: =IFERROR(INDEX(StockEmplt!$E$1:$E$18000,SMALL(IF(StockEmplt!$F$3:$F$18000=$E45,ROW($A$3:$A$17037)),G$28)),"") -> 2000 | H45: =IFERROR(INDEX(StockEmplt!$C$1:$C$18000,SMALL(IF(StockEmplt!$F$3:$F$18000=$E45,ROW($A$3:$A$17998)),G$28)),"") -> SCSIG | I45: =IFERROR(INDEX(StockEmplt!$D$1:$D$18000,SMALL(IF(StockEmplt!$F$3:$F$18000=$E45,ROW($A$3:$A$17998)),G$28)),"") -> 5EM1213200 | J45: =IFERROR(INDEX(StockEmplt!$E$1:$E$18000,SMALL(IF(StockEmplt!$F$3:$F$18000=$E45,ROW($A$3:$A$17998)),J$28)),"") -> 25000 | K45: =IFERROR(INDEX(StockEmplt!$C$1:$C$18000,SMALL(IF(StockEmplt!$F$3:$F$18000=$E45,ROW($A$3:$A$17998)),J$28)),"") -> BA066 | L45: =IFERROR(INDEX(StockEmplt!$D$1:$D$18000,SMALL(IF(StockEmplt!$F$3:$F$18000=$E45,ROW($A$3:$A$17998)),J$28)),"") -> 6KM3397100 | M45: =IFERROR(INDEX(StockEmplt!$E$1:$E$18000,SMALL(IF(StockEmplt!$F$3:$F$18000=$E45,ROW($A$3:$A$17037)),M$28)),"") -> 62000 | N45: =IFERROR(INDEX(StockEmplt!$C$1:$C$18000,SMALL(IF(StockEmplt!$F$3:$F$18000=$E45,ROW($A$3:$A$17998)),M$28)),"") -> SCCV | O45: =IFERROR(INDEX(StockEmplt!$D$1:$D$18000,SMALL(IF(StockEmplt!$F$3:$F$18000=$E45,ROW($A$3:$A$17998)),M$28)),"") -> 6KM3397100 | P45: =IFERROR(INDEX(StockEmplt!$E$1:$E$18000,SMALL(IF(StockEmplt!$F$3:$F$18000=$E45,ROW($A$3:$A$17037)),P$28)),"") -> 3000 | Q45: =IFERROR(INDEX(StockEmplt!$C$1:$C$18000,SMALL(IF(StockEmplt!$F$3:$F$18000=$E45,ROW($A$3:$A$17998)),P$28)),"") -> SCSIG | R45: =IFERROR(INDEX(StockEmplt!$D$1:$D$18000,SMALL(IF(StockEmplt!$F$3:$F$18000=$E45,ROW($A$3:$A$17998)),P$28)),"") -> 6KM3397100 | S45: =IFERROR(INDEX(StockEmplt!$E$1:$E$18000,SMALL(IF(StockEmplt!$F$3:$F$18000=$E45,ROW($A$3:$A$17037)),S$28)),"") ->  | T45: =IFERROR(INDEX(StockEmplt!$C$1:$C$18000,SMALL(IF(StockEmplt!$F$3:$F$18000=$E45,ROW($A$3:$A$17998)),S$28)),"") ->  | U45: =IFERROR(INDEX(StockEmplt!$D$1:$D$18000,SMALL(IF(StockEmplt!$F$3:$F$18000=$E45,ROW($A$3:$A$17998)),S$28)),"") ->  | V45: =IFERROR(INDEX(StockEmplt!$E$1:$E$18000,SMALL(IF(StockEmplt!$F$3:$F$18000=$E45,ROW($A$3:$A$17037)),V$28)),"") ->  | W45: =IFERROR(INDEX(StockEmplt!$C$1:$C$18000,SMALL(IF(StockEmplt!$F$3:$F$18000=$E45,ROW($A$3:$A$17998)),V$28)),"") ->  | X45: =IFERROR(INDEX(StockEmplt!$D$1:$D$18000,SMALL(IF(StockEmplt!$F$3:$F$18000=$E45,ROW($A$3:$A$17998)),V$28)),"") ->  | Y45: =IFERROR(INDEX(StockEmplt!$E$1:$E$18000,SMALL(IF(StockEmplt!$F$3:$F$18000=$E45,ROW($A$3:$A$17037)),Y$28)),"") ->  | Z45: =IFERROR(INDEX(StockEmplt!$C$1:$C$18000,SMALL(IF(StockEmplt!$F$3:$F$18000=$E45,ROW($A$3:$A$17998)),Y$28)),"") ->  | AA45: =IFERROR(INDEX(StockEmplt!$D$1:$D$18000,SMALL(IF(StockEmplt!$F$3:$F$18000=$E45,ROW($A$3:$A$17998)),Y$28)),"") ->  | AB45: =IFERROR(INDEX(StockEmplt!$E$1:$E$18000,SMALL(IF(StockEmplt!$F$3:$F$18000=$E45,ROW($A$3:$A$17037)),AB$28)),"") ->  | AC45: =IFERROR(INDEX(StockEmplt!$C$1:$C$18000,SMALL(IF(StockEmplt!$F$3:$F$18000=$E45,ROW($A$3:$A$17998)),AB$28)),"") ->  | AD45: =IFERROR(INDEX(StockEmplt!$D$1:$D$18000,SMALL(IF(StockEmplt!$F$3:$F$18000=$E45,ROW($A$3:$A$17998)),AB$28)),"") ->  | AE45: =IFERROR(INDEX(StockEmplt!$E$1:$E$18000,SMALL(IF(StockEmplt!$F$3:$F$18000=$E45,ROW($A$3:$A$17037)),AE$28)),"") ->  | AF45: =IFERROR(INDEX(StockEmplt!$C$1:$C$18000,SMALL(IF(StockEmplt!$F$3:$F$18000=$E45,ROW($A$3:$A$17998)),AE$28)),"") ->  | AG45: =IFERROR(INDEX(StockEmplt!$D$1:$D$18000,SMALL(IF(StockEmplt!$F$3:$F$18000=$E45,ROW($A$3:$A$17998)),AE$28)),"") ->  | AH45: =IFERROR(INDEX(StockEmplt!$E$1:$E$18000,SMALL(IF(StockEmplt!$F$3:$F$18000=$E45,ROW($A$3:$A$17037)),AH$28)),"") ->  | AI45: =IFERROR(INDEX(StockEmplt!$C$1:$C$18000,SMALL(IF(StockEmplt!$F$3:$F$18000=$E45,ROW($A$3:$A$17998)),AH$28)),"") ->  | AJ45: =IFERROR(INDEX(StockEmplt!$D$1:$D$18000,SMALL(IF(StockEmplt!$F$3:$F$18000=$E45,ROW($A$3:$A$17998)),AH$28)),"") ->  | AK45: =IFERROR(INDEX(StockEmplt!$E$1:$E$18000,SMALL(IF(StockEmplt!$F$3:$F$18000=$E45,ROW($A$3:$A$17998)),AK$28)),"") ->  | AL45: =IFERROR(INDEX(StockEmplt!$C$1:$C$18000,SMALL(IF(StockEmplt!$F$3:$F$18000=$E45,ROW($A$3:$A$17998)),AK$28)),"") ->  | AM45: =IFERROR(INDEX(StockEmplt!$D$1:$D$18000,SMALL(IF(StockEmplt!$F$3:$F$18000=$E45,ROW($A$3:$A$17998)),AK$28)),"") ->  | AN45: =IFERROR(INDEX(StockEmplt!$E$1:$E$18000,SMALL(IF(StockEmplt!$F$3:$F$18000=$E45,ROW($A$3:$A$17998)),AN$28)),"") ->  | AO45: =IFERROR(INDEX(StockEmplt!$C$1:$C$18000,SMALL(IF(StockEmplt!$F$3:$F$18000=$E45,ROW($A$3:$A$17998)),AN$28)),"") ->  | AP45: =IFERROR(INDEX(StockEmplt!$D$1:$D$18000,SMALL(IF(StockEmplt!$F$3:$F$18000=$E45,ROW($A$3:$A$17998)),AN$28)),"") ->  | AQ45: =IFERROR(INDEX(StockEmplt!$E$1:$E$18000,SMALL(IF(StockEmplt!$F$3:$F$18000=$E45,ROW($A$3:$A$17998)),AQ$28)),"") ->  | AR45: =IFERROR(INDEX(StockEmplt!$C$1:$C$18000,SMALL(IF(StockEmplt!$F$3:$F$18000=$E45,ROW($A$3:$A$17998)),AQ$28)),"") ->  | AS45: =IFERROR(INDEX(StockEmplt!$D$1:$D$18000,SMALL(IF(StockEmplt!$F$3:$F$18000=$E45,ROW($A$3:$A$17998)),AQ$28)),"") ->  | AT45: =IFERROR(INDEX(StockEmplt!$E$1:$E$18000,SMALL(IF(StockEmplt!$F$3:$F$18000=$E45,ROW($A$3:$A$17998)),AT$28)),"") ->  | AU45: =IFERROR(INDEX(StockEmplt!$C$1:$C$18000,SMALL(IF(StockEmplt!$F$3:$F$18000=$E45,ROW($A$3:$A$17998)),AT$28)),"") ->  | AV45: =IFERROR(INDEX(StockEmplt!$D$1:$D$18000,SMALL(IF(StockEmplt!$F$3:$F$18000=$E45,ROW($A$3:$A$17998)),AT$28)),"") ->  | AW45: =IFERROR(INDEX(StockEmplt!$E$1:$E$18000,SMALL(IF(StockEmplt!$F$3:$F$18000=$E45,ROW($A$3:$A$17998)),AW$28)),"") ->  | AX45: =IFERROR(INDEX(StockEmplt!$C$1:$C$18000,SMALL(IF(StockEmplt!$F$3:$F$18000=$E45,ROW($A$3:$A$17998)),AW$28)),"") ->  | AY45: =IFERROR(INDEX(StockEmplt!$D$1:$D$18000,SMALL(IF(StockEmplt!$F$3:$F$18000=$E45,ROW($A$3:$A$17998)),AW$28)),"") ->  | AZ45: =IFERROR(INDEX(StockEmplt!$E$1:$E$18000,SMALL(IF(StockEmplt!$F$3:$F$18000=$E45,ROW($A$3:$A$17998)),AZ$28)),"") ->  | BA45: =IFERROR(INDEX(StockEmplt!$C$1:$C$18000,SMALL(IF(StockEmplt!$F$3:$F$18000=$E45,ROW($A$3:$A$17998)),AZ$28)),"") ->  | BB45: =IFERROR(INDEX(StockEmplt!$D$1:$D$18000,SMALL(IF(StockEmplt!$F$3:$F$18000=$E45,ROW($A$3:$A$17998)),AZ$28)),"") ->  | BC45: =IFERROR(INDEX(StockEmplt!$E$1:$E$18000,SMALL(IF(StockEmplt!$F$3:$F$18000=$E45,ROW($A$3:$A$17998)),BC$28)),"") ->  | BD45: =IFERROR(INDEX(StockEmplt!$C$1:$C$18000,SMALL(IF(StockEmplt!$F$3:$F$18000=$E45,ROW($A$3:$A$17998)),BC$28)),"") ->  | BE45: =IFERROR(INDEX(StockEmplt!$D$1:$D$18000,SMALL(IF(StockEmplt!$F$3:$F$18000=$E45,ROW($A$3:$A$17998)),BC$28)),"") ->  | BF45: =IFERROR(INDEX(StockEmplt!$E$1:$E$18000,SMALL(IF(StockEmplt!$F$3:$F$18000=$E45,ROW($A$3:$A$17998)),BF$28)),"") ->  | BG45: =IFERROR(INDEX(StockEmplt!$C$1:$C$18000,SMALL(IF(StockEmplt!$F$3:$F$18000=$E45,ROW($A$3:$A$17998)),BF$28)),"") ->  | BH45: =IFERROR(INDEX(StockEmplt!$D$1:$D$18000,SMALL(IF(StockEmplt!$F$3:$F$18000=$E45,ROW($A$3:$A$17998)),BF$28)),"") ->  | BI45: =IFERROR(INDEX(StockEmplt!$E$1:$E$18000,SMALL(IF(StockEmplt!$F$3:$F$18000=$E45,ROW($A$3:$A$17998)),BI$28)),"") ->  | BJ45: =IFERROR(INDEX(StockEmplt!$C$1:$C$18000,SMALL(IF(StockEmplt!$F$3:$F$18000=$E45,ROW($A$3:$A$17998)),BI$28)),"") ->  | BK45: =IFERROR(INDEX(StockEmplt!$D$1:$D$18000,SMALL(IF(StockEmplt!$F$3:$F$18000=$E45,ROW($A$3:$A$17998)),BI$28)),"") ->  | BL45: =IFERROR(INDEX(StockEmplt!$E$1:$E$18000,SMALL(IF(StockEmplt!$F$3:$F$18000=$E45,ROW($A$3:$A$17998)),BL$28)),"") ->  | BM45: =IFERROR(INDEX(StockEmplt!$C$1:$C$18000,SMALL(IF(StockEmplt!$F$3:$F$18000=$E45,ROW($A$3:$A$17998)),BL$28)),"") ->  | BN45: =IFERROR(INDEX(StockEmplt!$D$1:$D$18000,SMALL(IF(StockEmplt!$F$3:$F$18000=$E45,ROW($A$3:$A$17998)),BL$28)),"") ->  | BO45: =IFERROR(INDEX(StockEmplt!$E$1:$E$18000,SMALL(IF(StockEmplt!$F$3:$F$18000=$E45,ROW($A$3:$A$17998)),BO$28)),"") ->  | BP45: =IFERROR(INDEX(StockEmplt!$C$1:$C$18000,SMALL(IF(StockEmplt!$F$3:$F$18000=$E45,ROW($A$3:$A$17998)),BO$28)),"") ->  | BQ45: =IFERROR(INDEX(StockEmplt!$D$1:$D$18000,SMALL(IF(StockEmplt!$F$3:$F$18000=$E45,ROW($A$3:$A$17998)),BO$28)),"") -> 
A46: M452040 | B46: 51083 * | C46: 5000 | D46: 0967060 | E46: REDUCTEUR BLANC 0,93-1 | F46: 5000 | G46: =IFERROR(INDEX(StockEmplt!$E$1:$E$18000,SMALL(IF(StockEmplt!$F$3:$F$18000=$E46,ROW($A$3:$A$17037)),G$28)),"") -> 50000 | H46: =IFERROR(INDEX(StockEmplt!$C$1:$C$18000,SMALL(IF(StockEmplt!$F$3:$F$18000=$E46,ROW($A$3:$A$17998)),G$28)),"") -> BA063 | I46: =IFERROR(INDEX(StockEmplt!$D$1:$D$18000,SMALL(IF(StockEmplt!$F$3:$F$18000=$E46,ROW($A$3:$A$17998)),G$28)),"") -> 7EP0770300 | J46: =IFERROR(INDEX(StockEmplt!$E$1:$E$18000,SMALL(IF(StockEmplt!$F$3:$F$18000=$E46,ROW($A$3:$A$17998)),J$28)),"") -> 6000 | K46: =IFERROR(INDEX(StockEmplt!$C$1:$C$18000,SMALL(IF(StockEmplt!$F$3:$F$18000=$E46,ROW($A$3:$A$17998)),J$28)),"") -> CTRLOK | L46: =IFERROR(INDEX(StockEmplt!$D$1:$D$18000,SMALL(IF(StockEmplt!$F$3:$F$18000=$E46,ROW($A$3:$A$17998)),J$28)),"") -> 7EP0770300 | M46: =IFERROR(INDEX(StockEmplt!$E$1:$E$18000,SMALL(IF(StockEmplt!$F$3:$F$18000=$E46,ROW($A$3:$A$17037)),M$28)),"") -> 4400 | N46: =IFERROR(INDEX(StockEmplt!$C$1:$C$18000,SMALL(IF(StockEmplt!$F$3:$F$18000=$E46,ROW($A$3:$A$17998)),M$28)),"") -> EAT32 | O46: =IFERROR(INDEX(StockEmplt!$D$1:$D$18000,SMALL(IF(StockEmplt!$F$3:$F$18000=$E46,ROW($A$3:$A$17998)),M$28)),"") -> 7EP0770300 | P46: =IFERROR(INDEX(StockEmplt!$E$1:$E$18000,SMALL(IF(StockEmplt!$F$3:$F$18000=$E46,ROW($A$3:$A$17037)),P$28)),"") -> 4000 | Q46: =IFERROR(INDEX(StockEmplt!$C$1:$C$18000,SMALL(IF(StockEmplt!$F$3:$F$18000=$E46,ROW($A$3:$A$17998)),P$28)),"") -> SCLG | R46: =IFERROR(INDEX(StockEmplt!$D$1:$D$18000,SMALL(IF(StockEmplt!$F$3:$F$18000=$E46,ROW($A$3:$A$17998)),P$28)),"") -> 7EP0770300 | S46: =IFERROR(INDEX(StockEmplt!$E$1:$E$18000,SMALL(IF(StockEmplt!$F$3:$F$18000=$E46,ROW($A$3:$A$17037)),S$28)),"") -> 5200 | T46: =IFERROR(INDEX(StockEmplt!$C$1:$C$18000,SMALL(IF(StockEmplt!$F$3:$F$18000=$E46,ROW($A$3:$A$17998)),S$28)),"") -> SCSIG | U46: =IFERROR(INDEX(StockEmplt!$D$1:$D$18000,SMALL(IF(StockEmplt!$F$3:$F$18000=$E46,ROW($A$3:$A$17998)),S$28)),"") -> 7EP0770300 | V46: =IFERROR(INDEX(StockEmplt!$E$1:$E$18000,SMALL(IF(StockEmplt!$F$3:$F$18000=$E46,ROW($A$3:$A$17037)),V$28)),"") ->  | W46: =IFERROR(INDEX(StockEmplt!$C$1:$C$18000,SMALL(IF(StockEmplt!$F$3:$F$18000=$E46,ROW($A$3:$A$17998)),V$28)),"") ->  | X46: =IFERROR(INDEX(StockEmplt!$D$1:$D$18000,SMALL(IF(StockEmplt!$F$3:$F$18000=$E46,ROW($A$3:$A$17998)),V$28)),"") ->  | Y46: =IFERROR(INDEX(StockEmplt!$E$1:$E$18000,SMALL(IF(StockEmplt!$F$3:$F$18000=$E46,ROW($A$3:$A$17037)),Y$28)),"") ->  | Z46: =IFERROR(INDEX(StockEmplt!$C$1:$C$18000,SMALL(IF(StockEmplt!$F$3:$F$18000=$E46,ROW($A$3:$A$17998)),Y$28)),"") ->  | AA46: =IFERROR(INDEX(StockEmplt!$D$1:$D$18000,SMALL(IF(StockEmplt!$F$3:$F$18000=$E46,ROW($A$3:$A$17998)),Y$28)),"") ->  | AB46: =IFERROR(INDEX(StockEmplt!$E$1:$E$18000,SMALL(IF(StockEmplt!$F$3:$F$18000=$E46,ROW($A$3:$A$17037)),AB$28)),"") ->  | AC46: =IFERROR(INDEX(StockEmplt!$C$1:$C$18000,SMALL(IF(StockEmplt!$F$3:$F$18000=$E46,ROW($A$3:$A$17998)),AB$28)),"") ->  | AD46: =IFERROR(INDEX(StockEmplt!$D$1:$D$18000,SMALL(IF(StockEmplt!$F$3:$F$18000=$E46,ROW($A$3:$A$17998)),AB$28)),"") ->  | AE46: =IFERROR(INDEX(StockEmplt!$E$1:$E$18000,SMALL(IF(StockEmplt!$F$3:$F$18000=$E46,ROW($A$3:$A$17037)),AE$28)),"") ->  | AF46: =IFERROR(INDEX(StockEmplt!$C$1:$C$18000,SMALL(IF(StockEmplt!$F$3:$F$18000=$E46,ROW($A$3:$A$17998)),AE$28)),"") ->  | AG46: =IFERROR(INDEX(StockEmplt!$D$1:$D$18000,SMALL(IF(StockEmplt!$F$3:$F$18000=$E46,ROW($A$3:$A$17998)),AE$28)),"") ->  | AH46: =IFERROR(INDEX(StockEmplt!$E$1:$E$18000,SMALL(IF(StockEmplt!$F$3:$F$18000=$E46,ROW($A$3:$A$17037)),AH$28)),"") ->  | AI46: =IFERROR(INDEX(StockEmplt!$C$1:$C$18000,SMALL(IF(StockEmplt!$F$3:$F$18000=$E46,ROW($A$3:$A$17998)),AH$28)),"") ->  | AJ46: =IFERROR(INDEX(StockEmplt!$D$1:$D$18000,SMALL(IF(StockEmplt!$F$3:$F$18000=$E46,ROW($A$3:$A$17998)),AH$28)),"") ->  | AK46: =IFERROR(INDEX(StockEmplt!$E$1:$E$18000,SMALL(IF(StockEmplt!$F$3:$F$18000=$E46,ROW($A$3:$A$17998)),AK$28)),"") ->  | AL46: =IFERROR(INDEX(StockEmplt!$C$1:$C$18000,SMALL(IF(StockEmplt!$F$3:$F$18000=$E46,ROW($A$3:$A$17998)),AK$28)),"") ->  | AM46: =IFERROR(INDEX(StockEmplt!$D$1:$D$18000,SMALL(IF(StockEmplt!$F$3:$F$18000=$E46,ROW($A$3:$A$17998)),AK$28)),"") ->  | AN46: =IFERROR(INDEX(StockEmplt!$E$1:$E$18000,SMALL(IF(StockEmplt!$F$3:$F$18000=$E46,ROW($A$3:$A$17998)),AN$28)),"") ->  | AO46: =IFERROR(INDEX(StockEmplt!$C$1:$C$18000,SMALL(IF(StockEmplt!$F$3:$F$18000=$E46,ROW($A$3:$A$17998)),AN$28)),"") ->  | AP46: =IFERROR(INDEX(StockEmplt!$D$1:$D$18000,SMALL(IF(StockEmplt!$F$3:$F$18000=$E46,ROW($A$3:$A$17998)),AN$28)),"") ->  | AQ46: =IFERROR(INDEX(StockEmplt!$E$1:$E$18000,SMALL(IF(StockEmplt!$F$3:$F$18000=$E46,ROW($A$3:$A$17998)),AQ$28)),"") ->  | AR46: =IFERROR(INDEX(StockEmplt!$C$1:$C$18000,SMALL(IF(StockEmplt!$F$3:$F$18000=$E46,ROW($A$3:$A$17998)),AQ$28)),"") ->  | AS46: =IFERROR(INDEX(StockEmplt!$D$1:$D$18000,SMALL(IF(StockEmplt!$F$3:$F$18000=$E46,ROW($A$3:$A$17998)),AQ$28)),"") ->  | AT46: =IFERROR(INDEX(StockEmplt!$E$1:$E$18000,SMALL(IF(StockEmplt!$F$3:$F$18000=$E46,ROW($A$3:$A$17998)),AT$28)),"") ->  | AU46: =IFERROR(INDEX(StockEmplt!$C$1:$C$18000,SMALL(IF(StockEmplt!$F$3:$F$18000=$E46,ROW($A$3:$A$17998)),AT$28)),"") ->  | AV46: =IFERROR(INDEX(StockEmplt!$D$1:$D$18000,SMALL(IF(StockEmplt!$F$3:$F$18000=$E46,ROW($A$3:$A$17998)),AT$28)),"") ->  | AW46: =IFERROR(INDEX(StockEmplt!$E$1:$E$18000,SMALL(IF(StockEmplt!$F$3:$F$18000=$E46,ROW($A$3:$A$17998)),AW$28)),"") ->  | AX46: =IFERROR(INDEX(StockEmplt!$C$1:$C$18000,SMALL(IF(StockEmplt!$F$3:$F$18000=$E46,ROW($A$3:$A$17998)),AW$28)),"") ->  | AY46: =IFERROR(INDEX(StockEmplt!$D$1:$D$18000,SMALL(IF(StockEmplt!$F$3:$F$18000=$E46,ROW($A$3:$A$17998)),AW$28)),"") ->  | AZ46: =IFERROR(INDEX(StockEmplt!$E$1:$E$18000,SMALL(IF(StockEmplt!$F$3:$F$18000=$E46,ROW($A$3:$A$17998)),AZ$28)),"") ->  | BA46: =IFERROR(INDEX(StockEmplt!$C$1:$C$18000,SMALL(IF(StockEmplt!$F$3:$F$18000=$E46,ROW($A$3:$A$17998)),AZ$28)),"") ->  | BB46: =IFERROR(INDEX(StockEmplt!$D$1:$D$18000,SMALL(IF(StockEmplt!$F$3:$F$18000=$E46,ROW($A$3:$A$17998)),AZ$28)),"") ->  | BC46: =IFERROR(INDEX(StockEmplt!$E$1:$E$18000,SMALL(IF(StockEmplt!$F$3:$F$18000=$E46,ROW($A$3:$A$17998)),BC$28)),"") ->  | BD46: =IFERROR(INDEX(StockEmplt!$C$1:$C$18000,SMALL(IF(StockEmplt!$F$3:$F$18000=$E46,ROW($A$3:$A$17998)),BC$28)),"") ->  | BE46: =IFERROR(INDEX(StockEmplt!$D$1:$D$18000,SMALL(IF(StockEmplt!$F$3:$F$18000=$E46,ROW($A$3:$A$17998)),BC$28)),"") ->  | BF46: =IFERROR(INDEX(StockEmplt!$E$1:$E$18000,SMALL(IF(StockEmplt!$F$3:$F$18000=$E46,ROW($A$3:$A$17998)),BF$28)),"") ->  | BG46: =IFERROR(INDEX(StockEmplt!$C$1:$C$18000,SMALL(IF(StockEmplt!$F$3:$F$18000=$E46,ROW($A$3:$A$17998)),BF$28)),"") ->  | BH46: =IFERROR(INDEX(StockEmplt!$D$1:$D$18000,SMALL(IF(StockEmplt!$F$3:$F$18000=$E46,ROW($A$3:$A$17998)),BF$28)),"") ->  | BI46: =IFERROR(INDEX(StockEmplt!$E$1:$E$18000,SMALL(IF(StockEmplt!$F$3:$F$18000=$E46,ROW($A$3:$A$17998)),BI$28)),"") ->  | BJ46: =IFERROR(INDEX(StockEmplt!$C$1:$C$18000,SMALL(IF(StockEmplt!$F$3:$F$18000=$E46,ROW($A$3:$A$17998)),BI$28)),"") ->  | BK46: =IFERROR(INDEX(StockEmplt!$D$1:$D$18000,SMALL(IF(StockEmplt!$F$3:$F$18000=$E46,ROW($A$3:$A$17998)),BI$28)),"") ->  | BL46: =IFERROR(INDEX(StockEmplt!$E$1:$E$18000,SMALL(IF(StockEmplt!$F$3:$F$18000=$E46,ROW($A$3:$A$17998)),BL$28)),"") ->  | BM46: =IFERROR(INDEX(StockEmplt!$C$1:$C$18000,SMALL(IF(StockEmplt!$F$3:$F$18000=$E46,ROW($A$3:$A$17998)),BL$28)),"") ->  | BN46: =IFERROR(INDEX(StockEmplt!$D$1:$D$18000,SMALL(IF(StockEmplt!$F$3:$F$18000=$E46,ROW($A$3:$A$17998)),BL$28)),"") ->  | BO46: =IFERROR(INDEX(StockEmplt!$E$1:$E$18000,SMALL(IF(StockEmplt!$F$3:$F$18000=$E46,ROW($A$3:$A$17998)),BO$28)),"") ->  | BP46: =IFERROR(INDEX(StockEmplt!$C$1:$C$18000,SMALL(IF(StockEmplt!$F$3:$F$18000=$E46,ROW($A$3:$A$17998)),BO$28)),"") ->  | BQ46: =IFERROR(INDEX(StockEmplt!$D$1:$D$18000,SMALL(IF(StockEmplt!$F$3:$F$18000=$E46,ROW($A$3:$A$17998)),BO$28)),"") -> 
A47: M451890 | B47: NA2-6 | C47: 5000 | D47: 7200083 | E47: A2-6 | F47: 5000 | G47: =IFERROR(INDEX(StockEmplt!$E$1:$E$18000,SMALL(IF(StockEmplt!$F$3:$F$18000=$E47,ROW($A$3:$A$17037)),G$28)),"") -> 110000 | H47: =IFERROR(INDEX(StockEmplt!$C$1:$C$18000,SMALL(IF(StockEmplt!$F$3:$F$18000=$E47,ROW($A$3:$A$17998)),G$28)),"") -> BB031 | I47: =IFERROR(INDEX(StockEmplt!$D$1:$D$18000,SMALL(IF(StockEmplt!$F$3:$F$18000=$E47,ROW($A$3:$A$17998)),G$28)),"") -> 7DM406370K | J47: =IFERROR(INDEX(StockEmplt!$E$1:$E$18000,SMALL(IF(StockEmplt!$F$3:$F$18000=$E47,ROW($A$3:$A$17998)),J$28)),"") -> 1082 | K47: =IFERROR(INDEX(StockEmplt!$C$1:$C$18000,SMALL(IF(StockEmplt!$F$3:$F$18000=$E47,ROW($A$3:$A$17998)),J$28)),"") -> SCCV | L47: =IFERROR(INDEX(StockEmplt!$D$1:$D$18000,SMALL(IF(StockEmplt!$F$3:$F$18000=$E47,ROW($A$3:$A$17998)),J$28)),"") -> 7DM406370K | M47: =IFERROR(INDEX(StockEmplt!$E$1:$E$18000,SMALL(IF(StockEmplt!$F$3:$F$18000=$E47,ROW($A$3:$A$17037)),M$28)),"") -> 1510 | N47: =IFERROR(INDEX(StockEmplt!$C$1:$C$18000,SMALL(IF(StockEmplt!$F$3:$F$18000=$E47,ROW($A$3:$A$17998)),M$28)),"") -> SCSIG | O47: =IFERROR(INDEX(StockEmplt!$D$1:$D$18000,SMALL(IF(StockEmplt!$F$3:$F$18000=$E47,ROW($A$3:$A$17998)),M$28)),"") -> 7DM406370K | P47: =IFERROR(INDEX(StockEmplt!$E$1:$E$18000,SMALL(IF(StockEmplt!$F$3:$F$18000=$E47,ROW($A$3:$A$17037)),P$28)),"") ->  | Q47: =IFERROR(INDEX(StockEmplt!$C$1:$C$18000,SMALL(IF(StockEmplt!$F$3:$F$18000=$E47,ROW($A$3:$A$17998)),P$28)),"") ->  | R47: =IFERROR(INDEX(StockEmplt!$D$1:$D$18000,SMALL(IF(StockEmplt!$F$3:$F$18000=$E47,ROW($A$3:$A$17998)),P$28)),"") ->  | S47: =IFERROR(INDEX(StockEmplt!$E$1:$E$18000,SMALL(IF(StockEmplt!$F$3:$F$18000=$E47,ROW($A$3:$A$17037)),S$28)),"") ->  | T47: =IFERROR(INDEX(StockEmplt!$C$1:$C$18000,SMALL(IF(StockEmplt!$F$3:$F$18000=$E47,ROW($A$3:$A$17998)),S$28)),"") ->  | U47: =IFERROR(INDEX(StockEmplt!$D$1:$D$18000,SMALL(IF(StockEmplt!$F$3:$F$18000=$E47,ROW($A$3:$A$17998)),S$28)),"") ->  | V47: =IFERROR(INDEX(StockEmplt!$E$1:$E$18000,SMALL(IF(StockEmplt!$F$3:$F$18000=$E47,ROW($A$3:$A$17037)),V$28)),"") ->  | W47: =IFERROR(INDEX(StockEmplt!$C$1:$C$18000,SMALL(IF(StockEmplt!$F$3:$F$18000=$E47,ROW($A$3:$A$17998)),V$28)),"") ->  | X47: =IFERROR(INDEX(StockEmplt!$D$1:$D$18000,SMALL(IF(StockEmplt!$F$3:$F$18000=$E47,ROW($A$3:$A$17998)),V$28)),"") ->  | Y47: =IFERROR(INDEX(StockEmplt!$E$1:$E$18000,SMALL(IF(StockEmplt!$F$3:$F$18000=$E47,ROW($A$3:$A$17037)),Y$28)),"") ->  | Z47: =IFERROR(INDEX(StockEmplt!$C$1:$C$18000,SMALL(IF(StockEmplt!$F$3:$F$18000=$E47,ROW($A$3:$A$17998)),Y$28)),"") ->  | AA47: =IFERROR(INDEX(StockEmplt!$D$1:$D$18000,SMALL(IF(StockEmplt!$F$3:$F$18000=$E47,ROW($A$3:$A$17998)),Y$28)),"") ->  | AB47: =IFERROR(INDEX(StockEmplt!$E$1:$E$18000,SMALL(IF(StockEmplt!$F$3:$F$18000=$E47,ROW($A$3:$A$17037)),AB$28)),"") ->  | AC47: =IFERROR(INDEX(StockEmplt!$C$1:$C$18000,SMALL(IF(StockEmplt!$F$3:$F$18000=$E47,ROW($A$3:$A$17998)),AB$28)),"") ->  | AD47: =IFERROR(INDEX(StockEmplt!$D$1:$D$18000,SMALL(IF(StockEmplt!$F$3:$F$18000=$E47,ROW($A$3:$A$17998)),AB$28)),"") ->  | AE47: =IFERROR(INDEX(StockEmplt!$E$1:$E$18000,SMALL(IF(StockEmplt!$F$3:$F$18000=$E47,ROW($A$3:$A$17037)),AE$28)),"") ->  | AF47: =IFERROR(INDEX(StockEmplt!$C$1:$C$18000,SMALL(IF(StockEmplt!$F$3:$F$18000=$E47,ROW($A$3:$A$17998)),AE$28)),"") ->  | AG47: =IFERROR(INDEX(StockEmplt!$D$1:$D$18000,SMALL(IF(StockEmplt!$F$3:$F$18000=$E47,ROW($A$3:$A$17998)),AE$28)),"") ->  | AH47: =IFERROR(INDEX(StockEmplt!$E$1:$E$18000,SMALL(IF(StockEmplt!$F$3:$F$18000=$E47,ROW($A$3:$A$17037)),AH$28)),"") ->  | AI47: =IFERROR(INDEX(StockEmplt!$C$1:$C$18000,SMALL(IF(StockEmplt!$F$3:$F$18000=$E47,ROW($A$3:$A$17998)),AH$28)),"") ->  | AJ47: =IFERROR(INDEX(StockEmplt!$D$1:$D$18000,SMALL(IF(StockEmplt!$F$3:$F$18000=$E47,ROW($A$3:$A$17998)),AH$28)),"") ->  | AK47: =IFERROR(INDEX(StockEmplt!$E$1:$E$18000,SMALL(IF(StockEmplt!$F$3:$F$18000=$E47,ROW($A$3:$A$17998)),AK$28)),"") ->  | AL47: =IFERROR(INDEX(StockEmplt!$C$1:$C$18000,SMALL(IF(StockEmplt!$F$3:$F$18000=$E47,ROW($A$3:$A$17998)),AK$28)),"") ->  | AM47: =IFERROR(INDEX(StockEmplt!$D$1:$D$18000,SMALL(IF(StockEmplt!$F$3:$F$18000=$E47,ROW($A$3:$A$17998)),AK$28)),"") ->  | AN47: =IFERROR(INDEX(StockEmplt!$E$1:$E$18000,SMALL(IF(StockEmplt!$F$3:$F$18000=$E47,ROW($A$3:$A$17998)),AN$28)),"") ->  | AO47: =IFERROR(INDEX(StockEmplt!$C$1:$C$18000,SMALL(IF(StockEmplt!$F$3:$F$18000=$E47,ROW($A$3:$A$17998)),AN$28)),"") ->  | AP47: =IFERROR(INDEX(StockEmplt!$D$1:$D$18000,SMALL(IF(StockEmplt!$F$3:$F$18000=$E47,ROW($A$3:$A$17998)),AN$28)),"") ->  | AQ47: =IFERROR(INDEX(StockEmplt!$E$1:$E$18000,SMALL(IF(StockEmplt!$F$3:$F$18000=$E47,ROW($A$3:$A$17998)),AQ$28)),"") ->  | AR47: =IFERROR(INDEX(StockEmplt!$C$1:$C$18000,SMALL(IF(StockEmplt!$F$3:$F$18000=$E47,ROW($A$3:$A$17998)),AQ$28)),"") ->  | AS47: =IFERROR(INDEX(StockEmplt!$D$1:$D$18000,SMALL(IF(StockEmplt!$F$3:$F$18000=$E47,ROW($A$3:$A$17998)),AQ$28)),"") ->  | AT47: =IFERROR(INDEX(StockEmplt!$E$1:$E$18000,SMALL(IF(StockEmplt!$F$3:$F$18000=$E47,ROW($A$3:$A$17998)),AT$28)),"") ->  | AU47: =IFERROR(INDEX(StockEmplt!$C$1:$C$18000,SMALL(IF(StockEmplt!$F$3:$F$18000=$E47,ROW($A$3:$A$17998)),AT$28)),"") ->  | AV47: =IFERROR(INDEX(StockEmplt!$D$1:$D$18000,SMALL(IF(StockEmplt!$F$3:$F$18000=$E47,ROW($A$3:$A$17998)),AT$28)),"") ->  | AW47: =IFERROR(INDEX(StockEmplt!$E$1:$E$18000,SMALL(IF(StockEmplt!$F$3:$F$18000=$E47,ROW($A$3:$A$17998)),AW$28)),"") ->  | AX47: =IFERROR(INDEX(StockEmplt!$C$1:$C$18000,SMALL(IF(StockEmplt!$F$3:$F$18000=$E47,ROW($A$3:$A$17998)),AW$28)),"") ->  | AY47: =IFERROR(INDEX(StockEmplt!$D$1:$D$18000,SMALL(IF(StockEmplt!$F$3:$F$18000=$E47,ROW($A$3:$A$17998)),AW$28)),"") ->  | AZ47: =IFERROR(INDEX(StockEmplt!$E$1:$E$18000,SMALL(IF(StockEmplt!$F$3:$F$18000=$E47,ROW($A$3:$A$17998)),AZ$28)),"") ->  | BA47: =IFERROR(INDEX(StockEmplt!$C$1:$C$18000,SMALL(IF(StockEmplt!$F$3:$F$18000=$E47,ROW($A$3:$A$17998)),AZ$28)),"") ->  | BB47: =IFERROR(INDEX(StockEmplt!$D$1:$D$18000,SMALL(IF(StockEmplt!$F$3:$F$18000=$E47,ROW($A$3:$A$17998)),AZ$28)),"") ->  | BC47: =IFERROR(INDEX(StockEmplt!$E$1:$E$18000,SMALL(IF(StockEmplt!$F$3:$F$18000=$E47,ROW($A$3:$A$17998)),BC$28)),"") ->  | BD47: =IFERROR(INDEX(StockEmplt!$C$1:$C$18000,SMALL(IF(StockEmplt!$F$3:$F$18000=$E47,ROW($A$3:$A$17998)),BC$28)),"") ->  | BE47: =IFERROR(INDEX(StockEmplt!$D$1:$D$18000,SMALL(IF(StockEmplt!$F$3:$F$18000=$E47,ROW($A$3:$A$17998)),BC$28)),"") ->  | BF47: =IFERROR(INDEX(StockEmplt!$E$1:$E$18000,SMALL(IF(StockEmplt!$F$3:$F$18000=$E47,ROW($A$3:$A$17998)),BF$28)),"") ->  | BG47: =IFERROR(INDEX(StockEmplt!$C$1:$C$18000,SMALL(IF(StockEmplt!$F$3:$F$18000=$E47,ROW($A$3:$A$17998)),BF$28)),"") ->  | BH47: =IFERROR(INDEX(StockEmplt!$D$1:$D$18000,SMALL(IF(StockEmplt!$F$3:$F$18000=$E47,ROW($A$3:$A$17998)),BF$28)),"") ->  | BI47: =IFERROR(INDEX(StockEmplt!$E$1:$E$18000,SMALL(IF(StockEmplt!$F$3:$F$18000=$E47,ROW($A$3:$A$17998)),BI$28)),"") ->  | BJ47: =IFERROR(INDEX(StockEmplt!$C$1:$C$18000,SMALL(IF(StockEmplt!$F$3:$F$18000=$E47,ROW($A$3:$A$17998)),BI$28)),"") ->  | BK47: =IFERROR(INDEX(StockEmplt!$D$1:$D$18000,SMALL(IF(StockEmplt!$F$3:$F$18000=$E47,ROW($A$3:$A$17998)),BI$28)),"") ->  | BL47: =IFERROR(INDEX(StockEmplt!$E$1:$E$18000,SMALL(IF(StockEmplt!$F$3:$F$18000=$E47,ROW($A$3:$A$17998)),BL$28)),"") ->  | BM47: =IFERROR(INDEX(StockEmplt!$C$1:$C$18000,SMALL(IF(StockEmplt!$F$3:$F$18000=$E47,ROW($A$3:$A$17998)),BL$28)),"") ->  | BN47: =IFERROR(INDEX(StockEmplt!$D$1:$D$18000,SMALL(IF(StockEmplt!$F$3:$F$18000=$E47,ROW($A$3:$A$17998)),BL$28)),"") ->  | BO47: =IFERROR(INDEX(StockEmplt!$E$1:$E$18000,SMALL(IF(StockEmplt!$F$3:$F$18000=$E47,ROW($A$3:$A$17998)),BO$28)),"") ->  | BP47: =IFERROR(INDEX(StockEmplt!$C$1:$C$18000,SMALL(IF(StockEmplt!$F$3:$F$18000=$E47,ROW($A$3:$A$17998)),BO$28)),"") ->  | BQ47: =IFERROR(INDEX(StockEmplt!$D$1:$D$18000,SMALL(IF(StockEmplt!$F$3:$F$18000=$E47,ROW($A$3:$A$17998)),BO$28)),"") -> 
A48: M451920 | B48: B100NA2-6 | C48: 50 | D48: 7200083 | E48: A2-6 | F48: 5000 | G48: =IFERROR(INDEX(StockEmplt!$E$1:$E$18000,SMALL(IF(StockEmplt!$F$3:$F$18000=$E48,ROW($A$3:$A$17037)),G$28)),"") -> 110000 | H48: =IFERROR(INDEX(StockEmplt!$C$1:$C$18000,SMALL(IF(StockEmplt!$F$3:$F$18000=$E48,ROW($A$3:$A$17998)),G$28)),"") -> BB031 | I48: =IFERROR(INDEX(StockEmplt!$D$1:$D$18000,SMALL(IF(StockEmplt!$F$3:$F$18000=$E48,ROW($A$3:$A$17998)),G$28)),"") -> 7DM406370K | J48: =IFERROR(INDEX(StockEmplt!$E$1:$E$18000,SMALL(IF(StockEmplt!$F$3:$F$18000=$E48,ROW($A$3:$A$17998)),J$28)),"") -> 1082 | K48: =IFERROR(INDEX(StockEmplt!$C$1:$C$18000,SMALL(IF(StockEmplt!$F$3:$F$18000=$E48,ROW($A$3:$A$17998)),J$28)),"") -> SCCV | L48: =IFERROR(INDEX(StockEmplt!$D$1:$D$18000,SMALL(IF(StockEmplt!$F$3:$F$18000=$E48,ROW($A$3:$A$17998)),J$28)),"") -> 7DM406370K | M48: =IFERROR(INDEX(StockEmplt!$E$1:$E$18000,SMALL(IF(StockEmplt!$F$3:$F$18000=$E48,ROW($A$3:$A$17037)),M$28)),"") -> 1510 | N48: =IFERROR(INDEX(StockEmplt!$C$1:$C$18000,SMALL(IF(StockEmplt!$F$3:$F$18000=$E48,ROW($A$3:$A$17998)),M$28)),"") -> SCSIG | O48: =IFERROR(INDEX(StockEmplt!$D$1:$D$18000,SMALL(IF(StockEmplt!$F$3:$F$18000=$E48,ROW($A$3:$A$17998)),M$28)),"") -> 7DM406370K | P48: =IFERROR(INDEX(StockEmplt!$E$1:$E$18000,SMALL(IF(StockEmplt!$F$3:$F$18000=$E48,ROW($A$3:$A$17037)),P$28)),"") ->  | Q48: =IFERROR(INDEX(StockEmplt!$C$1:$C$18000,SMALL(IF(StockEmplt!$F$3:$F$18000=$E48,ROW($A$3:$A$17998)),P$28)),"") ->  | R48: =IFERROR(INDEX(StockEmplt!$D$1:$D$18000,SMALL(IF(StockEmplt!$F$3:$F$18000=$E48,ROW($A$3:$A$17998)),P$28)),"") ->  | S48: =IFERROR(INDEX(StockEmplt!$E$1:$E$18000,SMALL(IF(StockEmplt!$F$3:$F$18000=$E48,ROW($A$3:$A$17037)),S$28)),"") ->  | T48: =IFERROR(INDEX(StockEmplt!$C$1:$C$18000,SMALL(IF(StockEmplt!$F$3:$F$18000=$E48,ROW($A$3:$A$17998)),S$28)),"") ->  | U48: =IFERROR(INDEX(StockEmplt!$D$1:$D$18000,SMALL(IF(StockEmplt!$F$3:$F$18000=$E48,ROW($A$3:$A$17998)),S$28)),"") ->  | V48: =IFERROR(INDEX(StockEmplt!$E$1:$E$18000,SMALL(IF(StockEmplt!$F$3:$F$18000=$E48,ROW($A$3:$A$17037)),V$28)),"") ->  | W48: =IFERROR(INDEX(StockEmplt!$C$1:$C$18000,SMALL(IF(StockEmplt!$F$3:$F$18000=$E48,ROW($A$3:$A$17998)),V$28)),"") ->  | X48: =IFERROR(INDEX(StockEmplt!$D$1:$D$18000,SMALL(IF(StockEmplt!$F$3:$F$18000=$E48,ROW($A$3:$A$17998)),V$28)),"") ->  | Y48: =IFERROR(INDEX(StockEmplt!$E$1:$E$18000,SMALL(IF(StockEmplt!$F$3:$F$18000=$E48,ROW($A$3:$A$17037)),Y$28)),"") ->  | Z48: =IFERROR(INDEX(StockEmplt!$C$1:$C$18000,SMALL(IF(StockEmplt!$F$3:$F$18000=$E48,ROW($A$3:$A$17998)),Y$28)),"") ->  | AA48: =IFERROR(INDEX(StockEmplt!$D$1:$D$18000,SMALL(IF(StockEmplt!$F$3:$F$18000=$E48,ROW($A$3:$A$17998)),Y$28)),"") ->  | AB48: =IFERROR(INDEX(StockEmplt!$E$1:$E$18000,SMALL(IF(StockEmplt!$F$3:$F$18000=$E48,ROW($A$3:$A$17037)),AB$28)),"") ->  | AC48: =IFERROR(INDEX(StockEmplt!$C$1:$C$18000,SMALL(IF(StockEmplt!$F$3:$F$18000=$E48,ROW($A$3:$A$17998)),AB$28)),"") ->  | AD48: =IFERROR(INDEX(StockEmplt!$D$1:$D$18000,SMALL(IF(StockEmplt!$F$3:$F$18000=$E48,ROW($A$3:$A$17998)),AB$28)),"") ->  | AE48: =IFERROR(INDEX(StockEmplt!$E$1:$E$18000,SMALL(IF(StockEmplt!$F$3:$F$18000=$E48,ROW($A$3:$A$17037)),AE$28)),"") ->  | AF48: =IFERROR(INDEX(StockEmplt!$C$1:$C$18000,SMALL(IF(StockEmplt!$F$3:$F$18000=$E48,ROW($A$3:$A$17998)),AE$28)),"") ->  | AG48: =IFERROR(INDEX(StockEmplt!$D$1:$D$18000,SMALL(IF(StockEmplt!$F$3:$F$18000=$E48,ROW($A$3:$A$17998)),AE$28)),"") ->  | AH48: =IFERROR(INDEX(StockEmplt!$E$1:$E$18000,SMALL(IF(StockEmplt!$F$3:$F$18000=$E48,ROW($A$3:$A$17037)),AH$28)),"") ->  | AI48: =IFERROR(INDEX(StockEmplt!$C$1:$C$18000,SMALL(IF(StockEmplt!$F$3:$F$18000=$E48,ROW($A$3:$A$17998)),AH$28)),"") ->  | AJ48: =IFERROR(INDEX(StockEmplt!$D$1:$D$18000,SMALL(IF(StockEmplt!$F$3:$F$18000=$E48,ROW($A$3:$A$17998)),AH$28)),"") ->  | AK48: =IFERROR(INDEX(StockEmplt!$E$1:$E$18000,SMALL(IF(StockEmplt!$F$3:$F$18000=$E48,ROW($A$3:$A$17998)),AK$28)),"") ->  | AL48: =IFERROR(INDEX(StockEmplt!$C$1:$C$18000,SMALL(IF(StockEmplt!$F$3:$F$18000=$E48,ROW($A$3:$A$17998)),AK$28)),"") ->  | AM48: =IFERROR(INDEX(StockEmplt!$D$1:$D$18000,SMALL(IF(StockEmplt!$F$3:$F$18000=$E48,ROW($A$3:$A$17998)),AK$28)),"") ->  | AN48: =IFERROR(INDEX(StockEmplt!$E$1:$E$18000,SMALL(IF(StockEmplt!$F$3:$F$18000=$E48,ROW($A$3:$A$17998)),AN$28)),"") ->  | AO48: =IFERROR(INDEX(StockEmplt!$C$1:$C$18000,SMALL(IF(StockEmplt!$F$3:$F$18000=$E48,ROW($A$3:$A$17998)),AN$28)),"") ->  | AP48: =IFERROR(INDEX(StockEmplt!$D$1:$D$18000,SMALL(IF(StockEmplt!$F$3:$F$18000=$E48,ROW($A$3:$A$17998)),AN$28)),"") ->  | AQ48: =IFERROR(INDEX(StockEmplt!$E$1:$E$18000,SMALL(IF(StockEmplt!$F$3:$F$18000=$E48,ROW($A$3:$A$17998)),AQ$28)),"") ->  | AR48: =IFERROR(INDEX(StockEmplt!$C$1:$C$18000,SMALL(IF(StockEmplt!$F$3:$F$18000=$E48,ROW($A$3:$A$17998)),AQ$28)),"") ->  | AS48: =IFERROR(INDEX(StockEmplt!$D$1:$D$18000,SMALL(IF(StockEmplt!$F$3:$F$18000=$E48,ROW($A$3:$A$17998)),AQ$28)),"") ->  | AT48: =IFERROR(INDEX(StockEmplt!$E$1:$E$18000,SMALL(IF(StockEmplt!$F$3:$F$18000=$E48,ROW($A$3:$A$17998)),AT$28)),"") ->  | AU48: =IFERROR(INDEX(StockEmplt!$C$1:$C$18000,SMALL(IF(StockEmplt!$F$3:$F$18000=$E48,ROW($A$3:$A$17998)),AT$28)),"") ->  | AV48: =IFERROR(INDEX(StockEmplt!$D$1:$D$18000,SMALL(IF(StockEmplt!$F$3:$F$18000=$E48,ROW($A$3:$A$17998)),AT$28)),"") ->  | AW48: =IFERROR(INDEX(StockEmplt!$E$1:$E$18000,SMALL(IF(StockEmplt!$F$3:$F$18000=$E48,ROW($A$3:$A$17998)),AW$28)),"") ->  | AX48: =IFERROR(INDEX(StockEmplt!$C$1:$C$18000,SMALL(IF(StockEmplt!$F$3:$F$18000=$E48,ROW($A$3:$A$17998)),AW$28)),"") ->  | AY48: =IFERROR(INDEX(StockEmplt!$D$1:$D$18000,SMALL(IF(StockEmplt!$F$3:$F$18000=$E48,ROW($A$3:$A$17998)),AW$28)),"") ->  | AZ48: =IFERROR(INDEX(StockEmplt!$E$1:$E$18000,SMALL(IF(StockEmplt!$F$3:$F$18000=$E48,ROW($A$3:$A$17998)),AZ$28)),"") ->  | BA48: =IFERROR(INDEX(StockEmplt!$C$1:$C$18000,SMALL(IF(StockEmplt!$F$3:$F$18000=$E48,ROW($A$3:$A$17998)),AZ$28)),"") ->  | BB48: =IFERROR(INDEX(StockEmplt!$D$1:$D$18000,SMALL(IF(StockEmplt!$F$3:$F$18000=$E48,ROW($A$3:$A$17998)),AZ$28)),"") ->  | BC48: =IFERROR(INDEX(StockEmplt!$E$1:$E$18000,SMALL(IF(StockEmplt!$F$3:$F$18000=$E48,ROW($A$3:$A$17998)),BC$28)),"") ->  | BD48: =IFERROR(INDEX(StockEmplt!$C$1:$C$18000,SMALL(IF(StockEmplt!$F$3:$F$18000=$E48,ROW($A$3:$A$17998)),BC$28)),"") ->  | BE48: =IFERROR(INDEX(StockEmplt!$D$1:$D$18000,SMALL(IF(StockEmplt!$F$3:$F$18000=$E48,ROW($A$3:$A$17998)),BC$28)),"") ->  | BF48: =IFERROR(INDEX(StockEmplt!$E$1:$E$18000,SMALL(IF(StockEmplt!$F$3:$F$18000=$E48,ROW($A$3:$A$17998)),BF$28)),"") ->  | BG48: =IFERROR(INDEX(StockEmplt!$C$1:$C$18000,SMALL(IF(StockEmplt!$F$3:$F$18000=$E48,ROW($A$3:$A$17998)),BF$28)),"") ->  | BH48: =IFERROR(INDEX(StockEmplt!$D$1:$D$18000,SMALL(IF(StockEmplt!$F$3:$F$18000=$E48,ROW($A$3:$A$17998)),BF$28)),"") ->  | BI48: =IFERROR(INDEX(StockEmplt!$E$1:$E$18000,SMALL(IF(StockEmplt!$F$3:$F$18000=$E48,ROW($A$3:$A$17998)),BI$28)),"") ->  | BJ48: =IFERROR(INDEX(StockEmplt!$C$1:$C$18000,SMALL(IF(StockEmplt!$F$3:$F$18000=$E48,ROW($A$3:$A$17998)),BI$28)),"") ->  | BK48: =IFERROR(INDEX(StockEmplt!$D$1:$D$18000,SMALL(IF(StockEmplt!$F$3:$F$18000=$E48,ROW($A$3:$A$17998)),BI$28)),"") ->  | BL48: =IFERROR(INDEX(StockEmplt!$E$1:$E$18000,SMALL(IF(StockEmplt!$F$3:$F$18000=$E48,ROW($A$3:$A$17998)),BL$28)),"") ->  | BM48: =IFERROR(INDEX(StockEmplt!$C$1:$C$18000,SMALL(IF(StockEmplt!$F$3:$F$18000=$E48,ROW($A$3:$A$17998)),BL$28)),"") ->  | BN48: =IFERROR(INDEX(StockEmplt!$D$1:$D$18000,SMALL(IF(StockEmplt!$F$3:$F$18000=$E48,ROW($A$3:$A$17998)),BL$28)),"") ->  | BO48: =IFERROR(INDEX(StockEmplt!$E$1:$E$18000,SMALL(IF(StockEmplt!$F$3:$F$18000=$E48,ROW($A$3:$A$17998)),BO$28)),"") ->  | BP48: =IFERROR(INDEX(StockEmplt!$C$1:$C$18000,SMALL(IF(StockEmplt!$F$3:$F$18000=$E48,ROW($A$3:$A$17998)),BO$28)),"") ->  | BQ48: =IFERROR(INDEX(StockEmplt!$D$1:$D$18000,SMALL(IF(StockEmplt!$F$3:$F$18000=$E48,ROW($A$3:$A$17998)),BO$28)),"") -> 
A49: M451960 | B49: B100NB1-4 | C49: 30 | D49: 7200111 | E49: B1-4 | F49: 3000 | G49: =IFERROR(INDEX(StockEmplt!$E$1:$E$18000,SMALL(IF(StockEmplt!$F$3:$F$18000=$E49,ROW($A$3:$A$17037)),G$28)),"") -> 3305 | H49: =IFERROR(INDEX(StockEmplt!$C$1:$C$18000,SMALL(IF(StockEmplt!$F$3:$F$18000=$E49,ROW($A$3:$A$17998)),G$28)),"") -> SCCAS | I49: =IFERROR(INDEX(StockEmplt!$D$1:$D$18000,SMALL(IF(StockEmplt!$F$3:$F$18000=$E49,ROW($A$3:$A$17998)),G$28)),"") -> 6JM304400K | J49: =IFERROR(INDEX(StockEmplt!$E$1:$E$18000,SMALL(IF(StockEmplt!$F$3:$F$18000=$E49,ROW($A$3:$A$17998)),J$28)),"") -> 70000 | K49: =IFERROR(INDEX(StockEmplt!$C$1:$C$18000,SMALL(IF(StockEmplt!$F$3:$F$18000=$E49,ROW($A$3:$A$17998)),J$28)),"") -> BB033 | L49: =IFERROR(INDEX(StockEmplt!$D$1:$D$18000,SMALL(IF(StockEmplt!$F$3:$F$18000=$E49,ROW($A$3:$A$17998)),J$28)),"") -> 7CM397810K | M49: =IFERROR(INDEX(StockEmplt!$E$1:$E$18000,SMALL(IF(StockEmplt!$F$3:$F$18000=$E49,ROW($A$3:$A$17037)),M$28)),"") -> 5000 | N49: =IFERROR(INDEX(StockEmplt!$C$1:$C$18000,SMALL(IF(StockEmplt!$F$3:$F$18000=$E49,ROW($A$3:$A$17998)),M$28)),"") -> SCCH | O49: =IFERROR(INDEX(StockEmplt!$D$1:$D$18000,SMALL(IF(StockEmplt!$F$3:$F$18000=$E49,ROW($A$3:$A$17998)),M$28)),"") -> 7CM397810K | P49: =IFERROR(INDEX(StockEmplt!$E$1:$E$18000,SMALL(IF(StockEmplt!$F$3:$F$18000=$E49,ROW($A$3:$A$17037)),P$28)),"") -> 4400 | Q49: =IFERROR(INDEX(StockEmplt!$C$1:$C$18000,SMALL(IF(StockEmplt!$F$3:$F$18000=$E49,ROW($A$3:$A$17998)),P$28)),"") -> SCSIG | R49: =IFERROR(INDEX(StockEmplt!$D$1:$D$18000,SMALL(IF(StockEmplt!$F$3:$F$18000=$E49,ROW($A$3:$A$17998)),P$28)),"") -> 7CM397810K | S49: =IFERROR(INDEX(StockEmplt!$E$1:$E$18000,SMALL(IF(StockEmplt!$F$3:$F$18000=$E49,ROW($A$3:$A$17037)),S$28)),"") ->  | T49: =IFERROR(INDEX(StockEmplt!$C$1:$C$18000,SMALL(IF(StockEmplt!$F$3:$F$18000=$E49,ROW($A$3:$A$17998)),S$28)),"") ->  | U49: =IFERROR(INDEX(StockEmplt!$D$1:$D$18000,SMALL(IF(StockEmplt!$F$3:$F$18000=$E49,ROW($A$3:$A$17998)),S$28)),"") ->  | V49: =IFERROR(INDEX(StockEmplt!$E$1:$E$18000,SMALL(IF(StockEmplt!$F$3:$F$18000=$E49,ROW($A$3:$A$17037)),V$28)),"") ->  | W49: =IFERROR(INDEX(StockEmplt!$C$1:$C$18000,SMALL(IF(StockEmplt!$F$3:$F$18000=$E49,ROW($A$3:$A$17998)),V$28)),"") ->  | X49: =IFERROR(INDEX(StockEmplt!$D$1:$D$18000,SMALL(IF(StockEmplt!$F$3:$F$18000=$E49,ROW($A$3:$A$17998)),V$28)),"") ->  | Y49: =IFERROR(INDEX(StockEmplt!$E$1:$E$18000,SMALL(IF(StockEmplt!$F$3:$F$18000=$E49,ROW($A$3:$A$17037)),Y$28)),"") ->  | Z49: =IFERROR(INDEX(StockEmplt!$C$1:$C$18000,SMALL(IF(StockEmplt!$F$3:$F$18000=$E49,ROW($A$3:$A$17998)),Y$28)),"") ->  | AA49: =IFERROR(INDEX(StockEmplt!$D$1:$D$18000,SMALL(IF(StockEmplt!$F$3:$F$18000=$E49,ROW($A$3:$A$17998)),Y$28)),"") ->  | AB49: =IFERROR(INDEX(StockEmplt!$E$1:$E$18000,SMALL(IF(StockEmplt!$F$3:$F$18000=$E49,ROW($A$3:$A$17037)),AB$28)),"") ->  | AC49: =IFERROR(INDEX(StockEmplt!$C$1:$C$18000,SMALL(IF(StockEmplt!$F$3:$F$18000=$E49,ROW($A$3:$A$17998)),AB$28)),"") ->  | AD49: =IFERROR(INDEX(StockEmplt!$D$1:$D$18000,SMALL(IF(StockEmplt!$F$3:$F$18000=$E49,ROW($A$3:$A$17998)),AB$28)),"") ->  | AE49: =IFERROR(INDEX(StockEmplt!$E$1:$E$18000,SMALL(IF(StockEmplt!$F$3:$F$18000=$E49,ROW($A$3:$A$17037)),AE$28)),"") ->  | AF49: =IFERROR(INDEX(StockEmplt!$C$1:$C$18000,SMALL(IF(StockEmplt!$F$3:$F$18000=$E49,ROW($A$3:$A$17998)),AE$28)),"") ->  | AG49: =IFERROR(INDEX(StockEmplt!$D$1:$D$18000,SMALL(IF(StockEmplt!$F$3:$F$18000=$E49,ROW($A$3:$A$17998)),AE$28)),"") ->  | AH49: =IFERROR(INDEX(StockEmplt!$E$1:$E$18000,SMALL(IF(StockEmplt!$F$3:$F$18000=$E49,ROW($A$3:$A$17037)),AH$28)),"") ->  | AI49: =IFERROR(INDEX(StockEmplt!$C$1:$C$18000,SMALL(IF(StockEmplt!$F$3:$F$18000=$E49,ROW($A$3:$A$17998)),AH$28)),"") ->  | AJ49: =IFERROR(INDEX(StockEmplt!$D$1:$D$18000,SMALL(IF(StockEmplt!$F$3:$F$18000=$E49,ROW($A$3:$A$17998)),AH$28)),"") ->  | AK49: =IFERROR(INDEX(StockEmplt!$E$1:$E$18000,SMALL(IF(StockEmplt!$F$3:$F$18000=$E49,ROW($A$3:$A$17998)),AK$28)),"") ->  | AL49: =IFERROR(INDEX(StockEmplt!$C$1:$C$18000,SMALL(IF(StockEmplt!$F$3:$F$18000=$E49,ROW($A$3:$A$17998)),AK$28)),"") ->  | AM49: =IFERROR(INDEX(StockEmplt!$D$1:$D$18000,SMALL(IF(StockEmplt!$F$3:$F$18000=$E49,ROW($A$3:$A$17998)),AK$28)),"") ->  | AN49: =IFERROR(INDEX(StockEmplt!$E$1:$E$18000,SMALL(IF(StockEmplt!$F$3:$F$18000=$E49,ROW($A$3:$A$17998)),AN$28)),"") ->  | AO49: =IFERROR(INDEX(StockEmplt!$C$1:$C$18000,SMALL(IF(StockEmplt!$F$3:$F$18000=$E49,ROW($A$3:$A$17998)),AN$28)),"") ->  | AP49: =IFERROR(INDEX(StockEmplt!$D$1:$D$18000,SMALL(IF(StockEmplt!$F$3:$F$18000=$E49,ROW($A$3:$A$17998)),AN$28)),"") ->  | AQ49: =IFERROR(INDEX(StockEmplt!$E$1:$E$18000,SMALL(IF(StockEmplt!$F$3:$F$18000=$E49,ROW($A$3:$A$17998)),AQ$28)),"") ->  | AR49: =IFERROR(INDEX(StockEmplt!$C$1:$C$18000,SMALL(IF(StockEmplt!$F$3:$F$18000=$E49,ROW($A$3:$A$17998)),AQ$28)),"") ->  | AS49: =IFERROR(INDEX(StockEmplt!$D$1:$D$18000,SMALL(IF(StockEmplt!$F$3:$F$18000=$E49,ROW($A$3:$A$17998)),AQ$28)),"") ->  | AT49: =IFERROR(INDEX(StockEmplt!$E$1:$E$18000,SMALL(IF(StockEmplt!$F$3:$F$18000=$E49,ROW($A$3:$A$17998)),AT$28)),"") ->  | AU49: =IFERROR(INDEX(StockEmplt!$C$1:$C$18000,SMALL(IF(StockEmplt!$F$3:$F$18000=$E49,ROW($A$3:$A$17998)),AT$28)),"") ->  | AV49: =IFERROR(INDEX(StockEmplt!$D$1:$D$18000,SMALL(IF(StockEmplt!$F$3:$F$18000=$E49,ROW($A$3:$A$17998)),AT$28)),"") ->  | AW49: =IFERROR(INDEX(StockEmplt!$E$1:$E$18000,SMALL(IF(StockEmplt!$F$3:$F$18000=$E49,ROW($A$3:$A$17998)),AW$28)),"") ->  | AX49: =IFERROR(INDEX(StockEmplt!$C$1:$C$18000,SMALL(IF(StockEmplt!$F$3:$F$18000=$E49,ROW($A$3:$A$17998)),AW$28)),"") ->  | AY49: =IFERROR(INDEX(StockEmplt!$D$1:$D$18000,SMALL(IF(StockEmplt!$F$3:$F$18000=$E49,ROW($A$3:$A$17998)),AW$28)),"") ->  | AZ49: =IFERROR(INDEX(StockEmplt!$E$1:$E$18000,SMALL(IF(StockEmplt!$F$3:$F$18000=$E49,ROW($A$3:$A$17998)),AZ$28)),"") ->  | BA49: =IFERROR(INDEX(StockEmplt!$C$1:$C$18000,SMALL(IF(StockEmplt!$F$3:$F$18000=$E49,ROW($A$3:$A$17998)),AZ$28)),"") ->  | BB49: =IFERROR(INDEX(StockEmplt!$D$1:$D$18000,SMALL(IF(StockEmplt!$F$3:$F$18000=$E49,ROW($A$3:$A$17998)),AZ$28)),"") ->  | BC49: =IFERROR(INDEX(StockEmplt!$E$1:$E$18000,SMALL(IF(StockEmplt!$F$3:$F$18000=$E49,ROW($A$3:$A$17998)),BC$28)),"") ->  | BD49: =IFERROR(INDEX(StockEmplt!$C$1:$C$18000,SMALL(IF(StockEmplt!$F$3:$F$18000=$E49,ROW($A$3:$A$17998)),BC$28)),"") ->  | BE49: =IFERROR(INDEX(StockEmplt!$D$1:$D$18000,SMALL(IF(StockEmplt!$F$3:$F$18000=$E49,ROW($A$3:$A$17998)),BC$28)),"") ->  | BF49: =IFERROR(INDEX(StockEmplt!$E$1:$E$18000,SMALL(IF(StockEmplt!$F$3:$F$18000=$E49,ROW($A$3:$A$17998)),BF$28)),"") ->  | BG49: =IFERROR(INDEX(StockEmplt!$C$1:$C$18000,SMALL(IF(StockEmplt!$F$3:$F$18000=$E49,ROW($A$3:$A$17998)),BF$28)),"") ->  | BH49: =IFERROR(INDEX(StockEmplt!$D$1:$D$18000,SMALL(IF(StockEmplt!$F$3:$F$18000=$E49,ROW($A$3:$A$17998)),BF$28)),"") ->  | BI49: =IFERROR(INDEX(StockEmplt!$E$1:$E$18000,SMALL(IF(StockEmplt!$F$3:$F$18000=$E49,ROW($A$3:$A$17998)),BI$28)),"") ->  | BJ49: =IFERROR(INDEX(StockEmplt!$C$1:$C$18000,SMALL(IF(StockEmplt!$F$3:$F$18000=$E49,ROW($A$3:$A$17998)),BI$28)),"") ->  | BK49: =IFERROR(INDEX(StockEmplt!$D$1:$D$18000,SMALL(IF(StockEmplt!$F$3:$F$18000=$E49,ROW($A$3:$A$17998)),BI$28)),"") ->  | BL49: =IFERROR(INDEX(StockEmplt!$E$1:$E$18000,SMALL(IF(StockEmplt!$F$3:$F$18000=$E49,ROW($A$3:$A$17998)),BL$28)),"") ->  | BM49: =IFERROR(INDEX(StockEmplt!$C$1:$C$18000,SMALL(IF(StockEmplt!$F$3:$F$18000=$E49,ROW($A$3:$A$17998)),BL$28)),"") ->  | BN49: =IFERROR(INDEX(StockEmplt!$D$1:$D$18000,SMALL(IF(StockEmplt!$F$3:$F$18000=$E49,ROW($A$3:$A$17998)),BL$28)),"") ->  | BO49: =IFERROR(INDEX(StockEmplt!$E$1:$E$18000,SMALL(IF(StockEmplt!$F$3:$F$18000=$E49,ROW($A$3:$A$17998)),BO$28)),"") ->  | BP49: =IFERROR(INDEX(StockEmplt!$C$1:$C$18000,SMALL(IF(StockEmplt!$F$3:$F$18000=$E49,ROW($A$3:$A$17998)),BO$28)),"") ->  | BQ49: =IFERROR(INDEX(StockEmplt!$D$1:$D$18000,SMALL(IF(StockEmplt!$F$3:$F$18000=$E49,ROW($A$3:$A$17998)),BO$28)),"") -> 
A50: M451940 | B50: NB0-4 | C50: 5000 | D50: 7200114 | E50: B0-4 | F50: 5000 | G50: =IFERROR(INDEX(StockEmplt!$E$1:$E$18000,SMALL(IF(StockEmplt!$F$3:$F$18000=$E50,ROW($A$3:$A$17037)),G$28)),"") -> 300 | H50: =IFERROR(INDEX(StockEmplt!$C$1:$C$18000,SMALL(IF(StockEmplt!$F$3:$F$18000=$E50,ROW($A$3:$A$17998)),G$28)),"") -> EAT32 | I50: =IFERROR(INDEX(StockEmplt!$D$1:$D$18000,SMALL(IF(StockEmplt!$F$3:$F$18000=$E50,ROW($A$3:$A$17998)),G$28)),"") -> 6MM339480K | J50: =IFERROR(INDEX(StockEmplt!$E$1:$E$18000,SMALL(IF(StockEmplt!$F$3:$F$18000=$E50,ROW($A$3:$A$17998)),J$28)),"") -> 59330 | K50: =IFERROR(INDEX(StockEmplt!$C$1:$C$18000,SMALL(IF(StockEmplt!$F$3:$F$18000=$E50,ROW($A$3:$A$17998)),J$28)),"") -> BC034 | L50: =IFERROR(INDEX(StockEmplt!$D$1:$D$18000,SMALL(IF(StockEmplt!$F$3:$F$18000=$E50,ROW($A$3:$A$17998)),J$28)),"") -> 7CM397800K | M50: =IFERROR(INDEX(StockEmplt!$E$1:$E$18000,SMALL(IF(StockEmplt!$F$3:$F$18000=$E50,ROW($A$3:$A$17037)),M$28)),"") ->  | N50: =IFERROR(INDEX(StockEmplt!$C$1:$C$18000,SMALL(IF(StockEmplt!$F$3:$F$18000=$E50,ROW($A$3:$A$17998)),M$28)),"") ->  | O50: =IFERROR(INDEX(StockEmplt!$D$1:$D$18000,SMALL(IF(StockEmplt!$F$3:$F$18000=$E50,ROW($A$3:$A$17998)),M$28)),"") ->  | P50: =IFERROR(INDEX(StockEmplt!$E$1:$E$18000,SMALL(IF(StockEmplt!$F$3:$F$18000=$E50,ROW($A$3:$A$17037)),P$28)),"") ->  | Q50: =IFERROR(INDEX(StockEmplt!$C$1:$C$18000,SMALL(IF(StockEmplt!$F$3:$F$18000=$E50,ROW($A$3:$A$17998)),P$28)),"") ->  | R50: =IFERROR(INDEX(StockEmplt!$D$1:$D$18000,SMALL(IF(StockEmplt!$F$3:$F$18000=$E50,ROW($A$3:$A$17998)),P$28)),"") ->  | S50: =IFERROR(INDEX(StockEmplt!$E$1:$E$18000,SMALL(IF(StockEmplt!$F$3:$F$18000=$E50,ROW($A$3:$A$17037)),S$28)),"") ->  | T50: =IFERROR(INDEX(StockEmplt!$C$1:$C$18000,SMALL(IF(StockEmplt!$F$3:$F$18000=$E50,ROW($A$3:$A$17998)),S$28)),"") ->  | U50: =IFERROR(INDEX(StockEmplt!$D$1:$D$18000,SMALL(IF(StockEmplt!$F$3:$F$18000=$E50,ROW($A$3:$A$17998)),S$28)),"") ->  | V50: =IFERROR(INDEX(StockEmplt!$E$1:$E$18000,SMALL(IF(StockEmplt!$F$3:$F$18000=$E50,ROW($A$3:$A$17037)),V$28)),"") ->  | W50: =IFERROR(INDEX(StockEmplt!$C$1:$C$18000,SMALL(IF(StockEmplt!$F$3:$F$18000=$E50,ROW($A$3:$A$17998)),V$28)),"") ->  | X50: =IFERROR(INDEX(StockEmplt!$D$1:$D$18000,SMALL(IF(StockEmplt!$F$3:$F$18000=$E50,ROW($A$3:$A$17998)),V$28)),"") ->  | Y50: =IFERROR(INDEX(StockEmplt!$E$1:$E$18000,SMALL(IF(StockEmplt!$F$3:$F$18000=$E50,ROW($A$3:$A$17037)),Y$28)),"") ->  | Z50: =IFERROR(INDEX(StockEmplt!$C$1:$C$18000,SMALL(IF(StockEmplt!$F$3:$F$18000=$E50,ROW($A$3:$A$17998)),Y$28)),"") ->  | AA50: =IFERROR(INDEX(StockEmplt!$D$1:$D$18000,SMALL(IF(StockEmplt!$F$3:$F$18000=$E50,ROW($A$3:$A$17998)),Y$28)),"") ->  | AB50: =IFERROR(INDEX(StockEmplt!$E$1:$E$18000,SMALL(IF(StockEmplt!$F$3:$F$18000=$E50,ROW($A$3:$A$17037)),AB$28)),"") ->  | AC50: =IFERROR(INDEX(StockEmplt!$C$1:$C$18000,SMALL(IF(StockEmplt!$F$3:$F$18000=$E50,ROW($A$3:$A$17998)),AB$28)),"") ->  | AD50: =IFERROR(INDEX(StockEmplt!$D$1:$D$18000,SMALL(IF(StockEmplt!$F$3:$F$18000=$E50,ROW($A$3:$A$17998)),AB$28)),"") ->  | AE50: =IFERROR(INDEX(StockEmplt!$E$1:$E$18000,SMALL(IF(StockEmplt!$F$3:$F$18000=$E50,ROW($A$3:$A$17037)),AE$28)),"") ->  | AF50: =IFERROR(INDEX(StockEmplt!$C$1:$C$18000,SMALL(IF(StockEmplt!$F$3:$F$18000=$E50,ROW($A$3:$A$17998)),AE$28)),"") ->  | AG50: =IFERROR(INDEX(StockEmplt!$D$1:$D$18000,SMALL(IF(StockEmplt!$F$3:$F$18000=$E50,ROW($A$3:$A$17998)),AE$28)),"") ->  | AH50: =IFERROR(INDEX(StockEmplt!$E$1:$E$18000,SMALL(IF(StockEmplt!$F$3:$F$18000=$E50,ROW($A$3:$A$17037)),AH$28)),"") ->  | AI50: =IFERROR(INDEX(StockEmplt!$C$1:$C$18000,SMALL(IF(StockEmplt!$F$3:$F$18000=$E50,ROW($A$3:$A$17998)),AH$28)),"") ->  | AJ50: =IFERROR(INDEX(StockEmplt!$D$1:$D$18000,SMALL(IF(StockEmplt!$F$3:$F$18000=$E50,ROW($A$3:$A$17998)),AH$28)),"") ->  | AK50: =IFERROR(INDEX(StockEmplt!$E$1:$E$18000,SMALL(IF(StockEmplt!$F$3:$F$18000=$E50,ROW($A$3:$A$17998)),AK$28)),"") ->  | AL50: =IFERROR(INDEX(StockEmplt!$C$1:$C$18000,SMALL(IF(StockEmplt!$F$3:$F$18000=$E50,ROW($A$3:$A$17998)),AK$28)),"") ->  | AM50: =IFERROR(INDEX(StockEmplt!$D$1:$D$18000,SMALL(IF(StockEmplt!$F$3:$F$18000=$E50,ROW($A$3:$A$17998)),AK$28)),"") ->  | AN50: =IFERROR(INDEX(StockEmplt!$E$1:$E$18000,SMALL(IF(StockEmplt!$F$3:$F$18000=$E50,ROW($A$3:$A$17998)),AN$28)),"") ->  | AO50: =IFERROR(INDEX(StockEmplt!$C$1:$C$18000,SMALL(IF(StockEmplt!$F$3:$F$18000=$E50,ROW($A$3:$A$17998)),AN$28)),"") ->  | AP50: =IFERROR(INDEX(StockEmplt!$D$1:$D$18000,SMALL(IF(StockEmplt!$F$3:$F$18000=$E50,ROW($A$3:$A$17998)),AN$28)),"") ->  | AQ50: =IFERROR(INDEX(StockEmplt!$E$1:$E$18000,SMALL(IF(StockEmplt!$F$3:$F$18000=$E50,ROW($A$3:$A$17998)),AQ$28)),"") ->  | AR50: =IFERROR(INDEX(StockEmplt!$C$1:$C$18000,SMALL(IF(StockEmplt!$F$3:$F$18000=$E50,ROW($A$3:$A$17998)),AQ$28)),"") ->  | AS50: =IFERROR(INDEX(StockEmplt!$D$1:$D$18000,SMALL(IF(StockEmplt!$F$3:$F$18000=$E50,ROW($A$3:$A$17998)),AQ$28)),"") ->  | AT50: =IFERROR(INDEX(StockEmplt!$E$1:$E$18000,SMALL(IF(StockEmplt!$F$3:$F$18000=$E50,ROW($A$3:$A$17998)),AT$28)),"") ->  | AU50: =IFERROR(INDEX(StockEmplt!$C$1:$C$18000,SMALL(IF(StockEmplt!$F$3:$F$18000=$E50,ROW($A$3:$A$17998)),AT$28)),"") ->  | AV50: =IFERROR(INDEX(StockEmplt!$D$1:$D$18000,SMALL(IF(StockEmplt!$F$3:$F$18000=$E50,ROW($A$3:$A$17998)),AT$28)),"") ->  | AW50: =IFERROR(INDEX(StockEmplt!$E$1:$E$18000,SMALL(IF(StockEmplt!$F$3:$F$18000=$E50,ROW($A$3:$A$17998)),AW$28)),"") ->  | AX50: =IFERROR(INDEX(StockEmplt!$C$1:$C$18000,SMALL(IF(StockEmplt!$F$3:$F$18000=$E50,ROW($A$3:$A$17998)),AW$28)),"") ->  | AY50: =IFERROR(INDEX(StockEmplt!$D$1:$D$18000,SMALL(IF(StockEmplt!$F$3:$F$18000=$E50,ROW($A$3:$A$17998)),AW$28)),"") ->  | AZ50: =IFERROR(INDEX(StockEmplt!$E$1:$E$18000,SMALL(IF(StockEmplt!$F$3:$F$18000=$E50,ROW($A$3:$A$17998)),AZ$28)),"") ->  | BA50: =IFERROR(INDEX(StockEmplt!$C$1:$C$18000,SMALL(IF(StockEmplt!$F$3:$F$18000=$E50,ROW($A$3:$A$17998)),AZ$28)),"") ->  | BB50: =IFERROR(INDEX(StockEmplt!$D$1:$D$18000,SMALL(IF(StockEmplt!$F$3:$F$18000=$E50,ROW($A$3:$A$17998)),AZ$28)),"") ->  | BC50: =IFERROR(INDEX(StockEmplt!$E$1:$E$18000,SMALL(IF(StockEmplt!$F$3:$F$18000=$E50,ROW($A$3:$A$17998)),BC$28)),"") ->  | BD50: =IFERROR(INDEX(StockEmplt!$C$1:$C$18000,SMALL(IF(StockEmplt!$F$3:$F$18000=$E50,ROW($A$3:$A$17998)),BC$28)),"") ->  | BE50: =IFERROR(INDEX(StockEmplt!$D$1:$D$18000,SMALL(IF(StockEmplt!$F$3:$F$18000=$E50,ROW($A$3:$A$17998)),BC$28)),"") ->  | BF50: =IFERROR(INDEX(StockEmplt!$E$1:$E$18000,SMALL(IF(StockEmplt!$F$3:$F$18000=$E50,ROW($A$3:$A$17998)),BF$28)),"") ->  | BG50: =IFERROR(INDEX(StockEmplt!$C$1:$C$18000,SMALL(IF(StockEmplt!$F$3:$F$18000=$E50,ROW($A$3:$A$17998)),BF$28)),"") ->  | BH50: =IFERROR(INDEX(StockEmplt!$D$1:$D$18000,SMALL(IF(StockEmplt!$F$3:$F$18000=$E50,ROW($A$3:$A$17998)),BF$28)),"") ->  | BI50: =IFERROR(INDEX(StockEmplt!$E$1:$E$18000,SMALL(IF(StockEmplt!$F$3:$F$18000=$E50,ROW($A$3:$A$17998)),BI$28)),"") ->  | BJ50: =IFERROR(INDEX(StockEmplt!$C$1:$C$18000,SMALL(IF(StockEmplt!$F$3:$F$18000=$E50,ROW($A$3:$A$17998)),BI$28)),"") ->  | BK50: =IFERROR(INDEX(StockEmplt!$D$1:$D$18000,SMALL(IF(StockEmplt!$F$3:$F$18000=$E50,ROW($A$3:$A$17998)),BI$28)),"") ->  | BL50: =IFERROR(INDEX(StockEmplt!$E$1:$E$18000,SMALL(IF(StockEmplt!$F$3:$F$18000=$E50,ROW($A$3:$A$17998)),BL$28)),"") ->  | BM50: =IFERROR(INDEX(StockEmplt!$C$1:$C$18000,SMALL(IF(StockEmplt!$F$3:$F$18000=$E50,ROW($A$3:$A$17998)),BL$28)),"") ->  | BN50: =IFERROR(INDEX(StockEmplt!$D$1:$D$18000,SMALL(IF(StockEmplt!$F$3:$F$18000=$E50,ROW($A$3:$A$17998)),BL$28)),"") ->  | BO50: =IFERROR(INDEX(StockEmplt!$E$1:$E$18000,SMALL(IF(StockEmplt!$F$3:$F$18000=$E50,ROW($A$3:$A$17998)),BO$28)),"") ->  | BP50: =IFERROR(INDEX(StockEmplt!$C$1:$C$18000,SMALL(IF(StockEmplt!$F$3:$F$18000=$E50,ROW($A$3:$A$17998)),BO$28)),"") ->  | BQ50: =IFERROR(INDEX(StockEmplt!$D$1:$D$18000,SMALL(IF(StockEmplt!$F$3:$F$18000=$E50,ROW($A$3:$A$17998)),BO$28)),"") -> 
A51: M451950 | B51: B100NB0-5 | C51: 50 | D51: 7200124 | E51: B0-5 | F51: 5000 | G51: =IFERROR(INDEX(StockEmplt!$E$1:$E$18000,SMALL(IF(StockEmplt!$F$3:$F$18000=$E51,ROW($A$3:$A$17037)),G$28)),"") -> 775 | H51: =IFERROR(INDEX(StockEmplt!$C$1:$C$18000,SMALL(IF(StockEmplt!$F$3:$F$18000=$E51,ROW($A$3:$A$17998)),G$28)),"") -> BC043 | I51: =IFERROR(INDEX(StockEmplt!$D$1:$D$18000,SMALL(IF(StockEmplt!$F$3:$F$18000=$E51,ROW($A$3:$A$17998)),G$28)),"") -> 6JM314840K | J51: =IFERROR(INDEX(StockEmplt!$E$1:$E$18000,SMALL(IF(StockEmplt!$F$3:$F$18000=$E51,ROW($A$3:$A$17998)),J$28)),"") -> 10000 | K51: =IFERROR(INDEX(StockEmplt!$C$1:$C$18000,SMALL(IF(StockEmplt!$F$3:$F$18000=$E51,ROW($A$3:$A$17998)),J$28)),"") -> SCCV | L51: =IFERROR(INDEX(StockEmplt!$D$1:$D$18000,SMALL(IF(StockEmplt!$F$3:$F$18000=$E51,ROW($A$3:$A$17998)),J$28)),"") -> 6JM314840K | M51: =IFERROR(INDEX(StockEmplt!$E$1:$E$18000,SMALL(IF(StockEmplt!$F$3:$F$18000=$E51,ROW($A$3:$A$17037)),M$28)),"") -> 54129 | N51: =IFERROR(INDEX(StockEmplt!$C$1:$C$18000,SMALL(IF(StockEmplt!$F$3:$F$18000=$E51,ROW($A$3:$A$17998)),M$28)),"") -> EAT12 | O51: =IFERROR(INDEX(StockEmplt!$D$1:$D$18000,SMALL(IF(StockEmplt!$F$3:$F$18000=$E51,ROW($A$3:$A$17998)),M$28)),"") -> 7EM419820K | P51: =IFERROR(INDEX(StockEmplt!$E$1:$E$18000,SMALL(IF(StockEmplt!$F$3:$F$18000=$E51,ROW($A$3:$A$17037)),P$28)),"") ->  | Q51: =IFERROR(INDEX(StockEmplt!$C$1:$C$18000,SMALL(IF(StockEmplt!$F$3:$F$18000=$E51,ROW($A$3:$A$17998)),P$28)),"") ->  | R51: =IFERROR(INDEX(StockEmplt!$D$1:$D$18000,SMALL(IF(StockEmplt!$F$3:$F$18000=$E51,ROW($A$3:$A$17998)),P$28)),"") ->  | S51: =IFERROR(INDEX(StockEmplt!$E$1:$E$18000,SMALL(IF(StockEmplt!$F$3:$F$18000=$E51,ROW($A$3:$A$17037)),S$28)),"") ->  | T51: =IFERROR(INDEX(StockEmplt!$C$1:$C$18000,SMALL(IF(StockEmplt!$F$3:$F$18000=$E51,ROW($A$3:$A$17998)),S$28)),"") ->  | U51: =IFERROR(INDEX(StockEmplt!$D$1:$D$18000,SMALL(IF(StockEmplt!$F$3:$F$18000=$E51,ROW($A$3:$A$17998)),S$28)),"") ->  | V51: =IFERROR(INDEX(StockEmplt!$E$1:$E$18000,SMALL(IF(StockEmplt!$F$3:$F$18000=$E51,ROW($A$3:$A$17037)),V$28)),"") ->  | W51: =IFERROR(INDEX(StockEmplt!$C$1:$C$18000,SMALL(IF(StockEmplt!$F$3:$F$18000=$E51,ROW($A$3:$A$17998)),V$28)),"") ->  | X51: =IFERROR(INDEX(StockEmplt!$D$1:$D$18000,SMALL(IF(StockEmplt!$F$3:$F$18000=$E51,ROW($A$3:$A$17998)),V$28)),"") ->  | Y51: =IFERROR(INDEX(StockEmplt!$E$1:$E$18000,SMALL(IF(StockEmplt!$F$3:$F$18000=$E51,ROW($A$3:$A$17037)),Y$28)),"") ->  | Z51: =IFERROR(INDEX(StockEmplt!$C$1:$C$18000,SMALL(IF(StockEmplt!$F$3:$F$18000=$E51,ROW($A$3:$A$17998)),Y$28)),"") ->  | AA51: =IFERROR(INDEX(StockEmplt!$D$1:$D$18000,SMALL(IF(StockEmplt!$F$3:$F$18000=$E51,ROW($A$3:$A$17998)),Y$28)),"") ->  | AB51: =IFERROR(INDEX(StockEmplt!$E$1:$E$18000,SMALL(IF(StockEmplt!$F$3:$F$18000=$E51,ROW($A$3:$A$17037)),AB$28)),"") ->  | AC51: =IFERROR(INDEX(StockEmplt!$C$1:$C$18000,SMALL(IF(StockEmplt!$F$3:$F$18000=$E51,ROW($A$3:$A$17998)),AB$28)),"") ->  | AD51: =IFERROR(INDEX(StockEmplt!$D$1:$D$18000,SMALL(IF(StockEmplt!$F$3:$F$18000=$E51,ROW($A$3:$A$17998)),AB$28)),"") ->  | AE51: =IFERROR(INDEX(StockEmplt!$E$1:$E$18000,SMALL(IF(StockEmplt!$F$3:$F$18000=$E51,ROW($A$3:$A$17037)),AE$28)),"") ->  | AF51: =IFERROR(INDEX(StockEmplt!$C$1:$C$18000,SMALL(IF(StockEmplt!$F$3:$F$18000=$E51,ROW($A$3:$A$17998)),AE$28)),"") ->  | AG51: =IFERROR(INDEX(StockEmplt!$D$1:$D$18000,SMALL(IF(StockEmplt!$F$3:$F$18000=$E51,ROW($A$3:$A$17998)),AE$28)),"") ->  | AH51: =IFERROR(INDEX(StockEmplt!$E$1:$E$18000,SMALL(IF(StockEmplt!$F$3:$F$18000=$E51,ROW($A$3:$A$17037)),AH$28)),"") ->  | AI51: =IFERROR(INDEX(StockEmplt!$C$1:$C$18000,SMALL(IF(StockEmplt!$F$3:$F$18000=$E51,ROW($A$3:$A$17998)),AH$28)),"") ->  | AJ51: =IFERROR(INDEX(StockEmplt!$D$1:$D$18000,SMALL(IF(StockEmplt!$F$3:$F$18000=$E51,ROW($A$3:$A$17998)),AH$28)),"") ->  | AK51: =IFERROR(INDEX(StockEmplt!$E$1:$E$18000,SMALL(IF(StockEmplt!$F$3:$F$18000=$E51,ROW($A$3:$A$17998)),AK$28)),"") ->  | AL51: =IFERROR(INDEX(StockEmplt!$C$1:$C$18000,SMALL(IF(StockEmplt!$F$3:$F$18000=$E51,ROW($A$3:$A$17998)),AK$28)),"") ->  | AM51: =IFERROR(INDEX(StockEmplt!$D$1:$D$18000,SMALL(IF(StockEmplt!$F$3:$F$18000=$E51,ROW($A$3:$A$17998)),AK$28)),"") ->  | AN51: =IFERROR(INDEX(StockEmplt!$E$1:$E$18000,SMALL(IF(StockEmplt!$F$3:$F$18000=$E51,ROW($A$3:$A$17998)),AN$28)),"") ->  | AO51: =IFERROR(INDEX(StockEmplt!$C$1:$C$18000,SMALL(IF(StockEmplt!$F$3:$F$18000=$E51,ROW($A$3:$A$17998)),AN$28)),"") ->  | AP51: =IFERROR(INDEX(StockEmplt!$D$1:$D$18000,SMALL(IF(StockEmplt!$F$3:$F$18000=$E51,ROW($A$3:$A$17998)),AN$28)),"") ->  | AQ51: =IFERROR(INDEX(StockEmplt!$E$1:$E$18000,SMALL(IF(StockEmplt!$F$3:$F$18000=$E51,ROW($A$3:$A$17998)),AQ$28)),"") ->  | AR51: =IFERROR(INDEX(StockEmplt!$C$1:$C$18000,SMALL(IF(StockEmplt!$F$3:$F$18000=$E51,ROW($A$3:$A$17998)),AQ$28)),"") ->  | AS51: =IFERROR(INDEX(StockEmplt!$D$1:$D$18000,SMALL(IF(StockEmplt!$F$3:$F$18000=$E51,ROW($A$3:$A$17998)),AQ$28)),"") ->  | AT51: =IFERROR(INDEX(StockEmplt!$E$1:$E$18000,SMALL(IF(StockEmplt!$F$3:$F$18000=$E51,ROW($A$3:$A$17998)),AT$28)),"") ->  | AU51: =IFERROR(INDEX(StockEmplt!$C$1:$C$18000,SMALL(IF(StockEmplt!$F$3:$F$18000=$E51,ROW($A$3:$A$17998)),AT$28)),"") ->  | AV51: =IFERROR(INDEX(StockEmplt!$D$1:$D$18000,SMALL(IF(StockEmplt!$F$3:$F$18000=$E51,ROW($A$3:$A$17998)),AT$28)),"") ->  | AW51: =IFERROR(INDEX(StockEmplt!$E$1:$E$18000,SMALL(IF(StockEmplt!$F$3:$F$18000=$E51,ROW($A$3:$A$17998)),AW$28)),"") ->  | AX51: =IFERROR(INDEX(StockEmplt!$C$1:$C$18000,SMALL(IF(StockEmplt!$F$3:$F$18000=$E51,ROW($A$3:$A$17998)),AW$28)),"") ->  | AY51: =IFERROR(INDEX(StockEmplt!$D$1:$D$18000,SMALL(IF(StockEmplt!$F$3:$F$18000=$E51,ROW($A$3:$A$17998)),AW$28)),"") ->  | AZ51: =IFERROR(INDEX(StockEmplt!$E$1:$E$18000,SMALL(IF(StockEmplt!$F$3:$F$18000=$E51,ROW($A$3:$A$17998)),AZ$28)),"") ->  | BA51: =IFERROR(INDEX(StockEmplt!$C$1:$C$18000,SMALL(IF(StockEmplt!$F$3:$F$18000=$E51,ROW($A$3:$A$17998)),AZ$28)),"") ->  | BB51: =IFERROR(INDEX(StockEmplt!$D$1:$D$18000,SMALL(IF(StockEmplt!$F$3:$F$18000=$E51,ROW($A$3:$A$17998)),AZ$28)),"") ->  | BC51: =IFERROR(INDEX(StockEmplt!$E$1:$E$18000,SMALL(IF(StockEmplt!$F$3:$F$18000=$E51,ROW($A$3:$A$17998)),BC$28)),"") ->  | BD51: =IFERROR(INDEX(StockEmplt!$C$1:$C$18000,SMALL(IF(StockEmplt!$F$3:$F$18000=$E51,ROW($A$3:$A$17998)),BC$28)),"") ->  | BE51: =IFERROR(INDEX(StockEmplt!$D$1:$D$18000,SMALL(IF(StockEmplt!$F$3:$F$18000=$E51,ROW($A$3:$A$17998)),BC$28)),"") ->  | BF51: =IFERROR(INDEX(StockEmplt!$E$1:$E$18000,SMALL(IF(StockEmplt!$F$3:$F$18000=$E51,ROW($A$3:$A$17998)),BF$28)),"") ->  | BG51: =IFERROR(INDEX(StockEmplt!$C$1:$C$18000,SMALL(IF(StockEmplt!$F$3:$F$18000=$E51,ROW($A$3:$A$17998)),BF$28)),"") ->  | BH51: =IFERROR(INDEX(StockEmplt!$D$1:$D$18000,SMALL(IF(StockEmplt!$F$3:$F$18000=$E51,ROW($A$3:$A$17998)),BF$28)),"") ->  | BI51: =IFERROR(INDEX(StockEmplt!$E$1:$E$18000,SMALL(IF(StockEmplt!$F$3:$F$18000=$E51,ROW($A$3:$A$17998)),BI$28)),"") ->  | BJ51: =IFERROR(INDEX(StockEmplt!$C$1:$C$18000,SMALL(IF(StockEmplt!$F$3:$F$18000=$E51,ROW($A$3:$A$17998)),BI$28)),"") ->  | BK51: =IFERROR(INDEX(StockEmplt!$D$1:$D$18000,SMALL(IF(StockEmplt!$F$3:$F$18000=$E51,ROW($A$3:$A$17998)),BI$28)),"") ->  | BL51: =IFERROR(INDEX(StockEmplt!$E$1:$E$18000,SMALL(IF(StockEmplt!$F$3:$F$18000=$E51,ROW($A$3:$A$17998)),BL$28)),"") ->  | BM51: =IFERROR(INDEX(StockEmplt!$C$1:$C$18000,SMALL(IF(StockEmplt!$F$3:$F$18000=$E51,ROW($A$3:$A$17998)),BL$28)),"") ->  | BN51: =IFERROR(INDEX(StockEmplt!$D$1:$D$18000,SMALL(IF(StockEmplt!$F$3:$F$18000=$E51,ROW($A$3:$A$17998)),BL$28)),"") ->  | BO51: =IFERROR(INDEX(StockEmplt!$E$1:$E$18000,SMALL(IF(StockEmplt!$F$3:$F$18000=$E51,ROW($A$3:$A$17998)),BO$28)),"") ->  | BP51: =IFERROR(INDEX(StockEmplt!$C$1:$C$18000,SMALL(IF(StockEmplt!$F$3:$F$18000=$E51,ROW($A$3:$A$17998)),BO$28)),"") ->  | BQ51: =IFERROR(INDEX(StockEmplt!$D$1:$D$18000,SMALL(IF(StockEmplt!$F$3:$F$18000=$E51,ROW($A$3:$A$17998)),BO$28)),"") -> 
A52: M452010 | B52: B100NC2-12 | C52: 40 | D52: 7200241 | E52: C2-12 | F52: 4000 | G52: =IFERROR(INDEX(StockEmplt!$E$1:$E$18000,SMALL(IF(StockEmplt!$F$3:$F$18000=$E52,ROW($A$3:$A$17037)),G$28)),"") -> 3000 | H52: =IFERROR(INDEX(StockEmplt!$C$1:$C$18000,SMALL(IF(StockEmplt!$F$3:$F$18000=$E52,ROW($A$3:$A$17998)),G$28)),"") -> CK011 | I52: =IFERROR(INDEX(StockEmplt!$D$1:$D$18000,SMALL(IF(StockEmplt!$F$3:$F$18000=$E52,ROW($A$3:$A$17998)),G$28)),"") -> 4MP4694300 | J52: =IFERROR(INDEX(StockEmplt!$E$1:$E$18000,SMALL(IF(StockEmplt!$F$3:$F$18000=$E52,ROW($A$3:$A$17998)),J$28)),"") -> 7000 | K52: =IFERROR(INDEX(StockEmplt!$C$1:$C$18000,SMALL(IF(StockEmplt!$F$3:$F$18000=$E52,ROW($A$3:$A$17998)),J$28)),"") -> BB010 | L52: =IFERROR(INDEX(StockEmplt!$D$1:$D$18000,SMALL(IF(StockEmplt!$F$3:$F$18000=$E52,ROW($A$3:$A$17998)),J$28)),"") -> 7EP0891900 | M52: =IFERROR(INDEX(StockEmplt!$E$1:$E$18000,SMALL(IF(StockEmplt!$F$3:$F$18000=$E52,ROW($A$3:$A$17037)),M$28)),"") -> 500 | N52: =IFERROR(INDEX(StockEmplt!$C$1:$C$18000,SMALL(IF(StockEmplt!$F$3:$F$18000=$E52,ROW($A$3:$A$17998)),M$28)),"") -> SCSIG | O52: =IFERROR(INDEX(StockEmplt!$D$1:$D$18000,SMALL(IF(StockEmplt!$F$3:$F$18000=$E52,ROW($A$3:$A$17998)),M$28)),"") -> 7EP0891900 | P52: =IFERROR(INDEX(StockEmplt!$E$1:$E$18000,SMALL(IF(StockEmplt!$F$3:$F$18000=$E52,ROW($A$3:$A$17037)),P$28)),"") ->  | Q52: =IFERROR(INDEX(StockEmplt!$C$1:$C$18000,SMALL(IF(StockEmplt!$F$3:$F$18000=$E52,ROW($A$3:$A$17998)),P$28)),"") ->  | R52: =IFERROR(INDEX(StockEmplt!$D$1:$D$18000,SMALL(IF(StockEmplt!$F$3:$F$18000=$E52,ROW($A$3:$A$17998)),P$28)),"") ->  | S52: =IFERROR(INDEX(StockEmplt!$E$1:$E$18000,SMALL(IF(StockEmplt!$F$3:$F$18000=$E52,ROW($A$3:$A$17037)),S$28)),"") ->  | T52: =IFERROR(INDEX(StockEmplt!$C$1:$C$18000,SMALL(IF(StockEmplt!$F$3:$F$18000=$E52,ROW($A$3:$A$17998)),S$28)),"") ->  | U52: =IFERROR(INDEX(StockEmplt!$D$1:$D$18000,SMALL(IF(StockEmplt!$F$3:$F$18000=$E52,ROW($A$3:$A$17998)),S$28)),"") ->  | V52: =IFERROR(INDEX(StockEmplt!$E$1:$E$18000,SMALL(IF(StockEmplt!$F$3:$F$18000=$E52,ROW($A$3:$A$17037)),V$28)),"") ->  | W52: =IFERROR(INDEX(StockEmplt!$C$1:$C$18000,SMALL(IF(StockEmplt!$F$3:$F$18000=$E52,ROW($A$3:$A$17998)),V$28)),"") ->  | X52: =IFERROR(INDEX(StockEmplt!$D$1:$D$18000,SMALL(IF(StockEmplt!$F$3:$F$18000=$E52,ROW($A$3:$A$17998)),V$28)),"") ->  | Y52: =IFERROR(INDEX(StockEmplt!$E$1:$E$18000,SMALL(IF(StockEmplt!$F$3:$F$18000=$E52,ROW($A$3:$A$17037)),Y$28)),"") ->  | Z52: =IFERROR(INDEX(StockEmplt!$C$1:$C$18000,SMALL(IF(StockEmplt!$F$3:$F$18000=$E52,ROW($A$3:$A$17998)),Y$28)),"") ->  | AA52: =IFERROR(INDEX(StockEmplt!$D$1:$D$18000,SMALL(IF(StockEmplt!$F$3:$F$18000=$E52,ROW($A$3:$A$17998)),Y$28)),"") ->  | AB52: =IFERROR(INDEX(StockEmplt!$E$1:$E$18000,SMALL(IF(StockEmplt!$F$3:$F$18000=$E52,ROW($A$3:$A$17037)),AB$28)),"") ->  | AC52: =IFERROR(INDEX(StockEmplt!$C$1:$C$18000,SMALL(IF(StockEmplt!$F$3:$F$18000=$E52,ROW($A$3:$A$17998)),AB$28)),"") ->  | AD52: =IFERROR(INDEX(StockEmplt!$D$1:$D$18000,SMALL(IF(StockEmplt!$F$3:$F$18000=$E52,ROW($A$3:$A$17998)),AB$28)),"") ->  | AE52: =IFERROR(INDEX(StockEmplt!$E$1:$E$18000,SMALL(IF(StockEmplt!$F$3:$F$18000=$E52,ROW($A$3:$A$17037)),AE$28)),"") ->  | AF52: =IFERROR(INDEX(StockEmplt!$C$1:$C$18000,SMALL(IF(StockEmplt!$F$3:$F$18000=$E52,ROW($A$3:$A$17998)),AE$28)),"") ->  | AG52: =IFERROR(INDEX(StockEmplt!$D$1:$D$18000,SMALL(IF(StockEmplt!$F$3:$F$18000=$E52,ROW($A$3:$A$17998)),AE$28)),"") ->  | AH52: =IFERROR(INDEX(StockEmplt!$E$1:$E$18000,SMALL(IF(StockEmplt!$F$3:$F$18000=$E52,ROW($A$3:$A$17037)),AH$28)),"") ->  | AI52: =IFERROR(INDEX(StockEmplt!$C$1:$C$18000,SMALL(IF(StockEmplt!$F$3:$F$18000=$E52,ROW($A$3:$A$17998)),AH$28)),"") ->  | AJ52: =IFERROR(INDEX(StockEmplt!$D$1:$D$18000,SMALL(IF(StockEmplt!$F$3:$F$18000=$E52,ROW($A$3:$A$17998)),AH$28)),"") ->  | AK52: =IFERROR(INDEX(StockEmplt!$E$1:$E$18000,SMALL(IF(StockEmplt!$F$3:$F$18000=$E52,ROW($A$3:$A$17998)),AK$28)),"") ->  | AL52: =IFERROR(INDEX(StockEmplt!$C$1:$C$18000,SMALL(IF(StockEmplt!$F$3:$F$18000=$E52,ROW($A$3:$A$17998)),AK$28)),"") ->  | AM52: =IFERROR(INDEX(StockEmplt!$D$1:$D$18000,SMALL(IF(StockEmplt!$F$3:$F$18000=$E52,ROW($A$3:$A$17998)),AK$28)),"") ->  | AN52: =IFERROR(INDEX(StockEmplt!$E$1:$E$18000,SMALL(IF(StockEmplt!$F$3:$F$18000=$E52,ROW($A$3:$A$17998)),AN$28)),"") ->  | AO52: =IFERROR(INDEX(StockEmplt!$C$1:$C$18000,SMALL(IF(StockEmplt!$F$3:$F$18000=$E52,ROW($A$3:$A$17998)),AN$28)),"") ->  | AP52: =IFERROR(INDEX(StockEmplt!$D$1:$D$18000,SMALL(IF(StockEmplt!$F$3:$F$18000=$E52,ROW($A$3:$A$17998)),AN$28)),"") ->  | AQ52: =IFERROR(INDEX(StockEmplt!$E$1:$E$18000,SMALL(IF(StockEmplt!$F$3:$F$18000=$E52,ROW($A$3:$A$17998)),AQ$28)),"") ->  | AR52: =IFERROR(INDEX(StockEmplt!$C$1:$C$18000,SMALL(IF(StockEmplt!$F$3:$F$18000=$E52,ROW($A$3:$A$17998)),AQ$28)),"") ->  | AS52: =IFERROR(INDEX(StockEmplt!$D$1:$D$18000,SMALL(IF(StockEmplt!$F$3:$F$18000=$E52,ROW($A$3:$A$17998)),AQ$28)),"") ->  | AT52: =IFERROR(INDEX(StockEmplt!$E$1:$E$18000,SMALL(IF(StockEmplt!$F$3:$F$18000=$E52,ROW($A$3:$A$17998)),AT$28)),"") ->  | AU52: =IFERROR(INDEX(StockEmplt!$C$1:$C$18000,SMALL(IF(StockEmplt!$F$3:$F$18000=$E52,ROW($A$3:$A$17998)),AT$28)),"") ->  | AV52: =IFERROR(INDEX(StockEmplt!$D$1:$D$18000,SMALL(IF(StockEmplt!$F$3:$F$18000=$E52,ROW($A$3:$A$17998)),AT$28)),"") ->  | AW52: =IFERROR(INDEX(StockEmplt!$E$1:$E$18000,SMALL(IF(StockEmplt!$F$3:$F$18000=$E52,ROW($A$3:$A$17998)),AW$28)),"") ->  | AX52: =IFERROR(INDEX(StockEmplt!$C$1:$C$18000,SMALL(IF(StockEmplt!$F$3:$F$18000=$E52,ROW($A$3:$A$17998)),AW$28)),"") ->  | AY52: =IFERROR(INDEX(StockEmplt!$D$1:$D$18000,SMALL(IF(StockEmplt!$F$3:$F$18000=$E52,ROW($A$3:$A$17998)),AW$28)),"") ->  | AZ52: =IFERROR(INDEX(StockEmplt!$E$1:$E$18000,SMALL(IF(StockEmplt!$F$3:$F$18000=$E52,ROW($A$3:$A$17998)),AZ$28)),"") ->  | BA52: =IFERROR(INDEX(StockEmplt!$C$1:$C$18000,SMALL(IF(StockEmplt!$F$3:$F$18000=$E52,ROW($A$3:$A$17998)),AZ$28)),"") ->  | BB52: =IFERROR(INDEX(StockEmplt!$D$1:$D$18000,SMALL(IF(StockEmplt!$F$3:$F$18000=$E52,ROW($A$3:$A$17998)),AZ$28)),"") ->  | BC52: =IFERROR(INDEX(StockEmplt!$E$1:$E$18000,SMALL(IF(StockEmplt!$F$3:$F$18000=$E52,ROW($A$3:$A$17998)),BC$28)),"") ->  | BD52: =IFERROR(INDEX(StockEmplt!$C$1:$C$18000,SMALL(IF(StockEmplt!$F$3:$F$18000=$E52,ROW($A$3:$A$17998)),BC$28)),"") ->  | BE52: =IFERROR(INDEX(StockEmplt!$D$1:$D$18000,SMALL(IF(StockEmplt!$F$3:$F$18000=$E52,ROW($A$3:$A$17998)),BC$28)),"") ->  | BF52: =IFERROR(INDEX(StockEmplt!$E$1:$E$18000,SMALL(IF(StockEmplt!$F$3:$F$18000=$E52,ROW($A$3:$A$17998)),BF$28)),"") ->  | BG52: =IFERROR(INDEX(StockEmplt!$C$1:$C$18000,SMALL(IF(StockEmplt!$F$3:$F$18000=$E52,ROW($A$3:$A$17998)),BF$28)),"") ->  | BH52: =IFERROR(INDEX(StockEmplt!$D$1:$D$18000,SMALL(IF(StockEmplt!$F$3:$F$18000=$E52,ROW($A$3:$A$17998)),BF$28)),"") ->  | BI52: =IFERROR(INDEX(StockEmplt!$E$1:$E$18000,SMALL(IF(StockEmplt!$F$3:$F$18000=$E52,ROW($A$3:$A$17998)),BI$28)),"") ->  | BJ52: =IFERROR(INDEX(StockEmplt!$C$1:$C$18000,SMALL(IF(StockEmplt!$F$3:$F$18000=$E52,ROW($A$3:$A$17998)),BI$28)),"") ->  | BK52: =IFERROR(INDEX(StockEmplt!$D$1:$D$18000,SMALL(IF(StockEmplt!$F$3:$F$18000=$E52,ROW($A$3:$A$17998)),BI$28)),"") ->  | BL52: =IFERROR(INDEX(StockEmplt!$E$1:$E$18000,SMALL(IF(StockEmplt!$F$3:$F$18000=$E52,ROW($A$3:$A$17998)),BL$28)),"") ->  | BM52: =IFERROR(INDEX(StockEmplt!$C$1:$C$18000,SMALL(IF(StockEmplt!$F$3:$F$18000=$E52,ROW($A$3:$A$17998)),BL$28)),"") ->  | BN52: =IFERROR(INDEX(StockEmplt!$D$1:$D$18000,SMALL(IF(StockEmplt!$F$3:$F$18000=$E52,ROW($A$3:$A$17998)),BL$28)),"") ->  | BO52: =IFERROR(INDEX(StockEmplt!$E$1:$E$18000,SMALL(IF(StockEmplt!$F$3:$F$18000=$E52,ROW($A$3:$A$17998)),BO$28)),"") ->  | BP52: =IFERROR(INDEX(StockEmplt!$C$1:$C$18000,SMALL(IF(StockEmplt!$F$3:$F$18000=$E52,ROW($A$3:$A$17998)),BO$28)),"") ->  | BQ52: =IFERROR(INDEX(StockEmplt!$D$1:$D$18000,SMALL(IF(StockEmplt!$F$3:$F$18000=$E52,ROW($A$3:$A$17998)),BO$28)),"") -> 
A53: M451980 | B53: NC2-6 | C53: 5000 | D53: 7200251 | E53: C2-6 | F53: 5000 | G53: =IFERROR(INDEX(StockEmplt!$E$1:$E$18000,SMALL(IF(StockEmplt!$F$3:$F$18000=$E53,ROW($A$3:$A$17037)),G$28)),"") -> 45501 | H53: =IFERROR(INDEX(StockEmplt!$C$1:$C$18000,SMALL(IF(StockEmplt!$F$3:$F$18000=$E53,ROW($A$3:$A$17998)),G$28)),"") -> BA036 | I53: =IFERROR(INDEX(StockEmplt!$D$1:$D$18000,SMALL(IF(StockEmplt!$F$3:$F$18000=$E53,ROW($A$3:$A$17998)),G$28)),"") -> 7EM406400K | J53: =IFERROR(INDEX(StockEmplt!$E$1:$E$18000,SMALL(IF(StockEmplt!$F$3:$F$18000=$E53,ROW($A$3:$A$17998)),J$28)),"") -> 42457 | K53: =IFERROR(INDEX(StockEmplt!$C$1:$C$18000,SMALL(IF(StockEmplt!$F$3:$F$18000=$E53,ROW($A$3:$A$17998)),J$28)),"") -> BC038 | L53: =IFERROR(INDEX(StockEmplt!$D$1:$D$18000,SMALL(IF(StockEmplt!$F$3:$F$18000=$E53,ROW($A$3:$A$17998)),J$28)),"") -> 7EM406400K | M53: =IFERROR(INDEX(StockEmplt!$E$1:$E$18000,SMALL(IF(StockEmplt!$F$3:$F$18000=$E53,ROW($A$3:$A$17037)),M$28)),"") -> 1728 | N53: =IFERROR(INDEX(StockEmplt!$C$1:$C$18000,SMALL(IF(StockEmplt!$F$3:$F$18000=$E53,ROW($A$3:$A$17998)),M$28)),"") -> SCCH | O53: =IFERROR(INDEX(StockEmplt!$D$1:$D$18000,SMALL(IF(StockEmplt!$F$3:$F$18000=$E53,ROW($A$3:$A$17998)),M$28)),"") -> 7EM406400K | P53: =IFERROR(INDEX(StockEmplt!$E$1:$E$18000,SMALL(IF(StockEmplt!$F$3:$F$18000=$E53,ROW($A$3:$A$17037)),P$28)),"") ->  | Q53: =IFERROR(INDEX(StockEmplt!$C$1:$C$18000,SMALL(IF(StockEmplt!$F$3:$F$18000=$E53,ROW($A$3:$A$17998)),P$28)),"") ->  | R53: =IFERROR(INDEX(StockEmplt!$D$1:$D$18000,SMALL(IF(StockEmplt!$F$3:$F$18000=$E53,ROW($A$3:$A$17998)),P$28)),"") ->  | S53: =IFERROR(INDEX(StockEmplt!$E$1:$E$18000,SMALL(IF(StockEmplt!$F$3:$F$18000=$E53,ROW($A$3:$A$17037)),S$28)),"") ->  | T53: =IFERROR(INDEX(StockEmplt!$C$1:$C$18000,SMALL(IF(StockEmplt!$F$3:$F$18000=$E53,ROW($A$3:$A$17998)),S$28)),"") ->  | U53: =IFERROR(INDEX(StockEmplt!$D$1:$D$18000,SMALL(IF(StockEmplt!$F$3:$F$18000=$E53,ROW($A$3:$A$17998)),S$28)),"") ->  | V53: =IFERROR(INDEX(StockEmplt!$E$1:$E$18000,SMALL(IF(StockEmplt!$F$3:$F$18000=$E53,ROW($A$3:$A$17037)),V$28)),"") ->  | W53: =IFERROR(INDEX(StockEmplt!$C$1:$C$18000,SMALL(IF(StockEmplt!$F$3:$F$18000=$E53,ROW($A$3:$A$17998)),V$28)),"") ->  | X53: =IFERROR(INDEX(StockEmplt!$D$1:$D$18000,SMALL(IF(StockEmplt!$F$3:$F$18000=$E53,ROW($A$3:$A$17998)),V$28)),"") ->  | Y53: =IFERROR(INDEX(StockEmplt!$E$1:$E$18000,SMALL(IF(StockEmplt!$F$3:$F$18000=$E53,ROW($A$3:$A$17037)),Y$28)),"") ->  | Z53: =IFERROR(INDEX(StockEmplt!$C$1:$C$18000,SMALL(IF(StockEmplt!$F$3:$F$18000=$E53,ROW($A$3:$A$17998)),Y$28)),"") ->  | AA53: =IFERROR(INDEX(StockEmplt!$D$1:$D$18000,SMALL(IF(StockEmplt!$F$3:$F$18000=$E53,ROW($A$3:$A$17998)),Y$28)),"") ->  | AB53: =IFERROR(INDEX(StockEmplt!$E$1:$E$18000,SMALL(IF(StockEmplt!$F$3:$F$18000=$E53,ROW($A$3:$A$17037)),AB$28)),"") ->  | AC53: =IFERROR(INDEX(StockEmplt!$C$1:$C$18000,SMALL(IF(StockEmplt!$F$3:$F$18000=$E53,ROW($A$3:$A$17998)),AB$28)),"") ->  | AD53: =IFERROR(INDEX(StockEmplt!$D$1:$D$18000,SMALL(IF(StockEmplt!$F$3:$F$18000=$E53,ROW($A$3:$A$17998)),AB$28)),"") ->  | AE53: =IFERROR(INDEX(StockEmplt!$E$1:$E$18000,SMALL(IF(StockEmplt!$F$3:$F$18000=$E53,ROW($A$3:$A$17037)),AE$28)),"") ->  | AF53: =IFERROR(INDEX(StockEmplt!$C$1:$C$18000,SMALL(IF(StockEmplt!$F$3:$F$18000=$E53,ROW($A$3:$A$17998)),AE$28)),"") ->  | AG53: =IFERROR(INDEX(StockEmplt!$D$1:$D$18000,SMALL(IF(StockEmplt!$F$3:$F$18000=$E53,ROW($A$3:$A$17998)),AE$28)),"") ->  | AH53: =IFERROR(INDEX(StockEmplt!$E$1:$E$18000,SMALL(IF(StockEmplt!$F$3:$F$18000=$E53,ROW($A$3:$A$17037)),AH$28)),"") ->  | AI53: =IFERROR(INDEX(StockEmplt!$C$1:$C$18000,SMALL(IF(StockEmplt!$F$3:$F$18000=$E53,ROW($A$3:$A$17998)),AH$28)),"") ->  | AJ53: =IFERROR(INDEX(StockEmplt!$D$1:$D$18000,SMALL(IF(StockEmplt!$F$3:$F$18000=$E53,ROW($A$3:$A$17998)),AH$28)),"") ->  | AK53: =IFERROR(INDEX(StockEmplt!$E$1:$E$18000,SMALL(IF(StockEmplt!$F$3:$F$18000=$E53,ROW($A$3:$A$17998)),AK$28)),"") ->  | AL53: =IFERROR(INDEX(StockEmplt!$C$1:$C$18000,SMALL(IF(StockEmplt!$F$3:$F$18000=$E53,ROW($A$3:$A$17998)),AK$28)),"") ->  | AM53: =IFERROR(INDEX(StockEmplt!$D$1:$D$18000,SMALL(IF(StockEmplt!$F$3:$F$18000=$E53,ROW($A$3:$A$17998)),AK$28)),"") ->  | AN53: =IFERROR(INDEX(StockEmplt!$E$1:$E$18000,SMALL(IF(StockEmplt!$F$3:$F$18000=$E53,ROW($A$3:$A$17998)),AN$28)),"") ->  | AO53: =IFERROR(INDEX(StockEmplt!$C$1:$C$18000,SMALL(IF(StockEmplt!$F$3:$F$18000=$E53,ROW($A$3:$A$17998)),AN$28)),"") ->  | AP53: =IFERROR(INDEX(StockEmplt!$D$1:$D$18000,SMALL(IF(StockEmplt!$F$3:$F$18000=$E53,ROW($A$3:$A$17998)),AN$28)),"") ->  | AQ53: =IFERROR(INDEX(StockEmplt!$E$1:$E$18000,SMALL(IF(StockEmplt!$F$3:$F$18000=$E53,ROW($A$3:$A$17998)),AQ$28)),"") ->  | AR53: =IFERROR(INDEX(StockEmplt!$C$1:$C$18000,SMALL(IF(StockEmplt!$F$3:$F$18000=$E53,ROW($A$3:$A$17998)),AQ$28)),"") ->  | AS53: =IFERROR(INDEX(StockEmplt!$D$1:$D$18000,SMALL(IF(StockEmplt!$F$3:$F$18000=$E53,ROW($A$3:$A$17998)),AQ$28)),"") ->  | AT53: =IFERROR(INDEX(StockEmplt!$E$1:$E$18000,SMALL(IF(StockEmplt!$F$3:$F$18000=$E53,ROW($A$3:$A$17998)),AT$28)),"") ->  | AU53: =IFERROR(INDEX(StockEmplt!$C$1:$C$18000,SMALL(IF(StockEmplt!$F$3:$F$18000=$E53,ROW($A$3:$A$17998)),AT$28)),"") ->  | AV53: =IFERROR(INDEX(StockEmplt!$D$1:$D$18000,SMALL(IF(StockEmplt!$F$3:$F$18000=$E53,ROW($A$3:$A$17998)),AT$28)),"") ->  | AW53: =IFERROR(INDEX(StockEmplt!$E$1:$E$18000,SMALL(IF(StockEmplt!$F$3:$F$18000=$E53,ROW($A$3:$A$17998)),AW$28)),"") ->  | AX53: =IFERROR(INDEX(StockEmplt!$C$1:$C$18000,SMALL(IF(StockEmplt!$F$3:$F$18000=$E53,ROW($A$3:$A$17998)),AW$28)),"") ->  | AY53: =IFERROR(INDEX(StockEmplt!$D$1:$D$18000,SMALL(IF(StockEmplt!$F$3:$F$18000=$E53,ROW($A$3:$A$17998)),AW$28)),"") ->  | AZ53: =IFERROR(INDEX(StockEmplt!$E$1:$E$18000,SMALL(IF(StockEmplt!$F$3:$F$18000=$E53,ROW($A$3:$A$17998)),AZ$28)),"") ->  | BA53: =IFERROR(INDEX(StockEmplt!$C$1:$C$18000,SMALL(IF(StockEmplt!$F$3:$F$18000=$E53,ROW($A$3:$A$17998)),AZ$28)),"") ->  | BB53: =IFERROR(INDEX(StockEmplt!$D$1:$D$18000,SMALL(IF(StockEmplt!$F$3:$F$18000=$E53,ROW($A$3:$A$17998)),AZ$28)),"") ->  | BC53: =IFERROR(INDEX(StockEmplt!$E$1:$E$18000,SMALL(IF(StockEmplt!$F$3:$F$18000=$E53,ROW($A$3:$A$17998)),BC$28)),"") ->  | BD53: =IFERROR(INDEX(StockEmplt!$C$1:$C$18000,SMALL(IF(StockEmplt!$F$3:$F$18000=$E53,ROW($A$3:$A$17998)),BC$28)),"") ->  | BE53: =IFERROR(INDEX(StockEmplt!$D$1:$D$18000,SMALL(IF(StockEmplt!$F$3:$F$18000=$E53,ROW($A$3:$A$17998)),BC$28)),"") ->  | BF53: =IFERROR(INDEX(StockEmplt!$E$1:$E$18000,SMALL(IF(StockEmplt!$F$3:$F$18000=$E53,ROW($A$3:$A$17998)),BF$28)),"") ->  | BG53: =IFERROR(INDEX(StockEmplt!$C$1:$C$18000,SMALL(IF(StockEmplt!$F$3:$F$18000=$E53,ROW($A$3:$A$17998)),BF$28)),"") ->  | BH53: =IFERROR(INDEX(StockEmplt!$D$1:$D$18000,SMALL(IF(StockEmplt!$F$3:$F$18000=$E53,ROW($A$3:$A$17998)),BF$28)),"") ->  | BI53: =IFERROR(INDEX(StockEmplt!$E$1:$E$18000,SMALL(IF(StockEmplt!$F$3:$F$18000=$E53,ROW($A$3:$A$17998)),BI$28)),"") ->  | BJ53: =IFERROR(INDEX(StockEmplt!$C$1:$C$18000,SMALL(IF(StockEmplt!$F$3:$F$18000=$E53,ROW($A$3:$A$17998)),BI$28)),"") ->  | BK53: =IFERROR(INDEX(StockEmplt!$D$1:$D$18000,SMALL(IF(StockEmplt!$F$3:$F$18000=$E53,ROW($A$3:$A$17998)),BI$28)),"") ->  | BL53: =IFERROR(INDEX(StockEmplt!$E$1:$E$18000,SMALL(IF(StockEmplt!$F$3:$F$18000=$E53,ROW($A$3:$A$17998)),BL$28)),"") ->  | BM53: =IFERROR(INDEX(StockEmplt!$C$1:$C$18000,SMALL(IF(StockEmplt!$F$3:$F$18000=$E53,ROW($A$3:$A$17998)),BL$28)),"") ->  | BN53: =IFERROR(INDEX(StockEmplt!$D$1:$D$18000,SMALL(IF(StockEmplt!$F$3:$F$18000=$E53,ROW($A$3:$A$17998)),BL$28)),"") ->  | BO53: =IFERROR(INDEX(StockEmplt!$E$1:$E$18000,SMALL(IF(StockEmplt!$F$3:$F$18000=$E53,ROW($A$3:$A$17998)),BO$28)),"") ->  | BP53: =IFERROR(INDEX(StockEmplt!$C$1:$C$18000,SMALL(IF(StockEmplt!$F$3:$F$18000=$E53,ROW($A$3:$A$17998)),BO$28)),"") ->  | BQ53: =IFERROR(INDEX(StockEmplt!$D$1:$D$18000,SMALL(IF(StockEmplt!$F$3:$F$18000=$E53,ROW($A$3:$A$17998)),BO$28)),"") -> 
A54: M451990 | B54: B100NC2-8 | C54: 50 | D54: 7200252 | E54: C2-8 | F54: 5000 | G54: =IFERROR(INDEX(StockEmplt!$E$1:$E$18000,SMALL(IF(StockEmplt!$F$3:$F$18000=$E54,ROW($A$3:$A$17037)),G$28)),"") -> 52975 | H54: =IFERROR(INDEX(StockEmplt!$C$1:$C$18000,SMALL(IF(StockEmplt!$F$3:$F$18000=$E54,ROW($A$3:$A$17998)),G$28)),"") -> BB047 | I54: =IFERROR(INDEX(StockEmplt!$D$1:$D$18000,SMALL(IF(StockEmplt!$F$3:$F$18000=$E54,ROW($A$3:$A$17998)),G$28)),"") -> 7EM406410K | J54: =IFERROR(INDEX(StockEmplt!$E$1:$E$18000,SMALL(IF(StockEmplt!$F$3:$F$18000=$E54,ROW($A$3:$A$17998)),J$28)),"") -> 1500 | K54: =IFERROR(INDEX(StockEmplt!$C$1:$C$18000,SMALL(IF(StockEmplt!$F$3:$F$18000=$E54,ROW($A$3:$A$17998)),J$28)),"") -> SCCH | L54: =IFERROR(INDEX(StockEmplt!$D$1:$D$18000,SMALL(IF(StockEmplt!$F$3:$F$18000=$E54,ROW($A$3:$A$17998)),J$28)),"") -> 7EM406410K | M54: =IFERROR(INDEX(StockEmplt!$E$1:$E$18000,SMALL(IF(StockEmplt!$F$3:$F$18000=$E54,ROW($A$3:$A$17037)),M$28)),"") -> 1800 | N54: =IFERROR(INDEX(StockEmplt!$C$1:$C$18000,SMALL(IF(StockEmplt!$F$3:$F$18000=$E54,ROW($A$3:$A$17998)),M$28)),"") -> SCSIG | O54: =IFERROR(INDEX(StockEmplt!$D$1:$D$18000,SMALL(IF(StockEmplt!$F$3:$F$18000=$E54,ROW($A$3:$A$17998)),M$28)),"") -> 7EM406410K | P54: =IFERROR(INDEX(StockEmplt!$E$1:$E$18000,SMALL(IF(StockEmplt!$F$3:$F$18000=$E54,ROW($A$3:$A$17037)),P$28)),"") ->  | Q54: =IFERROR(INDEX(StockEmplt!$C$1:$C$18000,SMALL(IF(StockEmplt!$F$3:$F$18000=$E54,ROW($A$3:$A$17998)),P$28)),"") ->  | R54: =IFERROR(INDEX(StockEmplt!$D$1:$D$18000,SMALL(IF(StockEmplt!$F$3:$F$18000=$E54,ROW($A$3:$A$17998)),P$28)),"") ->  | S54: =IFERROR(INDEX(StockEmplt!$E$1:$E$18000,SMALL(IF(StockEmplt!$F$3:$F$18000=$E54,ROW($A$3:$A$17037)),S$28)),"") ->  | T54: =IFERROR(INDEX(StockEmplt!$C$1:$C$18000,SMALL(IF(StockEmplt!$F$3:$F$18000=$E54,ROW($A$3:$A$17998)),S$28)),"") ->  | U54: =IFERROR(INDEX(StockEmplt!$D$1:$D$18000,SMALL(IF(StockEmplt!$F$3:$F$18000=$E54,ROW($A$3:$A$17998)),S$28)),"") ->  | V54: =IFERROR(INDEX(StockEmplt!$E$1:$E$18000,SMALL(IF(StockEmplt!$F$3:$F$18000=$E54,ROW($A$3:$A$17037)),V$28)),"") ->  | W54: =IFERROR(INDEX(StockEmplt!$C$1:$C$18000,SMALL(IF(StockEmplt!$F$3:$F$18000=$E54,ROW($A$3:$A$17998)),V$28)),"") ->  | X54: =IFERROR(INDEX(StockEmplt!$D$1:$D$18000,SMALL(IF(StockEmplt!$F$3:$F$18000=$E54,ROW($A$3:$A$17998)),V$28)),"") ->  | Y54: =IFERROR(INDEX(StockEmplt!$E$1:$E$18000,SMALL(IF(StockEmplt!$F$3:$F$18000=$E54,ROW($A$3:$A$17037)),Y$28)),"") ->  | Z54: =IFERROR(INDEX(StockEmplt!$C$1:$C$18000,SMALL(IF(StockEmplt!$F$3:$F$18000=$E54,ROW($A$3:$A$17998)),Y$28)),"") ->  | AA54: =IFERROR(INDEX(StockEmplt!$D$1:$D$18000,SMALL(IF(StockEmplt!$F$3:$F$18000=$E54,ROW($A$3:$A$17998)),Y$28)),"") ->  | AB54: =IFERROR(INDEX(StockEmplt!$E$1:$E$18000,SMALL(IF(StockEmplt!$F$3:$F$18000=$E54,ROW($A$3:$A$17037)),AB$28)),"") ->  | AC54: =IFERROR(INDEX(StockEmplt!$C$1:$C$18000,SMALL(IF(StockEmplt!$F$3:$F$18000=$E54,ROW($A$3:$A$17998)),AB$28)),"") ->  | AD54: =IFERROR(INDEX(StockEmplt!$D$1:$D$18000,SMALL(IF(StockEmplt!$F$3:$F$18000=$E54,ROW($A$3:$A$17998)),AB$28)),"") ->  | AE54: =IFERROR(INDEX(StockEmplt!$E$1:$E$18000,SMALL(IF(StockEmplt!$F$3:$F$18000=$E54,ROW($A$3:$A$17037)),AE$28)),"") ->  | AF54: =IFERROR(INDEX(StockEmplt!$C$1:$C$18000,SMALL(IF(StockEmplt!$F$3:$F$18000=$E54,ROW($A$3:$A$17998)),AE$28)),"") ->  | AG54: =IFERROR(INDEX(StockEmplt!$D$1:$D$18000,SMALL(IF(StockEmplt!$F$3:$F$18000=$E54,ROW($A$3:$A$17998)),AE$28)),"") ->  | AH54: =IFERROR(INDEX(StockEmplt!$E$1:$E$18000,SMALL(IF(StockEmplt!$F$3:$F$18000=$E54,ROW($A$3:$A$17037)),AH$28)),"") ->  | AI54: =IFERROR(INDEX(StockEmplt!$C$1:$C$18000,SMALL(IF(StockEmplt!$F$3:$F$18000=$E54,ROW($A$3:$A$17998)),AH$28)),"") ->  | AJ54: =IFERROR(INDEX(StockEmplt!$D$1:$D$18000,SMALL(IF(StockEmplt!$F$3:$F$18000=$E54,ROW($A$3:$A$17998)),AH$28)),"") ->  | AK54: =IFERROR(INDEX(StockEmplt!$E$1:$E$18000,SMALL(IF(StockEmplt!$F$3:$F$18000=$E54,ROW($A$3:$A$17998)),AK$28)),"") ->  | AL54: =IFERROR(INDEX(StockEmplt!$C$1:$C$18000,SMALL(IF(StockEmplt!$F$3:$F$18000=$E54,ROW($A$3:$A$17998)),AK$28)),"") ->  | AM54: =IFERROR(INDEX(StockEmplt!$D$1:$D$18000,SMALL(IF(StockEmplt!$F$3:$F$18000=$E54,ROW($A$3:$A$17998)),AK$28)),"") ->  | AN54: =IFERROR(INDEX(StockEmplt!$E$1:$E$18000,SMALL(IF(StockEmplt!$F$3:$F$18000=$E54,ROW($A$3:$A$17998)),AN$28)),"") ->  | AO54: =IFERROR(INDEX(StockEmplt!$C$1:$C$18000,SMALL(IF(StockEmplt!$F$3:$F$18000=$E54,ROW($A$3:$A$17998)),AN$28)),"") ->  | AP54: =IFERROR(INDEX(StockEmplt!$D$1:$D$18000,SMALL(IF(StockEmplt!$F$3:$F$18000=$E54,ROW($A$3:$A$17998)),AN$28)),"") ->  | AQ54: =IFERROR(INDEX(StockEmplt!$E$1:$E$18000,SMALL(IF(StockEmplt!$F$3:$F$18000=$E54,ROW($A$3:$A$17998)),AQ$28)),"") ->  | AR54: =IFERROR(INDEX(StockEmplt!$C$1:$C$18000,SMALL(IF(StockEmplt!$F$3:$F$18000=$E54,ROW($A$3:$A$17998)),AQ$28)),"") ->  | AS54: =IFERROR(INDEX(StockEmplt!$D$1:$D$18000,SMALL(IF(StockEmplt!$F$3:$F$18000=$E54,ROW($A$3:$A$17998)),AQ$28)),"") ->  | AT54: =IFERROR(INDEX(StockEmplt!$E$1:$E$18000,SMALL(IF(StockEmplt!$F$3:$F$18000=$E54,ROW($A$3:$A$17998)),AT$28)),"") ->  | AU54: =IFERROR(INDEX(StockEmplt!$C$1:$C$18000,SMALL(IF(StockEmplt!$F$3:$F$18000=$E54,ROW($A$3:$A$17998)),AT$28)),"") ->  | AV54: =IFERROR(INDEX(StockEmplt!$D$1:$D$18000,SMALL(IF(StockEmplt!$F$3:$F$18000=$E54,ROW($A$3:$A$17998)),AT$28)),"") ->  | AW54: =IFERROR(INDEX(StockEmplt!$E$1:$E$18000,SMALL(IF(StockEmplt!$F$3:$F$18000=$E54,ROW($A$3:$A$17998)),AW$28)),"") ->  | AX54: =IFERROR(INDEX(StockEmplt!$C$1:$C$18000,SMALL(IF(StockEmplt!$F$3:$F$18000=$E54,ROW($A$3:$A$17998)),AW$28)),"") ->  | AY54: =IFERROR(INDEX(StockEmplt!$D$1:$D$18000,SMALL(IF(StockEmplt!$F$3:$F$18000=$E54,ROW($A$3:$A$17998)),AW$28)),"") ->  | AZ54: =IFERROR(INDEX(StockEmplt!$E$1:$E$18000,SMALL(IF(StockEmplt!$F$3:$F$18000=$E54,ROW($A$3:$A$17998)),AZ$28)),"") ->  | BA54: =IFERROR(INDEX(StockEmplt!$C$1:$C$18000,SMALL(IF(StockEmplt!$F$3:$F$18000=$E54,ROW($A$3:$A$17998)),AZ$28)),"") ->  | BB54: =IFERROR(INDEX(StockEmplt!$D$1:$D$18000,SMALL(IF(StockEmplt!$F$3:$F$18000=$E54,ROW($A$3:$A$17998)),AZ$28)),"") ->  | BC54: =IFERROR(INDEX(StockEmplt!$E$1:$E$18000,SMALL(IF(StockEmplt!$F$3:$F$18000=$E54,ROW($A$3:$A$17998)),BC$28)),"") ->  | BD54: =IFERROR(INDEX(StockEmplt!$C$1:$C$18000,SMALL(IF(StockEmplt!$F$3:$F$18000=$E54,ROW($A$3:$A$17998)),BC$28)),"") ->  | BE54: =IFERROR(INDEX(StockEmplt!$D$1:$D$18000,SMALL(IF(StockEmplt!$F$3:$F$18000=$E54,ROW($A$3:$A$17998)),BC$28)),"") ->  | BF54: =IFERROR(INDEX(StockEmplt!$E$1:$E$18000,SMALL(IF(StockEmplt!$F$3:$F$18000=$E54,ROW($A$3:$A$17998)),BF$28)),"") ->  | BG54: =IFERROR(INDEX(StockEmplt!$C$1:$C$18000,SMALL(IF(StockEmplt!$F$3:$F$18000=$E54,ROW($A$3:$A$17998)),BF$28)),"") ->  | BH54: =IFERROR(INDEX(StockEmplt!$D$1:$D$18000,SMALL(IF(StockEmplt!$F$3:$F$18000=$E54,ROW($A$3:$A$17998)),BF$28)),"") ->  | BI54: =IFERROR(INDEX(StockEmplt!$E$1:$E$18000,SMALL(IF(StockEmplt!$F$3:$F$18000=$E54,ROW($A$3:$A$17998)),BI$28)),"") ->  | BJ54: =IFERROR(INDEX(StockEmplt!$C$1:$C$18000,SMALL(IF(StockEmplt!$F$3:$F$18000=$E54,ROW($A$3:$A$17998)),BI$28)),"") ->  | BK54: =IFERROR(INDEX(StockEmplt!$D$1:$D$18000,SMALL(IF(StockEmplt!$F$3:$F$18000=$E54,ROW($A$3:$A$17998)),BI$28)),"") ->  | BL54: =IFERROR(INDEX(StockEmplt!$E$1:$E$18000,SMALL(IF(StockEmplt!$F$3:$F$18000=$E54,ROW($A$3:$A$17998)),BL$28)),"") ->  | BM54: =IFERROR(INDEX(StockEmplt!$C$1:$C$18000,SMALL(IF(StockEmplt!$F$3:$F$18000=$E54,ROW($A$3:$A$17998)),BL$28)),"") ->  | BN54: =IFERROR(INDEX(StockEmplt!$D$1:$D$18000,SMALL(IF(StockEmplt!$F$3:$F$18000=$E54,ROW($A$3:$A$17998)),BL$28)),"") ->  | BO54: =IFERROR(INDEX(StockEmplt!$E$1:$E$18000,SMALL(IF(StockEmplt!$F$3:$F$18000=$E54,ROW($A$3:$A$17998)),BO$28)),"") ->  | BP54: =IFERROR(INDEX(StockEmplt!$C$1:$C$18000,SMALL(IF(StockEmplt!$F$3:$F$18000=$E54,ROW($A$3:$A$17998)),BO$28)),"") ->  | BQ54: =IFERROR(INDEX(StockEmplt!$D$1:$D$18000,SMALL(IF(StockEmplt!$F$3:$F$18000=$E54,ROW($A$3:$A$17998)),BO$28)),"") -> 
A55: M452000 | B55: B100NC2-10 | C55: 30 | D55: 7200253 | E55: C2-10 | F55: 3000 | G55: =IFERROR(INDEX(StockEmplt!$E$1:$E$18000,SMALL(IF(StockEmplt!$F$3:$F$18000=$E55,ROW($A$3:$A$17037)),G$28)),"") -> 9500 | H55: =IFERROR(INDEX(StockEmplt!$C$1:$C$18000,SMALL(IF(StockEmplt!$F$3:$F$18000=$E55,ROW($A$3:$A$17998)),G$28)),"") -> BC045 | I55: =IFERROR(INDEX(StockEmplt!$D$1:$D$18000,SMALL(IF(StockEmplt!$F$3:$F$18000=$E55,ROW($A$3:$A$17998)),G$28)),"") -> 7AM359840K | J55: =IFERROR(INDEX(StockEmplt!$E$1:$E$18000,SMALL(IF(StockEmplt!$F$3:$F$18000=$E55,ROW($A$3:$A$17998)),J$28)),"") -> 3975 | K55: =IFERROR(INDEX(StockEmplt!$C$1:$C$18000,SMALL(IF(StockEmplt!$F$3:$F$18000=$E55,ROW($A$3:$A$17998)),J$28)),"") -> SCCH | L55: =IFERROR(INDEX(StockEmplt!$D$1:$D$18000,SMALL(IF(StockEmplt!$F$3:$F$18000=$E55,ROW($A$3:$A$17998)),J$28)),"") -> 7AM359840K | M55: =IFERROR(INDEX(StockEmplt!$E$1:$E$18000,SMALL(IF(StockEmplt!$F$3:$F$18000=$E55,ROW($A$3:$A$17037)),M$28)),"") ->  | N55: =IFERROR(INDEX(StockEmplt!$C$1:$C$18000,SMALL(IF(StockEmplt!$F$3:$F$18000=$E55,ROW($A$3:$A$17998)),M$28)),"") ->  | O55: =IFERROR(INDEX(StockEmplt!$D$1:$D$18000,SMALL(IF(StockEmplt!$F$3:$F$18000=$E55,ROW($A$3:$A$17998)),M$28)),"") ->  | P55: =IFERROR(INDEX(StockEmplt!$E$1:$E$18000,SMALL(IF(StockEmplt!$F$3:$F$18000=$E55,ROW($A$3:$A$17037)),P$28)),"") ->  | Q55: =IFERROR(INDEX(StockEmplt!$C$1:$C$18000,SMALL(IF(StockEmplt!$F$3:$F$18000=$E55,ROW($A$3:$A$17998)),P$28)),"") ->  | R55: =IFERROR(INDEX(StockEmplt!$D$1:$D$18000,SMALL(IF(StockEmplt!$F$3:$F$18000=$E55,ROW($A$3:$A$17998)),P$28)),"") ->  | S55: =IFERROR(INDEX(StockEmplt!$E$1:$E$18000,SMALL(IF(StockEmplt!$F$3:$F$18000=$E55,ROW($A$3:$A$17037)),S$28)),"") ->  | T55: =IFERROR(INDEX(StockEmplt!$C$1:$C$18000,SMALL(IF(StockEmplt!$F$3:$F$18000=$E55,ROW($A$3:$A$17998)),S$28)),"") ->  | U55: =IFERROR(INDEX(StockEmplt!$D$1:$D$18000,SMALL(IF(StockEmplt!$F$3:$F$18000=$E55,ROW($A$3:$A$17998)),S$28)),"") ->  | V55: =IFERROR(INDEX(StockEmplt!$E$1:$E$18000,SMALL(IF(StockEmplt!$F$3:$F$18000=$E55,ROW($A$3:$A$17037)),V$28)),"") ->  | W55: =IFERROR(INDEX(StockEmplt!$C$1:$C$18000,SMALL(IF(StockEmplt!$F$3:$F$18000=$E55,ROW($A$3:$A$17998)),V$28)),"") ->  | X55: =IFERROR(INDEX(StockEmplt!$D$1:$D$18000,SMALL(IF(StockEmplt!$F$3:$F$18000=$E55,ROW($A$3:$A$17998)),V$28)),"") ->  | Y55: =IFERROR(INDEX(StockEmplt!$E$1:$E$18000,SMALL(IF(StockEmplt!$F$3:$F$18000=$E55,ROW($A$3:$A$17037)),Y$28)),"") ->  | Z55: =IFERROR(INDEX(StockEmplt!$C$1:$C$18000,SMALL(IF(StockEmplt!$F$3:$F$18000=$E55,ROW($A$3:$A$17998)),Y$28)),"") ->  | AA55: =IFERROR(INDEX(StockEmplt!$D$1:$D$18000,SMALL(IF(StockEmplt!$F$3:$F$18000=$E55,ROW($A$3:$A$17998)),Y$28)),"") ->  | AB55: =IFERROR(INDEX(StockEmplt!$E$1:$E$18000,SMALL(IF(StockEmplt!$F$3:$F$18000=$E55,ROW($A$3:$A$17037)),AB$28)),"") ->  | AC55: =IFERROR(INDEX(StockEmplt!$C$1:$C$18000,SMALL(IF(StockEmplt!$F$3:$F$18000=$E55,ROW($A$3:$A$17998)),AB$28)),"") ->  | AD55: =IFERROR(INDEX(StockEmplt!$D$1:$D$18000,SMALL(IF(StockEmplt!$F$3:$F$18000=$E55,ROW($A$3:$A$17998)),AB$28)),"") ->  | AE55: =IFERROR(INDEX(StockEmplt!$E$1:$E$18000,SMALL(IF(StockEmplt!$F$3:$F$18000=$E55,ROW($A$3:$A$17037)),AE$28)),"") ->  | AF55: =IFERROR(INDEX(StockEmplt!$C$1:$C$18000,SMALL(IF(StockEmplt!$F$3:$F$18000=$E55,ROW($A$3:$A$17998)),AE$28)),"") ->  | AG55: =IFERROR(INDEX(StockEmplt!$D$1:$D$18000,SMALL(IF(StockEmplt!$F$3:$F$18000=$E55,ROW($A$3:$A$17998)),AE$28)),"") ->  | AH55: =IFERROR(INDEX(StockEmplt!$E$1:$E$18000,SMALL(IF(StockEmplt!$F$3:$F$18000=$E55,ROW($A$3:$A$17037)),AH$28)),"") ->  | AI55: =IFERROR(INDEX(StockEmplt!$C$1:$C$18000,SMALL(IF(StockEmplt!$F$3:$F$18000=$E55,ROW($A$3:$A$17998)),AH$28)),"") ->  | AJ55: =IFERROR(INDEX(StockEmplt!$D$1:$D$18000,SMALL(IF(StockEmplt!$F$3:$F$18000=$E55,ROW($A$3:$A$17998)),AH$28)),"") ->  | AK55: =IFERROR(INDEX(StockEmplt!$E$1:$E$18000,SMALL(IF(StockEmplt!$F$3:$F$18000=$E55,ROW($A$3:$A$17998)),AK$28)),"") ->  | AL55: =IFERROR(INDEX(StockEmplt!$C$1:$C$18000,SMALL(IF(StockEmplt!$F$3:$F$18000=$E55,ROW($A$3:$A$17998)),AK$28)),"") ->  | AM55: =IFERROR(INDEX(StockEmplt!$D$1:$D$18000,SMALL(IF(StockEmplt!$F$3:$F$18000=$E55,ROW($A$3:$A$17998)),AK$28)),"") ->  | AN55: =IFERROR(INDEX(StockEmplt!$E$1:$E$18000,SMALL(IF(StockEmplt!$F$3:$F$18000=$E55,ROW($A$3:$A$17998)),AN$28)),"") ->  | AO55: =IFERROR(INDEX(StockEmplt!$C$1:$C$18000,SMALL(IF(StockEmplt!$F$3:$F$18000=$E55,ROW($A$3:$A$17998)),AN$28)),"") ->  | AP55: =IFERROR(INDEX(StockEmplt!$D$1:$D$18000,SMALL(IF(StockEmplt!$F$3:$F$18000=$E55,ROW($A$3:$A$17998)),AN$28)),"") ->  | AQ55: =IFERROR(INDEX(StockEmplt!$E$1:$E$18000,SMALL(IF(StockEmplt!$F$3:$F$18000=$E55,ROW($A$3:$A$17998)),AQ$28)),"") ->  | AR55: =IFERROR(INDEX(StockEmplt!$C$1:$C$18000,SMALL(IF(StockEmplt!$F$3:$F$18000=$E55,ROW($A$3:$A$17998)),AQ$28)),"") ->  | AS55: =IFERROR(INDEX(StockEmplt!$D$1:$D$18000,SMALL(IF(StockEmplt!$F$3:$F$18000=$E55,ROW($A$3:$A$17998)),AQ$28)),"") ->  | AT55: =IFERROR(INDEX(StockEmplt!$E$1:$E$18000,SMALL(IF(StockEmplt!$F$3:$F$18000=$E55,ROW($A$3:$A$17998)),AT$28)),"") ->  | AU55: =IFERROR(INDEX(StockEmplt!$C$1:$C$18000,SMALL(IF(StockEmplt!$F$3:$F$18000=$E55,ROW($A$3:$A$17998)),AT$28)),"") ->  | AV55: =IFERROR(INDEX(StockEmplt!$D$1:$D$18000,SMALL(IF(StockEmplt!$F$3:$F$18000=$E55,ROW($A$3:$A$17998)),AT$28)),"") ->  | AW55: =IFERROR(INDEX(StockEmplt!$E$1:$E$18000,SMALL(IF(StockEmplt!$F$3:$F$18000=$E55,ROW($A$3:$A$17998)),AW$28)),"") ->  | AX55: =IFERROR(INDEX(StockEmplt!$C$1:$C$18000,SMALL(IF(StockEmplt!$F$3:$F$18000=$E55,ROW($A$3:$A$17998)),AW$28)),"") ->  | AY55: =IFERROR(INDEX(StockEmplt!$D$1:$D$18000,SMALL(IF(StockEmplt!$F$3:$F$18000=$E55,ROW($A$3:$A$17998)),AW$28)),"") ->  | AZ55: =IFERROR(INDEX(StockEmplt!$E$1:$E$18000,SMALL(IF(StockEmplt!$F$3:$F$18000=$E55,ROW($A$3:$A$17998)),AZ$28)),"") ->  | BA55: =IFERROR(INDEX(StockEmplt!$C$1:$C$18000,SMALL(IF(StockEmplt!$F$3:$F$18000=$E55,ROW($A$3:$A$17998)),AZ$28)),"") ->  | BB55: =IFERROR(INDEX(StockEmplt!$D$1:$D$18000,SMALL(IF(StockEmplt!$F$3:$F$18000=$E55,ROW($A$3:$A$17998)),AZ$28)),"") ->  | BC55: =IFERROR(INDEX(StockEmplt!$E$1:$E$18000,SMALL(IF(StockEmplt!$F$3:$F$18000=$E55,ROW($A$3:$A$17998)),BC$28)),"") ->  | BD55: =IFERROR(INDEX(StockEmplt!$C$1:$C$18000,SMALL(IF(StockEmplt!$F$3:$F$18000=$E55,ROW($A$3:$A$17998)),BC$28)),"") ->  | BE55: =IFERROR(INDEX(StockEmplt!$D$1:$D$18000,SMALL(IF(StockEmplt!$F$3:$F$18000=$E55,ROW($A$3:$A$17998)),BC$28)),"") ->  | BF55: =IFERROR(INDEX(StockEmplt!$E$1:$E$18000,SMALL(IF(StockEmplt!$F$3:$F$18000=$E55,ROW($A$3:$A$17998)),BF$28)),"") ->  | BG55: =IFERROR(INDEX(StockEmplt!$C$1:$C$18000,SMALL(IF(StockEmplt!$F$3:$F$18000=$E55,ROW($A$3:$A$17998)),BF$28)),"") ->  | BH55: =IFERROR(INDEX(StockEmplt!$D$1:$D$18000,SMALL(IF(StockEmplt!$F$3:$F$18000=$E55,ROW($A$3:$A$17998)),BF$28)),"") ->  | BI55: =IFERROR(INDEX(StockEmplt!$E$1:$E$18000,SMALL(IF(StockEmplt!$F$3:$F$18000=$E55,ROW($A$3:$A$17998)),BI$28)),"") ->  | BJ55: =IFERROR(INDEX(StockEmplt!$C$1:$C$18000,SMALL(IF(StockEmplt!$F$3:$F$18000=$E55,ROW($A$3:$A$17998)),BI$28)),"") ->  | BK55: =IFERROR(INDEX(StockEmplt!$D$1:$D$18000,SMALL(IF(StockEmplt!$F$3:$F$18000=$E55,ROW($A$3:$A$17998)),BI$28)),"") ->  | BL55: =IFERROR(INDEX(StockEmplt!$E$1:$E$18000,SMALL(IF(StockEmplt!$F$3:$F$18000=$E55,ROW($A$3:$A$17998)),BL$28)),"") ->  | BM55: =IFERROR(INDEX(StockEmplt!$C$1:$C$18000,SMALL(IF(StockEmplt!$F$3:$F$18000=$E55,ROW($A$3:$A$17998)),BL$28)),"") ->  | BN55: =IFERROR(INDEX(StockEmplt!$D$1:$D$18000,SMALL(IF(StockEmplt!$F$3:$F$18000=$E55,ROW($A$3:$A$17998)),BL$28)),"") ->  | BO55: =IFERROR(INDEX(StockEmplt!$E$1:$E$18000,SMALL(IF(StockEmplt!$F$3:$F$18000=$E55,ROW($A$3:$A$17998)),BO$28)),"") ->  | BP55: =IFERROR(INDEX(StockEmplt!$C$1:$C$18000,SMALL(IF(StockEmplt!$F$3:$F$18000=$E55,ROW($A$3:$A$17998)),BO$28)),"") ->  | BQ55: =IFERROR(INDEX(StockEmplt!$D$1:$D$18000,SMALL(IF(StockEmplt!$F$3:$F$18000=$E55,ROW($A$3:$A$17998)),BO$28)),"") -> 
A56: M451970 | B56: NRGB0-4 | C56: 3000 | D56: 7201081 | E56: RGB0-4 | F56: 3000 | G56: =IFERROR(INDEX(StockEmplt!$E$1:$E$18000,SMALL(IF(StockEmplt!$F$3:$F$18000=$E56,ROW($A$3:$A$17037)),G$28)),"") -> 30000 | H56: =IFERROR(INDEX(StockEmplt!$C$1:$C$18000,SMALL(IF(StockEmplt!$F$3:$F$18000=$E56,ROW($A$3:$A$17998)),G$28)),"") -> BB021 | I56: =IFERROR(INDEX(StockEmplt!$D$1:$D$18000,SMALL(IF(StockEmplt!$F$3:$F$18000=$E56,ROW($A$3:$A$17998)),G$28)),"") -> 7BM368330K | J56: =IFERROR(INDEX(StockEmplt!$E$1:$E$18000,SMALL(IF(StockEmplt!$F$3:$F$18000=$E56,ROW($A$3:$A$17998)),J$28)),"") -> 10500 | K56: =IFERROR(INDEX(StockEmplt!$C$1:$C$18000,SMALL(IF(StockEmplt!$F$3:$F$18000=$E56,ROW($A$3:$A$17998)),J$28)),"") -> SCSIG | L56: =IFERROR(INDEX(StockEmplt!$D$1:$D$18000,SMALL(IF(StockEmplt!$F$3:$F$18000=$E56,ROW($A$3:$A$17998)),J$28)),"") -> 7BM368330K | M56: =IFERROR(INDEX(StockEmplt!$E$1:$E$18000,SMALL(IF(StockEmplt!$F$3:$F$18000=$E56,ROW($A$3:$A$17037)),M$28)),"") ->  | N56: =IFERROR(INDEX(StockEmplt!$C$1:$C$18000,SMALL(IF(StockEmplt!$F$3:$F$18000=$E56,ROW($A$3:$A$17998)),M$28)),"") ->  | O56: =IFERROR(INDEX(StockEmplt!$D$1:$D$18000,SMALL(IF(StockEmplt!$F$3:$F$18000=$E56,ROW($A$3:$A$17998)),M$28)),"") ->  | P56: =IFERROR(INDEX(StockEmplt!$E$1:$E$18000,SMALL(IF(StockEmplt!$F$3:$F$18000=$E56,ROW($A$3:$A$17037)),P$28)),"") ->  | Q56: =IFERROR(INDEX(StockEmplt!$C$1:$C$18000,SMALL(IF(StockEmplt!$F$3:$F$18000=$E56,ROW($A$3:$A$17998)),P$28)),"") ->  | R56: =IFERROR(INDEX(StockEmplt!$D$1:$D$18000,SMALL(IF(StockEmplt!$F$3:$F$18000=$E56,ROW($A$3:$A$17998)),P$28)),"") ->  | S56: =IFERROR(INDEX(StockEmplt!$E$1:$E$18000,SMALL(IF(StockEmplt!$F$3:$F$18000=$E56,ROW($A$3:$A$17037)),S$28)),"") ->  | T56: =IFERROR(INDEX(StockEmplt!$C$1:$C$18000,SMALL(IF(StockEmplt!$F$3:$F$18000=$E56,ROW($A$3:$A$17998)),S$28)),"") ->  | U56: =IFERROR(INDEX(StockEmplt!$D$1:$D$18000,SMALL(IF(StockEmplt!$F$3:$F$18000=$E56,ROW($A$3:$A$17998)),S$28)),"") ->  | V56: =IFERROR(INDEX(StockEmplt!$E$1:$E$18000,SMALL(IF(StockEmplt!$F$3:$F$18000=$E56,ROW($A$3:$A$17037)),V$28)),"") ->  | W56: =IFERROR(INDEX(StockEmplt!$C$1:$C$18000,SMALL(IF(StockEmplt!$F$3:$F$18000=$E56,ROW($A$3:$A$17998)),V$28)),"") ->  | X56: =IFERROR(INDEX(StockEmplt!$D$1:$D$18000,SMALL(IF(StockEmplt!$F$3:$F$18000=$E56,ROW($A$3:$A$17998)),V$28)),"") ->  | Y56: =IFERROR(INDEX(StockEmplt!$E$1:$E$18000,SMALL(IF(StockEmplt!$F$3:$F$18000=$E56,ROW($A$3:$A$17037)),Y$28)),"") ->  | Z56: =IFERROR(INDEX(StockEmplt!$C$1:$C$18000,SMALL(IF(StockEmplt!$F$3:$F$18000=$E56,ROW($A$3:$A$17998)),Y$28)),"") ->  | AA56: =IFERROR(INDEX(StockEmplt!$D$1:$D$18000,SMALL(IF(StockEmplt!$F$3:$F$18000=$E56,ROW($A$3:$A$17998)),Y$28)),"") ->  | AB56: =IFERROR(INDEX(StockEmplt!$E$1:$E$18000,SMALL(IF(StockEmplt!$F$3:$F$18000=$E56,ROW($A$3:$A$17037)),AB$28)),"") ->  | AC56: =IFERROR(INDEX(StockEmplt!$C$1:$C$18000,SMALL(IF(StockEmplt!$F$3:$F$18000=$E56,ROW($A$3:$A$17998)),AB$28)),"") ->  | AD56: =IFERROR(INDEX(StockEmplt!$D$1:$D$18000,SMALL(IF(StockEmplt!$F$3:$F$18000=$E56,ROW($A$3:$A$17998)),AB$28)),"") ->  | AE56: =IFERROR(INDEX(StockEmplt!$E$1:$E$18000,SMALL(IF(StockEmplt!$F$3:$F$18000=$E56,ROW($A$3:$A$17037)),AE$28)),"") ->  | AF56: =IFERROR(INDEX(StockEmplt!$C$1:$C$18000,SMALL(IF(StockEmplt!$F$3:$F$18000=$E56,ROW($A$3:$A$17998)),AE$28)),"") ->  | AG56: =IFERROR(INDEX(StockEmplt!$D$1:$D$18000,SMALL(IF(StockEmplt!$F$3:$F$18000=$E56,ROW($A$3:$A$17998)),AE$28)),"") ->  | AH56: =IFERROR(INDEX(StockEmplt!$E$1:$E$18000,SMALL(IF(StockEmplt!$F$3:$F$18000=$E56,ROW($A$3:$A$17037)),AH$28)),"") ->  | AI56: =IFERROR(INDEX(StockEmplt!$C$1:$C$18000,SMALL(IF(StockEmplt!$F$3:$F$18000=$E56,ROW($A$3:$A$17998)),AH$28)),"") ->  | AJ56: =IFERROR(INDEX(StockEmplt!$D$1:$D$18000,SMALL(IF(StockEmplt!$F$3:$F$18000=$E56,ROW($A$3:$A$17998)),AH$28)),"") ->  | AK56: =IFERROR(INDEX(StockEmplt!$E$1:$E$18000,SMALL(IF(StockEmplt!$F$3:$F$18000=$E56,ROW($A$3:$A$17998)),AK$28)),"") ->  | AL56: =IFERROR(INDEX(StockEmplt!$C$1:$C$18000,SMALL(IF(StockEmplt!$F$3:$F$18000=$E56,ROW($A$3:$A$17998)),AK$28)),"") ->  | AM56: =IFERROR(INDEX(StockEmplt!$D$1:$D$18000,SMALL(IF(StockEmplt!$F$3:$F$18000=$E56,ROW($A$3:$A$17998)),AK$28)),"") ->  | AN56: =IFERROR(INDEX(StockEmplt!$E$1:$E$18000,SMALL(IF(StockEmplt!$F$3:$F$18000=$E56,ROW($A$3:$A$17998)),AN$28)),"") ->  | AO56: =IFERROR(INDEX(StockEmplt!$C$1:$C$18000,SMALL(IF(StockEmplt!$F$3:$F$18000=$E56,ROW($A$3:$A$17998)),AN$28)),"") ->  | AP56: =IFERROR(INDEX(StockEmplt!$D$1:$D$18000,SMALL(IF(StockEmplt!$F$3:$F$18000=$E56,ROW($A$3:$A$17998)),AN$28)),"") ->  | AQ56: =IFERROR(INDEX(StockEmplt!$E$1:$E$18000,SMALL(IF(StockEmplt!$F$3:$F$18000=$E56,ROW($A$3:$A$17998)),AQ$28)),"") ->  | AR56: =IFERROR(INDEX(StockEmplt!$C$1:$C$18000,SMALL(IF(StockEmplt!$F$3:$F$18000=$E56,ROW($A$3:$A$17998)),AQ$28)),"") ->  | AS56: =IFERROR(INDEX(StockEmplt!$D$1:$D$18000,SMALL(IF(StockEmplt!$F$3:$F$18000=$E56,ROW($A$3:$A$17998)),AQ$28)),"") ->  | AT56: =IFERROR(INDEX(StockEmplt!$E$1:$E$18000,SMALL(IF(StockEmplt!$F$3:$F$18000=$E56,ROW($A$3:$A$17998)),AT$28)),"") ->  | AU56: =IFERROR(INDEX(StockEmplt!$C$1:$C$18000,SMALL(IF(StockEmplt!$F$3:$F$18000=$E56,ROW($A$3:$A$17998)),AT$28)),"") ->  | AV56: =IFERROR(INDEX(StockEmplt!$D$1:$D$18000,SMALL(IF(StockEmplt!$F$3:$F$18000=$E56,ROW($A$3:$A$17998)),AT$28)),"") ->  | AW56: =IFERROR(INDEX(StockEmplt!$E$1:$E$18000,SMALL(IF(StockEmplt!$F$3:$F$18000=$E56,ROW($A$3:$A$17998)),AW$28)),"") ->  | AX56: =IFERROR(INDEX(StockEmplt!$C$1:$C$18000,SMALL(IF(StockEmplt!$F$3:$F$18000=$E56,ROW($A$3:$A$17998)),AW$28)),"") ->  | AY56: =IFERROR(INDEX(StockEmplt!$D$1:$D$18000,SMALL(IF(StockEmplt!$F$3:$F$18000=$E56,ROW($A$3:$A$17998)),AW$28)),"") ->  | AZ56: =IFERROR(INDEX(StockEmplt!$E$1:$E$18000,SMALL(IF(StockEmplt!$F$3:$F$18000=$E56,ROW($A$3:$A$17998)),AZ$28)),"") ->  | BA56: =IFERROR(INDEX(StockEmplt!$C$1:$C$18000,SMALL(IF(StockEmplt!$F$3:$F$18000=$E56,ROW($A$3:$A$17998)),AZ$28)),"") ->  | BB56: =IFERROR(INDEX(StockEmplt!$D$1:$D$18000,SMALL(IF(StockEmplt!$F$3:$F$18000=$E56,ROW($A$3:$A$17998)),AZ$28)),"") ->  | BC56: =IFERROR(INDEX(StockEmplt!$E$1:$E$18000,SMALL(IF(StockEmplt!$F$3:$F$18000=$E56,ROW($A$3:$A$17998)),BC$28)),"") ->  | BD56: =IFERROR(INDEX(StockEmplt!$C$1:$C$18000,SMALL(IF(StockEmplt!$F$3:$F$18000=$E56,ROW($A$3:$A$17998)),BC$28)),"") ->  | BE56: =IFERROR(INDEX(StockEmplt!$D$1:$D$18000,SMALL(IF(StockEmplt!$F$3:$F$18000=$E56,ROW($A$3:$A$17998)),BC$28)),"") ->  | BF56: =IFERROR(INDEX(StockEmplt!$E$1:$E$18000,SMALL(IF(StockEmplt!$F$3:$F$18000=$E56,ROW($A$3:$A$17998)),BF$28)),"") ->  | BG56: =IFERROR(INDEX(StockEmplt!$C$1:$C$18000,SMALL(IF(StockEmplt!$F$3:$F$18000=$E56,ROW($A$3:$A$17998)),BF$28)),"") ->  | BH56: =IFERROR(INDEX(StockEmplt!$D$1:$D$18000,SMALL(IF(StockEmplt!$F$3:$F$18000=$E56,ROW($A$3:$A$17998)),BF$28)),"") ->  | BI56: =IFERROR(INDEX(StockEmplt!$E$1:$E$18000,SMALL(IF(StockEmplt!$F$3:$F$18000=$E56,ROW($A$3:$A$17998)),BI$28)),"") ->  | BJ56: =IFERROR(INDEX(StockEmplt!$C$1:$C$18000,SMALL(IF(StockEmplt!$F$3:$F$18000=$E56,ROW($A$3:$A$17998)),BI$28)),"") ->  | BK56: =IFERROR(INDEX(StockEmplt!$D$1:$D$18000,SMALL(IF(StockEmplt!$F$3:$F$18000=$E56,ROW($A$3:$A$17998)),BI$28)),"") ->  | BL56: =IFERROR(INDEX(StockEmplt!$E$1:$E$18000,SMALL(IF(StockEmplt!$F$3:$F$18000=$E56,ROW($A$3:$A$17998)),BL$28)),"") ->  | BM56: =IFERROR(INDEX(StockEmplt!$C$1:$C$18000,SMALL(IF(StockEmplt!$F$3:$F$18000=$E56,ROW($A$3:$A$17998)),BL$28)),"") ->  | BN56: =IFERROR(INDEX(StockEmplt!$D$1:$D$18000,SMALL(IF(StockEmplt!$F$3:$F$18000=$E56,ROW($A$3:$A$17998)),BL$28)),"") ->  | BO56: =IFERROR(INDEX(StockEmplt!$E$1:$E$18000,SMALL(IF(StockEmplt!$F$3:$F$18000=$E56,ROW($A$3:$A$17998)),BO$28)),"") ->  | BP56: =IFERROR(INDEX(StockEmplt!$C$1:$C$18000,SMALL(IF(StockEmplt!$F$3:$F$18000=$E56,ROW($A$3:$A$17998)),BO$28)),"") ->  | BQ56: =IFERROR(INDEX(StockEmplt!$D$1:$D$18000,SMALL(IF(StockEmplt!$F$3:$F$18000=$E56,ROW($A$3:$A$17998)),BO$28)),"") -> 
A57: M451930 | B57: NRGFA2-4 | C57: 5000 | D57: 7202041 | E57: RGFA2-4 | F57: 5000 | G57: =IFERROR(INDEX(StockEmplt!$E$1:$E$18000,SMALL(IF(StockEmplt!$F$3:$F$18000=$E57,ROW($A$3:$A$17037)),G$28)),"") -> 990 | H57: =IFERROR(INDEX(StockEmplt!$C$1:$C$18000,SMALL(IF(StockEmplt!$F$3:$F$18000=$E57,ROW($A$3:$A$17998)),G$28)),"") -> BB024 | I57: =IFERROR(INDEX(StockEmplt!$D$1:$D$18000,SMALL(IF(StockEmplt!$F$3:$F$18000=$E57,ROW($A$3:$A$17998)),G$28)),"") -> 5JM153270K | J57: =IFERROR(INDEX(StockEmplt!$E$1:$E$18000,SMALL(IF(StockEmplt!$F$3:$F$18000=$E57,ROW($A$3:$A$17998)),J$28)),"") -> 36000 | K57: =IFERROR(INDEX(StockEmplt!$C$1:$C$18000,SMALL(IF(StockEmplt!$F$3:$F$18000=$E57,ROW($A$3:$A$17998)),J$28)),"") -> BB043 | L57: =IFERROR(INDEX(StockEmplt!$D$1:$D$18000,SMALL(IF(StockEmplt!$F$3:$F$18000=$E57,ROW($A$3:$A$17998)),J$28)),"") -> 6MM359780K | M57: =IFERROR(INDEX(StockEmplt!$E$1:$E$18000,SMALL(IF(StockEmplt!$F$3:$F$18000=$E57,ROW($A$3:$A$17037)),M$28)),"") ->  | N57: =IFERROR(INDEX(StockEmplt!$C$1:$C$18000,SMALL(IF(StockEmplt!$F$3:$F$18000=$E57,ROW($A$3:$A$17998)),M$28)),"") ->  | O57: =IFERROR(INDEX(StockEmplt!$D$1:$D$18000,SMALL(IF(StockEmplt!$F$3:$F$18000=$E57,ROW($A$3:$A$17998)),M$28)),"") ->  | P57: =IFERROR(INDEX(StockEmplt!$E$1:$E$18000,SMALL(IF(StockEmplt!$F$3:$F$18000=$E57,ROW($A$3:$A$17037)),P$28)),"") ->  | Q57: =IFERROR(INDEX(StockEmplt!$C$1:$C$18000,SMALL(IF(StockEmplt!$F$3:$F$18000=$E57,ROW($A$3:$A$17998)),P$28)),"") ->  | R57: =IFERROR(INDEX(StockEmplt!$D$1:$D$18000,SMALL(IF(StockEmplt!$F$3:$F$18000=$E57,ROW($A$3:$A$17998)),P$28)),"") ->  | S57: =IFERROR(INDEX(StockEmplt!$E$1:$E$18000,SMALL(IF(StockEmplt!$F$3:$F$18000=$E57,ROW($A$3:$A$17037)),S$28)),"") ->  | T57: =IFERROR(INDEX(StockEmplt!$C$1:$C$18000,SMALL(IF(StockEmplt!$F$3:$F$18000=$E57,ROW($A$3:$A$17998)),S$28)),"") ->  | U57: =IFERROR(INDEX(StockEmplt!$D$1:$D$18000,SMALL(IF(StockEmplt!$F$3:$F$18000=$E57,ROW($A$3:$A$17998)),S$28)),"") ->  | V57: =IFERROR(INDEX(StockEmplt!$E$1:$E$18000,SMALL(IF(StockEmplt!$F$3:$F$18000=$E57,ROW($A$3:$A$17037)),V$28)),"") ->  | W57: =IFERROR(INDEX(StockEmplt!$C$1:$C$18000,SMALL(IF(StockEmplt!$F$3:$F$18000=$E57,ROW($A$3:$A$17998)),V$28)),"") ->  | X57: =IFERROR(INDEX(StockEmplt!$D$1:$D$18000,SMALL(IF(StockEmplt!$F$3:$F$18000=$E57,ROW($A$3:$A$17998)),V$28)),"") ->  | Y57: =IFERROR(INDEX(StockEmplt!$E$1:$E$18000,SMALL(IF(StockEmplt!$F$3:$F$18000=$E57,ROW($A$3:$A$17037)),Y$28)),"") ->  | Z57: =IFERROR(INDEX(StockEmplt!$C$1:$C$18000,SMALL(IF(StockEmplt!$F$3:$F$18000=$E57,ROW($A$3:$A$17998)),Y$28)),"") ->  | AA57: =IFERROR(INDEX(StockEmplt!$D$1:$D$18000,SMALL(IF(StockEmplt!$F$3:$F$18000=$E57,ROW($A$3:$A$17998)),Y$28)),"") ->  | AB57: =IFERROR(INDEX(StockEmplt!$E$1:$E$18000,SMALL(IF(StockEmplt!$F$3:$F$18000=$E57,ROW($A$3:$A$17037)),AB$28)),"") ->  | AC57: =IFERROR(INDEX(StockEmplt!$C$1:$C$18000,SMALL(IF(StockEmplt!$F$3:$F$18000=$E57,ROW($A$3:$A$17998)),AB$28)),"") ->  | AD57: =IFERROR(INDEX(StockEmplt!$D$1:$D$18000,SMALL(IF(StockEmplt!$F$3:$F$18000=$E57,ROW($A$3:$A$17998)),AB$28)),"") ->  | AE57: =IFERROR(INDEX(StockEmplt!$E$1:$E$18000,SMALL(IF(StockEmplt!$F$3:$F$18000=$E57,ROW($A$3:$A$17037)),AE$28)),"") ->  | AF57: =IFERROR(INDEX(StockEmplt!$C$1:$C$18000,SMALL(IF(StockEmplt!$F$3:$F$18000=$E57,ROW($A$3:$A$17998)),AE$28)),"") ->  | AG57: =IFERROR(INDEX(StockEmplt!$D$1:$D$18000,SMALL(IF(StockEmplt!$F$3:$F$18000=$E57,ROW($A$3:$A$17998)),AE$28)),"") ->  | AH57: =IFERROR(INDEX(StockEmplt!$E$1:$E$18000,SMALL(IF(StockEmplt!$F$3:$F$18000=$E57,ROW($A$3:$A$17037)),AH$28)),"") ->  | AI57: =IFERROR(INDEX(StockEmplt!$C$1:$C$18000,SMALL(IF(StockEmplt!$F$3:$F$18000=$E57,ROW($A$3:$A$17998)),AH$28)),"") ->  | AJ57: =IFERROR(INDEX(StockEmplt!$D$1:$D$18000,SMALL(IF(StockEmplt!$F$3:$F$18000=$E57,ROW($A$3:$A$17998)),AH$28)),"") ->  | AK57: =IFERROR(INDEX(StockEmplt!$E$1:$E$18000,SMALL(IF(StockEmplt!$F$3:$F$18000=$E57,ROW($A$3:$A$17998)),AK$28)),"") ->  | AL57: =IFERROR(INDEX(StockEmplt!$C$1:$C$18000,SMALL(IF(StockEmplt!$F$3:$F$18000=$E57,ROW($A$3:$A$17998)),AK$28)),"") ->  | AM57: =IFERROR(INDEX(StockEmplt!$D$1:$D$18000,SMALL(IF(StockEmplt!$F$3:$F$18000=$E57,ROW($A$3:$A$17998)),AK$28)),"") ->  | AN57: =IFERROR(INDEX(StockEmplt!$E$1:$E$18000,SMALL(IF(StockEmplt!$F$3:$F$18000=$E57,ROW($A$3:$A$17998)),AN$28)),"") ->  | AO57: =IFERROR(INDEX(StockEmplt!$C$1:$C$18000,SMALL(IF(StockEmplt!$F$3:$F$18000=$E57,ROW($A$3:$A$17998)),AN$28)),"") ->  | AP57: =IFERROR(INDEX(StockEmplt!$D$1:$D$18000,SMALL(IF(StockEmplt!$F$3:$F$18000=$E57,ROW($A$3:$A$17998)),AN$28)),"") ->  | AQ57: =IFERROR(INDEX(StockEmplt!$E$1:$E$18000,SMALL(IF(StockEmplt!$F$3:$F$18000=$E57,ROW($A$3:$A$17998)),AQ$28)),"") ->  | AR57: =IFERROR(INDEX(StockEmplt!$C$1:$C$18000,SMALL(IF(StockEmplt!$F$3:$F$18000=$E57,ROW($A$3:$A$17998)),AQ$28)),"") ->  | AS57: =IFERROR(INDEX(StockEmplt!$D$1:$D$18000,SMALL(IF(StockEmplt!$F$3:$F$18000=$E57,ROW($A$3:$A$17998)),AQ$28)),"") ->  | AT57: =IFERROR(INDEX(StockEmplt!$E$1:$E$18000,SMALL(IF(StockEmplt!$F$3:$F$18000=$E57,ROW($A$3:$A$17998)),AT$28)),"") ->  | AU57: =IFERROR(INDEX(StockEmplt!$C$1:$C$18000,SMALL(IF(StockEmplt!$F$3:$F$18000=$E57,ROW($A$3:$A$17998)),AT$28)),"") ->  | AV57: =IFERROR(INDEX(StockEmplt!$D$1:$D$18000,SMALL(IF(StockEmplt!$F$3:$F$18000=$E57,ROW($A$3:$A$17998)),AT$28)),"") ->  | AW57: =IFERROR(INDEX(StockEmplt!$E$1:$E$18000,SMALL(IF(StockEmplt!$F$3:$F$18000=$E57,ROW($A$3:$A$17998)),AW$28)),"") ->  | AX57: =IFERROR(INDEX(StockEmplt!$C$1:$C$18000,SMALL(IF(StockEmplt!$F$3:$F$18000=$E57,ROW($A$3:$A$17998)),AW$28)),"") ->  | AY57: =IFERROR(INDEX(StockEmplt!$D$1:$D$18000,SMALL(IF(StockEmplt!$F$3:$F$18000=$E57,ROW($A$3:$A$17998)),AW$28)),"") ->  | AZ57: =IFERROR(INDEX(StockEmplt!$E$1:$E$18000,SMALL(IF(StockEmplt!$F$3:$F$18000=$E57,ROW($A$3:$A$17998)),AZ$28)),"") ->  | BA57: =IFERROR(INDEX(StockEmplt!$C$1:$C$18000,SMALL(IF(StockEmplt!$F$3:$F$18000=$E57,ROW($A$3:$A$17998)),AZ$28)),"") ->  | BB57: =IFERROR(INDEX(StockEmplt!$D$1:$D$18000,SMALL(IF(StockEmplt!$F$3:$F$18000=$E57,ROW($A$3:$A$17998)),AZ$28)),"") ->  | BC57: =IFERROR(INDEX(StockEmplt!$E$1:$E$18000,SMALL(IF(StockEmplt!$F$3:$F$18000=$E57,ROW($A$3:$A$17998)),BC$28)),"") ->  | BD57: =IFERROR(INDEX(StockEmplt!$C$1:$C$18000,SMALL(IF(StockEmplt!$F$3:$F$18000=$E57,ROW($A$3:$A$17998)),BC$28)),"") ->  | BE57: =IFERROR(INDEX(StockEmplt!$D$1:$D$18000,SMALL(IF(StockEmplt!$F$3:$F$18000=$E57,ROW($A$3:$A$17998)),BC$28)),"") ->  | BF57: =IFERROR(INDEX(StockEmplt!$E$1:$E$18000,SMALL(IF(StockEmplt!$F$3:$F$18000=$E57,ROW($A$3:$A$17998)),BF$28)),"") ->  | BG57: =IFERROR(INDEX(StockEmplt!$C$1:$C$18000,SMALL(IF(StockEmplt!$F$3:$F$18000=$E57,ROW($A$3:$A$17998)),BF$28)),"") ->  | BH57: =IFERROR(INDEX(StockEmplt!$D$1:$D$18000,SMALL(IF(StockEmplt!$F$3:$F$18000=$E57,ROW($A$3:$A$17998)),BF$28)),"") ->  | BI57: =IFERROR(INDEX(StockEmplt!$E$1:$E$18000,SMALL(IF(StockEmplt!$F$3:$F$18000=$E57,ROW($A$3:$A$17998)),BI$28)),"") ->  | BJ57: =IFERROR(INDEX(StockEmplt!$C$1:$C$18000,SMALL(IF(StockEmplt!$F$3:$F$18000=$E57,ROW($A$3:$A$17998)),BI$28)),"") ->  | BK57: =IFERROR(INDEX(StockEmplt!$D$1:$D$18000,SMALL(IF(StockEmplt!$F$3:$F$18000=$E57,ROW($A$3:$A$17998)),BI$28)),"") ->  | BL57: =IFERROR(INDEX(StockEmplt!$E$1:$E$18000,SMALL(IF(StockEmplt!$F$3:$F$18000=$E57,ROW($A$3:$A$17998)),BL$28)),"") ->  | BM57: =IFERROR(INDEX(StockEmplt!$C$1:$C$18000,SMALL(IF(StockEmplt!$F$3:$F$18000=$E57,ROW($A$3:$A$17998)),BL$28)),"") ->  | BN57: =IFERROR(INDEX(StockEmplt!$D$1:$D$18000,SMALL(IF(StockEmplt!$F$3:$F$18000=$E57,ROW($A$3:$A$17998)),BL$28)),"") ->  | BO57: =IFERROR(INDEX(StockEmplt!$E$1:$E$18000,SMALL(IF(StockEmplt!$F$3:$F$18000=$E57,ROW($A$3:$A$17998)),BO$28)),"") ->  | BP57: =IFERROR(INDEX(StockEmplt!$C$1:$C$18000,SMALL(IF(StockEmplt!$F$3:$F$18000=$E57,ROW($A$3:$A$17998)),BO$28)),"") ->  | BQ57: =IFERROR(INDEX(StockEmplt!$D$1:$D$18000,SMALL(IF(StockEmplt!$F$3:$F$18000=$E57,ROW($A$3:$A$17998)),BO$28)),"") -> 
A58: M452020 | B58: B100NRGFC1-5 | C58: 10 | D58: 7202181 | E58: RGFC1-5 | F58: 1000 | G58: =IFERROR(INDEX(StockEmplt!$E$1:$E$18000,SMALL(IF(StockEmplt!$F$3:$F$18000=$E58,ROW($A$3:$A$17037)),G$28)),"") -> 400 | H58: =IFERROR(INDEX(StockEmplt!$C$1:$C$18000,SMALL(IF(StockEmplt!$F$3:$F$18000=$E58,ROW($A$3:$A$17998)),G$28)),"") -> SCCH | I58: =IFERROR(INDEX(StockEmplt!$D$1:$D$18000,SMALL(IF(StockEmplt!$F$3:$F$18000=$E58,ROW($A$3:$A$17998)),G$28)),"") -> 4FM966290K | J58: =IFERROR(INDEX(StockEmplt!$E$1:$E$18000,SMALL(IF(StockEmplt!$F$3:$F$18000=$E58,ROW($A$3:$A$17998)),J$28)),"") -> 40000 | K58: =IFERROR(INDEX(StockEmplt!$C$1:$C$18000,SMALL(IF(StockEmplt!$F$3:$F$18000=$E58,ROW($A$3:$A$17998)),J$28)),"") -> BB040 | L58: =IFERROR(INDEX(StockEmplt!$D$1:$D$18000,SMALL(IF(StockEmplt!$F$3:$F$18000=$E58,ROW($A$3:$A$17998)),J$28)),"") -> 7EM406430K | M58: =IFERROR(INDEX(StockEmplt!$E$1:$E$18000,SMALL(IF(StockEmplt!$F$3:$F$18000=$E58,ROW($A$3:$A$17037)),M$28)),"") -> 535 | N58: =IFERROR(INDEX(StockEmplt!$C$1:$C$18000,SMALL(IF(StockEmplt!$F$3:$F$18000=$E58,ROW($A$3:$A$17998)),M$28)),"") -> SCSIG | O58: =IFERROR(INDEX(StockEmplt!$D$1:$D$18000,SMALL(IF(StockEmplt!$F$3:$F$18000=$E58,ROW($A$3:$A$17998)),M$28)),"") -> 7EM406430K | P58: =IFERROR(INDEX(StockEmplt!$E$1:$E$18000,SMALL(IF(StockEmplt!$F$3:$F$18000=$E58,ROW($A$3:$A$17037)),P$28)),"") ->  | Q58: =IFERROR(INDEX(StockEmplt!$C$1:$C$18000,SMALL(IF(StockEmplt!$F$3:$F$18000=$E58,ROW($A$3:$A$17998)),P$28)),"") ->  | R58: =IFERROR(INDEX(StockEmplt!$D$1:$D$18000,SMALL(IF(StockEmplt!$F$3:$F$18000=$E58,ROW($A$3:$A$17998)),P$28)),"") ->  | S58: =IFERROR(INDEX(StockEmplt!$E$1:$E$18000,SMALL(IF(StockEmplt!$F$3:$F$18000=$E58,ROW($A$3:$A$17037)),S$28)),"") ->  | T58: =IFERROR(INDEX(StockEmplt!$C$1:$C$18000,SMALL(IF(StockEmplt!$F$3:$F$18000=$E58,ROW($A$3:$A$17998)),S$28)),"") ->  | U58: =IFERROR(INDEX(StockEmplt!$D$1:$D$18000,SMALL(IF(StockEmplt!$F$3:$F$18000=$E58,ROW($A$3:$A$17998)),S$28)),"") ->  | V58: =IFERROR(INDEX(StockEmplt!$E$1:$E$18000,SMALL(IF(StockEmplt!$F$3:$F$18000=$E58,ROW($A$3:$A$17037)),V$28)),"") ->  | W58: =IFERROR(INDEX(StockEmplt!$C$1:$C$18000,SMALL(IF(StockEmplt!$F$3:$F$18000=$E58,ROW($A$3:$A$17998)),V$28)),"") ->  | X58: =IFERROR(INDEX(StockEmplt!$D$1:$D$18000,SMALL(IF(StockEmplt!$F$3:$F$18000=$E58,ROW($A$3:$A$17998)),V$28)),"") ->  | Y58: =IFERROR(INDEX(StockEmplt!$E$1:$E$18000,SMALL(IF(StockEmplt!$F$3:$F$18000=$E58,ROW($A$3:$A$17037)),Y$28)),"") ->  | Z58: =IFERROR(INDEX(StockEmplt!$C$1:$C$18000,SMALL(IF(StockEmplt!$F$3:$F$18000=$E58,ROW($A$3:$A$17998)),Y$28)),"") ->  | AA58: =IFERROR(INDEX(StockEmplt!$D$1:$D$18000,SMALL(IF(StockEmplt!$F$3:$F$18000=$E58,ROW($A$3:$A$17998)),Y$28)),"") ->  | AB58: =IFERROR(INDEX(StockEmplt!$E$1:$E$18000,SMALL(IF(StockEmplt!$F$3:$F$18000=$E58,ROW($A$3:$A$17037)),AB$28)),"") ->  | AC58: =IFERROR(INDEX(StockEmplt!$C$1:$C$18000,SMALL(IF(StockEmplt!$F$3:$F$18000=$E58,ROW($A$3:$A$17998)),AB$28)),"") ->  | AD58: =IFERROR(INDEX(StockEmplt!$D$1:$D$18000,SMALL(IF(StockEmplt!$F$3:$F$18000=$E58,ROW($A$3:$A$17998)),AB$28)),"") ->  | AE58: =IFERROR(INDEX(StockEmplt!$E$1:$E$18000,SMALL(IF(StockEmplt!$F$3:$F$18000=$E58,ROW($A$3:$A$17037)),AE$28)),"") ->  | AF58: =IFERROR(INDEX(StockEmplt!$C$1:$C$18000,SMALL(IF(StockEmplt!$F$3:$F$18000=$E58,ROW($A$3:$A$17998)),AE$28)),"") ->  | AG58: =IFERROR(INDEX(StockEmplt!$D$1:$D$18000,SMALL(IF(StockEmplt!$F$3:$F$18000=$E58,ROW($A$3:$A$17998)),AE$28)),"") ->  | AH58: =IFERROR(INDEX(StockEmplt!$E$1:$E$18000,SMALL(IF(StockEmplt!$F$3:$F$18000=$E58,ROW($A$3:$A$17037)),AH$28)),"") ->  | AI58: =IFERROR(INDEX(StockEmplt!$C$1:$C$18000,SMALL(IF(StockEmplt!$F$3:$F$18000=$E58,ROW($A$3:$A$17998)),AH$28)),"") ->  | AJ58: =IFERROR(INDEX(StockEmplt!$D$1:$D$18000,SMALL(IF(StockEmplt!$F$3:$F$18000=$E58,ROW($A$3:$A$17998)),AH$28)),"") ->  | AK58: =IFERROR(INDEX(StockEmplt!$E$1:$E$18000,SMALL(IF(StockEmplt!$F$3:$F$18000=$E58,ROW($A$3:$A$17998)),AK$28)),"") ->  | AL58: =IFERROR(INDEX(StockEmplt!$C$1:$C$18000,SMALL(IF(StockEmplt!$F$3:$F$18000=$E58,ROW($A$3:$A$17998)),AK$28)),"") ->  | AM58: =IFERROR(INDEX(StockEmplt!$D$1:$D$18000,SMALL(IF(StockEmplt!$F$3:$F$18000=$E58,ROW($A$3:$A$17998)),AK$28)),"") ->  | AN58: =IFERROR(INDEX(StockEmplt!$E$1:$E$18000,SMALL(IF(StockEmplt!$F$3:$F$18000=$E58,ROW($A$3:$A$17998)),AN$28)),"") ->  | AO58: =IFERROR(INDEX(StockEmplt!$C$1:$C$18000,SMALL(IF(StockEmplt!$F$3:$F$18000=$E58,ROW($A$3:$A$17998)),AN$28)),"") ->  | AP58: =IFERROR(INDEX(StockEmplt!$D$1:$D$18000,SMALL(IF(StockEmplt!$F$3:$F$18000=$E58,ROW($A$3:$A$17998)),AN$28)),"") ->  | AQ58: =IFERROR(INDEX(StockEmplt!$E$1:$E$18000,SMALL(IF(StockEmplt!$F$3:$F$18000=$E58,ROW($A$3:$A$17998)),AQ$28)),"") ->  | AR58: =IFERROR(INDEX(StockEmplt!$C$1:$C$18000,SMALL(IF(StockEmplt!$F$3:$F$18000=$E58,ROW($A$3:$A$17998)),AQ$28)),"") ->  | AS58: =IFERROR(INDEX(StockEmplt!$D$1:$D$18000,SMALL(IF(StockEmplt!$F$3:$F$18000=$E58,ROW($A$3:$A$17998)),AQ$28)),"") ->  | AT58: =IFERROR(INDEX(StockEmplt!$E$1:$E$18000,SMALL(IF(StockEmplt!$F$3:$F$18000=$E58,ROW($A$3:$A$17998)),AT$28)),"") ->  | AU58: =IFERROR(INDEX(StockEmplt!$C$1:$C$18000,SMALL(IF(StockEmplt!$F$3:$F$18000=$E58,ROW($A$3:$A$17998)),AT$28)),"") ->  | AV58: =IFERROR(INDEX(StockEmplt!$D$1:$D$18000,SMALL(IF(StockEmplt!$F$3:$F$18000=$E58,ROW($A$3:$A$17998)),AT$28)),"") ->  | AW58: =IFERROR(INDEX(StockEmplt!$E$1:$E$18000,SMALL(IF(StockEmplt!$F$3:$F$18000=$E58,ROW($A$3:$A$17998)),AW$28)),"") ->  | AX58: =IFERROR(INDEX(StockEmplt!$C$1:$C$18000,SMALL(IF(StockEmplt!$F$3:$F$18000=$E58,ROW($A$3:$A$17998)),AW$28)),"") ->  | AY58: =IFERROR(INDEX(StockEmplt!$D$1:$D$18000,SMALL(IF(StockEmplt!$F$3:$F$18000=$E58,ROW($A$3:$A$17998)),AW$28)),"") ->  | AZ58: =IFERROR(INDEX(StockEmplt!$E$1:$E$18000,SMALL(IF(StockEmplt!$F$3:$F$18000=$E58,ROW($A$3:$A$17998)),AZ$28)),"") ->  | BA58: =IFERROR(INDEX(StockEmplt!$C$1:$C$18000,SMALL(IF(StockEmplt!$F$3:$F$18000=$E58,ROW($A$3:$A$17998)),AZ$28)),"") ->  | BB58: =IFERROR(INDEX(StockEmplt!$D$1:$D$18000,SMALL(IF(StockEmplt!$F$3:$F$18000=$E58,ROW($A$3:$A$17998)),AZ$28)),"") ->  | BC58: =IFERROR(INDEX(StockEmplt!$E$1:$E$18000,SMALL(IF(StockEmplt!$F$3:$F$18000=$E58,ROW($A$3:$A$17998)),BC$28)),"") ->  | BD58: =IFERROR(INDEX(StockEmplt!$C$1:$C$18000,SMALL(IF(StockEmplt!$F$3:$F$18000=$E58,ROW($A$3:$A$17998)),BC$28)),"") ->  | BE58: =IFERROR(INDEX(StockEmplt!$D$1:$D$18000,SMALL(IF(StockEmplt!$F$3:$F$18000=$E58,ROW($A$3:$A$17998)),BC$28)),"") ->  | BF58: =IFERROR(INDEX(StockEmplt!$E$1:$E$18000,SMALL(IF(StockEmplt!$F$3:$F$18000=$E58,ROW($A$3:$A$17998)),BF$28)),"") ->  | BG58: =IFERROR(INDEX(StockEmplt!$C$1:$C$18000,SMALL(IF(StockEmplt!$F$3:$F$18000=$E58,ROW($A$3:$A$17998)),BF$28)),"") ->  | BH58: =IFERROR(INDEX(StockEmplt!$D$1:$D$18000,SMALL(IF(StockEmplt!$F$3:$F$18000=$E58,ROW($A$3:$A$17998)),BF$28)),"") ->  | BI58: =IFERROR(INDEX(StockEmplt!$E$1:$E$18000,SMALL(IF(StockEmplt!$F$3:$F$18000=$E58,ROW($A$3:$A$17998)),BI$28)),"") ->  | BJ58: =IFERROR(INDEX(StockEmplt!$C$1:$C$18000,SMALL(IF(StockEmplt!$F$3:$F$18000=$E58,ROW($A$3:$A$17998)),BI$28)),"") ->  | BK58: =IFERROR(INDEX(StockEmplt!$D$1:$D$18000,SMALL(IF(StockEmplt!$F$3:$F$18000=$E58,ROW($A$3:$A$17998)),BI$28)),"") ->  | BL58: =IFERROR(INDEX(StockEmplt!$E$1:$E$18000,SMALL(IF(StockEmplt!$F$3:$F$18000=$E58,ROW($A$3:$A$17998)),BL$28)),"") ->  | BM58: =IFERROR(INDEX(StockEmplt!$C$1:$C$18000,SMALL(IF(StockEmplt!$F$3:$F$18000=$E58,ROW($A$3:$A$17998)),BL$28)),"") ->  | BN58: =IFERROR(INDEX(StockEmplt!$D$1:$D$18000,SMALL(IF(StockEmplt!$F$3:$F$18000=$E58,ROW($A$3:$A$17998)),BL$28)),"") ->  | BO58: =IFERROR(INDEX(StockEmplt!$E$1:$E$18000,SMALL(IF(StockEmplt!$F$3:$F$18000=$E58,ROW($A$3:$A$17998)),BO$28)),"") ->  | BP58: =IFERROR(INDEX(StockEmplt!$C$1:$C$18000,SMALL(IF(StockEmplt!$F$3:$F$18000=$E58,ROW($A$3:$A$17998)),BO$28)),"") ->  | BQ58: =IFERROR(INDEX(StockEmplt!$D$1:$D$18000,SMALL(IF(StockEmplt!$F$3:$F$18000=$E58,ROW($A$3:$A$17998)),BO$28)),"") -> 
A59: M452080 | B59: 51661-2JN | C59: 1500 | D59: 7241062 | E59: QC661 | F59: 1500 | G59: =IFERROR(INDEX(StockEmplt!$E$1:$E$18000,SMALL(IF(StockEmplt!$F$3:$F$18000=$E59,ROW($A$3:$A$17037)),G$28)),"") -> 15589 | H59: =IFERROR(INDEX(StockEmplt!$C$1:$C$18000,SMALL(IF(StockEmplt!$F$3:$F$18000=$E59,ROW($A$3:$A$17998)),G$28)),"") -> BB032 | I59: =IFERROR(INDEX(StockEmplt!$D$1:$D$18000,SMALL(IF(StockEmplt!$F$3:$F$18000=$E59,ROW($A$3:$A$17998)),G$28)),"") -> 5FM125330K | J59: =IFERROR(INDEX(StockEmplt!$E$1:$E$18000,SMALL(IF(StockEmplt!$F$3:$F$18000=$E59,ROW($A$3:$A$17998)),J$28)),"") -> 53094 | K59: =IFERROR(INDEX(StockEmplt!$C$1:$C$18000,SMALL(IF(StockEmplt!$F$3:$F$18000=$E59,ROW($A$3:$A$17998)),J$28)),"") -> BC033 | L59: =IFERROR(INDEX(StockEmplt!$D$1:$D$18000,SMALL(IF(StockEmplt!$F$3:$F$18000=$E59,ROW($A$3:$A$17998)),J$28)),"") -> 7EM433320K | M59: =IFERROR(INDEX(StockEmplt!$E$1:$E$18000,SMALL(IF(StockEmplt!$F$3:$F$18000=$E59,ROW($A$3:$A$17037)),M$28)),"") ->  | N59: =IFERROR(INDEX(StockEmplt!$C$1:$C$18000,SMALL(IF(StockEmplt!$F$3:$F$18000=$E59,ROW($A$3:$A$17998)),M$28)),"") ->  | O59: =IFERROR(INDEX(StockEmplt!$D$1:$D$18000,SMALL(IF(StockEmplt!$F$3:$F$18000=$E59,ROW($A$3:$A$17998)),M$28)),"") ->  | P59: =IFERROR(INDEX(StockEmplt!$E$1:$E$18000,SMALL(IF(StockEmplt!$F$3:$F$18000=$E59,ROW($A$3:$A$17037)),P$28)),"") ->  | Q59: =IFERROR(INDEX(StockEmplt!$C$1:$C$18000,SMALL(IF(StockEmplt!$F$3:$F$18000=$E59,ROW($A$3:$A$17998)),P$28)),"") ->  | R59: =IFERROR(INDEX(StockEmplt!$D$1:$D$18000,SMALL(IF(StockEmplt!$F$3:$F$18000=$E59,ROW($A$3:$A$17998)),P$28)),"") ->  | S59: =IFERROR(INDEX(StockEmplt!$E$1:$E$18000,SMALL(IF(StockEmplt!$F$3:$F$18000=$E59,ROW($A$3:$A$17037)),S$28)),"") ->  | T59: =IFERROR(INDEX(StockEmplt!$C$1:$C$18000,SMALL(IF(StockEmplt!$F$3:$F$18000=$E59,ROW($A$3:$A$17998)),S$28)),"") ->  | U59: =IFERROR(INDEX(StockEmplt!$D$1:$D$18000,SMALL(IF(StockEmplt!$F$3:$F$18000=$E59,ROW($A$3:$A$17998)),S$28)),"") ->  | V59: =IFERROR(INDEX(StockEmplt!$E$1:$E$18000,SMALL(IF(StockEmplt!$F$3:$F$18000=$E59,ROW($A$3:$A$17037)),V$28)),"") ->  | W59: =IFERROR(INDEX(StockEmplt!$C$1:$C$18000,SMALL(IF(StockEmplt!$F$3:$F$18000=$E59,ROW($A$3:$A$17998)),V$28)),"") ->  | X59: =IFERROR(INDEX(StockEmplt!$D$1:$D$18000,SMALL(IF(StockEmplt!$F$3:$F$18000=$E59,ROW($A$3:$A$17998)),V$28)),"") ->  | Y59: =IFERROR(INDEX(StockEmplt!$E$1:$E$18000,SMALL(IF(StockEmplt!$F$3:$F$18000=$E59,ROW($A$3:$A$17037)),Y$28)),"") ->  | Z59: =IFERROR(INDEX(StockEmplt!$C$1:$C$18000,SMALL(IF(StockEmplt!$F$3:$F$18000=$E59,ROW($A$3:$A$17998)),Y$28)),"") ->  | AA59: =IFERROR(INDEX(StockEmplt!$D$1:$D$18000,SMALL(IF(StockEmplt!$F$3:$F$18000=$E59,ROW($A$3:$A$17998)),Y$28)),"") ->  | AB59: =IFERROR(INDEX(StockEmplt!$E$1:$E$18000,SMALL(IF(StockEmplt!$F$3:$F$18000=$E59,ROW($A$3:$A$17037)),AB$28)),"") ->  | AC59: =IFERROR(INDEX(StockEmplt!$C$1:$C$18000,SMALL(IF(StockEmplt!$F$3:$F$18000=$E59,ROW($A$3:$A$17998)),AB$28)),"") ->  | AD59: =IFERROR(INDEX(StockEmplt!$D$1:$D$18000,SMALL(IF(StockEmplt!$F$3:$F$18000=$E59,ROW($A$3:$A$17998)),AB$28)),"") ->  | AE59: =IFERROR(INDEX(StockEmplt!$E$1:$E$18000,SMALL(IF(StockEmplt!$F$3:$F$18000=$E59,ROW($A$3:$A$17037)),AE$28)),"") ->  | AF59: =IFERROR(INDEX(StockEmplt!$C$1:$C$18000,SMALL(IF(StockEmplt!$F$3:$F$18000=$E59,ROW($A$3:$A$17998)),AE$28)),"") ->  | AG59: =IFERROR(INDEX(StockEmplt!$D$1:$D$18000,SMALL(IF(StockEmplt!$F$3:$F$18000=$E59,ROW($A$3:$A$17998)),AE$28)),"") ->  | AH59: =IFERROR(INDEX(StockEmplt!$E$1:$E$18000,SMALL(IF(StockEmplt!$F$3:$F$18000=$E59,ROW($A$3:$A$17037)),AH$28)),"") ->  | AI59: =IFERROR(INDEX(StockEmplt!$C$1:$C$18000,SMALL(IF(StockEmplt!$F$3:$F$18000=$E59,ROW($A$3:$A$17998)),AH$28)),"") ->  | AJ59: =IFERROR(INDEX(StockEmplt!$D$1:$D$18000,SMALL(IF(StockEmplt!$F$3:$F$18000=$E59,ROW($A$3:$A$17998)),AH$28)),"") ->  | AK59: =IFERROR(INDEX(StockEmplt!$E$1:$E$18000,SMALL(IF(StockEmplt!$F$3:$F$18000=$E59,ROW($A$3:$A$17998)),AK$28)),"") ->  | AL59: =IFERROR(INDEX(StockEmplt!$C$1:$C$18000,SMALL(IF(StockEmplt!$F$3:$F$18000=$E59,ROW($A$3:$A$17998)),AK$28)),"") ->  | AM59: =IFERROR(INDEX(StockEmplt!$D$1:$D$18000,SMALL(IF(StockEmplt!$F$3:$F$18000=$E59,ROW($A$3:$A$17998)),AK$28)),"") ->  | AN59: =IFERROR(INDEX(StockEmplt!$E$1:$E$18000,SMALL(IF(StockEmplt!$F$3:$F$18000=$E59,ROW($A$3:$A$17998)),AN$28)),"") ->  | AO59: =IFERROR(INDEX(StockEmplt!$C$1:$C$18000,SMALL(IF(StockEmplt!$F$3:$F$18000=$E59,ROW($A$3:$A$17998)),AN$28)),"") ->  | AP59: =IFERROR(INDEX(StockEmplt!$D$1:$D$18000,SMALL(IF(StockEmplt!$F$3:$F$18000=$E59,ROW($A$3:$A$17998)),AN$28)),"") ->  | AQ59: =IFERROR(INDEX(StockEmplt!$E$1:$E$18000,SMALL(IF(StockEmplt!$F$3:$F$18000=$E59,ROW($A$3:$A$17998)),AQ$28)),"") ->  | AR59: =IFERROR(INDEX(StockEmplt!$C$1:$C$18000,SMALL(IF(StockEmplt!$F$3:$F$18000=$E59,ROW($A$3:$A$17998)),AQ$28)),"") ->  | AS59: =IFERROR(INDEX(StockEmplt!$D$1:$D$18000,SMALL(IF(StockEmplt!$F$3:$F$18000=$E59,ROW($A$3:$A$17998)),AQ$28)),"") ->  | AT59: =IFERROR(INDEX(StockEmplt!$E$1:$E$18000,SMALL(IF(StockEmplt!$F$3:$F$18000=$E59,ROW($A$3:$A$17998)),AT$28)),"") ->  | AU59: =IFERROR(INDEX(StockEmplt!$C$1:$C$18000,SMALL(IF(StockEmplt!$F$3:$F$18000=$E59,ROW($A$3:$A$17998)),AT$28)),"") ->  | AV59: =IFERROR(INDEX(StockEmplt!$D$1:$D$18000,SMALL(IF(StockEmplt!$F$3:$F$18000=$E59,ROW($A$3:$A$17998)),AT$28)),"") ->  | AW59: =IFERROR(INDEX(StockEmplt!$E$1:$E$18000,SMALL(IF(StockEmplt!$F$3:$F$18000=$E59,ROW($A$3:$A$17998)),AW$28)),"") ->  | AX59: =IFERROR(INDEX(StockEmplt!$C$1:$C$18000,SMALL(IF(StockEmplt!$F$3:$F$18000=$E59,ROW($A$3:$A$17998)),AW$28)),"") ->  | AY59: =IFERROR(INDEX(StockEmplt!$D$1:$D$18000,SMALL(IF(StockEmplt!$F$3:$F$18000=$E59,ROW($A$3:$A$17998)),AW$28)),"") ->  | AZ59: =IFERROR(INDEX(StockEmplt!$E$1:$E$18000,SMALL(IF(StockEmplt!$F$3:$F$18000=$E59,ROW($A$3:$A$17998)),AZ$28)),"") ->  | BA59: =IFERROR(INDEX(StockEmplt!$C$1:$C$18000,SMALL(IF(StockEmplt!$F$3:$F$18000=$E59,ROW($A$3:$A$17998)),AZ$28)),"") ->  | BB59: =IFERROR(INDEX(StockEmplt!$D$1:$D$18000,SMALL(IF(StockEmplt!$F$3:$F$18000=$E59,ROW($A$3:$A$17998)),AZ$28)),"") ->  | BC59: =IFERROR(INDEX(StockEmplt!$E$1:$E$18000,SMALL(IF(StockEmplt!$F$3:$F$18000=$E59,ROW($A$3:$A$17998)),BC$28)),"") ->  | BD59: =IFERROR(INDEX(StockEmplt!$C$1:$C$18000,SMALL(IF(StockEmplt!$F$3:$F$18000=$E59,ROW($A$3:$A$17998)),BC$28)),"") ->  | BE59: =IFERROR(INDEX(StockEmplt!$D$1:$D$18000,SMALL(IF(StockEmplt!$F$3:$F$18000=$E59,ROW($A$3:$A$17998)),BC$28)),"") ->  | BF59: =IFERROR(INDEX(StockEmplt!$E$1:$E$18000,SMALL(IF(StockEmplt!$F$3:$F$18000=$E59,ROW($A$3:$A$17998)),BF$28)),"") ->  | BG59: =IFERROR(INDEX(StockEmplt!$C$1:$C$18000,SMALL(IF(StockEmplt!$F$3:$F$18000=$E59,ROW($A$3:$A$17998)),BF$28)),"") ->  | BH59: =IFERROR(INDEX(StockEmplt!$D$1:$D$18000,SMALL(IF(StockEmplt!$F$3:$F$18000=$E59,ROW($A$3:$A$17998)),BF$28)),"") ->  | BI59: =IFERROR(INDEX(StockEmplt!$E$1:$E$18000,SMALL(IF(StockEmplt!$F$3:$F$18000=$E59,ROW($A$3:$A$17998)),BI$28)),"") ->  | BJ59: =IFERROR(INDEX(StockEmplt!$C$1:$C$18000,SMALL(IF(StockEmplt!$F$3:$F$18000=$E59,ROW($A$3:$A$17998)),BI$28)),"") ->  | BK59: =IFERROR(INDEX(StockEmplt!$D$1:$D$18000,SMALL(IF(StockEmplt!$F$3:$F$18000=$E59,ROW($A$3:$A$17998)),BI$28)),"") ->  | BL59: =IFERROR(INDEX(StockEmplt!$E$1:$E$18000,SMALL(IF(StockEmplt!$F$3:$F$18000=$E59,ROW($A$3:$A$17998)),BL$28)),"") ->  | BM59: =IFERROR(INDEX(StockEmplt!$C$1:$C$18000,SMALL(IF(StockEmplt!$F$3:$F$18000=$E59,ROW($A$3:$A$17998)),BL$28)),"") ->  | BN59: =IFERROR(INDEX(StockEmplt!$D$1:$D$18000,SMALL(IF(StockEmplt!$F$3:$F$18000=$E59,ROW($A$3:$A$17998)),BL$28)),"") ->  | BO59: =IFERROR(INDEX(StockEmplt!$E$1:$E$18000,SMALL(IF(StockEmplt!$F$3:$F$18000=$E59,ROW($A$3:$A$17998)),BO$28)),"") ->  | BP59: =IFERROR(INDEX(StockEmplt!$C$1:$C$18000,SMALL(IF(StockEmplt!$F$3:$F$18000=$E59,ROW($A$3:$A$17998)),BO$28)),"") ->  | BQ59: =IFERROR(INDEX(StockEmplt!$D$1:$D$18000,SMALL(IF(StockEmplt!$F$3:$F$18000=$E59,ROW($A$3:$A$17998)),BO$28)),"") -> 
A60: M452040 | B60: 51083 * | C60: 5000 | D60: 7261046 | E60: 51081-2VRAC * | F60: 5000 | G60: =IFERROR(INDEX(StockEmplt!$E$1:$E$18000,SMALL(IF(StockEmplt!$F$3:$F$18000=$E60,ROW($A$3:$A$17037)),G$28)),"") -> 100 | H60: =IFERROR(INDEX(StockEmplt!$C$1:$C$18000,SMALL(IF(StockEmplt!$F$3:$F$18000=$E60,ROW($A$3:$A$17998)),G$28)),"") -> ZA181 | I60: =IFERROR(INDEX(StockEmplt!$D$1:$D$18000,SMALL(IF(StockEmplt!$F$3:$F$18000=$E60,ROW($A$3:$A$17998)),G$28)),"") -> 6KM3437300 | J60: =IFERROR(INDEX(StockEmplt!$E$1:$E$18000,SMALL(IF(StockEmplt!$F$3:$F$18000=$E60,ROW($A$3:$A$17998)),J$28)),"") -> 8400 | K60: =IFERROR(INDEX(StockEmplt!$C$1:$C$18000,SMALL(IF(StockEmplt!$F$3:$F$18000=$E60,ROW($A$3:$A$17998)),J$28)),"") -> BA031 | L60: =IFERROR(INDEX(StockEmplt!$D$1:$D$18000,SMALL(IF(StockEmplt!$F$3:$F$18000=$E60,ROW($A$3:$A$17998)),J$28)),"") -> 7DM4278300 | M60: =IFERROR(INDEX(StockEmplt!$E$1:$E$18000,SMALL(IF(StockEmplt!$F$3:$F$18000=$E60,ROW($A$3:$A$17037)),M$28)),"") -> 2000 | N60: =IFERROR(INDEX(StockEmplt!$C$1:$C$18000,SMALL(IF(StockEmplt!$F$3:$F$18000=$E60,ROW($A$3:$A$17998)),M$28)),"") -> SCCV | O60: =IFERROR(INDEX(StockEmplt!$D$1:$D$18000,SMALL(IF(StockEmplt!$F$3:$F$18000=$E60,ROW($A$3:$A$17998)),M$28)),"") -> 7DM4278300 | P60: =IFERROR(INDEX(StockEmplt!$E$1:$E$18000,SMALL(IF(StockEmplt!$F$3:$F$18000=$E60,ROW($A$3:$A$17037)),P$28)),"") -> 34430 | Q60: =IFERROR(INDEX(StockEmplt!$C$1:$C$18000,SMALL(IF(StockEmplt!$F$3:$F$18000=$E60,ROW($A$3:$A$17998)),P$28)),"") -> BB012 | R60: =IFERROR(INDEX(StockEmplt!$D$1:$D$18000,SMALL(IF(StockEmplt!$F$3:$F$18000=$E60,ROW($A$3:$A$17998)),P$28)),"") -> 7EM4363500 | S60: =IFERROR(INDEX(StockEmplt!$E$1:$E$18000,SMALL(IF(StockEmplt!$F$3:$F$18000=$E60,ROW($A$3:$A$17037)),S$28)),"") -> 1600 | T60: =IFERROR(INDEX(StockEmplt!$C$1:$C$18000,SMALL(IF(StockEmplt!$F$3:$F$18000=$E60,ROW($A$3:$A$17998)),S$28)),"") -> SCCH | U60: =IFERROR(INDEX(StockEmplt!$D$1:$D$18000,SMALL(IF(StockEmplt!$F$3:$F$18000=$E60,ROW($A$3:$A$17998)),S$28)),"") -> 7EM4363500 | V60: =IFERROR(INDEX(StockEmplt!$E$1:$E$18000,SMALL(IF(StockEmplt!$F$3:$F$18000=$E60,ROW($A$3:$A$17037)),V$28)),"") -> 59500 | W60: =IFERROR(INDEX(StockEmplt!$C$1:$C$18000,SMALL(IF(StockEmplt!$F$3:$F$18000=$E60,ROW($A$3:$A$17998)),V$28)),"") -> BB033 | X60: =IFERROR(INDEX(StockEmplt!$D$1:$D$18000,SMALL(IF(StockEmplt!$F$3:$F$18000=$E60,ROW($A$3:$A$17998)),V$28)),"") -> 7EM4485100 | Y60: =IFERROR(INDEX(StockEmplt!$E$1:$E$18000,SMALL(IF(StockEmplt!$F$3:$F$18000=$E60,ROW($A$3:$A$17037)),Y$28)),"") ->  | Z60: =IFERROR(INDEX(StockEmplt!$C$1:$C$18000,SMALL(IF(StockEmplt!$F$3:$F$18000=$E60,ROW($A$3:$A$17998)),Y$28)),"") ->  | AA60: =IFERROR(INDEX(StockEmplt!$D$1:$D$18000,SMALL(IF(StockEmplt!$F$3:$F$18000=$E60,ROW($A$3:$A$17998)),Y$28)),"") ->  | AB60: =IFERROR(INDEX(StockEmplt!$E$1:$E$18000,SMALL(IF(StockEmplt!$F$3:$F$18000=$E60,ROW($A$3:$A$17037)),AB$28)),"") ->  | AC60: =IFERROR(INDEX(StockEmplt!$C$1:$C$18000,SMALL(IF(StockEmplt!$F$3:$F$18000=$E60,ROW($A$3:$A$17998)),AB$28)),"") ->  | AD60: =IFERROR(INDEX(StockEmplt!$D$1:$D$18000,SMALL(IF(StockEmplt!$F$3:$F$18000=$E60,ROW($A$3:$A$17998)),AB$28)),"") ->  | AE60: =IFERROR(INDEX(StockEmplt!$E$1:$E$18000,SMALL(IF(StockEmplt!$F$3:$F$18000=$E60,ROW($A$3:$A$17037)),AE$28)),"") ->  | AF60: =IFERROR(INDEX(StockEmplt!$C$1:$C$18000,SMALL(IF(StockEmplt!$F$3:$F$18000=$E60,ROW($A$3:$A$17998)),AE$28)),"") ->  | AG60: =IFERROR(INDEX(StockEmplt!$D$1:$D$18000,SMALL(IF(StockEmplt!$F$3:$F$18000=$E60,ROW($A$3:$A$17998)),AE$28)),"") ->  | AH60: =IFERROR(INDEX(StockEmplt!$E$1:$E$18000,SMALL(IF(StockEmplt!$F$3:$F$18000=$E60,ROW($A$3:$A$17037)),AH$28)),"") ->  | AI60: =IFERROR(INDEX(StockEmplt!$C$1:$C$18000,SMALL(IF(StockEmplt!$F$3:$F$18000=$E60,ROW($A$3:$A$17998)),AH$28)),"") ->  | AJ60: =IFERROR(INDEX(StockEmplt!$D$1:$D$18000,SMALL(IF(StockEmplt!$F$3:$F$18000=$E60,ROW($A$3:$A$17998)),AH$28)),"") ->  | AK60: =IFERROR(INDEX(StockEmplt!$E$1:$E$18000,SMALL(IF(StockEmplt!$F$3:$F$18000=$E60,ROW($A$3:$A$17998)),AK$28)),"") ->  | AL60: =IFERROR(INDEX(StockEmplt!$C$1:$C$18000,SMALL(IF(StockEmplt!$F$3:$F$18000=$E60,ROW($A$3:$A$17998)),AK$28)),"") ->  | AM60: =IFERROR(INDEX(StockEmplt!$D$1:$D$18000,SMALL(IF(StockEmplt!$F$3:$F$18000=$E60,ROW($A$3:$A$17998)),AK$28)),"") ->  | AN60: =IFERROR(INDEX(StockEmplt!$E$1:$E$18000,SMALL(IF(StockEmplt!$F$3:$F$18000=$E60,ROW($A$3:$A$17998)),AN$28)),"") ->  | AO60: =IFERROR(INDEX(StockEmplt!$C$1:$C$18000,SMALL(IF(StockEmplt!$F$3:$F$18000=$E60,ROW($A$3:$A$17998)),AN$28)),"") ->  | AP60: =IFERROR(INDEX(StockEmplt!$D$1:$D$18000,SMALL(IF(StockEmplt!$F$3:$F$18000=$E60,ROW($A$3:$A$17998)),AN$28)),"") ->  | AQ60: =IFERROR(INDEX(StockEmplt!$E$1:$E$18000,SMALL(IF(StockEmplt!$F$3:$F$18000=$E60,ROW($A$3:$A$17998)),AQ$28)),"") ->  | AR60: =IFERROR(INDEX(StockEmplt!$C$1:$C$18000,SMALL(IF(StockEmplt!$F$3:$F$18000=$E60,ROW($A$3:$A$17998)),AQ$28)),"") ->  | AS60: =IFERROR(INDEX(StockEmplt!$D$1:$D$18000,SMALL(IF(StockEmplt!$F$3:$F$18000=$E60,ROW($A$3:$A$17998)),AQ$28)),"") ->  | AT60: =IFERROR(INDEX(StockEmplt!$E$1:$E$18000,SMALL(IF(StockEmplt!$F$3:$F$18000=$E60,ROW($A$3:$A$17998)),AT$28)),"") ->  | AU60: =IFERROR(INDEX(StockEmplt!$C$1:$C$18000,SMALL(IF(StockEmplt!$F$3:$F$18000=$E60,ROW($A$3:$A$17998)),AT$28)),"") ->  | AV60: =IFERROR(INDEX(StockEmplt!$D$1:$D$18000,SMALL(IF(StockEmplt!$F$3:$F$18000=$E60,ROW($A$3:$A$17998)),AT$28)),"") ->  | AW60: =IFERROR(INDEX(StockEmplt!$E$1:$E$18000,SMALL(IF(StockEmplt!$F$3:$F$18000=$E60,ROW($A$3:$A$17998)),AW$28)),"") ->  | AX60: =IFERROR(INDEX(StockEmplt!$C$1:$C$18000,SMALL(IF(StockEmplt!$F$3:$F$18000=$E60,ROW($A$3:$A$17998)),AW$28)),"") ->  | AY60: =IFERROR(INDEX(StockEmplt!$D$1:$D$18000,SMALL(IF(StockEmplt!$F$3:$F$18000=$E60,ROW($A$3:$A$17998)),AW$28)),"") ->  | AZ60: =IFERROR(INDEX(StockEmplt!$E$1:$E$18000,SMALL(IF(StockEmplt!$F$3:$F$18000=$E60,ROW($A$3:$A$17998)),AZ$28)),"") ->  | BA60: =IFERROR(INDEX(StockEmplt!$C$1:$C$18000,SMALL(IF(StockEmplt!$F$3:$F$18000=$E60,ROW($A$3:$A$17998)),AZ$28)),"") ->  | BB60: =IFERROR(INDEX(StockEmplt!$D$1:$D$18000,SMALL(IF(StockEmplt!$F$3:$F$18000=$E60,ROW($A$3:$A$17998)),AZ$28)),"") ->  | BC60: =IFERROR(INDEX(StockEmplt!$E$1:$E$18000,SMALL(IF(StockEmplt!$F$3:$F$18000=$E60,ROW($A$3:$A$17998)),BC$28)),"") ->  | BD60: =IFERROR(INDEX(StockEmplt!$C$1:$C$18000,SMALL(IF(StockEmplt!$F$3:$F$18000=$E60,ROW($A$3:$A$17998)),BC$28)),"") ->  | BE60: =IFERROR(INDEX(StockEmplt!$D$1:$D$18000,SMALL(IF(StockEmplt!$F$3:$F$18000=$E60,ROW($A$3:$A$17998)),BC$28)),"") ->  | BF60: =IFERROR(INDEX(StockEmplt!$E$1:$E$18000,SMALL(IF(StockEmplt!$F$3:$F$18000=$E60,ROW($A$3:$A$17998)),BF$28)),"") ->  | BG60: =IFERROR(INDEX(StockEmplt!$C$1:$C$18000,SMALL(IF(StockEmplt!$F$3:$F$18000=$E60,ROW($A$3:$A$17998)),BF$28)),"") ->  | BH60: =IFERROR(INDEX(StockEmplt!$D$1:$D$18000,SMALL(IF(StockEmplt!$F$3:$F$18000=$E60,ROW($A$3:$A$17998)),BF$28)),"") ->  | BI60: =IFERROR(INDEX(StockEmplt!$E$1:$E$18000,SMALL(IF(StockEmplt!$F$3:$F$18000=$E60,ROW($A$3:$A$17998)),BI$28)),"") ->  | BJ60: =IFERROR(INDEX(StockEmplt!$C$1:$C$18000,SMALL(IF(StockEmplt!$F$3:$F$18000=$E60,ROW($A$3:$A$17998)),BI$28)),"") ->  | BK60: =IFERROR(INDEX(StockEmplt!$D$1:$D$18000,SMALL(IF(StockEmplt!$F$3:$F$18000=$E60,ROW($A$3:$A$17998)),BI$28)),"") ->  | BL60: =IFERROR(INDEX(StockEmplt!$E$1:$E$18000,SMALL(IF(StockEmplt!$F$3:$F$18000=$E60,ROW($A$3:$A$17998)),BL$28)),"") ->  | BM60: =IFERROR(INDEX(StockEmplt!$C$1:$C$18000,SMALL(IF(StockEmplt!$F$3:$F$18000=$E60,ROW($A$3:$A$17998)),BL$28)),"") ->  | BN60: =IFERROR(INDEX(StockEmplt!$D$1:$D$18000,SMALL(IF(StockEmplt!$F$3:$F$18000=$E60,ROW($A$3:$A$17998)),BL$28)),"") ->  | BO60: =IFERROR(INDEX(StockEmplt!$E$1:$E$18000,SMALL(IF(StockEmplt!$F$3:$F$18000=$E60,ROW($A$3:$A$17998)),BO$28)),"") ->  | BP60: =IFERROR(INDEX(StockEmplt!$C$1:$C$18000,SMALL(IF(StockEmplt!$F$3:$F$18000=$E60,ROW($A$3:$A$17998)),BO$28)),"") ->  | BQ60: =IFERROR(INDEX(StockEmplt!$D$1:$D$18000,SMALL(IF(StockEmplt!$F$3:$F$18000=$E60,ROW($A$3:$A$17998)),BO$28)),"") -> 
A61: M452050 | B61: 51132 | C61: 5000 | D61: 7261301 | E61: 51131-2IM | F61: 5000 | G61: =IFERROR(INDEX(StockEmplt!$E$1:$E$18000,SMALL(IF(StockEmplt!$F$3:$F$18000=$E61,ROW($A$3:$A$17037)),G$28)),"") -> 16000 | H61: =IFERROR(INDEX(StockEmplt!$C$1:$C$18000,SMALL(IF(StockEmplt!$F$3:$F$18000=$E61,ROW($A$3:$A$17998)),G$28)),"") -> BB014 | I61: =IFERROR(INDEX(StockEmplt!$D$1:$D$18000,SMALL(IF(StockEmplt!$F$3:$F$18000=$E61,ROW($A$3:$A$17998)),G$28)),"") -> 7EM4315000 | J61: =IFERROR(INDEX(StockEmplt!$E$1:$E$18000,SMALL(IF(StockEmplt!$F$3:$F$18000=$E61,ROW($A$3:$A$17998)),J$28)),"") -> 500 | K61: =IFERROR(INDEX(StockEmplt!$C$1:$C$18000,SMALL(IF(StockEmplt!$F$3:$F$18000=$E61,ROW($A$3:$A$17998)),J$28)),"") -> SCCH | L61: =IFERROR(INDEX(StockEmplt!$D$1:$D$18000,SMALL(IF(StockEmplt!$F$3:$F$18000=$E61,ROW($A$3:$A$17998)),J$28)),"") -> 7EM4315000 | M61: =IFERROR(INDEX(StockEmplt!$E$1:$E$18000,SMALL(IF(StockEmplt!$F$3:$F$18000=$E61,ROW($A$3:$A$17037)),M$28)),"") ->  | N61: =IFERROR(INDEX(StockEmplt!$C$1:$C$18000,SMALL(IF(StockEmplt!$F$3:$F$18000=$E61,ROW($A$3:$A$17998)),M$28)),"") ->  | O61: =IFERROR(INDEX(StockEmplt!$D$1:$D$18000,SMALL(IF(StockEmplt!$F$3:$F$18000=$E61,ROW($A$3:$A$17998)),M$28)),"") ->  | P61: =IFERROR(INDEX(StockEmplt!$E$1:$E$18000,SMALL(IF(StockEmplt!$F$3:$F$18000=$E61,ROW($A$3:$A$17037)),P$28)),"") ->  | Q61: =IFERROR(INDEX(StockEmplt!$C$1:$C$18000,SMALL(IF(StockEmplt!$F$3:$F$18000=$E61,ROW($A$3:$A$17998)),P$28)),"") ->  | R61: =IFERROR(INDEX(StockEmplt!$D$1:$D$18000,SMALL(IF(StockEmplt!$F$3:$F$18000=$E61,ROW($A$3:$A$17998)),P$28)),"") ->  | S61: =IFERROR(INDEX(StockEmplt!$E$1:$E$18000,SMALL(IF(StockEmplt!$F$3:$F$18000=$E61,ROW($A$3:$A$17037)),S$28)),"") ->  | T61: =IFERROR(INDEX(StockEmplt!$C$1:$C$18000,SMALL(IF(StockEmplt!$F$3:$F$18000=$E61,ROW($A$3:$A$17998)),S$28)),"") ->  | U61: =IFERROR(INDEX(StockEmplt!$D$1:$D$18000,SMALL(IF(StockEmplt!$F$3:$F$18000=$E61,ROW($A$3:$A$17998)),S$28)),"") ->  | V61: =IFERROR(INDEX(StockEmplt!$E$1:$E$18000,SMALL(IF(StockEmplt!$F$3:$F$18000=$E61,ROW($A$3:$A$17037)),V$28)),"") ->  | W61: =IFERROR(INDEX(StockEmplt!$C$1:$C$18000,SMALL(IF(StockEmplt!$F$3:$F$18000=$E61,ROW($A$3:$A$17998)),V$28)),"") ->  | X61: =IFERROR(INDEX(StockEmplt!$D$1:$D$18000,SMALL(IF(StockEmplt!$F$3:$F$18000=$E61,ROW($A$3:$A$17998)),V$28)),"") ->  | Y61: =IFERROR(INDEX(StockEmplt!$E$1:$E$18000,SMALL(IF(StockEmplt!$F$3:$F$18000=$E61,ROW($A$3:$A$17037)),Y$28)),"") ->  | Z61: =IFERROR(INDEX(StockEmplt!$C$1:$C$18000,SMALL(IF(StockEmplt!$F$3:$F$18000=$E61,ROW($A$3:$A$17998)),Y$28)),"") ->  | AA61: =IFERROR(INDEX(StockEmplt!$D$1:$D$18000,SMALL(IF(StockEmplt!$F$3:$F$18000=$E61,ROW($A$3:$A$17998)),Y$28)),"") ->  | AB61: =IFERROR(INDEX(StockEmplt!$E$1:$E$18000,SMALL(IF(StockEmplt!$F$3:$F$18000=$E61,ROW($A$3:$A$17037)),AB$28)),"") ->  | AC61: =IFERROR(INDEX(StockEmplt!$C$1:$C$18000,SMALL(IF(StockEmplt!$F$3:$F$18000=$E61,ROW($A$3:$A$17998)),AB$28)),"") ->  | AD61: =IFERROR(INDEX(StockEmplt!$D$1:$D$18000,SMALL(IF(StockEmplt!$F$3:$F$18000=$E61,ROW($A$3:$A$17998)),AB$28)),"") ->  | AE61: =IFERROR(INDEX(StockEmplt!$E$1:$E$18000,SMALL(IF(StockEmplt!$F$3:$F$18000=$E61,ROW($A$3:$A$17037)),AE$28)),"") ->  | AF61: =IFERROR(INDEX(StockEmplt!$C$1:$C$18000,SMALL(IF(StockEmplt!$F$3:$F$18000=$E61,ROW($A$3:$A$17998)),AE$28)),"") ->  | AG61: =IFERROR(INDEX(StockEmplt!$D$1:$D$18000,SMALL(IF(StockEmplt!$F$3:$F$18000=$E61,ROW($A$3:$A$17998)),AE$28)),"") ->  | AH61: =IFERROR(INDEX(StockEmplt!$E$1:$E$18000,SMALL(IF(StockEmplt!$F$3:$F$18000=$E61,ROW($A$3:$A$17037)),AH$28)),"") ->  | AI61: =IFERROR(INDEX(StockEmplt!$C$1:$C$18000,SMALL(IF(StockEmplt!$F$3:$F$18000=$E61,ROW($A$3:$A$17998)),AH$28)),"") ->  | AJ61: =IFERROR(INDEX(StockEmplt!$D$1:$D$18000,SMALL(IF(StockEmplt!$F$3:$F$18000=$E61,ROW($A$3:$A$17998)),AH$28)),"") ->  | AK61: =IFERROR(INDEX(StockEmplt!$E$1:$E$18000,SMALL(IF(StockEmplt!$F$3:$F$18000=$E61,ROW($A$3:$A$17998)),AK$28)),"") ->  | AL61: =IFERROR(INDEX(StockEmplt!$C$1:$C$18000,SMALL(IF(StockEmplt!$F$3:$F$18000=$E61,ROW($A$3:$A$17998)),AK$28)),"") ->  | AM61: =IFERROR(INDEX(StockEmplt!$D$1:$D$18000,SMALL(IF(StockEmplt!$F$3:$F$18000=$E61,ROW($A$3:$A$17998)),AK$28)),"") ->  | AN61: =IFERROR(INDEX(StockEmplt!$E$1:$E$18000,SMALL(IF(StockEmplt!$F$3:$F$18000=$E61,ROW($A$3:$A$17998)),AN$28)),"") ->  | AO61: =IFERROR(INDEX(StockEmplt!$C$1:$C$18000,SMALL(IF(StockEmplt!$F$3:$F$18000=$E61,ROW($A$3:$A$17998)),AN$28)),"") ->  | AP61: =IFERROR(INDEX(StockEmplt!$D$1:$D$18000,SMALL(IF(StockEmplt!$F$3:$F$18000=$E61,ROW($A$3:$A$17998)),AN$28)),"") ->  | AQ61: =IFERROR(INDEX(StockEmplt!$E$1:$E$18000,SMALL(IF(StockEmplt!$F$3:$F$18000=$E61,ROW($A$3:$A$17998)),AQ$28)),"") ->  | AR61: =IFERROR(INDEX(StockEmplt!$C$1:$C$18000,SMALL(IF(StockEmplt!$F$3:$F$18000=$E61,ROW($A$3:$A$17998)),AQ$28)),"") ->  | AS61: =IFERROR(INDEX(StockEmplt!$D$1:$D$18000,SMALL(IF(StockEmplt!$F$3:$F$18000=$E61,ROW($A$3:$A$17998)),AQ$28)),"") ->  | AT61: =IFERROR(INDEX(StockEmplt!$E$1:$E$18000,SMALL(IF(StockEmplt!$F$3:$F$18000=$E61,ROW($A$3:$A$17998)),AT$28)),"") ->  | AU61: =IFERROR(INDEX(StockEmplt!$C$1:$C$18000,SMALL(IF(StockEmplt!$F$3:$F$18000=$E61,ROW($A$3:$A$17998)),AT$28)),"") ->  | AV61: =IFERROR(INDEX(StockEmplt!$D$1:$D$18000,SMALL(IF(StockEmplt!$F$3:$F$18000=$E61,ROW($A$3:$A$17998)),AT$28)),"") ->  | AW61: =IFERROR(INDEX(StockEmplt!$E$1:$E$18000,SMALL(IF(StockEmplt!$F$3:$F$18000=$E61,ROW($A$3:$A$17998)),AW$28)),"") ->  | AX61: =IFERROR(INDEX(StockEmplt!$C$1:$C$18000,SMALL(IF(StockEmplt!$F$3:$F$18000=$E61,ROW($A$3:$A$17998)),AW$28)),"") ->  | AY61: =IFERROR(INDEX(StockEmplt!$D$1:$D$18000,SMALL(IF(StockEmplt!$F$3:$F$18000=$E61,ROW($A$3:$A$17998)),AW$28)),"") ->  | AZ61: =IFERROR(INDEX(StockEmplt!$E$1:$E$18000,SMALL(IF(StockEmplt!$F$3:$F$18000=$E61,ROW($A$3:$A$17998)),AZ$28)),"") ->  | BA61: =IFERROR(INDEX(StockEmplt!$C$1:$C$18000,SMALL(IF(StockEmplt!$F$3:$F$18000=$E61,ROW($A$3:$A$17998)),AZ$28)),"") ->  | BB61: =IFERROR(INDEX(StockEmplt!$D$1:$D$18000,SMALL(IF(StockEmplt!$F$3:$F$18000=$E61,ROW($A$3:$A$17998)),AZ$28)),"") ->  | BC61: =IFERROR(INDEX(StockEmplt!$E$1:$E$18000,SMALL(IF(StockEmplt!$F$3:$F$18000=$E61,ROW($A$3:$A$17998)),BC$28)),"") ->  | BD61: =IFERROR(INDEX(StockEmplt!$C$1:$C$18000,SMALL(IF(StockEmplt!$F$3:$F$18000=$E61,ROW($A$3:$A$17998)),BC$28)),"") ->  | BE61: =IFERROR(INDEX(StockEmplt!$D$1:$D$18000,SMALL(IF(StockEmplt!$F$3:$F$18000=$E61,ROW($A$3:$A$17998)),BC$28)),"") ->  | BF61: =IFERROR(INDEX(StockEmplt!$E$1:$E$18000,SMALL(IF(StockEmplt!$F$3:$F$18000=$E61,ROW($A$3:$A$17998)),BF$28)),"") ->  | BG61: =IFERROR(INDEX(StockEmplt!$C$1:$C$18000,SMALL(IF(StockEmplt!$F$3:$F$18000=$E61,ROW($A$3:$A$17998)),BF$28)),"") ->  | BH61: =IFERROR(INDEX(StockEmplt!$D$1:$D$18000,SMALL(IF(StockEmplt!$F$3:$F$18000=$E61,ROW($A$3:$A$17998)),BF$28)),"") ->  | BI61: =IFERROR(INDEX(StockEmplt!$E$1:$E$18000,SMALL(IF(StockEmplt!$F$3:$F$18000=$E61,ROW($A$3:$A$17998)),BI$28)),"") ->  | BJ61: =IFERROR(INDEX(StockEmplt!$C$1:$C$18000,SMALL(IF(StockEmplt!$F$3:$F$18000=$E61,ROW($A$3:$A$17998)),BI$28)),"") ->  | BK61: =IFERROR(INDEX(StockEmplt!$D$1:$D$18000,SMALL(IF(StockEmplt!$F$3:$F$18000=$E61,ROW($A$3:$A$17998)),BI$28)),"") ->  | BL61: =IFERROR(INDEX(StockEmplt!$E$1:$E$18000,SMALL(IF(StockEmplt!$F$3:$F$18000=$E61,ROW($A$3:$A$17998)),BL$28)),"") ->  | BM61: =IFERROR(INDEX(StockEmplt!$C$1:$C$18000,SMALL(IF(StockEmplt!$F$3:$F$18000=$E61,ROW($A$3:$A$17998)),BL$28)),"") ->  | BN61: =IFERROR(INDEX(StockEmplt!$D$1:$D$18000,SMALL(IF(StockEmplt!$F$3:$F$18000=$E61,ROW($A$3:$A$17998)),BL$28)),"") ->  | BO61: =IFERROR(INDEX(StockEmplt!$E$1:$E$18000,SMALL(IF(StockEmplt!$F$3:$F$18000=$E61,ROW($A$3:$A$17998)),BO$28)),"") ->  | BP61: =IFERROR(INDEX(StockEmplt!$C$1:$C$18000,SMALL(IF(StockEmplt!$F$3:$F$18000=$E61,ROW($A$3:$A$17998)),BO$28)),"") ->  | BQ61: =IFERROR(INDEX(StockEmplt!$D$1:$D$18000,SMALL(IF(StockEmplt!$F$3:$F$18000=$E61,ROW($A$3:$A$17998)),BO$28)),"") -> 
A62: M452060 | B62: 51133 | C62: 5000 | D62: 7261301 | E62: 51131-2IM | F62: 5000 | G62: =IFERROR(INDEX(StockEmplt!$E$1:$E$18000,SMALL(IF(StockEmplt!$F$3:$F$18000=$E62,ROW($A$3:$A$17037)),G$28)),"") -> 16000 | H62: =IFERROR(INDEX(StockEmplt!$C$1:$C$18000,SMALL(IF(StockEmplt!$F$3:$F$18000=$E62,ROW($A$3:$A$17998)),G$28)),"") -> BB014 | I62: =IFERROR(INDEX(StockEmplt!$D$1:$D$18000,SMALL(IF(StockEmplt!$F$3:$F$18000=$E62,ROW($A$3:$A$17998)),G$28)),"") -> 7EM4315000 | J62: =IFERROR(INDEX(StockEmplt!$E$1:$E$18000,SMALL(IF(StockEmplt!$F$3:$F$18000=$E62,ROW($A$3:$A$17998)),J$28)),"") -> 500 | K62: =IFERROR(INDEX(StockEmplt!$C$1:$C$18000,SMALL(IF(StockEmplt!$F$3:$F$18000=$E62,ROW($A$3:$A$17998)),J$28)),"") -> SCCH | L62: =IFERROR(INDEX(StockEmplt!$D$1:$D$18000,SMALL(IF(StockEmplt!$F$3:$F$18000=$E62,ROW($A$3:$A$17998)),J$28)),"") -> 7EM4315000 | M62: =IFERROR(INDEX(StockEmplt!$E$1:$E$18000,SMALL(IF(StockEmplt!$F$3:$F$18000=$E62,ROW($A$3:$A$17037)),M$28)),"") ->  | N62: =IFERROR(INDEX(StockEmplt!$C$1:$C$18000,SMALL(IF(StockEmplt!$F$3:$F$18000=$E62,ROW($A$3:$A$17998)),M$28)),"") ->  | O62: =IFERROR(INDEX(StockEmplt!$D$1:$D$18000,SMALL(IF(StockEmplt!$F$3:$F$18000=$E62,ROW($A$3:$A$17998)),M$28)),"") ->  | P62: =IFERROR(INDEX(StockEmplt!$E$1:$E$18000,SMALL(IF(StockEmplt!$F$3:$F$18000=$E62,ROW($A$3:$A$17037)),P$28)),"") ->  | Q62: =IFERROR(INDEX(StockEmplt!$C$1:$C$18000,SMALL(IF(StockEmplt!$F$3:$F$18000=$E62,ROW($A$3:$A$17998)),P$28)),"") ->  | R62: =IFERROR(INDEX(StockEmplt!$D$1:$D$18000,SMALL(IF(StockEmplt!$F$3:$F$18000=$E62,ROW($A$3:$A$17998)),P$28)),"") ->  | S62: =IFERROR(INDEX(StockEmplt!$E$1:$E$18000,SMALL(IF(StockEmplt!$F$3:$F$18000=$E62,ROW($A$3:$A$17037)),S$28)),"") ->  | T62: =IFERROR(INDEX(StockEmplt!$C$1:$C$18000,SMALL(IF(StockEmplt!$F$3:$F$18000=$E62,ROW($A$3:$A$17998)),S$28)),"") ->  | U62: =IFERROR(INDEX(StockEmplt!$D$1:$D$18000,SMALL(IF(StockEmplt!$F$3:$F$18000=$E62,ROW($A$3:$A$17998)),S$28)),"") ->  | V62: =IFERROR(INDEX(StockEmplt!$E$1:$E$18000,SMALL(IF(StockEmplt!$F$3:$F$18000=$E62,ROW($A$3:$A$17037)),V$28)),"") ->  | W62: =IFERROR(INDEX(StockEmplt!$C$1:$C$18000,SMALL(IF(StockEmplt!$F$3:$F$18000=$E62,ROW($A$3:$A$17998)),V$28)),"") ->  | X62: =IFERROR(INDEX(StockEmplt!$D$1:$D$18000,SMALL(IF(StockEmplt!$F$3:$F$18000=$E62,ROW($A$3:$A$17998)),V$28)),"") ->  | Y62: =IFERROR(INDEX(StockEmplt!$E$1:$E$18000,SMALL(IF(StockEmplt!$F$3:$F$18000=$E62,ROW($A$3:$A$17037)),Y$28)),"") ->  | Z62: =IFERROR(INDEX(StockEmplt!$C$1:$C$18000,SMALL(IF(StockEmplt!$F$3:$F$18000=$E62,ROW($A$3:$A$17998)),Y$28)),"") ->  | AA62: =IFERROR(INDEX(StockEmplt!$D$1:$D$18000,SMALL(IF(StockEmplt!$F$3:$F$18000=$E62,ROW($A$3:$A$17998)),Y$28)),"") ->  | AB62: =IFERROR(INDEX(StockEmplt!$E$1:$E$18000,SMALL(IF(StockEmplt!$F$3:$F$18000=$E62,ROW($A$3:$A$17037)),AB$28)),"") ->  | AC62: =IFERROR(INDEX(StockEmplt!$C$1:$C$18000,SMALL(IF(StockEmplt!$F$3:$F$18000=$E62,ROW($A$3:$A$17998)),AB$28)),"") ->  | AD62: =IFERROR(INDEX(StockEmplt!$D$1:$D$18000,SMALL(IF(StockEmplt!$F$3:$F$18000=$E62,ROW($A$3:$A$17998)),AB$28)),"") ->  | AE62: =IFERROR(INDEX(StockEmplt!$E$1:$E$18000,SMALL(IF(StockEmplt!$F$3:$F$18000=$E62,ROW($A$3:$A$17037)),AE$28)),"") ->  | AF62: =IFERROR(INDEX(StockEmplt!$C$1:$C$18000,SMALL(IF(StockEmplt!$F$3:$F$18000=$E62,ROW($A$3:$A$17998)),AE$28)),"") ->  | AG62: =IFERROR(INDEX(StockEmplt!$D$1:$D$18000,SMALL(IF(StockEmplt!$F$3:$F$18000=$E62,ROW($A$3:$A$17998)),AE$28)),"") ->  | AH62: =IFERROR(INDEX(StockEmplt!$E$1:$E$18000,SMALL(IF(StockEmplt!$F$3:$F$18000=$E62,ROW($A$3:$A$17037)),AH$28)),"") ->  | AI62: =IFERROR(INDEX(StockEmplt!$C$1:$C$18000,SMALL(IF(StockEmplt!$F$3:$F$18000=$E62,ROW($A$3:$A$17998)),AH$28)),"") ->  | AJ62: =IFERROR(INDEX(StockEmplt!$D$1:$D$18000,SMALL(IF(StockEmplt!$F$3:$F$18000=$E62,ROW($A$3:$A$17998)),AH$28)),"") ->  | AK62: =IFERROR(INDEX(StockEmplt!$E$1:$E$18000,SMALL(IF(StockEmplt!$F$3:$F$18000=$E62,ROW($A$3:$A$17998)),AK$28)),"") ->  | AL62: =IFERROR(INDEX(StockEmplt!$C$1:$C$18000,SMALL(IF(StockEmplt!$F$3:$F$18000=$E62,ROW($A$3:$A$17998)),AK$28)),"") ->  | AM62: =IFERROR(INDEX(StockEmplt!$D$1:$D$18000,SMALL(IF(StockEmplt!$F$3:$F$18000=$E62,ROW($A$3:$A$17998)),AK$28)),"") ->  | AN62: =IFERROR(INDEX(StockEmplt!$E$1:$E$18000,SMALL(IF(StockEmplt!$F$3:$F$18000=$E62,ROW($A$3:$A$17998)),AN$28)),"") ->  | AO62: =IFERROR(INDEX(StockEmplt!$C$1:$C$18000,SMALL(IF(StockEmplt!$F$3:$F$18000=$E62,ROW($A$3:$A$17998)),AN$28)),"") ->  | AP62: =IFERROR(INDEX(StockEmplt!$D$1:$D$18000,SMALL(IF(StockEmplt!$F$3:$F$18000=$E62,ROW($A$3:$A$17998)),AN$28)),"") ->  | AQ62: =IFERROR(INDEX(StockEmplt!$E$1:$E$18000,SMALL(IF(StockEmplt!$F$3:$F$18000=$E62,ROW($A$3:$A$17998)),AQ$28)),"") ->  | AR62: =IFERROR(INDEX(StockEmplt!$C$1:$C$18000,SMALL(IF(StockEmplt!$F$3:$F$18000=$E62,ROW($A$3:$A$17998)),AQ$28)),"") ->  | AS62: =IFERROR(INDEX(StockEmplt!$D$1:$D$18000,SMALL(IF(StockEmplt!$F$3:$F$18000=$E62,ROW($A$3:$A$17998)),AQ$28)),"") ->  | AT62: =IFERROR(INDEX(StockEmplt!$E$1:$E$18000,SMALL(IF(StockEmplt!$F$3:$F$18000=$E62,ROW($A$3:$A$17998)),AT$28)),"") ->  | AU62: =IFERROR(INDEX(StockEmplt!$C$1:$C$18000,SMALL(IF(StockEmplt!$F$3:$F$18000=$E62,ROW($A$3:$A$17998)),AT$28)),"") ->  | AV62: =IFERROR(INDEX(StockEmplt!$D$1:$D$18000,SMALL(IF(StockEmplt!$F$3:$F$18000=$E62,ROW($A$3:$A$17998)),AT$28)),"") ->  | AW62: =IFERROR(INDEX(StockEmplt!$E$1:$E$18000,SMALL(IF(StockEmplt!$F$3:$F$18000=$E62,ROW($A$3:$A$17998)),AW$28)),"") ->  | AX62: =IFERROR(INDEX(StockEmplt!$C$1:$C$18000,SMALL(IF(StockEmplt!$F$3:$F$18000=$E62,ROW($A$3:$A$17998)),AW$28)),"") ->  | AY62: =IFERROR(INDEX(StockEmplt!$D$1:$D$18000,SMALL(IF(StockEmplt!$F$3:$F$18000=$E62,ROW($A$3:$A$17998)),AW$28)),"") ->  | AZ62: =IFERROR(INDEX(StockEmplt!$E$1:$E$18000,SMALL(IF(StockEmplt!$F$3:$F$18000=$E62,ROW($A$3:$A$17998)),AZ$28)),"") ->  | BA62: =IFERROR(INDEX(StockEmplt!$C$1:$C$18000,SMALL(IF(StockEmplt!$F$3:$F$18000=$E62,ROW($A$3:$A$17998)),AZ$28)),"") ->  | BB62: =IFERROR(INDEX(StockEmplt!$D$1:$D$18000,SMALL(IF(StockEmplt!$F$3:$F$18000=$E62,ROW($A$3:$A$17998)),AZ$28)),"") ->  | BC62: =IFERROR(INDEX(StockEmplt!$E$1:$E$18000,SMALL(IF(StockEmplt!$F$3:$F$18000=$E62,ROW($A$3:$A$17998)),BC$28)),"") ->  | BD62: =IFERROR(INDEX(StockEmplt!$C$1:$C$18000,SMALL(IF(StockEmplt!$F$3:$F$18000=$E62,ROW($A$3:$A$17998)),BC$28)),"") ->  | BE62: =IFERROR(INDEX(StockEmplt!$D$1:$D$18000,SMALL(IF(StockEmplt!$F$3:$F$18000=$E62,ROW($A$3:$A$17998)),BC$28)),"") ->  | BF62: =IFERROR(INDEX(StockEmplt!$E$1:$E$18000,SMALL(IF(StockEmplt!$F$3:$F$18000=$E62,ROW($A$3:$A$17998)),BF$28)),"") ->  | BG62: =IFERROR(INDEX(StockEmplt!$C$1:$C$18000,SMALL(IF(StockEmplt!$F$3:$F$18000=$E62,ROW($A$3:$A$17998)),BF$28)),"") ->  | BH62: =IFERROR(INDEX(StockEmplt!$D$1:$D$18000,SMALL(IF(StockEmplt!$F$3:$F$18000=$E62,ROW($A$3:$A$17998)),BF$28)),"") ->  | BI62: =IFERROR(INDEX(StockEmplt!$E$1:$E$18000,SMALL(IF(StockEmplt!$F$3:$F$18000=$E62,ROW($A$3:$A$17998)),BI$28)),"") ->  | BJ62: =IFERROR(INDEX(StockEmplt!$C$1:$C$18000,SMALL(IF(StockEmplt!$F$3:$F$18000=$E62,ROW($A$3:$A$17998)),BI$28)),"") ->  | BK62: =IFERROR(INDEX(StockEmplt!$D$1:$D$18000,SMALL(IF(StockEmplt!$F$3:$F$18000=$E62,ROW($A$3:$A$17998)),BI$28)),"") ->  | BL62: =IFERROR(INDEX(StockEmplt!$E$1:$E$18000,SMALL(IF(StockEmplt!$F$3:$F$18000=$E62,ROW($A$3:$A$17998)),BL$28)),"") ->  | BM62: =IFERROR(INDEX(StockEmplt!$C$1:$C$18000,SMALL(IF(StockEmplt!$F$3:$F$18000=$E62,ROW($A$3:$A$17998)),BL$28)),"") ->  | BN62: =IFERROR(INDEX(StockEmplt!$D$1:$D$18000,SMALL(IF(StockEmplt!$F$3:$F$18000=$E62,ROW($A$3:$A$17998)),BL$28)),"") ->  | BO62: =IFERROR(INDEX(StockEmplt!$E$1:$E$18000,SMALL(IF(StockEmplt!$F$3:$F$18000=$E62,ROW($A$3:$A$17998)),BO$28)),"") ->  | BP62: =IFERROR(INDEX(StockEmplt!$C$1:$C$18000,SMALL(IF(StockEmplt!$F$3:$F$18000=$E62,ROW($A$3:$A$17998)),BO$28)),"") ->  | BQ62: =IFERROR(INDEX(StockEmplt!$D$1:$D$18000,SMALL(IF(StockEmplt!$F$3:$F$18000=$E62,ROW($A$3:$A$17998)),BO$28)),"") -> 
